Workbook

Sheet INDEX
A1: INDEX | B1: s
A2: Model Specs
A3: 1. Information Sheet
A4: 2. Current Tariff Schedule
A5: 3. Continuity Schedule
A6: 4. Billing Det. for Def-Var
A7: 5. Allocating Def-Var Balances
A8: 6. GA Calculation
A9: 6A. GA Allocation_Class A
A10: 6B. GA Allocation_new Class B
A11: 6C. 2016 GA Rate Rider Update | B11: PowerStream service area specific
A12: 7. CBR Calculation
A13: 7A. CBR Allocation_Class A
A14: 7B. CBR Allocation_new Class B
A15: 8. Calculation of Def-Var RR
A16: 9. STS-Tax Change
A17: 10. Shared Tax - RR
A18: 11. RTSR - Current Rates
A19: 12. RTSR-UTRs & Sub-Tx
A20: 13. RTSR-Historic Wholesale
A21: 14. RTSR-Current Wholesale
A22: 15. RTSR-Forecast Wholesale
A23: 16. RTSR-Rates to Forecast
A24: 17. Rev2Cost-GDPIPI
A25: 18. Regulatory Charges
A26: 19. Additional Rates
A27: 20. Final Tariff Schedule
A28: 21. Bill Impacts
A29: RATES
A30: BoD Reporting
A31: FHA Impact

Sheet Model Specs
A1: Back to Index | K1: Lists:
B2: Model Specifications
K3: Yes
B4: Utility | C4: Alectra - PowerStream | K4: No
B6: Applying for Rates Effective | C6: 2018-01-01 | K6: kWh
K7: kW
K8: kVA
B9: Line Loss Factor | C9: 1.0369
K10: Alectra - PowerStream
K11: Alectra - Enersource
K12: Alectra - Horizon Utilites
K13: Alectra - Hydro One Brampton
C14: Rate Classes (select from the List)
B15: =IFERROR(VLOOKUP(C15,$K$16:$L$29,2,FALSE),"") -> RES | C15: RESIDENTIAL SERVICE CLASSIFICATION
B16: =IFERROR(VLOOKUP(C16,$K$16:$L$29,2,FALSE),"") -> GSL | C16: GENERAL SERVICE LESS THAN 50 kW SERVICE CLASSIFICATION | K16: RESIDENTIAL SERVICE CLASSIFICATION | L16: RES
B17: GS500 | C17: GENERAL SERVICE 500 to 4,999 kW SERVICE CLASSIFICATION | K17: GENERAL SERVICE LESS THAN 50 kW SERVICE CLASSIFICATION | L17: GSL
B18: LU | C18: LARGE USE SERVICE CLASSIFICATION | K18: GENERAL SERVICE 50 to 499 kW SERVICE CLASSIFICATION | L18: GS50_499
B19: USL | C19: UNMETERED SCATTERED LOAD SERVICE CLASSIFICATION | K19: GENERAL SERVICE 50 to 699 KW SERVICE CLASSIFICATION | L19: GS50_699
B20: SB | C20: STANDBY POWER SERVICE CLASSIFICATION | K20: GENERAL SERVICE 500 to 4,999 kW SERVICE CLASSIFICATION | L20: GS500
B21: SEN | C21: SENTINEL LIGHTING SERVICE CLASSIFICATION | K21: GENERAL SERVICE 700 to 4,999 KW SERVICE CLASSIFICATION | L21: GS700
B22: SL | C22: STREET LIGHTING SERVICE CLASSIFICATION | K22: LARGE USE SERVICE CLASSIFICATION | L22: LU
K23: UNMETERED SCATTERED LOAD SERVICE CLASSIFICATION | L23: USL
K24: STREET LIGHTING SERVICE CLASSIFICATION | L24: SL
K25: STANDBY POWER SERVICE CLASSIFICATION | L25: SB
K26: SENTINEL LIGHTING SERVICE CLASSIFICATION | L26: SEN
K27: EMBEDDED DISTRIBUTOR SERVICE CLASSIFICATION | L27: EMB
K28: DISTRIBUTED GENERATION [DGEN] SERVICE CLASSIFICATION | L28: DG
K29: ENERGY FROM WASTE SERVICE CLASSIFICATION | L29: WST
B34: Have one or more Class A customers | C34: Yes

Sheet 1. Information Sheet
A1: Back to Index | V1: a
B2: INCENTIVE REGULATION MODEL FOR 2018 FILERS
N12: Version | O12: 1
F14: Utility Name | G14: Alectra - PowerStream
F16: Service Territory
F18: Assigned EB Number | G18: EB-2017-0024
F20: Name of Contact and Title | G20: Indy J Butany-DeSouza
F22: Phone Number | G22: 902-821-5727
F24: Email Address | G24: indy.butany@alectrautilties.com
F26: We are applying for rates effective | G26: 2018-01-01
F28: Rate-Setting Method | G28: Price Cap IR
B30: Please indicate in which Rate Year the Group 1 accounts were last cleared1 | G30: 2016
B32: Please indicate the last Cost of Service Re-Basing Year | G32: 2017
C35: Notes
D37: Pale gray cells represent input cells.
D39: Pale blue cells represent drop-down lists.
D41: White cells contain fixed values, automatically generated values or formulae.
B44: Note: 1. Rate year of application

Sheet 2. Current Tariff Schedule
A1: Back to Index
B2: INCENTIVE REGULATION MODEL FOR 2018 FILERS
B11: ='Model Specs'!C4 -> Alectra - PowerStream
B12: TARIFF OF RATES AND CHARGES
B13: Effective Date January 1, 2017
B14: Implementation Date January 1, 2017
B16: This schedule supersedes and replaces all previously
B17: approved schedules of Rates, Charges and Loss Factors
C18: EB-2015-0003
B21: RESIDENTIAL SERVICE CLASSIFICATION
B23: MONTHLY RATES AND CHARGES – Delivery Component
A25: R_F | B25: Service Charge | C25: $ | D25: 18.51
B26: Rate Rider for Disposition of Smart Grid True-up Variance Account (2014 balance)
A27: R_SG16 | B27: – effective until September 30, 2017 | C27: $ | D27: -0.04
B28: Rate Rider for Recovery of Lost Revenue Adjustment Mechanism Variance Account (2013 balance)
A29: R_LRVA16 | B29: – effective until September 30, 2017 | C29: $ | D29: -0.1
A30: R_SMA16 | B30: Rate Rider for Recovery of Stranded Meter Assets (2016) – effective until September 30, 2018 | C30: $ | D30: 0.06
A31: R_2RAL16 | B31: Rate Rider for Disposition of Group 2 Deferral/Variance Accounts (2016) – effective until September 30, 2018 | C31: $ | D31: 0.12
A32: R_SME | B32: Rate Rider for Smart Metering Entity Charge – effective until October 31, 2018 | C32: $ | D32: 0.79
A33: R_V | B33: Distribution Volumetric Rate | C33: $/kWh | D33: 0.013
A34: R_LV | B34: Low Voltage Service Rate | C34: $/kWh | D34: 0.0005
B35: Rate Rider for Disposition of Global Adjustment Account (2016) – effective until September 30, 2018
A36: R_GA16 | B36: Applicable only for Non-RPP Customers | C36: $/kWh | D36: 0.0012
A37: R_RAL16 | B37: Rate Rider for Disposition of Deferral/Variance Accounts (2016) – effective until September 30, 2018 | C37: $/kWh | D37: 0.0003
A38: R_RALP16 | B38: Rate Rider for Disposition of Deferral/Variance Account – Power (2016) – effective until September 30, 2018 | C38: $/kWh | D38: -0.0003
A39: R_TN | B39: Retail Transmission Rate – Network Service Rate | C39: $/kWh | D39: 0.0082
A40: R_TC | B40: Retail Transmission Rate – Line and Transformation Connection Service Rate | C40: $/kWh | D40: 0.0038
B43: MONTHLY RATES AND CHARGES – Regulatory Component
A45: WMS | B45: Wholesale Market Service Rate | C45: $/kWh | D45: 0.0036
A46: RRA | B46: Rural or Remote Electricity Rate Protection Charge (RRRP) | C46: $/kWh | D46: 0.0013
A47: OESP | B47: Ontario Electricity Support Program Charge (OESP) | C47: $/kWh | D47: 0.0011
A48: SSS | B48: Standard Supply Service – Administrative Charge (if applicable) | C48: $ | D48: 0.25
B52: GENERAL SERVICE LESS THAN 50 kW SERVICE CLASSIFICATION
B54: MONTHLY RATES AND CHARGES – Delivery Component
A56: GSL_F | B56: Service Charge | C56: $ | D56: 28.74
B57: Rate Rider for Disposition of Smart Grid True-up Variance Account (2014 balance)
A58: GSL_SG16 | B58: – effective until September 30, 2017 | C58: $ | D58: -0.17
A59: GSL_SMA16 | B59: Rate Rider for Recovery of Stranded Meter Assets (2016) – effective until September 30, 2018 | C59: $ | D59: 0.21
A60: GSL_SME | B60: Rate Rider for Smart Metering Entity Charge – effective until October 31, 2018 | C60: $ | D60: 0.79
A61: GSL_V | B61: Distribution Volumetric Rate | C61: $/kWh | D61: 0.0183
A62: GSL_LV | B62: Low Voltage Service Rate | C62: $/kWh | D62: 0.0004
B63: Rate Rider for Recovery of Lost Revenue Adjustment Mechanism Variance Account (2013 balance)
A64: GSL_LRVA16 | B64: – effective until September 30, 2017 | C64: $/kWh | D64: 0.0001
B65: Rate Rider for Disposition of Global Adjustment Account (2016) – effective until September 30, 2018
A66: GSL_GA16 | B66: Applicable only for Non-RPP Customers | C66: $/kWh | D66: 0.0012
A67: GSL_RAL16 | B67: Rate Rider for Disposition of Deferral/Variance Accounts (2016) – effective until September 30, 2018 | C67: $/kWh | D67: 0.0003
A68: GSL_RALP16 | B68: Rate Rider for Disposition of Deferral/Variance Account – Power (2016) – effective until September 30, 2018 | C68: $/kWh | D68: -0.0003
A69: GSL_2RAL16 | B69: Rate Rider for Disposition of Group 2 Deferral/Variance Accounts (2016) – effective until September 30, 2018 | C69: $/kWh | D69: 0.0002
A70: GSL_TN | B70: Retail Transmission Rate – Network Service Rate | C70: $/kWh | D70: 0.0073
A71: GSL_TC | B71: Retail Transmission Rate – Line and Transformation Connection Service Rate | C71: $/kWh | D71: 0.0033
B73: MONTHLY RATES AND CHARGES – Regulatory Component
A75: WMS | B75: Wholesale Market Service Rate | C75: $/kWh | D75: 0.0036
A76: RRA | B76: Rural or Remote Electricity Rate Protection Charge (RRRP) | C76: $/kWh | D76: 0.0013
A77: OESP | B77: Ontario Electricity Support Program Charge (OESP) | C77: $/kWh | D77: 0.0011
A78: SSS | B78: Standard Supply Service – Administrative Charge (if applicable) | C78: $ | D78: 0.25
B81: GENERAL SERVICE 50 to 4,999 kW SERVICE CLASSIFICATION
B83: MONTHLY RATES AND CHARGES – Delivery Component
A85: GSG_F | B85: Service Charge | C85: $ | D85: 140.97
B86: Rate Rider for Disposition of Smart Grid True-up Variance Account (2014 balance)
A87: GSG_SG16 | B87: – effective until September 30, 2017 | C87: $ | D87: -4.81
A88: GSG_V | B88: Distribution Volumetric Rate | C88: $/kW | D88: 4.2037
A89: GSG_LV | B89: Low Voltage Service Rate | C89: $/kW | D89: 0.1589
B90: Rate Rider for Recovery of Lost Revenue Adjustment Mechanism Variance Account (2013 balance)
A91: GSG_LRVA16 | B91: – effective until September 30, 2017 | C91: $/kW | D91: -0.0196
B92: Rate Rider for Disposition of Global Adjustment Account (2016) – effective until September 30, 2018
A93: GSG_GA16 | B93: Applicable only for Non-RPP Customers | C93: $/kW | D93: 0.4319
A94: GSG_RAL16 | B94: Rate Rider for Disposition of Deferral/Variance Accounts (2016) – effective until September 30, 2018 | C94: $/kW | D94: 0.1169
A95: GSG_RALP16 | B95: Rate Rider for Disposition of Deferral/Variance Account – Power (2016) – effective until September 30, 2018 | C95: $/kW | D95: -0.1224
A96: GSG_2RAL16 | B96: Rate Rider for Disposition of Group 2 Deferral/Variance Accounts (2016) – effective until September 30, 2018 | C96: $/kW | D96: 0.062
A97: GSG_TN | B97: Retail Transmission Rate – Network Service Rate | C97: $/kW | D97: 2.9268
A98: GSG_TC | B98: Retail Transmission Rate – Line and Transformation Connection Service Rate | C98: $/kW | D98: 1.2618
A99: GSGI_TN | B99: Retail Transmission Rate – Network Service Rate – Interval Metered | C99: $/kW | D99: 3.0681
A100: GSGI_TC | B100: Retail Transmission Rate – Line and Transformation Connection Service Rate – Interval Metered | C100: $/kW | D100: 1.3652
B102: MONTHLY RATES AND CHARGES – Regulatory Component
A104: WMS | B104: Wholesale Market Service Rate | C104: $/kWh | D104: 0.0036
A105: RRA | B105: Rural or Remote Electricity Rate Protection Charge (RRRP) | C105: $/kWh | D105: 0.0013
A106: OESP | B106: Ontario Electricity Support Program Charge (OESP) | C106: $/kWh | D106: 0.0011
A107: SSS | B107: Standard Supply Service – Administrative Charge (if applicable) | C107: $ | D107: 0.25
B111: LARGE USE SERVICE CLASSIFICATION
B113: MONTHLY RATES AND CHARGES – Delivery Component
A115: LU_F | B115: Service Charge | C115: $ | D115: 6073.68
B116: Rate Rider for Disposition of Smart Grid True-up Variance Account (2014 balance)
A117: LU_SG16 | B117: – effective until September 30, 2017 | C117: $ | D117: -199.61
A118: LU_V | B118: Distribution Volumetric Rate | C118: $/kW | D118: 2.2421
A119: LU_LV | B119: Low Voltage Service Rate | C119: $/kW | D119: 0.163
B120: Rate Rider for Recovery of Lost Revenue Adjustment Mechanism Variance Account (2013 balance)
A121: LU_LRVA16 | B121: – effective until September 30, 2017 | C121: $/kW | D121: -0.0356
A122: LU_RAL16 | B122: Rate Rider for Disposition of Deferral/Variance Accounts (2016) – effective until September 30, 2018 | C122: $/kW | D122: 0.1584
A123: LU_RALP16 | B123: Rate Rider for Disposition of Deferral/Variance Account – Power (2016) – effective until September 30, 2018 | C123: $/kW | D123: -0.1659
A124: LU_2RAL16 | B124: Rate Rider for Disposition of Group 2 Deferral/Variance Accounts (2016) – effective until September 30, 2018 | C124: $/kW | D124: 0.084
A125: LU_TN | B125: Retail Transmission Rate – Network Service Rate | C125: $/kW | D125: 3.5361
A126: LU_TC | B126: Retail Transmission Rate – Line and Transformation Connection Service Rate | C126: $/kW | D126: 1.3178
B129: MONTHLY RATES AND CHARGES – Regulatory Component
A131: WMS | B131: Wholesale Market Service Rate | C131: $/kWh | D131: 0.0036
A132: RRA | B132: Rural or Remote Electricity Rate Protection Charge (RRRP) | C132: $/kWh | D132: 0.0013
A133: OESP | B133: Ontario Electricity Support Program Charge (OESP) | C133: $/kWh | D133: 0.0011
A134: SSS | B134: Standard Supply Service – Administrative Charge (if applicable) | C134: $ | D134: 0.25
B138: STANDBY POWER SERVICE CLASSIFICATION
B140: MONTHLY RATES AND CHARGES – Delivery Component - APPROVED ON AN INTERIM BASIS
B142: Standby Charge – for a month where standby power is not provided. The charge is applied to the
A143: SB_V | B143: contracted amount (e.g. nameplate rating of generation facility). | C143: $/kW | D143: 2.8081
B147: UNMETERED SCATTERED LOAD SERVICE CLASSIFICATION
B149: MONTHLY RATES AND CHARGES – Delivery Component
A151: USL_F | B151: Service Charge (per connection) | C151: $ | D151: 8.6
B152: Rate Rider for Disposition of Smart Grid True-up Variance Account (2014 balance)
A153: USL_SG16 | B153: – effective until September 30, 2017 | C153: $ | D153: -0.02
A154: USL_V | B154: Distribution Volumetric Rate | C154: $/kWh | D154: 0.0195
A155: USL_LV | B155: Low Voltage Service Rate | C155: $/kWh | D155: 0.0005
B156: Rate Rider for Recovery of Lost Revenue Adjustment Mechanism Variance Account (2013 balance)
A157: USL_LRVA16 | B157: – effective until September 30, 2017 | C157: $/kWh | D157: -0.0002
B158: Rate Rider for Disposition of Global Adjustment Account (2016) – effective until September 30, 2018
A159: USL_GA16 | B159: Applicable only for Non-RPP Customers | C159: $/kWh | D159: 0.0012
A160: USL_RAL16 | B160: Rate Rider for Disposition of Deferral/Variance Accounts (2016) – effective until September 30, 2018 | C160: $/kWh | D160: 0.0003
A161: USL_RALP16 | B161: Rate Rider for Disposition of Deferral/Variance Account – Power (2016) – effective until September 30, 2018 | C161: $/kWh | D161: -0.0003
A162: USL_2RAL16 | B162: Rate Rider for Disposition of Group 2 Deferral/Variance Accounts (2016) – effective until September 30, 2018 | C162: $/kWh | D162: 0.0002
A163: USL_TN | B163: Retail Transmission Rate – Network Service Rate | C163: $/kWh | D163: 0.0069
A164: USL_TC | B164: Retail Transmission Rate – Line and Transformation Connection Service Rate | C164: $/kWh | D164: 0.0035
B166: MONTHLY RATES AND CHARGES – Regulatory Component
A168: WMS | B168: Wholesale Market Service Rate | C168: $/kWh | D168: 0.0036
A169: RRA | B169: Rural or Remote Electricity Rate Protection Charge (RRRP) | C169: $/kWh | D169: 0.0013
A170: OESP | B170: Ontario Electricity Support Program Charge (OESP) | C170: $/kWh | D170: 0.0011
A171: SSS | B171: Standard Supply Service – Administrative Charge (if applicable) | C171: $ | D171: 0.25
B174: SENTINEL LIGHTING SERVICE CLASSIFICATION
B176: MONTHLY RATES AND CHARGES – Delivery Component
A178: SEN_F | B178: Service Charge (per connection) | C178: $ | D178: 4.19
B179: Rate Rider for Disposition of Smart Grid True-up Variance Account (2014 balance)
A180: SEN_SG16 | B180: – effective until September 30, 2017 | C180: $ | D180: -0.01
A181: SEN_V | B181: Distribution Volumetric Rate | C181: $/kW | D181: 9.8694
A182: SEN_LV | B182: Low Voltage Service Rate | C182: $/kW | D182: 0.117
B183: Rate Rider for Recovery of Lost Revenue Adjustment Mechanism Variance Account (2013 balance)
A184: SEN_LRVA16 | B184: – effective until September 30, 2017 | C184: $/kW | D184: -0.1678
B185: Rate Rider for Disposition of Global Adjustment Account (2016) – effective until September 30, 2018
A186: SEN_GA16 | B186: Applicable only for Non-RPP Customers | C186: $/kW | D186: 0.447
A187: SEN_RAL16 | B187: Rate Rider for Disposition of Deferral/Variance Accounts (2016) – effective until September 30, 2018 | C187: $/kW | D187: 0.121
A188: SEN_RALP16 | B188: Rate Rider for Disposition of Deferral/Variance Account – Power (2016) – effective until September 30, 2018 | C188: $/kW | D188: -0.1267
A189: SEN_2RAL16 | B189: Rate Rider for Disposition of Group 2 Deferral/Variance Accounts (2016) – effective until September 30, 2018 | C189: $/kW | D189: 0.0641
A190: SEN_TN | B190: Retail Transmission Rate – Network Service Rate | C190: $/kW | D190: 2.2743
A191: SEN_TC | B191: Retail Transmission Rate – Line and Transformation Connection Service Rate | C191: $/kW | D191: 0.9336
B194: MONTHLY RATES AND CHARGES – Regulatory Component
A196: WMS | B196: Wholesale Market Service Rate | C196: $/kWh | D196: 0.0036
A197: RRA | B197: Rural or Remote Electricity Rate Protection Charge (RRRP) | C197: $/kWh | D197: 0.0013
A198: OESP | B198: Ontario Electricity Support Program Charge (OESP) | C198: $/kWh | D198: 0.0011
A199: SSS | B199: Standard Supply Service – Administrative Charge (if applicable) | C199: $ | D199: 0.25
B201: STREET LIGHTING SERVICE CLASSIFICATION
B203: MONTHLY RATES AND CHARGES – Delivery Component
A205: SL_F | B205: Service Charge (per connection) | C205: $ | D205: 1.19
A206: SL_V | B206: Distribution Volumetric Rate | C206: $/kW | D206: 6.3222
A207: SL_LV | B207: Low Voltage Service Rate | C207: $/kW | D207: 0.1288
B208: Rate Rider for Recovery of Lost Revenue Adjustment Mechanism Variance Account (2013 balance)
A209: SL_LRVA16 | B209: – effective until September 30, 2017 | C209: $/kW | D209: -0.1455
B210: Rate Rider for Disposition of Global Adjustment Account (2016) – effective until September 30, 2018
A211: SL_GA16 | B211: Applicable only for Non-RPP Customers | C211: $/kW | D211: 0.4124
A212: SL_RAL16 | B212: Rate Rider for Disposition of Deferral/Variance Accounts (2016) – effective until September 30, 2018 | C212: $/kW | D212: 0.1116
A213: SL_RALP16 | B213: Rate Rider for Disposition of Deferral/Variance Account – Power (2016) – effective until September 30, 2018 | C213: $/kW | D213: -0.1169
A214: SL_2RAL16 | B214: Rate Rider for Disposition of Group 2 Deferral/Variance Accounts (2016) – effective until September 30, 2018 | C214: $/kW | D214: 0.0592
A215: SL_TN | B215: Retail Transmission Rate – Network Service Rate | C215: $/kW | D215: 2.9431
A216: SL_TC | B216: Retail Transmission Rate – Line and Transformation Connection Service Rate | C216: $/kW | D216: 1.352
B219: MONTHLY RATES AND CHARGES – Regulatory Component
A221: WMS | B221: Wholesale Market Service Rate | C221: $/kWh | D221: 0.0036
A222: RRA | B222: Rural or Remote Electricity Rate Protection Charge (RRRP) | C222: $/kWh | D222: 0.0013
A223: OESP | B223: Ontario Electricity Support Program Charge (OESP) | C223: $/kWh | D223: 0.0011
A224: SSS | B224: Standard Supply Service – Administrative Charge (if applicable) | C224: $ | D224: 0.25
B226: MicroFIT SERVICE CLASSIFICATION
B228: MONTHLY RATES AND CHARGES – Delivery Component
A230: MF | B230: Service Charge | C230: $ | D230: 5.4

Sheet 3. Continuity Schedule
A1: Back to Index | B1: Back to Index | CK1: FALSE
C2: INCENTIVE REGULATION MODEL FOR 2018 FILERS | CK2: FALSE
CK3: FALSE
CK4: FALSE
CK5: FALSE
CK6: FALSE
CK7: FALSE
CK8: FALSE
CK9: FALSE
CK10: TRUE
CK11: TRUE
C12: Please complete the following continuity schedule for the following Deferral/Variance Accounts. Enter information into green cells only. Column CE shoudl match the latest 2.1.7 RRR filing. When inputting balances in the continuity schedule, Account 1580 RSVA - Wholesale Market Service Charge is to exclude any amounts relating to CBR. The CBR amounts are to be entered separately in the Class A and Class B 1580 sub-accounts. Only Class B amounts are to be disposed. Class A amounts are not to be disposed. If you have received approval to dispose of balances from prior years, the starting point for entries in the schedule below will be the balance sheet date as per your general ledger for which you received approval. For example, if in the 2016 EDR process (CoS or IRM) you received approval for the December 31, 2014 balances, the starting point for your entries below should be the 2013 year. This will allow for the correct starting point for the 2014 opening balance columns for both principal and interest. Please refer to the footnotes for further instructions.
E16: 2010 | O16: 2011 | Y16: 2012 | AI16: 2013 | AS16: 2014 | BC16: 2015 | BM16: 2016 | BW16: 2017 | CA16: Projected Interest on Dec-31-16 Balances | CE16: 2.1.7 RRR
C17: Account Descriptions | D17: Account Number | E17: Opening Principal Amounts as of Jan 1, 2010 | F17: Transactions2 Debit / (Credit) during 2010 | G17: OEB-Approved Disposition during 2010 | H17: Principal Adjustments1 during 2010 | I17: Closing Principal Balance as of Dec 31, 2010 | J17: Opening Interest Amounts as of Jan 1, 2010 | K17: Interest Jan 1 to Dec 31, 2010 | L17: OEB-Approved Disposition during 2010 | M17: Interest Adjustments1 during 2010 | N17: Closing Interest Amounts as of Dec 31, 2010 | O17: Opening Principal Amounts as of Jan 1, 2011 | P17: Transactions2 Debit / (Credit) during 2011 | Q17: OEB-Approved Disposition during 2011 | R17: Principal Adjustments1 during 2011 | S17: Closing Principal Balance as of Dec 31, 2011 | T17: Opening Interest Amounts as of Jan 1, 2011 | U17: Interest Jan 1 to Dec 31, 2011 | V17: OEB-Approved Disposition during 2011 | W17: Interest Adjustments1 during 2011 | X17: Closing Interest Amounts as of Dec 31, 2011 | Y17: Opening Principal Amounts as of Jan 1, 2012 | Z17: Transactions2 Debit / (Credit) during 2012 | AA17: OEB-Approved Disposition during 2012 | AB17: Principal Adjustments1 during 2012 | AC17: Closing Principal Balance as of Dec 31, 2012 | AD17: Opening Interest Amounts as of Jan 1, 2012 | AE17: Interest Jan 1 to Dec 31, 2012 | AF17: OEB-Approved Disposition during 2012 | AG17: Interest Adjustments1 during 2012 | AH17: Closing Interest Amounts as of Dec 31, 2012 | AI17: Opening Principal Amounts as of Jan 1, 2013 | AJ17: Transactions2 Debit / (Credit) during 2013 | AK17: OEB-Approved Disposition during 2013 | AL17: Principal Adjustments1 during 2013 | AM17: Closing Principal Balance as of Dec 31, 2013 | AN17: Opening Interest Amounts as of Jan 1, 2013 | AO17: Interest Jan 1 to Dec 31, 2013 | AP17: OEB-Approved Disposition during 2013 | AQ17: Interest Adjustments1 during 2013 | AR17: Closing Interest Amounts as of Dec 31, 2013 | AS17: Opening Principal Amounts as of Jan 1, 2014 | AT17: Transactions2 Debit / (Credit) during 2014 | AU17: OEB-Approved Disposition during 2014 | AV17: Principal Adjustments1 during 2014 | AW17: Closing Principal Balance as of Dec 31, 2014 | AX17: Opening Interest Amounts as of Jan 1, 2014 | AY17: Interest Jan 1 to Dec 31. 2014 | AZ17: OEB-Approved Disposition during 2014 | BA17: Interest Adjustments1 during 2014 | BB17: Closing Interest Amounts as of Dec 31, 2014 | BC17: Opening Principal Amounts as of Jan 1, 2015 | BD17: Transactions2 Debit / (Credit) during 2015 | BE17: OEB-Approved Disposition during 2015 | BF17: Principal Adjustments1 during 2015 | BG17: Closing Principal Balance as of Dec 31, 15 | BH17: Opening Interest Amounts as of Jan 1, 15 | BI17: Interest Jan 1 to Dec 31, 15 | BJ17: OEB-Approved Disposition during 2015 | BK17: Interest Adjustments1 during 2015 | BL17: Closing Interest Amounts as of Dec 31, 15 | BM17: Opening Principal Amounts as of Jan 1, 2016 | BN17: Transactions2 Debit / (Credit) during 2016 | BO17: OEB-Approved Disposition during 2016 | BP17: Principal Adjustments1 during 2016 | BQ17: Closing Principal Balance as of Dec 31, 16 | BR17: Opening Interest Amounts as of Jan 1, 16 | BS17: Interest Jan 1 to Dec 31, 16 | BT17: OEB-Approved Disposition during 2016 | BU17: Interest Adjustments1 during 2016 | BV17: Closing Interest Amounts as of Dec 31, 16 | BW17: Principal Disposition during 2017 - instructed by OEB | BX17: Interest Disposition during 2017 - instructed by OEB | BY17: Closing Principal Balances as of Dec 31, 2017 Adjusted for Dispositions during 2017 | BZ17: Closing Interest Balances as of Dec 31, 16 Adjusted for Disposition in 2017 | CA17: Projected Interest from Jan 1, 2017 to April 30, 2018 on Dec 31 -16 balance adjusted for disposition during 2017 3 | CB17: Projected Interest from January 1, 2018 to April 30, 2018 on Dec 31 -16 balance adjusted for disposition during 2017 3 | CC17: Total Interest | CD17: Total Claim | CE17: As of Dec 31-16 | CF17: Variance RRR vs. 2016 Balance (Principal + Interest)
CD19: Claim before Forecasted Transactions
C20: Group 1 Accounts
C21: LV Variance Account | D21: 1550 | I21: =E21+F21-G21+H21 -> 0 | N21: =J21+K21-L21+M21 -> 0 | O21: =I21 -> 0 | P21: -680807 | S21: =O21+P21-Q21+SUM(R21:R21) -> -680807 | T21: =N21 -> 0 | U21: -25273.3616 | X21: =T21+U21-V21+W21 -> -25273.3616 | Y21: =S21 -> -680807 | Z21: 477919 | AA21: -680807 | AC21: =Y21+Z21-AA21+SUM(AB21:AB21) -> 477919 | AD21: =X21 -> -25273.3616 | AE21: -7005 | AF21: -35310 | AH21: =AD21+AE21-AF21+AG21 -> 3031.6384 | AI21: =AC21 -> 477919 | AJ21: -112182 | AM21: =AI21+AJ21-AK21+SUM(AL21:AL21) -> 365737 | AN21: =AH21 -> 3031.6384 | AO21: 6431 | AR21: =AN21+AO21-AP21+AQ21 -> 9462.6384 | AS21: =AM21 -> 365737 | AT21: -133409 | AU21: 477919 | AW21: =AS21+AT21-AU21+SUM(AV21:AV21) -> -245591 | AX21: =AR21 -> 9462.6384 | AY21: -1339 | AZ21: 10057 | BB21: =AX21+AY21-AZ21+BA21 -> -1933.3616 | BC21: =AW21 -> -245591 | BD21: 1878888.72 | BG21: =BC21+BD21-BE21+SUM(BF21:BF21) -> 1633297.72 | BH21: =BB21 -> -1933.3616 | BI21: 2930.11 | BL21: =BH21+BI21-BJ21+BK21 -> 996.7484 | BM21: =BG21 -> 1633297.72 | BN21: 2598645.27 | BO21: -245591 | BQ21: =BM21+BN21-BO21+SUM(BP21:BP21) -> 4477533.99 | BR21: =BL21 -> 996.7484 | BS21: 31733.49338 | BT21: -6702 | BV21: =BR21+BS21-BT21+BU21 -> 39432.24178 | BY21: =BQ21-BW21 -> 4477533.99 | BZ21: =BV21-BX21 -> 39432.24178 | CA21: =+BY21*(0.011*0.75+1.5%*0.5+1.89%/12) -> 77573.27638 | CC21: =BZ21+CA21+CB21 -> 117005.5182 | CD21: =SUM(BY21:CB21) -> 4594539.508 | CE21: 4516967.53 | CF21: =CE21-SUM(BQ21,BV21) -> 1.298218529
C22: Smart Metering Entity Charge Variance Account | D22: 1551 | I22: =E22+F22-G22+H22 -> 0 | N22: =J22+K22-L22+M22 -> 0 | O22: =I22 -> 0 | S22: 0 | T22: 0 | X22: =T22+U22-V22+W22 -> 0 | Y22: 0 | AC22: =Y22+Z22-AA22+SUM(AB22:AB22) -> 0 | AD22: =X22 -> 0 | AH22: =AD22+AE22-AF22+AG22 -> 0 | AI22: 0 | AJ22: 185108 | AM22: 185108 | AN22: 0 | AO22: 1632 | AR22: =AN22+AO22-AP22+AQ22 -> 1632 | AS22: 185108 | AT22: -93458 | AW22: 91650 | AX22: 1632 | AY22: 2228 | BB22: =AX22+AY22-AZ22+BA22 -> 3860 | BC22: 91650 | BD22: -127715.26 | BG22: -36065.26 | BH22: 3860 | BI22: 652.96 | BL22: =BH22+BI22-BJ22+BK22 -> 4512.96 | BM22: =BG22 -> -36065.26 | BN22: -125095.12 | BO22: 91650 | BQ22: =BM22+BN22-BO22+SUM(BP22:BP22) -> -252810.38 | BR22: 4512.96 | BS22: -1054.24 | BT22: 5640 | BV22: =BR22+BS22-BT22+BU22 -> -2181.28 | BY22: =BQ22-BW22 -> -252810.38 | BZ22: =BV22-BX22 -> -2181.28 | CA22: =+BY22*(0.011*0.75+1.5%*0.5+1.89%/12) -> -4379.939834 | CC22: =BZ22+CA22+CB22 -> -6561.219833 | CD22: =SUM(BY22:CB22) -> -259371.5998 | CE22: -254991.91 | CF22: =CE22-SUM(BQ22,BV22) -> -0.25
C23: RSVA - Wholesale Market Service Charge | D23: 1580 | I23: =E23+F23-G23+H23 -> 0 | N23: =J23+K23-L23+M23 -> 0 | O23: =I23 -> 0 | P23: -22160709 | S23: =O23+P23-Q23+SUM(R23:R23) -> -22160709 | T23: 0 | U23: -453592 | X23: =T23+U23-V23+W23 -> -453592 | Y23: -22160709 | Z23: -10646313 | AA23: -22160709 | AC23: =Y23+Z23-AA23+SUM(AB23:AB23) -> -10646313 | AD23: =X23 -> -453592 | AE23: -411074 | AF23: -780247 | AH23: =AD23+AE23-AF23+AG23 -> -84419 | AI23: -10646313 | AJ23: -5065917 | AM23: -15712230 | AN23: -84419 | AO23: -200434 | AR23: =AN23+AO23-AP23+AQ23 -> -284853 | AS23: -15712230 | AT23: -877534 | AU23: -10646313 | AW23: -5943451 | AX23: -284853 | AY23: -58992 | AZ23: -240919 | BB23: =AX23+AY23-AZ23+BA23 -> -102926 | BC23: -5943451 | BD23: -18323012.7 | BG23: -24266463.7 | BH23: -102926 | BI23: -122114.92 | BL23: =BH23+BI23-BJ23+BK23 -> -225040.92 | BM23: -24266463.7 | BN23: -7562592.09 | BO23: -5943451 | BQ23: =BM23+BN23-BO23+SUM(BP23:BP23) -> -25885604.79 | BR23: -225040.92 | BS23: -299766.02 | BT23: -218327 | BV23: =BR23+BS23-BT23+BU23 -> -306479.94 | BY23: -25885604.79 | BZ23: -306479.94 | CA23: -448468.103 | CC23: -754948.043 | CD23: =SUM(BY23:CB23) -> -26640552.83 | CE23: -24214980.98 | CF23: =CE23-SUM(BQ23,BV23) -> 1977103.75
C24: Variance WMS – Sub-account CBR Class A | D24: 1580 | I24: 0 | N24: 0 | O24: 0 | S24: 0 | T24: 0 | X24: 0 | Y24: 0 | AC24: 0 | AD24: 0 | AH24: 0 | AI24: 0 | AM24: 0 | AN24: 0 | AR24: 0 | AS24: 0 | AW24: 0 | AX24: 0 | BB24: 0 | BC24: 0 | BD24: 52343.91 | BG24: =BC24+BD24-BE24+SUM(BF24:BF24) -> 52343.91 | BH24: 0 | BI24: 152.66 | BL24: 152.66 | BM24: 52343.91 | BN24: -52343.89 | BQ24: =BM24+BN24-BO24+SUM(BP24:BP24) -> 0.02 | BR24: 152.66 | BS24: -152.66 | BV24: -2.842170943e-14 | BY24: 0.02 | BZ24: -2.842170943e-14 | CA24: 0.0003465000001 | CC24: 0.0003465 | CD24: 0.0203465 | CE24: 0 | CF24: =CE24-SUM(BQ24,BV24) -> -0.02
C25: Variance WMS – Sub-account CBR Class B | D25: 1580 | I25: 0 | N25: 0 | O25: 0 | S25: 0 | T25: 0 | X25: 0 | Y25: 0 | AC25: 0 | AD25: 0 | AH25: 0 | AI25: 0 | AM25: 0 | AN25: 0 | AR25: 0 | AS25: 0 | AW25: 0 | AX25: 0 | BB25: 0 | BC25: 0 | BD25: 2283691.86 | BG25: 2283691.86 | BH25: 0 | BI25: 7619.77 | BL25: 7619.77 | BM25: 2283691.86 | BN25: -336420.75 | BQ25: =BM25+BN25-BO25+SUM(BP25:BP25) -> 1947271.11 | BR25: 7619.77 | BS25: 22213.17 | BV25: 29832.94 | BY25: 1947271.11 | BZ25: 29832.94 | CA25: 33736.47198 | CC25: 63569.41198 | CD25: 2010840.522 | CE25: 1977104.05 | CF25: =CE25-SUM(BQ25,BV25) -> 0
C26: RSVA - Retail Transmission Network Charge | D26: 1584 | I26: 0 | N26: 0 | O26: =I26 -> 0 | P26: 2673296 | S26: 2673296 | T26: 0 | U26: -116407 | X26: =T26+U26-V26+W26 -> -116407 | Y26: 2673296 | Z26: 1005953 | AA26: 2673296 | AC26: =Y26+Z26-AA26+SUM(AB26:AB26) -> 1005953 | AD26: -116407 | AE26: 62777 | AF26: -77003 | AH26: =AD26+AE26-AF26+AG26 -> 23373 | AI26: 1005953 | AJ26: 2616584 | AM26: 3622537 | AN26: 23373 | AO26: 30713 | AR26: =AN26+AO26-AP26+AQ26 -> 54086 | AS26: 3622537 | AT26: 1288689 | AU26: 1005953 | AW26: 3905273 | AX26: 54086 | AY26: 47481 | AZ26: 38161 | BB26: =AX26+AY26-AZ26+BA26 -> 63406 | BC26: 3905273 | BD26: -2787980.34 | BG26: 1117292.66 | BH26: 63406 | BI26: 34775.27 | BL26: =BH26+BI26-BJ26+BK26 -> 98181.27 | BM26: 1117292.66 | BN26: -3707689.67 | BO26: 3905273 | BQ26: =BM26+BN26-BO26+SUM(BP26:BP26) -> -6495670.01 | BR26: 98181.27 | BS26: -12831.10098 | BT26: 139232 | BV26: =BR26+BS26-BT26+BU26 -> -53881.83098 | BY26: -6495670.01 | BZ26: -53881.83098 | CA26: -112537.4829 | CC26: -166419.3139 | CD26: -6662089.324 | CE26: -6549551.54 | CF26: =CE26-SUM(BQ26,BV26) -> 0.3009824594
C27: RSVA - Retail Transmission Connection Charge | D27: 1586 | I27: 0 | N27: 0 | O27: 0 | P27: -3227883 | S27: -3227883 | T27: 0 | U27: -156955 | X27: -156955 | Y27: -3227883 | Z27: -588231 | AA27: -3227884 | AC27: -588230 | AD27: -156955 | AE27: -52540 | AF27: -204532 | AH27: -4963 | AI27: -588230 | AJ27: 601094 | AM27: 12864 | AN27: -4963 | AO27: -5847 | AR27: -10810 | AS27: 12864 | AT27: 852228 | AU27: -588230 | AW27: 1453322 | AX27: -10810 | AY27: 10423 | AZ27: -13609 | BB27: 13222 | BC27: 1453322 | BD27: 990194.18 | BG27: 2443516.18 | BH27: 13222 | BI27: 22520.13 | BL27: 35742.13 | BM27: 2443516.18 | BN27: 1633312.96 | BO27: 1453320 | BQ27: 2623509.14 | BR27: 35742.13 | BS27: 32517.2688 | BT27: 41440 | BV27: 26819.3988 | BY27: 2623509.14 | BZ27: 26819.3988 | CA27: 45452.29585 | CC27: 72271.69465 | CD27: =SUM(BY27:CB27) -> 2695780.835 | CE27: 2650328.83 | CF27: 0.291196302
C28: RSVA - Power | D28: 1588 | I28: 0 | N28: 0 | O28: 0 | P28: 2102302 | R28: -13 | S28: 2102289 | T28: 0 | U28: 400055 | X28: 400055 | Y28: 2102289 | Z28: 877101 | AA28: 2102302 | AC28: 877088 | AD28: 400055 | AE28: 8778 | AF28: 431043 | AH28: -22210 | AI28: 877088 | AJ28: 1357196 | AM28: 2234284 | AN28: -22210 | AO28: 51968 | AR28: 29758 | AS28: 2234284 | AT28: -794425 | AU28: 877088 | AW28: 562771 | AX28: 29758 | AY28: 27275 | AZ28: -9317 | BB28: 66350 | BC28: 562771 | BD28: -317280.77 | BG28: 245490.23 | BH28: 66350 | BI28: 18479.84 | BL28: 84829.84 | BM28: 245490.23 | BN28: 2176561.37 | BO28: 562770 | BP28: -811309 | BQ28: 1047972.6 | BR28: 84829.84 | BS28: 13235.0569 | BT28: 77277 | BV28: 20787.8969 | BW28: =-811309*0 -> 0 | BY28: 1047972.6 | BZ28: 20787.8969 | CA28: 18156.1253 | CC28: 38944.0222 | CD28: 1086916.622 | CE28: 1880069.15 | CF28: 811308.6531
C29: RSVA - Global Adjustment | D29: 1589 | I29: 0 | N29: 0 | O29: 0 | P29: 17526364 | S29: 17526364 | T29: 0 | U29: 668802 | X29: 668802 | Y29: 17526364 | Z29: -1664568 | AA29: 17526364 | AC29: -1664568 | AD29: 668802 | AE29: 259570 | AF29: 927145 | AH29: 1227 | AI29: -1664568 | AJ29: -3374332 | AM29: -5038900 | AN29: 1227 | AO29: 22026 | AR29: 23253 | AS29: -5038900 | AT29: 13553905 | AU29: -1664568 | AW29: 10179573 | AX29: 23253 | AY29: 46383 | AZ29: -23242 | BB29: 92878 | BC29: 10179573 | BD29: 5736836.86 | BG29: 15916409.86 | BH29: 92878 | BI29: 141760.4 | BL29: 234638.4 | BM29: 15916409.86 | BN29: -9817313.03 | BO29: 10179574 | BP29: 4970749 | BQ29: 890271.83 | BR29: 234638.4 | BS29: 157113.26 | BT29: 290529 | BV29: 101222.66 | BY29: 890271.83 | BZ29: 101222.66 | CA29: 15423.95945 | CC29: 116646.6195 | CD29: 1006918.449 | CE29: -3979254.53 | CF29: -4970749.02
C30: Disposition and Recovery/Refund of Regulatory Balances (2009)4 | D30: 1595 | I30: 0 | N30: 0 | O30: 0 | P30: -1042 | S30: -1042 | T30: 0 | U30: 3222 | X30: 3222 | Y30: -1042 | Z30: -15 | AA30: -1042 | AC30: -15 | AD30: 3222 | AF30: 3208 | AH30: 14 | AI30: -15 | AM30: -15 | AN30: 14 | AR30: 14 | AS30: -15 | AT30: 2 | AU30: -15 | AW30: 2 | AX30: 14 | AZ30: 14 | BB30: 0 | BC30: 2 | BG30: 2 | BH30: 0 | BL30: 0 | BM30: 2 | BQ30: 2 | BR30: 0 | BU30: -21764 | BV30: -21764 | BY30: 2 | BZ30: -21764 | CA30: 0.03465 | CC30: -21763.96535 | CD30: -21761.96535 | CE30: -21762 | CF30: 0
C31: Disposition and Recovery/Refund of Regulatory Balances (2010)4 | D31: 1595 | I31: 0 | N31: 0 | O31: 0 | S31: 0 | T31: 0 | X31: 0 | Y31: 0 | AC31: 0 | AD31: 0 | AH31: 0 | AI31: 0 | AM31: 0 | AN31: 0 | AR31: 0 | AS31: 0 | AW31: 0 | AX31: 0 | BB31: 0 | BC31: 0 | BG31: 0 | BH31: 0 | BL31: 0 | BM31: 0 | BP31: 7318 | BQ31: 7318 | BR31: 0 | BU31: 153 | BV31: 153 | BY31: 7318 | BZ31: 153 | CA31: 126.78435 | CC31: 279.78435 | CD31: 7597.78435 | CE31: 7471 | CF31: 0
C32: Disposition and Recovery/Refund of Regulatory Balances (2011)4 | D32: 1595 | I32: 0 | N32: 0 | O32: 0 | P32: 2233466.65 | S32: =O32+P32-Q32+SUM(R32:R32) -> 2233466.65 | T32: 0 | U32: -1943690 | X32: -1943690 | Y32: 2233466.65 | Z32: -680508 | AC32: 1552958.65 | AD32: -1943690 | AE32: 144693 | AH32: -1798997 | AI32: 1552958.65 | AJ32: =4236921-2661661 -> 1575260 | AM32: 3128218.65 | AN32: -1798997 | AO32: =-96444+105234 -> 8790 | AR32: -1790207 | AS32: 3128218.65 | AT32: 124 | AW32: 3128342.65 | AX32: -1790207 | AY32: 56768 | BB32: -1733439 | BC32: 3128342.65 | BD32: 10844 | BF32: -3273851 | BG32: -134664.35 | BH32: -1733439 | BI32: -23253 | BK32: 1717032 | BL32: -39660 | BM32: -134664.35 | BP32: 135000 | BQ32: 335.65 | BR32: -39660 | BS32: -1485 | BU32: 41188 | BV32: 43 | BY32: 335.65 | BZ32: 43 | CA32: 5.81513625 | CC32: 48.81513625 | CD32: 384.4651362 | CE32: 379 | CF32: 0.3500000015
C33: Disposition and Recovery/Refund of Regulatory Balances (2012)4 | D33: 1595 | I33: 0 | N33: 0 | O33: 0 | S33: 0 | T33: 0 | X33: 0 | Y33: 0 | AA33: 8245690 | AC33: -8245690 | AD33: 0 | AF33: 86845 | AH33: -86845 | AI33: -8245690 | AJ33: 2661660.62 | AM33: -5584029.38 | AN33: -86845 | AO33: -105233.81 | AR33: -192078.81 | AS33: -5584029.38 | AT33: 4519005.63 | AW33: -1065023.75 | AX33: -192078.81 | AY33: -22367.46 | BB33: -214446.27 | BC33: -1065023.75 | BD33: 237163.89 | BF33: 981651 | BG33: 153791.14 | BH33: -214446.27 | BI33: 3120 | BK33: 368236 | BL33: 156909.73 | BM33: 153791.14 | BN33: 991 | BP33: -142316 | BQ33: 12466.14 | BR33: 156909.73 | BS33: 1695.54 | BU33: -5332 | BV33: 153273.27 | BY33: 12466.14 | BZ33: 153273.27 | CA33: 215.9758755 | CC33: 153489.2459 | CD33: 165955.3859 | CE33: 165739 | CF33: -0.4099999972
C34: Disposition and Recovery/Refund of Regulatory Balances (2013)4 | D34: 1595 | I34: 0 | N34: 0 | O34: 0 | S34: 0 | T34: 0 | X34: 0 | Y34: 0 | AC34: 0 | AD34: 0 | AH34: 0 | AI34: 0 | AM34: 0 | AN34: 0 | AR34: 0 | AS34: 0 | AW34: 0 | AX34: 0 | BB34: 0 | BC34: 0 | BG34: 0 | BH34: 0 | BL34: 0 | BM34: 0 | BQ34: 0 | BR34: 0 | BV34: 0 | BY34: 0 | BZ34: 0 | CA34: 0 | CC34: 0 | CD34: 0 | CE34: 0 | CF34: =CE34-SUM(BG34,BL34) -> 0
C35: Disposition and Recovery/Refund of Regulatory Balances (2014)4 | D35: 1595 | I35: 0 | N35: 0 | O35: 0 | S35: 0 | T35: 0 | X35: 0 | Y35: 0 | AC35: 0 | AD35: 0 | AH35: 0 | AI35: 0 | AM35: 0 | AN35: 0 | AR35: 0 | AS35: 0 | AT35: 4751091.54 | AU35: 10538166 | AW35: -5787074.46 | AX35: 0 | AY35: -90777.52 | AZ35: 277339 | BB35: -368116.52 | BC35: -5787074.46 | BD35: 5684237.45 | BF35: 173316 | BG35: 70478.99 | BH35: -368116.52 | BI35: -18488 | BK35: 33613 | BL35: -352991.52 | BM35: 70478.99 | BN35: 8671 | BP35: -79150 | BQ35: -0.009999998845 | BR35: -352991.52 | BS35: -2385.19 | BU35: 64903 | BV35: -290473.71 | BY35: -0.009999998845 | BZ35: -290473.71 | CA35: -0.00017324998 | CC35: =BZ35+CA35+CB35 -> -290473.7102 | CD35: =SUM(BY35:CB35) -> -290473.7202 | CE35: -290474 | CF35: -0.2800000011
C36: Disposition and Recovery/Refund of Regulatory Balances (2015)4 | D36: 1595 | I36: 0 | N36: 0 | O36: 0 | S36: 0 | T36: 0 | X36: 0 | Y36: 0 | AC36: 0 | AD36: 0 | AH36: 0 | AI36: 0 | AM36: 0 | AN36: 0 | AR36: 0 | AS36: 0 | AW36: 0 | AX36: 0 | BB36: 0 | BC36: 0 | BG36: 0 | BH36: 0 | BL36: 0 | BM36: 0 | BQ36: 0 | BR36: 0 | BV36: 0 | BY36: 0 | BZ36: 0 | CA36: 0 | CC36: 0 | CD36: 0 | CF36: 0
C37: Disposition and Recovery/Refund of Regulatory Balances (2016)4 Not to be disposed of unless rate rider has expired and balance has been audited | D37: 1595 | I37: 0 | N37: 0 | O37: 0 | S37: 0 | T37: 0 | X37: 0 | Y37: 0 | AC37: 0 | AD37: 0 | AH37: 0 | AI37: 0 | AM37: 0 | AN37: 0 | AR37: 0 | AS37: 0 | AW37: 0 | AX37: 0 | BB37: 0 | BC37: 0 | BG37: 0 | BH37: 0 | BL37: 0 | BM37: 0 | BQ37: 0 | BR37: 0 | BV37: 0 | BY37: 0 | BZ37: 0 | CC37: 0 | CD37: 0 | CE37: 0 | CF37: 0
C39: =C29 -> RSVA - Global Adjustment | D39: 1589 | E39: =E29 -> 0 | F39: 0 | G39: 0 | H39: 0 | I39: 0 | J39: 0 | K39: 0 | L39: 0 | M39: 0 | N39: 0 | O39: 0 | P39: 17526364 | Q39: 0 | R39: 0 | S39: 17526364 | T39: 0 | U39: 668802 | V39: 0 | W39: 0 | X39: 668802 | Y39: 17526364 | Z39: -1664568 | AA39: 17526364 | AB39: 0 | AC39: -1664568 | AD39: 668802 | AE39: 259570 | AF39: 927145 | AG39: 0 | AH39: 1227 | AI39: -1664568 | AJ39: -3374332 | AK39: 0 | AL39: 0 | AM39: -5038900 | AN39: 1227 | AO39: 22026 | AP39: 0 | AQ39: 0 | AR39: 23253 | AS39: -5038900 | AT39: 13553905 | AU39: -1664568 | AV39: 0 | AW39: 10179573 | AX39: 23253 | AY39: 46383 | AZ39: -23242 | BA39: 0 | BB39: 92878 | BC39: 10179573 | BD39: 5736836.86 | BE39: 0 | BF39: 0 | BG39: 15916409.86 | BH39: 92878 | BI39: 141760.4 | BJ39: 0 | BK39: 0 | BL39: 234638.4 | BM39: 15916409.86 | BN39: -9817313.03 | BO39: 10179574 | BP39: 4970749 | BQ39: =BQ29 -> 890271.83 | BR39: 234638.4 | BS39: 157113.26 | BT39: 290529 | BU39: 0 | BV39: 101222.66 | BW39: 0 | BX39: 0 | BY39: 890271.83 | BZ39: 101222.66 | CA39: =CA29 -> 15423.95945 | CB39: =CB29 -> 0 | CC39: =CC29 -> 116646.6195 | CD39: =CD29 -> 1006918.449 | CE39: =CE29 -> -3979254.53 | CF39: =CE39-SUM(BQ39,BV39) -> -4970749.02
C40: Total Group 1 Balance excluding Account 1589 - Global Adjustment | E40: =SUM(E21:E37)-E29 -> 0 | F40: =SUM(F21:F37)-F29 -> 0 | G40: 0 | H40: 0 | I40: 0 | J40: 0 | K40: 0 | L40: 0 | M40: 0 | N40: 0 | O40: 0 | P40: -19061376.35 | Q40: 0 | R40: -13 | S40: -19061389.35 | T40: 0 | U40: -2292640.362 | V40: 0 | W40: 0 | X40: -2292640.362 | Y40: -19061389.35 | Z40: -9554094 | AA40: -13049154 | AB40: 0 | AC40: -15566329.35 | AD40: -2292640.362 | AE40: -254371 | AF40: -575996 | AG40: 0 | AH40: -1971015.362 | AI40: -15566329.35 | AJ40: 3818803.62 | AK40: 0 | AL40: 0 | AM40: -11747525.73 | AN40: -1971015.362 | AO40: -211980.81 | AP40: 0 | AQ40: 0 | AR40: -2182996.172 | AS40: -11747525.73 | AT40: 9512314.17 | AU40: 1664568 | AV40: 0 | AW40: -3899779.56 | AX40: -2182996.172 | AY40: -29300.98 | AZ40: 61726 | BA40: 0 | BB40: -2274023.152 | BC40: -3899779.56 | BD40: -10418625.06 | BE40: 0 | BF40: -2118884 | BG40: -16437288.62 | BH40: -2274023.152 | BI40: -73605.18 | BJ40: 0 | BK40: 2118881 | BL40: -228747.3316 | BM40: -16437288.62 | BN40: =SUM(BN21:BN37)-BN29 -> -5365959.92 | BO40: -176029 | BP40: -890457 | BQ40: -22517676.54 | BR40: =SUM(BR21:BR37)-BR29 -> -228747.3316 | BS40: -216279.6819 | BT40: 38560 | BU40: 79148 | BV40: -404439.0135 | BW40: 0 | BX40: 0 | BY40: -22517676.54 | BZ40: -404439.0135 | CA40: -390118.7461 | CB40: 0 | CC40: -794557.7595 | CD40: -23312234.3 | CE40: =SUM(CE21:CE37)-CE29-CE24-CE25 -> -22110805.92 | CF40: =CE40-SUM(BQ40,BV40) -> 811309.6335
C41: Total Group 1 Balance | E41: =SUM(E39,E40) -> 0 | F41: =SUM(F39,F40) -> 0 | G41: 0 | H41: 0 | I41: 0 | J41: 0 | K41: 0 | L41: 0 | M41: 0 | N41: 0 | O41: 0 | P41: =SUM(P39,P40) -> -1535012.35 | Q41: =SUM(Q39,Q40) -> 0 | R41: -13 | S41: -1535025.35 | T41: 0 | U41: -1623838.362 | V41: 0 | W41: 0 | X41: -1623838.362 | Y41: -1535025.35 | Z41: -11218662 | AA41: 4477210 | AB41: 0 | AC41: -17230897.35 | AD41: -1623838.362 | AE41: 5199 | AF41: 351149 | AG41: 0 | AH41: -1969788.362 | AI41: -17230897.35 | AJ41: 444471.62 | AK41: 0 | AL41: 0 | AM41: -16786425.73 | AN41: -1969788.362 | AO41: -189954.81 | AP41: 0 | AQ41: 0 | AR41: -2159743.172 | AS41: -16786425.73 | AT41: 23066219.17 | AU41: 0 | AV41: 0 | AW41: 6279793.44 | AX41: -2159743.172 | AY41: 17082.02 | AZ41: 38484 | BA41: 0 | BB41: -2181145.152 | BC41: 6279793.44 | BD41: -4681788.2 | BE41: 0 | BF41: -2118884 | BG41: -520878.76 | BH41: -2181145.152 | BI41: 68155.22 | BJ41: 0 | BK41: 2118881 | BL41: 5891.0684 | BM41: -520878.76 | BN41: -15183272.95 | BO41: 10003545 | BP41: 4080292 | BQ41: -21627404.71 | BR41: 5891.0684 | BS41: -59166.42189 | BT41: 329089 | BU41: 79148 | BV41: -303216.3535 | BW41: 0 | BX41: 0 | BY41: -21627404.71 | BZ41: -303216.3535 | CA41: -374694.7866 | CB41: 0 | CC41: -677911.1401 | CD41: =SUM(CD39,CD40) -> -22305315.85 | CE41: =SUM(CE39,CE40) -> -26090060.45 | CF41: =CE41-SUM(BQ41,BV41) -> -4159439.387
A43: 29 | C43: LRAM Variance Account (only input amounts if applying for disposition of this account) | D43: 1568 | S43: =O43+P43-Q43+SUM(R43:R43) -> 0 | X43: =T43+U43-V43+W43 -> 0 | Y43: =S43 -> 0 | Z43: 716910 | AC43: =Y43+Z43-AA43+SUM(AB43:AB43) -> 716910 | AD43: =X43 -> 0 | AH43: =AD43+AE43-AF43+AG43 -> 0 | AI43: =AC43 -> 716910 | AJ43: -513961 | AM43: =AI43+AJ43-AK43+SUM(AL43:AL43) -> 202949 | AN43: =AH43 -> 0 | AO43: 13029 | AR43: =AN43+AO43-AP43+AQ43 -> 13029 | AS43: =AM43 -> 202949 | AT43: 73996 | AW43: =AS43+AT43-AU43+SUM(AV43:AV43) -> 276945 | AX43: =AR43 -> 13029 | AY43: 3378 | BB43: =AX43+AY43-AZ43+BA43 -> 16407 | BC43: =AW43 -> 276945 | BD43: 296819 | BG43: =BC43+BD43-BE43+SUM(BF43:BF43) -> 573764 | BH43: =BB43 -> 16407 | BI43: 2310 | BL43: =BH43+BI43-BJ43+BK43 -> 18717 | BM43: =BG43 -> 573764 | BN43: 1581007 | BQ43: =BM43+BN43-BO43+SUM(BP43:BP43) -> 2154771 | BR43: =BL43 -> 18717 | BS43: 9806 | BV43: =BR43+BS43-BT43+BU43 -> 28523 | BY43: =BQ43-BW43 -> 2154771 | BZ43: =BV43-BX43 -> 28523 | CA43: =+BY43*(0.011*0.75+1.5%*0.5+1.89%/12) -> 37331.40757 | CC43: =BZ43+CA43+CB43 -> 65854.40757 | CD43: =SUM(BY43:CB43) -> 2220625.408 | CE43: 2183293.79 | CF43: =CE43-SUM(BQ43,BV43) -> -0.21
C45: Total including Account 1568 | E45: =SUM(E41,E43) -> 0 | F45: =SUM(F41,F43) -> 0 | G45: 0 | H45: 0 | I45: 0 | J45: 0 | K45: 0 | L45: 0 | M45: 0 | N45: 0 | O45: 0 | P45: -1535012.35 | Q45: 0 | R45: -13 | S45: -1535025.35 | T45: 0 | U45: -1623838.362 | V45: 0 | W45: 0 | X45: -1623838.362 | Y45: -1535025.35 | Z45: -10501752 | AA45: 4477210 | AB45: 0 | AC45: -16513987.35 | AD45: -1623838.362 | AE45: 5199 | AF45: 351149 | AG45: 0 | AH45: -1969788.362 | AI45: -16513987.35 | AJ45: -69489.38 | AK45: 0 | AL45: 0 | AM45: -16583476.73 | AN45: -1969788.362 | AO45: -176925.81 | AP45: 0 | AQ45: 0 | AR45: -2146714.172 | AS45: -16583476.73 | AT45: 23140215.17 | AU45: 0 | AV45: 0 | AW45: 6556738.44 | AX45: -2146714.172 | AY45: 20460.02 | AZ45: 38484 | BA45: 0 | BB45: -2164738.152 | BC45: 6556738.44 | BD45: -4384969.2 | BE45: 0 | BF45: -2118884 | BG45: 52885.24 | BH45: -2164738.152 | BI45: 70465.22 | BJ45: 0 | BK45: 2118881 | BL45: 24608.0684 | BM45: 52885.24 | BN45: -13602265.95 | BO45: 10003545 | BP45: 4080292 | BQ45: -19472633.71 | BR45: 24608.0684 | BS45: -49360.42189 | BT45: 329089 | BU45: 79148 | BV45: -274693.3535 | BW45: 0 | BX45: 0 | BY45: -19472633.71 | BZ45: -274693.3535 | CA45: -337363.379 | CB45: =SUM(CB41,CB43) -> 0 | CC45: =SUM(CC41,CC43) -> -612056.7325 | CD45: =SUM(CD41,CD43) -> -20084690.44 | CE45: =SUM(CE41,CE43) -> -23906766.66 | CF45: =SUM(CF41,CF43) -> -4159439.597
C48: For all OEB-Approved dispositions, please ensure that the disposition amount has the same sign (e.g: debit balances are to have a positive figure and credit balance are to have a negative figure) as per the related OEB decision. | CD48: -25562407
CD49: =+CD48-CD41 -> -3257091.15
B51: 1 | C51: Please provide explanations for the nature of the adjustments. If the adjustment relates to previously OEB-Approved disposed balances, please provide amounts for adjustments and include supporting documentations.
B52: 2 | C52: For RSVA accounts only, report the net variance to the account during the year. For all other accounts, record the transactions during the year.
B53: 3 | C53: If the LDC’s rate year begins on January 1, 2017, the projected interest is recorded from January 1, 2016 to December 31, 2016 on the December 31, 2015 balances adjusted for the disposed balances approved by the OEB in the 2016 rate decision. If the LDC’s rate year begins on May 1, 2017, the projected interest is recorded from January 1, 2016 to April 30, 2017 on the December 31, 2015 balances adjusted for the disposed interest balances approved by the OEB in the 2016 rate decision.
B54: 4 | C54: Include Account 1595 as part of Group 1 accounts (lines 30-36) for review and disposition if the recovery (or refund) period has been completed. If the recovery (or refund) period has not been completed, do not include the respective balance in Account 1595 for disposition at this time.
C56: Account 1595 - adjustments (2016):
C57: These were required due to a comprehensive review of all the dispositions during 2015 and 2016. It was determined that there were a number of reporting errors. Past recovery billings were applied to the wrong year or there was transposition errors whereby billings were applied to interest rather than principal or vice versa.

Sheet 4. Billing Det. for Def-Var
A1: Back to Index | K1: Yes | T1: =IF(D18="YES", "YES", "NO") -> NO
B2: INCENTIVE REGULATION MODEL FOR 2018 FILERS
B13: Information from the most recent RRR (2016 for 2018 IRM)
L14: Approved Recoveries (class allocation %)
D15: Total Metered kWh | E15: Total Metered kW | F15: Metered kWh for Non-RPP Customers | G15: Metered kW for Non-RPP Customers | H15: Metered kWh for Wholesale Market Participants (WMP) | I15: Metered kW for Wholesale Market Participants (WMP) | J15: Total Metered kWh less WMP consumption (if applicable) | K15: Total Metered kW less WMP consumption (if applicable) | L15: 1595 Recovery Proportion (2009) 1 | M15: 1595 Recovery Proportion (2010) 1 | N15: 1595 Recovery Proportion (2011) 1 | O15: 1595 Recovery Proportion (2012) 1 | P15: 1595 Recovery Proportion (2013) 1 | Q15: 1595 Recovery Proportion (2014) 1 | R15: 1595 Recovery Proportion (2015) 1 | S15: 1595 Recovery Proportion (2016) 1 | T15: 1568 LRAM Variance Account Class Allocation ($ amounts) | U15: Number of Customers for Residential and GS<50 classes3
B16: Rate Class | C16: Unit
B17: ='Model Specs'!C15 -> RESIDENTIAL SERVICE CLASSIFICATION | C17: kWh | D17: 2770663827 | E17: 0 | F17: 119404036 | G17: 0 | J17: =D17-H17 -> 2770663827 | K17: =E17-I17 -> 0 | L17: 0.0977 | M17: 0.0977 | N17: 0.0977 | O17: 0.0977 | P17: 0.0977 | Q17: 0.0977 | R17: 0.0977 | S17: 0.0977 | T17: 4057.123777 | U17: 325741
B18: ='Model Specs'!C16 -> GENERAL SERVICE LESS THAN 50 kW SERVICE CLASSIFICATION | C18: kWh | D18: 1035123196 | E18: 0 | F18: 180696305.3 | G18: 0 | J18: =D18-H18 -> 1035123196 | K18: =E18-I18 -> 0 | L18: 0.054 | M18: 0.054 | N18: 0.054 | O18: 0.054 | P18: 0.054 | Q18: 0.054 | R18: 0.054 | S18: 0.054 | T18: 948095.1513 | U18: 32395
B19: ='Model Specs'!C17 -> GENERAL SERVICE 500 to 4,999 kW SERVICE CLASSIFICATION | C19: kW | D19: =4577906269.09+30373390 -> 4608279659 | E19: =12263116.41-124490.14 -> 12138626.27 | F19: 4190177249 | G19: 10153979.52 | H19: 30373390 | I19: 57038 | J19: 4577906269 | K19: =E19-I19 -> 12081588.27 | L19: 0.8368 | M19: 0.8368 | N19: 0.8368 | O19: 0.8368 | P19: 0.8368 | Q19: 0.8368 | R19: 0.8368 | S19: 0.8368 | T19: 966657.8679
B20: ='Model Specs'!C18 -> LARGE USE SERVICE CLASSIFICATION | C20: kW | D20: 67734070.28 | E20: 149959.48 | F20: 67734070.28 | G20: 149959.48 | J20: 67734070.28 | K20: 149959.48 | L20: 0.0018 | M20: 0.0018 | N20: 0.0018 | O20: 0.0018 | P20: 0.0018 | Q20: 0.0018 | R20: 0.0018 | S20: 0.0018 | T20: -10839.14
B21: ='Model Specs'!C19 -> UNMETERED SCATTERED LOAD SERVICE CLASSIFICATION | C21: kWh | D21: 13630753.27 | E21: 0 | F21: 132604.93 | G21: 0 | J21: 13630753.27 | K21: 0 | L21: 0.0004 | M21: 0.0004 | N21: 0.0004 | O21: 0.0004 | P21: 0.0004 | Q21: 0.0004 | R21: 0.0004 | S21: 0.0004 | T21: -6814.33216
B22: ='Model Specs'!C20 -> STANDBY POWER SERVICE CLASSIFICATION | C22: kW | D22: 0 | E22: 0 | F22: 0 | G22: 0 | J22: 0 | K22: 0 | L22: 0 | M22: 0 | N22: 0 | O22: 0 | P22: 0 | Q22: 0 | R22: 0 | S22: 0 | T22: 0
B23: ='Model Specs'!C21 -> SENTINEL LIGHTING SERVICE CLASSIFICATION | C23: kW | D23: 314901.3 | E23: 858 | F23: 15919.92 | G23: 820.36 | J23: 314901.3 | K23: 858 | L23: 0 | M23: 0 | N23: 0 | O23: 0 | P23: 0 | Q23: 0 | R23: 0 | S23: 0 | T23: -330.3651571
B24: ='Model Specs'!C22 -> STREET LIGHTING SERVICE CLASSIFICATION | C24: kW | D24: 52846039.32 | E24: 148246.61 | F24: 52181420.68 | G24: 146076.61 | J24: 52846039.32 | K24: 148246.61 | L24: 0.0093 | M24: 0.0093 | N24: 0.0093 | O24: 0.0093 | P24: 0.0093 | Q24: 0.0093 | R24: 0.0093 | S24: 0.0093 | T24: 86777.00014
B25: ='Model Specs'!C23 -> 0 | J25: 0 | K25: 0
J26: 0 | K26: 0
J27: 0 | K27: 0
J28: 0 | K28: 0
C29: Total | D29: =SUM(D17:D28) -> 8548592446 | E29: =SUM(E17:E28) -> 12437690.36 | F29: 4610341606 | G29: 10450835.97 | H29: 30373390 | I29: 57038 | J29: 8518219056 | K29: 12380652.36 | L29: 1 | M29: 1 | N29: 1 | O29: 1 | P29: 1 | Q29: 1 | R29: 1 | S29: 1 | T29: 1987603.306 | U29: 358136
B32: Threshold Test | R32: 1568 Account Balance from Continuity Schedule | U32: ='3. Continuity Schedule'!CD43 -> 2220625.408
B33: Total Claim (including Account 1568) | D33: ='3. Continuity Schedule'!CD45 -> -20084690.44 | R33: =IF(U32=T29,"Total Balance of Account 1568 in Column R matches the amount entered on the Continuity Schedule","Total Balance of Account 1568 in Column T DOES NOT MATCH the amount entered on the Continuity Schedule") -> Total Balance of Account 1568 in Column T DOES NOT MATCH the amount entered on the Continuity Schedule
B34: Total Claim for Threshold Test (All Group 1 Accounts) | D34: ='3. Continuity Schedule'!CD41 -> -22305315.85
B35: Threshold Test (Total claim per kWh) 2 | D35: =IFERROR(D34/D29,"") -> -0.00260923842
B36: Exceeds Threshold? | D36: =IF(D35="","",IF(OR(D35>0.001,D35<-0.001),"Yes","No")) -> Yes
B37: ELECT TO DISPOSE of the Group 1 Account Balances? | D37: Yes
B40: As per Section 3.2.5 of the 2017 Filing Requirements for Electricity Distribution Rate Applications, an applicant may elect to dispose of the Group 1 account balances below the threshold.
B41: 1 Residual Account balance to be allocated to rate classes in proportion to the recovery share as established when rate riders were implemented.
B42: 2 The Threshold Test does not include the amount in 1568.
B43: 3 The proportion of customers for the Residential and GS<50 Classes will be used to allocate Account 1551.
B45: Information from the 2015 RRR
D47: Total Metered kWh | E47: Total Metered kW | F47: Metered kWh for Non-RPP Customers | G47: Metered kW for Non-RPP Customers | H47: Metered kWh for Wholesale Market Participants (WMP) | I47: Metered kW for Wholesale Market Participants (WMP) | J47: Total Metered kWh less WMP consumption (if applicable) | K47: Total Metered kW less WMP consumption (if applicable)
B48: Rate Class | C48: Unit
B49: =B17 -> RESIDENTIAL SERVICE CLASSIFICATION | C49: kWh | D49: 2818851613 | E49: 0 | F49: 146512581.7 | G49: 0 | J49: =D49-H49 -> 2818851613 | K49: =E49-I49 -> 0
B50: =B18 -> GENERAL SERVICE LESS THAN 50 kW SERVICE CLASSIFICATION | C50: kWh | D50: 1066578598 | E50: 0 | F50: 185625558.3 | G50: 0 | J50: =D50-H50 -> 1066578598 | K50: =E50-I50 -> 0
B51: GENERAL SERVICE 500 to 4,999 kW SERVICE CLASSIFICATION | C51: kW | D51: =4538767008.172+30566606 -> 4569333614 | E51: 11700817.81 | F51: 4109131617 | G51: 11700817.81 | H51: 30566606.04 | I51: 54713.22 | J51: 4538767008 | K51: =E51-I51 -> 11646104.59
B52: LARGE USE SERVICE CLASSIFICATION | C52: kW | D52: 78452926.47 | E52: 167281.66 | F52: 78452926.47 | G52: 167281.66 | J52: 78452926.47 | K52: =E52-I52 -> 167281.66
B53: UNMETERED SCATTERED LOAD SERVICE CLASSIFICATION | C53: kWh | D53: 13944144.64 | E53: 0 | F53: 157113.22 | G53: 0 | J53: 13944144.64 | K53: 0
B54: STANDBY POWER SERVICE CLASSIFICATION | C54: kW | D54: 0 | E54: 0 | F54: 0 | G54: 0 | J54: 0 | K54: 0
B55: SENTINEL LIGHTING SERVICE CLASSIFICATION | C55: kW | D55: 326209.74 | E55: 865.47 | F55: 26047.68 | G55: 865.47 | J55: 326209.74 | K55: 865.47
B56: STREET LIGHTING SERVICE CLASSIFICATION | C56: kW | D56: 58275738.19 | E56: 160023.97 | F56: 57608680.13 | G56: 160023.97 | J56: 58275738.19 | K56: 160023.97
B57: 0 | J57: 0 | K57: 0
J58: 0 | K58: 0
J59: 0 | K59: 0
J60: 0 | K60: 0
C61: Total | D61: =SUM(D49:D60) -> 8605762844 | E61: =SUM(E49:E60) -> 12028988.91 | F61: 4577514525 | G61: 12028988.91 | H61: 30566606.04 | I61: 54713.22 | J61: 8575196237 | K61: 11974275.69
B65: GS>50 Interval and non-Interval - 2016
D67: Total Metered kWh | E67: Total Metered kW | F67: Metered kWh for Non-RPP Customers | G67: Metered kW for Non-RPP Customers | H67: Metered kWh for Wholesale Market Participants (WMP) | I67: Metered kW for Wholesale Market Participants (WMP) | J67: Total Metered kWh less WMP consumption (if applicable) | K67: Total Metered kW less WMP consumption (if applicable)
B68: Rate Class | C68: Unit
B69: GS>50 Interval Accounts | C69: kWh | D69: 2318951031 | E69: 5647087.148 | F69: 2184532398 | G69: 4698014.107 | H69: 30373390 | I69: 57038 | J69: =D69-H69 -> 2288577641 | K69: =E69-I69 -> 5590049.148
B70: GS>50 The rest | C70: kWh | D70: 2289505114 | E70: 6491539.069 | F70: 2005644851 | G70: 5455965.413 | J70: =D70-H70 -> 2289505114 | K70: =E70-I70 -> 6491539.069
B71: GS>50 Total | C71: kW | D71: =SUM(D69:D70) -> 4608456145 | E71: =SUM(E69:E70) -> 12138626.22 | F71: 4190177249 | G71: 10153979.52 | H71: 30373390 | I71: 57038 | J71: 4578082755 | K71: 12081588.22
B72: control check to RRR | D72: =D71-D19 -> 176485.6501 | E72: =E71-E19 -> -0.05314300023 | F72: -0.009934425354 | G72: 0 | H72: 0 | I72: 0 | J72: 176485.6501 | K72: -0.05314300023
B75: GS>50 Interval and non-Interval - 2015
D77: Total Metered kWh | E77: Total Metered kW | F77: Metered kWh for Non-RPP Customers | G77: Metered kW for Non-RPP Customers | H77: Metered kWh for Wholesale Market Participants (WMP) | I77: Metered kW for Wholesale Market Participants (WMP) | J77: Total Metered kWh less WMP consumption (if applicable) | K77: Total Metered kW less WMP consumption (if applicable)
B78: Rate Class | C78: Unit
B79: GS>50 Interval Accounts | C79: kWh | D79: =2320106384.67+12163801 -> 2332270186 | E79: 6040400.458 | F79: 2047349660 | G79: =5436258.99196743+1139951 -> 6576209.992 | H79: 30566606.04 | I79: 54715 | J79: =D79-H79 -> 2301703580 | K79: =E79-I79 -> 5985685.458
B80: GS>50 The rest | C80: kWh | D80: 2237063429 | E80: 5660417.398 | F80: 2061781958 | G80: 5124607.643 | J80: =D80-H80 -> 2237063429 | K80: =E80-I80 -> 5660417.398
B81: GS>50 Total | C81: kW | D81: =SUM(D79:D80) -> 4569333615 | E81: =SUM(E79:E80) -> 11700817.86 | F81: =SUM(F79:F80) -> 4109131617 | G81: =SUM(G79:G80) -> 11700817.63 | H81: =SUM(H79:H80) -> 30566606.04 | I81: =SUM(I79:I80) -> 54715 | J81: =SUM(J79:J80) -> 4538767009 | K81: =SUM(K79:K80) -> 11646102.86
B82: control check to RRR | D82: =D81-D51 -> 0.4842996597 | E82: =E81-E51 -> 0.04765600152 | F82: -0.008699893951 | G82: -0.1734659765 | H82: 0 | I82: 1.78 | J82: 0.4843006134 | K82: -1.732343998
B85: GS>50 Interval and non-Interval - 2016 CIR (based on Proposed 2017 Load Forecast - 2016 CIR EDVAR Model)
D87: Total Metered kWh | E87: Total Metered kW | F87: Metered kWh for Non-RPP Customers | G87: Metered kW for Non-RPP Customers | H87: Metered kWh for Wholesale Market Participants (WMP) | I87: Metered kW for Wholesale Market Participants (WMP) | J87: Total Metered kWh less WMP consumption (if applicable) | K87: Total Metered kW less WMP consumption (if applicable)
B88: Rate Class | C88: Unit
B89: GS>50 Interval Accounts (Allocated) | C89: kWh | D89: =D92*(D69/D71) -> 2303024968 | E89: =E92*(E69/E71) -> 5684974.73 | F89: 2186860561 | G89: 5181840.894 | H89: 23552245 | I89: 62884 | J89: =D89-H89 -> 2279472723 | K89: =E89-I89 -> 5622090.73
B90: GS>50 The rest (Allocated) | C90: kWh | D90: =D92-D89 -> 2273781280 | E90: =E92-E89 -> 6535092.27 | F90: 2007782365 | G90: 6017850.106 | H90: 0 | I90: 0 | J90: =D90-H90 -> 2273781280 | K90: =E90-I90 -> 6535092.27
B91: GS>50 Total | C91: kW | D91: =SUM(D89:D90) -> 4576806248 | E91: =SUM(E89:E90) -> 12220067 | F91: =SUM(F89:F90) -> 4194642926 | G91: =SUM(G89:G90) -> 11199691 | H91: =SUM(H89:H90) -> 23552245 | I91: =SUM(I89:I90) -> 62884 | J91: =SUM(J89:J90) -> 4553254003 | K91: =SUM(K89:K90) -> 12157183
B92: 2017 EDVAR Model | D92: =4576806248 -> 4576806248 | E92: =12220067 -> 12220067 | F92: =4194642926 -> 4194642926 | G92: =11199691 -> 11199691 | H92: =23552245 -> 23552245 | I92: =62884 -> 62884

Sheet 5. Allocating Def-Var Balances
A1: Back to Index
B2: INCENTIVE REGULATION MODEL FOR 2018 FILERS
B11: No input required. This workshseet allocates the deferral/variance account balances (Group 1 and 1568) to the appropriate classes as per EDDVAR dated July 31, 2009
B13: Allocation of Group 1 Accounts (including Account 1568)
C14: % of Total kWh | D14: % of Total non-RPP kWh | E14: % of Customer Numbers ** | F14: % of Total kWh adjusted for WMP | I14: allocated based on Total less WMP | N14: allocated based on Total less WMP | O14: 1595_(2009) | P14: 1595_(2010) | Q14: 1595_(2011) | R14: 1595_(2012) | S14: 1595_(2013) | T14: 1595_(2014) | U14: 1595_(2015) | V14: 1595_(2016) | W14: 1568
B15: Rate Class | G15: 1550 | H15: 1551 | I15: 1580 | J15: 1580 (Class A) | K15: 1580 (Class B) | L15: 1584 | M15: 1586 | N15: 1588
B16: ='4. Billing Det. for Def-Var'!B17 -> RESIDENTIAL SERVICE CLASSIFICATION | C16: =IFERROR('4. Billing Det. for Def-Var'!D17/'4. Billing Det. for Def-Var'!D$29,"") -> 0.3241076054 | D16: =IFERROR('4. Billing Det. for Def-Var'!F17/'4. Billing Det. for Def-Var'!F$29,"") -> 0.02589917324 | E16: =IFERROR('4. Billing Det. for Def-Var'!U17/'4. Billing Det. for Def-Var'!U$29,"") -> 0.9095455358 | F16: =IFERROR('4. Billing Det. for Def-Var'!J17/'4. Billing Det. for Def-Var'!J$29,"") -> 0.3252632749 | G16: =IFERROR(G$28*C16,"") -> 1489125.198 | H16: =IFERROR(H$28*E16,"") -> -235910.2807 | I16: =IFERROR(I$28*F16,"") -> -8665193.461 | L16: =IFERROR(L$28*$C16,"") -> -2159233.817 | M16: =IFERROR(M$28*$C16,"") -> 873723.0709 | N16: =IFERROR(N$28*$F16,"") -> 353534.0601 | O16: ='4. Billing Det. for Def-Var'!$L17*O$28 -> -2126.144015 | P16: ='4. Billing Det. for Def-Var'!$L17*P$28 -> 742.303531 | Q16: ='4. Billing Det. for Def-Var'!$L17*Q$28 -> 37.56224381 | R16: ='4. Billing Det. for Def-Var'!$L17*R$28 -> 16213.8412 | S16: ='4. Billing Det. for Def-Var'!$L17*S$28 -> 0 | T16: ='4. Billing Det. for Def-Var'!$L17*T$28 -> -28379.28246 | U16: ='4. Billing Det. for Def-Var'!$L17*U$28 -> 0 | V16: ='4. Billing Det. for Def-Var'!$L17*V$28 -> 0 | W16: ='4. Billing Det. for Def-Var'!T17 -> 4057.123777
B17: ='4. Billing Det. for Def-Var'!B18 -> GENERAL SERVICE LESS THAN 50 kW SERVICE CLASSIFICATION | C17: =IFERROR('4. Billing Det. for Def-Var'!D18/'4. Billing Det. for Def-Var'!D$29,"") -> 0.1210869745 | D17: =IFERROR('4. Billing Det. for Def-Var'!F18/'4. Billing Det. for Def-Var'!F$29,"") -> 0.03919369121 | E17: =IFERROR('4. Billing Det. for Def-Var'!U18/'4. Billing Det. for Def-Var'!U$29,"") -> 0.09045446423 | F17: =IFERROR('4. Billing Det. for Def-Var'!J18/'4. Billing Det. for Def-Var'!J$29,"") -> 0.121518734 | G17: =IFERROR(G$28*C17,"") -> 556338.8884 | H17: =IFERROR(H$28*E17,"") -> -23461.3191 | I17: =IFERROR(I$28*F17,"") -> -3237326.254 | L17: =IFERROR(L$28*$C17,"") -> -806692.2403 | M17: 326423.9453 | N17: =IFERROR(N$28*$F17,"") -> 132080.7319 | O17: ='4. Billing Det. for Def-Var'!$L18*O$28 -> -1175.146129 | P17: ='4. Billing Det. for Def-Var'!$L18*P$28 -> 410.2803549 | Q17: ='4. Billing Det. for Def-Var'!$L18*Q$28 -> 20.76111736 | R17: ='4. Billing Det. for Def-Var'!$L18*R$28 -> 8961.590837 | S17: ='4. Billing Det. for Def-Var'!$L18*S$28 -> 0 | T17: ='4. Billing Det. for Def-Var'!$L18*T$28 -> -15685.58089 | U17: ='4. Billing Det. for Def-Var'!$L18*U$28 -> 0 | V17: ='4. Billing Det. for Def-Var'!$L18*V$28 -> 0 | W17: ='4. Billing Det. for Def-Var'!T18 -> 948095.1513
B18: ='4. Billing Det. for Def-Var'!B19 -> GENERAL SERVICE 500 to 4,999 kW SERVICE CLASSIFICATION | C18: =IFERROR('4. Billing Det. for Def-Var'!D19/'4. Billing Det. for Def-Var'!D$29,"") -> 0.5390688219 | D18: =IFERROR('4. Billing Det. for Def-Var'!F19/'4. Billing Det. for Def-Var'!F$29,"") -> 0.9088648103 | E18: =IFERROR('4. Billing Det. for Def-Var'!U19/'4. Billing Det. for Def-Var'!U$29,"") -> 0 | F18: =IFERROR('4. Billing Det. for Def-Var'!J19/'4. Billing Det. for Def-Var'!J$29,"") -> 0.5374252809 | G18: =IFERROR(G$28*C18,"") -> 2476773 | H18: =IFERROR(H$28*E18,"") -> 0 | I18: =IFERROR(I$28*F18,"") -> -14317306.59 | L18: -3591324.643 | M18: 1453211.399 | N18: =IFERROR(N$28*$F18,"") -> 584136.471 | O18: ='4. Billing Det. for Def-Var'!$L19*O$28 -> -18210.4126 | P18: ='4. Billing Det. for Def-Var'!$L19*P$28 -> 6357.825944 | Q18: ='4. Billing Det. for Def-Var'!$L19*Q$28 -> 321.720426 | R18: ='4. Billing Det. for Def-Var'!$L19*R$28 -> 138871.4669 | S18: ='4. Billing Det. for Def-Var'!$L19*S$28 -> 0 | T18: ='4. Billing Det. for Def-Var'!$L19*T$28 -> -243068.409 | U18: ='4. Billing Det. for Def-Var'!$L19*U$28 -> 0 | V18: ='4. Billing Det. for Def-Var'!$L19*V$28 -> 0 | W18: ='4. Billing Det. for Def-Var'!T19 -> 966657.8679
B19: ='4. Billing Det. for Def-Var'!B20 -> LARGE USE SERVICE CLASSIFICATION | C19: =IFERROR('4. Billing Det. for Def-Var'!D20/'4. Billing Det. for Def-Var'!D$29,"") -> 0.007923417885 | D19: =IFERROR('4. Billing Det. for Def-Var'!F20/'4. Billing Det. for Def-Var'!F$29,"") -> 0.01469176822 | E19: =IFERROR('4. Billing Det. for Def-Var'!U20/'4. Billing Det. for Def-Var'!U$29,"") -> 0 | F19: =IFERROR('4. Billing Det. for Def-Var'!J20/'4. Billing Det. for Def-Var'!J$29,"") -> 0.007951670394 | G19: 36404.45651 | H19: 0 | I19: -211836.8953 | L19: -52786.5177 | M19: 21359.79808 | N19: 8642.802726 | O19: ='4. Billing Det. for Def-Var'!$L20*O$28 -> -39.17153763 | P19: ='4. Billing Det. for Def-Var'!$L20*P$28 -> 13.67601183 | Q19: ='4. Billing Det. for Def-Var'!$L20*Q$28 -> 0.6920372452 | R19: ='4. Billing Det. for Def-Var'!$L20*R$28 -> 298.7196946 | S19: ='4. Billing Det. for Def-Var'!$L20*S$28 -> 0 | T19: ='4. Billing Det. for Def-Var'!$L20*T$28 -> -522.8526963 | U19: ='4. Billing Det. for Def-Var'!$L20*U$28 -> 0 | V19: ='4. Billing Det. for Def-Var'!$L20*V$28 -> 0 | W19: ='4. Billing Det. for Def-Var'!T20 -> -10839.14
B20: ='4. Billing Det. for Def-Var'!B21 -> UNMETERED SCATTERED LOAD SERVICE CLASSIFICATION | C20: =IFERROR('4. Billing Det. for Def-Var'!D21/'4. Billing Det. for Def-Var'!D$29,"") -> 0.001594502645 | D20: =IFERROR('4. Billing Det. for Def-Var'!F21/'4. Billing Det. for Def-Var'!F$29,"") -> 2.876249556e-05 | E20: =IFERROR('4. Billing Det. for Def-Var'!U21/'4. Billing Det. for Def-Var'!U$29,"") -> 0 | F20: =IFERROR('4. Billing Det. for Def-Var'!J21/'4. Billing Det. for Def-Var'!J$29,"") -> 0.001600188159 | G20: 7326.0054 | H20: 0 | I20: -42629.8972 | L20: -10622.71905 | M20: 4298.429672 | N20: 1739.271109 | O20: ='4. Billing Det. for Def-Var'!$L21*O$28 -> -8.70478614 | P20: ='4. Billing Det. for Def-Var'!$L21*P$28 -> 3.03911374 | Q20: ='4. Billing Det. for Def-Var'!$L21*Q$28 -> 0.1537860545 | R20: ='4. Billing Det. for Def-Var'!$L21*R$28 -> 66.38215435 | S20: ='4. Billing Det. for Def-Var'!$L21*S$28 -> 0 | T20: ='4. Billing Det. for Def-Var'!$L21*T$28 -> -116.1894881 | U20: ='4. Billing Det. for Def-Var'!$L21*U$28 -> 0 | V20: ='4. Billing Det. for Def-Var'!$L21*V$28 -> 0 | W20: ='4. Billing Det. for Def-Var'!T21 -> -6814.33216
B21: ='4. Billing Det. for Def-Var'!B22 -> STANDBY POWER SERVICE CLASSIFICATION | C21: =IFERROR('4. Billing Det. for Def-Var'!D22/'4. Billing Det. for Def-Var'!D$29,"") -> 0 | D21: =IFERROR('4. Billing Det. for Def-Var'!F22/'4. Billing Det. for Def-Var'!F$29,"") -> 0 | E21: =IFERROR('4. Billing Det. for Def-Var'!U22/'4. Billing Det. for Def-Var'!U$29,"") -> 0 | F21: =IFERROR('4. Billing Det. for Def-Var'!J22/'4. Billing Det. for Def-Var'!J$29,"") -> 0 | G21: 0 | H21: 0 | I21: 0 | L21: 0 | M21: 0 | N21: 0 | O21: ='4. Billing Det. for Def-Var'!$L22*O$28 -> 0 | P21: ='4. Billing Det. for Def-Var'!$L22*P$28 -> 0 | Q21: ='4. Billing Det. for Def-Var'!$L22*Q$28 -> 0 | R21: ='4. Billing Det. for Def-Var'!$L22*R$28 -> 0 | S21: ='4. Billing Det. for Def-Var'!$L22*S$28 -> 0 | T21: ='4. Billing Det. for Def-Var'!$L22*T$28 -> 0 | U21: ='4. Billing Det. for Def-Var'!$L22*U$28 -> 0 | V21: ='4. Billing Det. for Def-Var'!$L22*V$28 -> 0 | W21: ='4. Billing Det. for Def-Var'!T22 -> 0
B22: ='4. Billing Det. for Def-Var'!B23 -> SENTINEL LIGHTING SERVICE CLASSIFICATION | C22: =IFERROR('4. Billing Det. for Def-Var'!D23/'4. Billing Det. for Def-Var'!D$29,"") -> 3.683662568e-05 | D22: =IFERROR('4. Billing Det. for Def-Var'!F23/'4. Billing Det. for Def-Var'!F$29,"") -> 3.453089024e-06 | E22: =IFERROR('4. Billing Det. for Def-Var'!U23/'4. Billing Det. for Def-Var'!U$29,"") -> 0 | F22: =IFERROR('4. Billing Det. for Def-Var'!J23/'4. Billing Det. for Def-Var'!J$29,"") -> 3.696797393e-05 | G22: 169.247332 | H22: 0 | I22: -984.8472626 | L22: -245.4088907 | M22: 99.30346951 | N22: 40.18110535 | O22: ='4. Billing Det. for Def-Var'!$L23*O$28 -> 0 | P22: ='4. Billing Det. for Def-Var'!$L23*P$28 -> 0 | Q22: ='4. Billing Det. for Def-Var'!$L23*Q$28 -> 0 | R22: ='4. Billing Det. for Def-Var'!$L23*R$28 -> 0 | S22: ='4. Billing Det. for Def-Var'!$L23*S$28 -> 0 | T22: ='4. Billing Det. for Def-Var'!$L23*T$28 -> 0 | U22: ='4. Billing Det. for Def-Var'!$L23*U$28 -> 0 | V22: ='4. Billing Det. for Def-Var'!$L23*V$28 -> 0 | W22: ='4. Billing Det. for Def-Var'!T23 -> -330.3651571
B23: ='4. Billing Det. for Def-Var'!B24 -> STREET LIGHTING SERVICE CLASSIFICATION | C23: =IFERROR('4. Billing Det. for Def-Var'!D24/'4. Billing Det. for Def-Var'!D$29,"") -> 0.006181841005 | D23: =IFERROR('4. Billing Det. for Def-Var'!F24/'4. Billing Det. for Def-Var'!F$29,"") -> 0.01131834149 | E23: =IFERROR('4. Billing Det. for Def-Var'!U24/'4. Billing Det. for Def-Var'!U$29,"") -> 0 | F23: =IFERROR('4. Billing Det. for Def-Var'!J24/'4. Billing Det. for Def-Var'!J$29,"") -> 0.006203883579 | G23: 28402.71273 | H23: 0 | I23: -165274.8882 | L23: -41183.97696 | M23: 16664.8885 | N23: 6743.104184 | O23: ='4. Billing Det. for Def-Var'!$L24*O$28 -> -202.3862778 | P23: ='4. Billing Det. for Def-Var'!$L24*P$28 -> 70.65939445 | Q23: ='4. Billing Det. for Def-Var'!$L24*Q$28 -> 3.575525767 | R23: ='4. Billing Det. for Def-Var'!$L24*R$28 -> 1543.385089 | S23: ='4. Billing Det. for Def-Var'!$L24*S$28 -> 0 | T23: ='4. Billing Det. for Def-Var'!$L24*T$28 -> -2701.405598 | U23: ='4. Billing Det. for Def-Var'!$L24*U$28 -> 0 | V23: ='4. Billing Det. for Def-Var'!$L24*V$28 -> 0 | W23: ='4. Billing Det. for Def-Var'!T24 -> 86777.00014
O24: ='4. Billing Det. for Def-Var'!$L25*O$28 -> 0 | P24: ='4. Billing Det. for Def-Var'!$L25*P$28 -> 0 | Q24: ='4. Billing Det. for Def-Var'!$L25*Q$28 -> 0 | R24: ='4. Billing Det. for Def-Var'!$L25*R$28 -> 0 | S24: ='4. Billing Det. for Def-Var'!$L25*S$28 -> 0 | T24: ='4. Billing Det. for Def-Var'!$L25*T$28 -> 0 | U24: ='4. Billing Det. for Def-Var'!$L25*U$28 -> 0 | V24: ='4. Billing Det. for Def-Var'!$L25*V$28 -> 0 | W24: ='4. Billing Det. for Def-Var'!T25 -> 0
C28: =SUM(C16:C27) -> 1 | D28: =SUM(D16:D27) -> 1 | E28: =SUM(E16:E27) -> 1 | F28: =SUM(F16:F27) -> 1 | G28: ='3. Continuity Schedule'!CD21 -> 4594539.508 | H28: ='3. Continuity Schedule'!CD22 -> -259371.5998 | I28: ='3. Continuity Schedule'!CD23 -> -26640552.83 | L28: ='3. Continuity Schedule'!CD26 -> -6662089.324 | M28: ='3. Continuity Schedule'!CD27 -> 2695780.835 | N28: ='3. Continuity Schedule'!CD28 -> 1086916.622 | O28: =TRANSPOSE('3. Continuity Schedule'!CD30:CD37) -> -21761.96535 | P28: 7597.78435 | Q28: 384.4651362 | R28: 165955.3859 | S28: 0 | T28: -290473.7202 | U28: 0 | V28: 0 | W28: =SUM(W16:W27) -> 1987603.306
G29: =SUM(G16:G27)-G28 -> 0 | H29: =SUM(H16:H27)-H28 -> 0 | I29: 0 | J29: 0 | K29: 0 | L29: 0 | M29: 0 | N29: 0 | O29: 0 | P29: 0 | Q29: 0 | R29: 0 | S29: 0 | T29: 0 | U29: 0 | V29: 0 | W29: 0
B32: ** Used to allocate Account 1551 as this account records the variances arising from the Smart Metering Entity Charges to Residential and GS<50 customers.
B34: TO DO:
B35: Hid columns

Sheet 6. GA Calculation
A1: Back to Index
B2: INCENTIVE REGULATION MODEL FOR 2018 FILERS
B13: The purpose of this tab is to calculate the GA rate riders for all current Class B customers of the distributor. Identify the total billed consumption for former Class B customers prior to becoming Class A customers in Column G. Identify the total interval metered accounts billed consumption, if billed on Actual GA rate. Effective January 2017, the billing determinant and all rate riders for the disposition of GA balances will be calculated on an energy basis (kWhs) regardless of the billing determinant used for distribution rates for the particular class (see Chapter 3, Filing Requirements, section 3.2.5.2)
C14: Total Metered Non-RPP consumption minus WMP | D14: Total Metered Class A Consumption in 2016 (partial and/or full year Class A customers)* | F14: Total Metered Consumption for New Class A customer(s) in the period prior to becoming Class A (i.e. Jan. 1 - June 30, 2016) | G14: Total Metered Consumption for New Class B customer(s) in the period after becoming Class B (i.e. Jul 1 - Dec 31, 2016) | H14: Total Interval-metered Consumption in 2016 for non-Class A customers | I14: Metered Consumption for Current Class B non-Interval Customers (Non-RPP consumption LESS WMP, Class A and new Class A's former Class B consumption if applicable) | K14: % of total kWh | L14: Total GA $ allocated to Current Class B Customers | M14: GA Rate Rider | O14: Revenue Reconciliation | P14: Variance
C15: kWh | D15: kWh | E15: kW | F15: kWh | G15: kWh | H15: kWh | I15: kWh | J15: kW
B17: ='4. Billing Det. for Def-Var'!B17 -> RESIDENTIAL SERVICE CLASSIFICATION | C17: ='4. Billing Det. for Def-Var'!F17-'4. Billing Det. for Def-Var'!H17 -> 119404036 | I17: =C17-D17-F17-G17-H17 -> 119404036 | K17: =IFERROR(I17/I$29,"") -> 0.05063623039 | L17: =IFERROR(L$29*K17,"") -> 50986.55459 | M17: =IFERROR(L17/I17,"") -> 0.0004270086365 | N17: kwh | O17: =ROUND(M17,4)*I17 -> 47761.61438 | P17: =L17-O17 -> 3224.940202
B18: ='4. Billing Det. for Def-Var'!B18 -> GENERAL SERVICE LESS THAN 50 kW SERVICE CLASSIFICATION | C18: ='4. Billing Det. for Def-Var'!F18-'4. Billing Det. for Def-Var'!H18 -> 180696305.3 | I18: =C18-D18-F18-G18-H18 -> 180696305.3 | K18: =IFERROR(I18/I$29,"") -> 0.07662873095 | L18: =IFERROR(L$29*K18,"") -> 77158.88295 | M18: =IFERROR(L18/I18,"") -> 0.0004270086365 | N18: kwh | O18: =ROUND(M18,4)*I18 -> 72278.52212 | P18: =L18-O18 -> 4880.360824
B19: ='4. Billing Det. for Def-Var'!B19 -> GENERAL SERVICE 500 to 4,999 kW SERVICE CLASSIFICATION | C19: ='4. Billing Det. for Def-Var'!F19-'4. Billing Det. for Def-Var'!H19 -> 4159803859 | D19: 282814386.8 | F19: ='6A. GA Allocation_Class A'!E44 -> 17289922.8 | H19: ='4. Billing Det. for Def-Var'!F69-'4. Billing Det. for Def-Var'!H69-D19-F19 -> 1854054698 | I19: 2005644851 | K19: 0.8505432329 | L19: =IFERROR(L$29*K19,"") -> 856427.6732 | M19: =IFERROR(L19/I19,"") -> 0.0004270086365 | N19: kwh (non-Intervals ONLY) | O19: 802257.9405 | P19: 54169.7327
B20: ='4. Billing Det. for Def-Var'!B20 -> LARGE USE SERVICE CLASSIFICATION | C20: ='4. Billing Det. for Def-Var'!F20-'4. Billing Det. for Def-Var'!H20 -> 67734070.28 | D20: 64462064.98 | G20: ='6B. GA Allocation_new Class B'!E44 -> 3272005.29 | I20: 0.009999996983 | K20: 4.240745692e-12 | L20: 4.270085076e-06 | M20: 0 | N20: kwh | O20: 0 | P20: 4.270085076e-06
B21: ='4. Billing Det. for Def-Var'!B21 -> UNMETERED SCATTERED LOAD SERVICE CLASSIFICATION | C21: ='4. Billing Det. for Def-Var'!F21-'4. Billing Det. for Def-Var'!H21 -> 132604.93 | I21: 132604.93 | K21: =IFERROR(I21/I$29,"") -> 5.623439553e-05 | L21: 56.62345035 | M21: 0.0004270086365 | N21: kwh | O21: 53.041972 | P21: 3.58147835
B22: ='4. Billing Det. for Def-Var'!B22 -> STANDBY POWER SERVICE CLASSIFICATION | C22: ='4. Billing Det. for Def-Var'!F22-'4. Billing Det. for Def-Var'!H22 -> 0 | I22: 0 | K22: 0 | L22: 0 | O22: 0 | P22: 0
B23: ='4. Billing Det. for Def-Var'!B23 -> SENTINEL LIGHTING SERVICE CLASSIFICATION | C23: ='4. Billing Det. for Def-Var'!F23-'4. Billing Det. for Def-Var'!H23 -> 15919.92 | I23: 15919.92 | K23: 6.751235252e-06 | L23: 6.797943332 | M23: 0.0004270086365 | N23: kwh | O23: 6.367968 | P23: 0.4299753321
B24: ='4. Billing Det. for Def-Var'!B24 -> STREET LIGHTING SERVICE CLASSIFICATION | C24: ='4. Billing Det. for Def-Var'!F24-'4. Billing Det. for Def-Var'!H24 -> 52181420.68 | I24: 52181420.68 | K24: 0.02212882017 | L24: 22281.91729 | M24: 0.0004270086365 | N24: kwh | O24: 20872.56827 | P24: 1409.349022
C29: =SUM(C17:C28) -> 4579968216 | D29: =SUM(D17:D28) -> 347276451.8 | E29: 0 | F29: 17289922.8 | G29: 3272005.29 | H29: 1854054698 | I29: 2358075138 | J29: 0 | K29: 1 | L29: ='6B. GA Allocation_new Class B'!D28 -> 1006918.449 | O29: =SUM(O17:O28) -> 943230.0552 | P29: =SUM(P17:P28) -> 63688.39421
L30: from Sheet 6B
O31: NOTE: if rate rider is at 5 decimal places, then the balance dispostion is in full
B32: *For new Class A customers (who became Class A in 2016), add their consumption only related to July to December period.
B33: All Class A customers are interval-metered. They consumption is included in Column D.
B34: **PowerStream bills Class B non-RPP interval billed customers at the actual monthly GA rate (no GA variance) and non-interval customers at the first estimate rate.
B37: 2015 DATA | C37: Total Metered Non-RPP consumption minus WMP | D37: Total Metered Class A Consumption in 2015 (partial and/or full year Class A customers)* | F37: Total Metered Consumption for New Class A customer(s) in the period prior to becoming Class A (i.e. Jan. 1 - June 30, 2015)
C38: kWh | D38: kWh | E38: kW | F38: kWh
B40: =B17 -> RESIDENTIAL SERVICE CLASSIFICATION | C40: ='4. Billing Det. for Def-Var'!F49-'4. Billing Det. for Def-Var'!H49 -> 146512581.7
B41: GENERAL SERVICE LESS THAN 50 kW SERVICE CLASSIFICATION | C41: ='4. Billing Det. for Def-Var'!F50-'4. Billing Det. for Def-Var'!H50 -> 185625558.3
B42: GENERAL SERVICE 500 to 4,999 kW SERVICE CLASSIFICATION | C42: ='4. Billing Det. for Def-Var'!F51-'4. Billing Det. for Def-Var'!H51 -> 4078565011 | D42: 144760456.2 | F42: 107792252.2
B43: LARGE USE SERVICE CLASSIFICATION | C43: ='4. Billing Det. for Def-Var'!F52-'4. Billing Det. for Def-Var'!H52 -> 78452926.47 | D43: 78452926.47
B44: UNMETERED SCATTERED LOAD SERVICE CLASSIFICATION | C44: ='4. Billing Det. for Def-Var'!F53-'4. Billing Det. for Def-Var'!H53 -> 157113.22
B45: STANDBY POWER SERVICE CLASSIFICATION | C45: ='4. Billing Det. for Def-Var'!F54-'4. Billing Det. for Def-Var'!H54 -> 0
B46: SENTINEL LIGHTING SERVICE CLASSIFICATION | C46: ='4. Billing Det. for Def-Var'!F55-'4. Billing Det. for Def-Var'!H55 -> 26047.68
B47: STREET LIGHTING SERVICE CLASSIFICATION | C47: ='4. Billing Det. for Def-Var'!F56-'4. Billing Det. for Def-Var'!H56 -> 57608680.13
C52: =SUM(C40:C51) -> 4546947919 | D52: =SUM(D40:D51) -> 223213382.7 | E52: 0 | F52: 107792252.2

Sheet 6A. GA Allocation_Class A
A1: Back to Index
B2: INCENTIVE REGULATION MODEL FOR 2018 FILERS
B12: This tab allocates the GA balance to former Class B non-interval customers who contributed to the current GA balance but are now Class A customers. The tables below calculate specific amounts for each customer who made the change. Consistent with both decisions for 2016 rates and EDDVAR, distributors are generally expected to settle the amount through 12 equal adjustments to bills. A one-time settlement is acceptable if the affected customer has expressed a clear preference for this approach. (see Filing Requirements section 3.2.5.2)
B14: Year of Group 1 Account Balance Last Disposed | C14: 2014 | D14: (e.g. If in the 2017 EDR process, you received approval to dispose the GA variance account balance as of December 31, 2014, please enter 2014 in cell C16.)
B16: Allocation of total Non-RPP consumption (kWh) between Class B and New Class A (Former Class B non-Interval) customers
D17: Total | E17: 2016 | F17: 2015 | G17: 2014 | H17: 2013 | I17: 2012
B18: Total Class B Consumption for Years Since Last Disposition (Non-RPP consumption LESS WMP and Class A) | C18: A | D18: =SUM(E18:I18) -> 8556426301 | E18: ='6. GA Calculation'!C29-'6. GA Calculation'!D29 -> 4232691765 | F18: ='6. GA Calculation'!C52-'6. GA Calculation'!D52 -> 4323734536
B19: New Class A Customer(s)' Former Class B non-Interval Consumption | C19: B | D19: =SUM(E19:I19) -> 0 | E19: =E45 -> 0 | F19: =F45 -> 0 | G19: =G44 -> 0 | H19: =H44 -> 0 | I19: =I44 -> 0
B20: Portion of Consumption of Former Class B non-Interval Customers | C20: C=B/A | D20: =IFERROR(+D19/D18,0) -> 0
B23: Allocation of Total GA Balance $
B25: Total GA Balance | C25: D | D25: ='3. Continuity Schedule'!CD29 -> 1006918.449
B26: New Class A Customer(s)' Former Class B non-Intervals Portion of GA Balance | C26: E=C*D | D26: =+D20*D25 -> 0
B27: GA Balance to be disposed to Current Class B Customers (if no Class A to Class B Transition Customers) | C27: F=D-E | D27: =+D25-D26 -> 1006918.449 | P27: s
B29: Allocation of GA Balances to Former Class B non-Interval Customers
B31: # of Former Class B customer(s) | E31: 2 | F31: 9
B32: Customer | D32: Total Metered kWh Consumption for each new Class A customer for the period prior to becoming Class A | E32: Metered kWh Consumption for each new Class A customer for the period prior to becoming Class A in 2016 | F32: Metered kWh Consumption for each new Class A customer for the period prior to becoming Class A in 2015 | G32: Metered kWh Consumption for each new Class A customer for the period prior to becoming Class A in 2014 | H32: Metered kWh Consumption for each new Class A customer for the period prior to becoming Class A in 2013 | I32: Metered kWh Consumption for each new Class A customer for the period prior to becoming Class A in 2012 | J32: Interval-Billed* Customer? Yes/No | K32: % of kWh | L32: Customer specific GA allocation for the period prior to becoming Class A | M32: Monthly Equal Payments
B33: Customer 1 | D33: =SUM(E33:I33) -> 19447844.88 | E33: 6971708 | F33: 12476136.88 | J33: Yes | K33: =IF(J33="No",IFERROR(+D33/$D$45,0),"") ->  | L33: =IFERROR(+K33*$D$26,"") ->  | M33: =IFERROR(+L33/12,"") -> 
B34: Customer 2 | D34: 29902845.28 | E34: 10318214.8 | F34: 19584630.48 | J34: Yes | K34: =IF(J34="No",IFERROR(+D34/$D$45,0),"") ->  | L34: =IFERROR(+K34*$D$26,"") ->  | M34: =IFERROR(+L34/12,"") -> 
B35: Customer 3 | D35: 6026298.09 | F35: 6026298.09 | J35: Yes
B36: Customer 4 | D36: 12447643.6 | F36: 12447643.6 | J36: Yes
B37: Customer 5 | D37: 12209934.79 | F37: 12209934.79 | J37: Yes
B38: Customer 6 | D38: 9497251.71 | F38: 9497251.71 | J38: Yes
B39: Customer 7 | D39: 16233081.82 | F39: 16233081.82 | J39: Yes
B40: Customer 8 | D40: 10657916.41 | F40: 10657916.41 | J40: Yes
B41: Customer 9 | D41: 18328128.41 | F41: 18328128.41 | J41: Yes
B42: Customer 10 | D42: 12899684.99 | F42: 12899684.99 | J42: Yes
B43: Customer 11 | D43: 9492312.34 | F43: 9492312.34 | J43: Yes
B44: Total for all Customers | D44: =SUM(D33:D43) -> 157142942.3 | E44: =SUM(E33:E43) -> 17289922.8 | F44: =SUM(F33:F43) -> 139853019.5 | G44: =SUM(G33:G39) -> 0 | H44: 0 | I44: 0
A45: No | B45: Total for non-Interval billed ONLY | D45: =SUMIF($J33:$J43,$A45,D33:D43) -> 0 | E45: =SUMIF($J33:$J43,$A45,E33:E43) -> 0 | F45: =SUMIF($J33:$J43,$A45,F33:F43) -> 0 | K45: =SUM(K33:K43) -> 0 | L45: =SUM(L33:L43) -> 0
B47: NOTES:
B48: *PowerStream bills non-RPP interval customers using the Actual rate of Global Adjustment provided by the Independent Electricity System Operator (the “IESO”).

Sheet 6B. GA Allocation_new Class B
A1: Back to Index
B2: INCENTIVE REGULATION MODEL FOR 2018 FILERS
B12: This tab allocates the GA balance to former Class A customers who contributed to the current Class B GA balance once switched to Class B non-interval customers. The tables below calculate specific amounts for each customer who made the transition. Consistent with both decisions for 2016 rates and EDDVAR, distributors are generally expected to settle the amount through 12 equal adjustments to bills. A one-time settlement is acceptable if the affected customer has expressed a clear preference for this approach. (see Filing Requirements section 3.2.5.2)
B14: Year of Group 1 Account Balance Last Disposed | C14: 2014 | D14: (e.g. If in the 2017 EDR process, you received approval to dispose the GA variance account balance as of December 31, 2014, please enter 2014 in cell C16.)
B16: Allocation of total Non-RPP consumption (kWh) between Class B and New Class B non-interval (Former Class A) customers
D17: Total | E17: 2016 | F17: 2015 | G17: 2014 | H17: 2013 | I17: 2012
B18: Total Class B Consumption for Years Since Last Disposition (Non-RPP consumption LESS WMP and Class A) | C18: A | D18: =SUM(E18:I18) -> 4232691765 | E18: ='6. GA Calculation'!C29-'6. GA Calculation'!D29 -> 4232691765
B19: New Class B non-Interval Customer(s)' Consumption | C19: B | D19: =SUM(E19:I19) -> 0 | E19: =E45 -> 0 | F19: =F45 -> 0 | G19: =G44 -> 0 | H19: =H44 -> 0 | I19: =I44 -> 0
B20: Portion of Consumption of New Class B non-Interval Customers | C20: C=B/A | D20: =IFERROR(+D19/D18,0) -> 0
B23: Allocation of Total GA Balance $
B25: Total GA Calss B Balance adjusted for Class A | C25: D | D25: ='6A. GA Allocation_Class A'!D25 -> 1006918.449
B26: New Class B non-Interval Customer(s)' Former Class A Portion of GA Balance attributable to Class B | C26: E=C*D | D26: =+D20*D25 -> 0
B27: New Class A Customer(s)' Former Class B non-Interval Portion of GA Balance | C27: F=Sheet 6A | D27: ='6A. GA Allocation_Class A'!D26 -> 0
B28: GA Balance to be disposed to Current Class B Customers | C28: G=D-E-F | D28: =+D25-D26-D27 -> 1006918.449 | E28: Input into Sheet 6. GA Calculation
B30: Allocation of GA Balances to Former Class A Customers
B31: # of Former Class B customer(s) | E31: 2
B32: Customer | D32: Total Metered kWh Consumption for each new Class B customer for the period after becoming Class B | E32: Metered kWh Consumption for each new Class B customer for the period after becoming Class B in 2016 | F32: Metered kWh Consumption for each new Class B customer for the period prior to becoming Class B in 2015 | G32: Metered kWh Consumption for each new Class B customer for the period prior to becoming Class B in 2014 | H32: Metered kWh Consumption for each new Class B customer for the period prior to becoming Class B in 2013 | I32: Metered kWh Consumption for each new Class B customer for the period prior to becoming Class B in 2012 | J32: Interval-Billed* Customer? Yes/No | K32: % of kWh | L32: Customer specific GA allocation for the period after becoming Class B | M32: Monthly Equal Payments
B33: Customer 1 | D33: =SUM(E33:I33) -> 3272005.29 | E33: 3272005.29 | J33: Yes | K33: =IF(J33="No",IFERROR(+D33/$D$45,0),"") ->  | L33: =IFERROR(+K33*$D$26,"") ->  | M33: =IFERROR(+L33/12,"") -> 
K34: =IF(J34="No",IFERROR(+D34/$D$45,0),"") ->  | L34: =IFERROR(+K34*$D$26,"") ->  | M34: =IFERROR(+L34/12,"") -> 
B44: Total | D44: =SUM(D33:D43) -> 3272005.29 | E44: =SUM(E33:E43) -> 3272005.29 | F44: =SUM(F33:F43) -> 0 | G44: =SUM(G33:G39) -> 0 | H44: 0 | I44: 0
A45: No | B45: Total for non-Interval billed ONLY | D45: =SUMIF($J33:$J43,$A45,D33:D43) -> 0 | E45: =SUMIF($J33:$J43,$A45,E33:E43) -> 0 | F45: =SUMIF($J33:$J43,$A45,F33:F43) -> 0 | G45: 0 | H45: 0 | I45: 0 | K45: =SUM(K33:K43) -> 0 | L45: =SUM(L33:L43) -> 0

Sheet 6C. 2016 GA Rate Rider Update
A1: Back to Index
B2: INCENTIVE REGULATION MODEL FOR 2018 FILERS
B11: This tab calculates adjustments to the current Board-Approved (2016 CIR EB-2015-0003) GA rate rider. PowerStream bills Class B non-RPP interval billed customers at the actual monthly GA rate (no GA variance) and non-interval customers at the first estimate rate. PowerStream is proposing to make changes to the current billing schema and bill Class B non-RPP interval billed customers at the 1st Estimate GA rate. PowerStream is proposing to make these adjustments effective January 1, 2018.
B14: Table 1. Rate Rider Calculation for RSVA - Power - Global Adjustment
B15: Current Board-Approved GA Rate Rider (2016 CIR, EB-2015-0003), effective October 1, 2016 until September 30, 2018
B17: Rate Rider Recovery Period (in years) | C17: 2
B19: Rate Class | C19: Units | D19: Non-RPP kW / kWh | E19: Balance of RSVA - Power - Global Adjustment | F19: Rate Rider for RSVA - Power - Global Adjustment
B21: ='4. Billing Det. for Def-Var'!B17 -> RESIDENTIAL SERVICE CLASSIFICATION | C21: kWh | D21: 155835069 | E21: 359375 | F21: =ROUND(E21/D21/C$17,4) -> 0.0012 | G21: $/kWh
B22: ='4. Billing Det. for Def-Var'!B18 -> GENERAL SERVICE LESS THAN 50 kW SERVICE CLASSIFICATION | C22: kWh | D22: 165757654 | E22: 382258 | F22: =ROUND(E22/D22/C$17,4) -> 0.0012 | G22: $/kWh
B23: ='4. Billing Det. for Def-Var'!B19 -> GENERAL SERVICE 500 to 4,999 kW SERVICE CLASSIFICATION | C23: kW | D23: 11136807 | E23: 9619063 | F23: 0.4319 | G23: $/kW
B24: ='4. Billing Det. for Def-Var'!B20 -> LARGE USE SERVICE CLASSIFICATION | C24: kW
B25: ='4. Billing Det. for Def-Var'!B21 -> UNMETERED SCATTERED LOAD SERVICE CLASSIFICATION | C25: kWh | D25: 257889 | E25: 595 | F25: 0.0012 | G25: $/kWh
B26: ='4. Billing Det. for Def-Var'!B22 -> STANDBY POWER SERVICE CLASSIFICATION | C26: kW
B27: ='4. Billing Det. for Def-Var'!B23 -> SENTINEL LIGHTING SERVICE CLASSIFICATION | C27: kW | D27: 120 | E27: 107 | F27: 0.4458 | G27: $/kW
B28: ='4. Billing Det. for Def-Var'!B24 -> STREET LIGHTING SERVICE CLASSIFICATION | C28: kW | D28: 131791 | E28: 108704 | F28: 0.4124 | G28: $/kW
B29: Total | E29: =SUM(E21:E28) -> 10470102
B32: Table 2. Calculation of the Projected Amount collected to Dec 31/17 of the current rate rider
D33: Effective Date | E33: Termination Date
B34: Rate Rider Recovery Period (in months) | C34: 24 | D34: 2016-10-01 | E34: 2018-09-30
B35: Projected Recovery Period (in months) | C35: 19 | D35: 2016-10-01 | E35: 2018-04-30
B37: Rate Class | C37: Units | D37: Non-RPP kW / kWh / per month | E37: Rate Rider for RSVA - Power - Global Adjustment | F37: Projected Amount Collected to Dec 31, 2017
D38: A | E38: B | F38: A x B x Projected Recovery Period
B39: RESIDENTIAL SERVICE CLASSIFICATION | C39: kWh | D39: =D21/12 -> 12986255.75 | E39: =F21 -> 0.0012 | F39: =D39*E39*C$35 -> 296086.6311
B40: GENERAL SERVICE LESS THAN 50 kW SERVICE CLASSIFICATION | C40: kWh | D40: =D22/12 -> 13813137.83 | E40: =F22 -> 0.0012 | F40: =D40*E40*C$35 -> 314939.5426
B41: GENERAL SERVICE 500 to 4,999 kW SERVICE CLASSIFICATION - INTERVALS | C41: kW | D41: =D23*('4. Billing Det. for Def-Var'!F69/'4. Billing Det. for Def-Var'!F71)/12 -> 483844.2038 | E41: =F23 -> 0.4319 | F41: =D41*E41*C$35 -> 3970473.921 | G41: to be refunded
B42: GENERAL SERVICE 500 to 4,999 kW SERVICE CLASSIFICATION - NON-INTERVALS | C42: kW | D42: =D23*('4. Billing Det. for Def-Var'!F70/'4. Billing Det. for Def-Var'!F71)/12 -> 444223.0462 | E42: =F23 -> 0.4319 | F42: =D42*E42*C$35 -> 3645338.739
B43: LARGE USE SERVICE CLASSIFICATION | C43: kW
B44: UNMETERED SCATTERED LOAD SERVICE CLASSIFICATION | C44: kWh | D44: =D25/12 -> 21490.75 | E44: =F25 -> 0.0012 | F44: =D44*E44*C$35 -> 489.9891
B45: STANDBY POWER SERVICE CLASSIFICATION | C45: kW
B46: SENTINEL LIGHTING SERVICE CLASSIFICATION | C46: kW | D46: =D27/12 -> 10 | E46: =F27 -> 0.4458 | F46: =D46*E46*C$35 -> 84.702
B47: STREET LIGHTING SERVICE CLASSIFICATION | C47: kW | D47: =D28/12 -> 10982.58333 | E47: =F28 -> 0.4124 | F47: =D47*E47*C$35 -> 86055.12997
F48: =SUM(F39:F47) -> 8313468.655
F50: =E29-F48 -> 2156633.345 | G50: Remaining Balance to be recovered
G51: Total Table 1 LESS Total Table 2
B52: Table 3. Calculation of RSVA Power - Global Adjustment rate riders for the remaining recovery period
D53: Effective Date | E53: Termination Date
B54: Rate Rider Recovery Period (in months) | C54: 24 | D54: 2016-10-01 | E54: 2018-09-30
B55: Projected Recovery Period (in months) | C55: 19 | D55: 2016-10-01 | E55: 2018-04-30
B56: Remaining Recovery Period (in months) | C56: =C54-C55 -> 5 | D56: 2018-05-01 | E56: 2018-09-30 | M56: s
I57: Proposed Rate Riders RSVA - Power - GA May 1, 2018 to Sep 30, 2018
B58: Rate Class | C58: Units | D58: Billed kWh for Non-RPP Customers LESS Class A Consumption LESS Intervals (source: 2016 CIR EDVAR Model, Tab 4, Column Q) | E58: Class Allocation Percentages | F58: Amount to be Recovered from GS>50 non-Intervals (allocated to all classes) | G58: Remaining Balance to be Recovered | H58: Total Balance to be Recovered incl. GS>50 Intervals Balance | I58: Rate Rider for RSVA - Power - Global Adjustment GS>50 Class B Intervals ONLY | J58: Rate Rider for RSVA - Power - Global Adjustment excl. GS>50 Class B Intervals | M58: Revenue Reconciliation | N58: Variance | Q58: s
F59: A | G59: B | H59: A + B
B60: RESIDENTIAL SERVICE CLASSIFICATION | C60: kWh | D60: 155835069 | E60: =D60/D$68 -> 0.06556462166 | F60: =F$68*E60 -> 260322.6204 | G60: =G$68*E60 -> 141398.8493 | H60: =SUM(F60:G60) -> 401721.4698 | J60: =ROUND(H60/(D39*C$56),4) -> 0.0062 | K60: =G21 -> $/kWh | M60: =J60*C$56*D39 -> 402573.9282 | N60: =M60-H60 -> 852.4584971
B61: GENERAL SERVICE LESS THAN 50 kW SERVICE CLASSIFICATION | C61: kWh | D61: 165757654 | E61: =D61/D$68 -> 0.06973935932 | F61: =F$68*E61 -> 276898.3074 | G61: =G$68*E61 -> 150402.2278 | H61: =SUM(F61:G61) -> 427300.5352 | J61: =ROUND(H61/(D40*C$56),4) -> 0.0062 | K61: =K60 -> $/kWh | M61: =J61*C$56*D40 -> 428207.2728 | N61: =M61-H61 -> 906.7376266
B62: GENERAL SERVICE 500 to 4,999 kW SERVICE CLASSIFICATION | C62: kW | D62: ='4. Billing Det. for Def-Var'!F90 -> 2007782365 | E62: =D62/D$68 -> 0.844735989 | F62: =F$68*E62 -> 3354002.215 | G62: =G$68*E62 -> 1821785.802 | H62: 5175788.016 | I62: =-ROUND(F68/(D41*C56),4) -> -1.6412 | J62: =ROUND(H62/(D42*C$56),4) -> 2.3303 | K62: =G23 -> $/kW | M62: =J62*C$56*D42 -> 5175864.822 | N62: 76.80611631
B63: LARGE USE SERVICE CLASSIFICATION | C63: kW | M63: =J63*C$56*D43 -> 0 | N63: =M63-H63 -> 0
B64: UNMETERED SCATTERED LOAD SERVICE CLASSIFICATION | C64: kWh | D64: 257889 | E64: =D64/D$68 -> 0.0001085018592 | F64: =F$68*E64 -> 430.8038023 | G64: =G$68*E64 -> 233.9987275 | H64: 664.8025299 | J64: =ROUND(H64/(D44*C$56),4) -> 0.0062 | K64: =G25 -> $/kWh | M64: 666.21325 | N64: 1.410720134
B65: STANDBY POWER SERVICE CLASSIFICATION | C65: kW | M65: 0 | N65: 0
B66: SENTINEL LIGHTING SERVICE CLASSIFICATION | C66: kW | D66: 46506 | E66: =D66/D$68 -> 1.956650909e-05 | F66: =F$68*E66 -> 77.68831409 | G66: =G$68*E66 -> 42.19778596 | H66: 119.8861 | J66: =ROUND(H66/(D46*C$56),4) -> 2.3977 | K66: =G27 -> $/kW | M66: 119.885 | N66: -0.001100042919
B67: STREET LIGHTING SERVICE CLASSIFICATION | C67: kW | D67: 47136932 | E67: =D67/D$68 -> 0.01983196165 | F67: =F$68*E67 -> 78742.28655 | G67: =G$68*E67 -> 42770.2698 | H67: 121512.5563 | J67: =ROUND(H67/(D47*C$56),4) -> 2.2128 | K67: =G28 -> $/kW | M67: 121511.302 | N67: -1.254346886
D68: =SUM(D60:D67) -> 2376816415 | E68: =SUM(E60:E67) -> 1 | F68: =F41 -> 3970473.921 | G68: =E29-F48 -> 2156633.345 | H68: =SUM(H60:H67) -> 6127107.266 | M68: =SUM(M60:M67) -> 6128943.424 | N68: =SUM(N60:N67) -> 1836.157513

Sheet 7. CBR Calculation
A1: Back to Index
B2: INCENTIVE REGULATION MODEL FOR 2018 FILERS
B13: The purpose of this tab is to calculate the CBR rate riders for all current Class B customers of the distributor. Identify and input the total billed consumption for former Class B customers prior to becoming Class A customers in Column H. Identify and input the total billed consumption for former Class A customers after becoming Class B customers in Column H.
B15: Account 1580
B16: Variance WMS – Sub-account CBR Class A | C16: ='3. Continuity Schedule'!CD24 -> 0.0203465
B17: Variance WMS – Sub-account CBR Class B | C17: ='3. Continuity Schedule'!CD25 -> 2010840.522
C19: Total Metered LESS WMP | E19: Total Metered Class A Consumption/Demand in 2016 (partial and/or full year Class A customers)* | G19: Total Metered Consumption/Demand for New Class A customer(s) in the period prior to becoming Class A (i.e. Jan 1 - Jun 30, 2016) | I19: Total Metered Consumption for New Class B customer(s) in the period after becoming Class B (i.e. Jul 1 - Dec 31, 2016) | K19: Metered Consumption for Current Class B Customers (metered consumption/demand LESS WMP, Class A and new Class A's former Class B, if applicable) | M19: % of total kWh | N19: Total CBR $ allocated to Current Class B Customers | O19: CBR Rate Rider | Q19: Revenue Reconciliation | R19: Variance
C20: kWh | D20: kW | E20: kWh | F20: kW | G20: kWh | H20: kW | I20: kWh | J20: kW | K20: kWh | L20: kW
B22: ='4. Billing Det. for Def-Var'!B17 -> RESIDENTIAL SERVICE CLASSIFICATION | C22: ='4. Billing Det. for Def-Var'!D17-'4. Billing Det. for Def-Var'!H17 -> 2770663827 | D22: ='4. Billing Det. for Def-Var'!E17-'4. Billing Det. for Def-Var'!I17 -> 0 | E22: ='6. GA Calculation'!D17 -> 0 | G22: ='6. GA Calculation'!F17 -> 0 | K22: =C22-E22-G22-I22 -> 2770663827 | L22: =D22-F22-H22-J22 -> 0 | M22: =IFERROR(K22/K$34,"") -> 0.3399428735 | N22: =IFERROR(N$34*M22,"") -> 675852.3817 | O22: =IFERROR(IF(L22=0,N22/K22,N22/L22),"") -> 0.0002439315716 | P22: kwh | Q22: =ROUND(O22,4)*L22 -> 0 | R22: =N22-Q22 -> 675852.3817
B23: ='4. Billing Det. for Def-Var'!B18 -> GENERAL SERVICE LESS THAN 50 kW SERVICE CLASSIFICATION | C23: ='4. Billing Det. for Def-Var'!D18-'4. Billing Det. for Def-Var'!H18 -> 1035123196 | D23: ='4. Billing Det. for Def-Var'!E18-'4. Billing Det. for Def-Var'!I18 -> 0 | E23: ='6. GA Calculation'!D18 -> 0 | G23: ='6. GA Calculation'!F18 -> 0 | K23: =C23-E23-G23-I23 -> 1035123196 | L23: =D23-F23-H23-J23 -> 0 | M23: =IFERROR(K23/K$34,"") -> 0.1270030489 | N23: =IFERROR(N$34*M23,"") -> 252499.228 | O23: =IFERROR(IF(L23=0,N23/K23,N23/L23),"") -> 0.0002439315716 | P23: kwh | Q23: 0 | R23: =N23-Q23 -> 252499.228
B24: ='4. Billing Det. for Def-Var'!B19 -> GENERAL SERVICE 500 to 4,999 kW SERVICE CLASSIFICATION | C24: ='4. Billing Det. for Def-Var'!D19-'4. Billing Det. for Def-Var'!H19 -> 4577906269 | D24: ='4. Billing Det. for Def-Var'!E19-'4. Billing Det. for Def-Var'!I19 -> 12081588.27 | E24: ='6. GA Calculation'!D19 -> 282814386.8 | F24: 518391.564 | G24: ='6. GA Calculation'!F19 -> 17289922.8 | H24: 34152.36 | K24: =C24-E24-G24-I24 -> 4277801960 | L24: 11529044.35 | M24: 0.5248591605 | N24: 1043490.955 | O24: 0.09050975291 | P24: kW | Q24: 1043378.513 | R24: 112.441676
B25: ='4. Billing Det. for Def-Var'!B20 -> LARGE USE SERVICE CLASSIFICATION | C25: ='4. Billing Det. for Def-Var'!D20-'4. Billing Det. for Def-Var'!H20 -> 67734070.28 | D25: ='4. Billing Det. for Def-Var'!E20-'4. Billing Det. for Def-Var'!I20 -> 149959.48 | E25: ='6. GA Calculation'!D20 -> 64462064.98 | F25: 122342.77 | G25: ='6. GA Calculation'!F20 -> 0 | H25: 0 | I25: ='6B. GA Allocation_new Class B'!E44 -> 3272005.29 | J25: 27617 | K25: 0.009999996983 | L25: -0.29 | M25: 1.226936186e-12 | N25: 2.43931498e-06 | O25: -8.411430966e-06 | P25: kW | Q25: 0 | R25: 2.43931498e-06
B26: ='4. Billing Det. for Def-Var'!B21 -> UNMETERED SCATTERED LOAD SERVICE CLASSIFICATION | C26: ='4. Billing Det. for Def-Var'!D21-'4. Billing Det. for Def-Var'!H21 -> 13630753.27 | D26: ='4. Billing Det. for Def-Var'!E21-'4. Billing Det. for Def-Var'!I21 -> 0 | E26: ='6. GA Calculation'!D21 -> 0 | G26: ='6. GA Calculation'!F21 -> 0 | K26: 13630753.27 | L26: 0 | M26: 0.001672406948 | N26: 3324.971067 | O26: 0.0002439315716 | P26: kwh | Q26: 0 | R26: 3324.971067
B27: ='4. Billing Det. for Def-Var'!B22 -> STANDBY POWER SERVICE CLASSIFICATION | C27: ='4. Billing Det. for Def-Var'!D22-'4. Billing Det. for Def-Var'!H22 -> 0 | D27: ='4. Billing Det. for Def-Var'!E22-'4. Billing Det. for Def-Var'!I22 -> 0 | E27: ='6. GA Calculation'!D22 -> 0 | G27: ='6. GA Calculation'!F22 -> 0 | K27: 0 | L27: 0 | M27: 0 | N27: 0 | P27: kW
B28: ='4. Billing Det. for Def-Var'!B23 -> SENTINEL LIGHTING SERVICE CLASSIFICATION | C28: ='4. Billing Det. for Def-Var'!D23-'4. Billing Det. for Def-Var'!H23 -> 314901.3 | D28: ='4. Billing Det. for Def-Var'!E23-'4. Billing Det. for Def-Var'!I23 -> 858 | E28: ='6. GA Calculation'!D23 -> 0 | G28: ='6. GA Calculation'!F23 -> 0 | K28: 314901.3 | L28: 858 | M28: =IFERROR(K28/K$34,"") -> 3.863639166e-05 | N28: 76.81436901 | O28: 0.08952723661 | P28: kW | Q28: 76.791 | R28: 0.0233690086
B29: ='4. Billing Det. for Def-Var'!B24 -> STREET LIGHTING SERVICE CLASSIFICATION | C29: ='4. Billing Det. for Def-Var'!D24-'4. Billing Det. for Def-Var'!H24 -> 52846039.32 | D29: ='4. Billing Det. for Def-Var'!E24-'4. Billing Det. for Def-Var'!I24 -> 148246.61 | E29: ='6. GA Calculation'!D24 -> 0 | G29: ='6. GA Calculation'!F24 -> 0 | K29: 52846039.32 | L29: 148246.61 | M29: 0.00648387375 | N29: 12890.81742 | O29: 0.08695522565 | P29: kW | Q29: 12897.45507 | R29: -6.637645717
C34: =SUM(C22:C33) -> 8518219056 | D34: =SUM(D22:D33) -> 12380652.36 | E34: 347276451.8 | F34: 640734.334 | G34: 17289922.8 | H34: 34152.36 | I34: 3272005.29 | J34: 27617 | K34: 8150380676 | L34: 11678148.67 | M34: 1 | N34: ='7B. CBR Allocation_new Class B'!D28 -> 1988135.167 | Q34: =SUM(Q22:Q33) ->  | R34: =SUM(R22:R33) -> 
N35: from Sheet 7B
Q36: NOTE: if rate rider is at 5 decimal places, then the balance dispostion is in full
B37: *For new Class A customers (who became Class A in 2016), add their consumption only related to July to December period.

Sheet 7A. CBR Allocation_Class A
A1: Back to Index
B2: INCENTIVE REGULATION MODEL FOR 2018 FILERS
B12: This tab allocates the CBR balance to former Class B customers who contributed to the current CBR balance but are now Class A customers. The tables below calculate specific amounts for each customer who made the change. Consistent with both decisions for 2016 rates and EDDVAR, distributors are generally expected to settle the amount through 12 equal adjustments to bills. A one-time settlement is acceptable if the affected customer has expressed a clear preference for this approach. (see Filing Requirements section 3.2.5.2)
B14: Year of Group 1 Account Balance Last Disposed | C14: 2014
B16: Allocation of total Non-RPP consumption (kWh) between Class B and New Class A (Former Class B) customers
D17: Total | E17: 2016 | F17: 2016
B18: Total MeteredConsumption for Years Since Last Disposition (consumption LESS WMP and Class A) | C18: A | D18: =SUM(E18:I18) -> 14206731592 | E18: 8176902767 | F18: 6029828825
B19: New Class A Customer(s)' Former Class B Consumption | C19: B | D19: =SUM(E19:I19) -> 157142942.3 | E19: =E44 -> 17289922.8 | F19: =F44 -> 139853019.5
B20: Portion of Consumption of Former Class B Customers | C20: C=B/A | D20: =IFERROR(+D19/D18,0) -> 0.01106116078
B23: Allocation of Total CBR Class B Balance $
B25: Total CBR-Class B Balance | C25: D | D25: ='7. CBR Calculation'!C17 -> 2010840.522
B26: New Class A Customer(s)' Former Class B Portion of CBR-Class B Balance | C26: E=C*D | D26: =+D20*D25 -> 22242.23032
B27: CBR-Class B Balance to be disposed to Current Class B Customers (if no Class A to Class B Transition Customers) | C27: F=D-E | D27: =+D25-D26 -> 1988598.292 | O27: s
B29: Allocation of CBR Class B Balances to Former Class B Customers
B31: # of Former Class B customer(s) | E31: 2 | F31: 9
B32: Customer | D32: Total Metered kWh Consumption for each new Class A customer for the period prior to becoming Class A | E32: Metered kWh Consumption for each new Class A customer for the period prior to becoming Class A in 2016 | F32: Metered kWh Consumption for each new Class A customer for the period prior to becoming Class A in 2015 | J32: % of kWh | K32: Customer specific CBR-Class B allocation for the period prior to becoming Class A | L32: Monthly Equal Payments
B33: Customer 1 | D33: =SUM(E33:I33) -> 19447844.88 | E33: 6971708 | F33: 12476136.88 | J33: =IFERROR(+D33/$D$44,0) -> 0.1237589458 | K33: =+J33*$D$26 -> 2752.674976 | L33: =+K33/12 -> 229.3895814
B34: Customer 2 | D34: 29902845.28 | E34: 10318214.8 | F34: 19584630.48 | J34: 0.1902907305 | K34: =+J34*$D$26 -> 4232.490255 | L34: =+K34/12 -> 352.7075212
B35: Customer 3 | D35: 6026298.09 | F35: 6026298.09 | J35: 0.03834914888 | K35: 852.9706019 | L35: 71.08088349
B36: Customer 4 | D36: 12447643.6 | F36: 12447643.6 | J36: 0.07921223452 | K36: 1761.856764 | L36: 146.821397
B37: Customer 5 | D37: 12209934.79 | F37: 12209934.79 | J37: 0.07769954291 | K37: 1728.211129 | L37: 144.0175941
B38: Customer 6 | D38: 9497251.71 | F38: 9497251.71 | J38: 0.06043702358 | K38: 1344.254198 | L38: 112.0211832
B39: Customer 7 | D39: 16233081.82 | F39: 16233081.82 | J39: 0.1033013738 | K39: 2297.652948 | L39: 191.471079
B40: Customer 8 | D40: 10657916.41 | F40: 10657916.41 | J40: 0.06782306766 | K40: 1508.536292 | L40: 125.7113577
B41: Customer 9 | D41: 18328128.41 | F41: 18328128.41 | J41: 0.1166334812 | K41: 2594.188752 | L41: 216.182396
B42: Customer 10 | D42: 12899684.99 | F42: 12899684.99 | J42: 0.08208885999 | K42: 1825.839331 | L42: 152.1532775
B43: Customer 11 | D43: 9492312.34 | F43: 9492312.34 | J43: 0.06040559124 | K43: 1343.555073 | L43: 111.9629227
B44: Total | D44: =SUM(D33:D43) -> 157142942.3 | E44: =SUM(E33:E43) -> 17289922.8 | F44: =SUM(F33:F43) -> 139853019.5 | G44: =SUM(G33:G39) -> 0 | H44: 0 | I44: 0 | J44: =SUM(J33:J43) -> 1 | K44: =SUM(K33:K43) -> 22242.23032 | L44: =SUM(L33:L43) -> 1853.519193

Sheet 7B. CBR Allocation_new Class B
A1: Back to Index
B2: INCENTIVE REGULATION MODEL FOR 2018 FILERS
B12: This tab allocates the CBR-Class B balance to former Class A customers who contributed to the current CBR-Class B balance once switched to Class B customers. The tables below calculate specific amounts for each customer who made the transition. Consistent with both decisions for 2016 rates and EDDVAR, distributors are generally expected to settle the amount through 12 equal adjustments to bills. A one-time settlement is acceptable if the affected customer has expressed a clear preference for this approach. (see Filing Requirements section 3.2.5.2)
B14: Year of Group 1 Account Balance Last Disposed | C14: 2014
B16: Allocation of total Non-RPP consumption (kWh) between Class B and New Class B (Former Class A) customers
D17: Total | E17: 2016 | F17: 2015 | G17: 2014 | H17: 2013 | I17: 2012
B18: Total Class B Consumption for Years Since Last Disposition (Non-RPP consumption LESS WMP and Class A) | C18: A | D18: =SUM(E18:I18) -> 14206731592 | E18: ='7A. CBR Allocation_Class A'!E18 -> 8176902767 | F18: ='7A. CBR Allocation_Class A'!F18 -> 6029828825
B19: New Class B Customer(s)' Consumption | C19: B | D19: =SUM(E19:I19) -> 3272005.29 | E19: =E45 -> 3272005.29 | F19: =F45 -> 0 | G19: =G45 -> 0 | H19: =H45 -> 0 | I19: =I45 -> 0
B20: Portion of Consumption of New Class B Customers | C20: C=B/A | D20: =IFERROR(+D19/D18,0) -> 0.0002303137262
B23: Allocation of Total CBR-Class B Balance $
B25: Total CBR-Calss B Balance adjusted for Class A | C25: D | D25: ='7. CBR Calculation'!C17 -> 2010840.522
B26: New Class B Customer(s)' Former Class A Portion of CBR-Class B Balance attributable to Class B | C26: E=C*D | D26: =+D20*D25 -> 463.1241734
B27: New Class A Customer(s)' Former Class B Portion of CBR-Class B Balance | C27: F=Sheet 6A | D27: ='7A. CBR Allocation_Class A'!D26 -> 22242.23032
B28: CBR-Class B Balance to be disposed to Current Class B Customers | C28: G=D-E-F | D28: =+D25-D26-D27 -> 1988135.167 | E28: Input into Sheet 7. CBR Calculation | O28: s
B30: Allocation of CBR-Class B Balances to Former Class A Customers
B32: # of Former Class B customer(s) | E32: 1 | F32: 0
B33: Customer | D33: Total Metered kWh Consumption for each new Class B customer for the period after becoming Class B | E33: Metered kWh Consumption for each new Class B customer for the period after becoming Class B in 2016 | J33: % of kWh | K33: Customer specific CBR-Class B allocation for the period after becoming Class B | L33: Monthly Equal Payments
B34: Customer 1 | D34: =SUM(E34:I34) -> 3272005.29 | E34: 3272005.29 | F34: 0 | J34: =IFERROR(+D34/$D$45,0) -> 1 | K34: =+J34*$D$26 -> 463.1241734 | L34: =+K34/12 -> 38.59368112
J35: 0 | K35: =+J35*$D$26 -> 0 | L35: =+K35/12 -> 0
J36: 0 | K36: 0 | L36: 0
J37: 0 | K37: 0 | L37: 0
J38: 0 | K38: 0 | L38: 0
J39: 0 | K39: 0 | L39: 0
J40: 0 | K40: 0 | L40: 0
J41: 0 | K41: 0 | L41: 0
J42: 0 | K42: 0 | L42: 0
J43: 0 | K43: 0 | L43: 0
J44: 0 | K44: 0 | L44: 0
B45: Total | D45: =SUM(D34:D44) -> 3272005.29 | E45: =SUM(E34:E44) -> 3272005.29 | F45: =SUM(F34:F44) -> 0 | G45: =SUM(G34:G40) -> 0 | H45: 0 | I45: 0 | J45: =SUM(J34:J44) -> 1 | K45: =SUM(K34:K44) -> 463.1241734

Sheet 8. Calculation of Def-Var RR
A1: Back to Index
B2: INCENTIVE REGULATION MODEL FOR 2018 FILERS
B11: Input required at cell D13 only. This workshseet calculates rate riders related to the Deferral/Variance Account Disposition (if applicable) and rate riders for Account 1568. Rate Riders will not be generated for the microFIT class.
B12: Default Rate Rider Recovery Period (in months) | D12: 12
B13: Proposed Rate Rider Recovery Period (in months) | D13: 12 | E13: =IF(D13>0, "Rate Rider Recovery to be used below", "If no rate rider recovery period is proposed then the default recovery period of 12 months will be used") -> Rate Rider Recovery to be used below
D15: Total Metered kWh | E15: Metered kW or kVA | F15: Total Metered kWh less WMP consumption | G15: Total Metered kW less WMP consumption | H15: Allocation of Group 1 Account Balances to All Classes 2 | I15: Allocation of Group 1 Account Balances to Non-WMP Classes Only (if Applicable) 2 | J15: Deferral/Variance Account Rate Rider 2 | K15: Deferral/Variance Account Rate Rider for Non-WMP (if applicable) 2 | L15: Account 1568 Rate Rider | Q15: Account 1568 Fixed RR
B16: Rate Class | C16: Unit | M16: Revenue Reconciliation: | O16: Revenue Reconcilation 1 | Q16: Fixed RR
B17: ='4. Billing Det. for Def-Var'!B17 -> RESIDENTIAL SERVICE CLASSIFICATION | C17: ='4. Billing Det. for Def-Var'!C17 -> kWh | D17: ='4. Billing Det. for Def-Var'!D17 -> 2770663827 | E17: ='4. Billing Det. for Def-Var'!E17 -> 0 | F17: ='4. Billing Det. for Def-Var'!J17 -> 2770663827 | G17: ='4. Billing Det. for Def-Var'!K17 -> 0 | H17: =SUM('5. Allocating Def-Var Balances'!G16:V16)-I17 -> -8357466.95 | J17: =IF(ISERROR(H17/D17),0,IF(OR(ISBLANK(D$13), OR(D$13=0, D$13="")), H17/D17/(D$12/12), H17/D17/(D$13/12))) -> -0.003016413203 | K17: =IF(ISERROR(I17/F17),0,IF(OR(ISBLANK(D$13), OR(D$13=0, D$13="")), I17/F17/(D$12/12), I17/F17/(D$13/12))) -> 0 | L17: =ROUND(IF(ISERROR('4. Billing Det. for Def-Var'!T17/D17), 0, IF(OR(ISBLANK(D$13), OR(D$13=0, D$13="")), ('4. Billing Det. for Def-Var'!T17/D17)/(D$12/12), ('4. Billing Det. for Def-Var'!T17/D17)/(D$13/12))),4) -> 0 | M17: =J17*D17 -> -8357466.95 | N17: =K17*F17 -> 0 | Q17: ='5. Allocating Def-Var Balances'!W16/'4. Billing Det. for Def-Var'!U17 -> 0.01245506024
B18: ='4. Billing Det. for Def-Var'!B18 -> GENERAL SERVICE LESS THAN 50 kW SERVICE CLASSIFICATION | C18: ='4. Billing Det. for Def-Var'!C18 -> kWh | D18: ='4. Billing Det. for Def-Var'!D18 -> 1035123196 | E18: ='4. Billing Det. for Def-Var'!E18 -> 0 | F18: ='4. Billing Det. for Def-Var'!J18 -> 1035123196 | G18: ='4. Billing Det. for Def-Var'!K18 -> 0 | H18: =SUM('5. Allocating Def-Var Balances'!G17:V17)-I18 -> -3060104.343 | J18: =IF(ISERROR(H18/D18),0,IF(OR(ISBLANK(D$13), OR(D$13=0, D$13="")), H18/D18/(D$12/12), H18/D18/(D$13/12))) -> -0.002956270669 | K18: =IF(ISERROR(I18/F18),0,IF(OR(ISBLANK(D$13), OR(D$13=0, D$13="")), I18/F18/(D$12/12), I18/F18/(D$13/12))) -> 0 | L18: =ROUND(IF(ISERROR('4. Billing Det. for Def-Var'!T18/D18), 0, IF(OR(ISBLANK(D$13), OR(D$13=0, D$13="")), ('4. Billing Det. for Def-Var'!T18/D18)/(D$12/12), ('4. Billing Det. for Def-Var'!T18/D18)/(D$13/12))),4) -> 0.0009 | M18: =J18*D18 -> -3060104.343 | N18: =K18*F18 -> 0
B19: ='4. Billing Det. for Def-Var'!B19 -> GENERAL SERVICE 500 to 4,999 kW SERVICE CLASSIFICATION | C19: ='4. Billing Det. for Def-Var'!C19 -> kW | D19: ='4. Billing Det. for Def-Var'!D19 -> 4608279659 | E19: ='4. Billing Det. for Def-Var'!E19 -> 12138626.27 | F19: ='4. Billing Det. for Def-Var'!J19 -> 4577906269 | G19: ='4. Billing Det. for Def-Var'!K19 -> 12081588.27 | H19: =SUM('5. Allocating Def-Var Balances'!G18:V18)-I19 -> 222931.9469 | I19: ='5. Allocating Def-Var Balances'!I18+'5. Allocating Def-Var Balances'!N18 -> -13733170.12 | J19: =IF(ISERROR(H19/E19),0,IF(OR(ISBLANK(D$13), OR(D$13=0, D$13="")), H19/E19/(D$12/12), H19/E19/(D$13/12))) -> 0.01836550051 | K19: =IF(ISERROR(I19/G19),0,IF(OR(ISBLANK(D13), OR(D13=0, D13="")), I19/G19/(D12/12), I19/G19/(D13/12))) -> -1.136702378 | L19: =ROUND(IF(ISERROR('4. Billing Det. for Def-Var'!T19/E19), 0, IF(OR(ISBLANK(D13), OR(D13=0, D13="")), ('4. Billing Det. for Def-Var'!T19/E19)/(D12/12), ('4. Billing Det. for Def-Var'!T19/E19)/(D13/12))),4) -> 0.0796 | M19: =J19*E19 -> 222931.9469 | N19: =K19*G19 -> -13733170.12
B20: ='4. Billing Det. for Def-Var'!B20 -> LARGE USE SERVICE CLASSIFICATION | C20: ='4. Billing Det. for Def-Var'!C20 -> kW | D20: ='4. Billing Det. for Def-Var'!D20 -> 67734070.28 | E20: ='4. Billing Det. for Def-Var'!E20 -> 149959.48 | F20: ='4. Billing Det. for Def-Var'!J20 -> 67734070.28 | G20: ='4. Billing Det. for Def-Var'!K20 -> 149959.48 | H20: =SUM('5. Allocating Def-Var Balances'!G19:V19)-I20 -> -198465.2921 | J20: =IF(ISERROR(H20/E20),0,IF(OR(ISBLANK(D$13), OR(D$13=0, D$13="")), H20/E20/(D$12/12), H20/E20/(D$13/12))) -> -1.323459458 | K20: =IF(ISERROR(I20/G20),0,IF(OR(ISBLANK(D14), OR(D14=0, D14="")), I20/G20/(D13/12), I20/G20/(D14/12))) -> 0 | L20: =ROUND(IF(ISERROR('4. Billing Det. for Def-Var'!T20/E20), 0, IF(OR(ISBLANK(D13), OR(D13=0, D13="")), ('4. Billing Det. for Def-Var'!T20/E20)/(D12/12), ('4. Billing Det. for Def-Var'!T20/E20)/(D13/12))),4) -> -0.0723 | M20: =J20*E20 -> -198465.2921 | N20: =K20*G20 -> 0
B21: ='4. Billing Det. for Def-Var'!B21 -> UNMETERED SCATTERED LOAD SERVICE CLASSIFICATION | C21: ='4. Billing Det. for Def-Var'!C21 -> kWh | D21: ='4. Billing Det. for Def-Var'!D21 -> 13630753.27 | E21: ='4. Billing Det. for Def-Var'!E21 -> 0 | F21: ='4. Billing Det. for Def-Var'!J21 -> 13630753.27 | G21: ='4. Billing Det. for Def-Var'!K21 -> 0 | H21: =SUM('5. Allocating Def-Var Balances'!G20:V20)-I21 -> -39944.22928 | J21: =IF(ISERROR(H21/D21),0,IF(OR(ISBLANK(D$13), OR(D$13=0, D$13="")), H21/D21/(D$12/12), H21/D21/(D$13/12))) -> -0.002930449146 | K21: =IF(ISERROR(I21/F21),0,IF(OR(ISBLANK(D$13), OR(D$13=0, D$13="")), I21/F21/(D$12/12), I21/F21/(D$13/12))) -> 0 | L21: =ROUND(IF(ISERROR('4. Billing Det. for Def-Var'!T21/D21), 0, IF(OR(ISBLANK(D$13), OR(D$13=0, D$13="")), ('4. Billing Det. for Def-Var'!T21/D21)/(D$12/12), ('4. Billing Det. for Def-Var'!T21/D21)/(D$13/12))),4) -> -0.0005 | M21: =J21*D21 -> -39944.22928 | N21: =K21*F21 -> 0
B22: ='4. Billing Det. for Def-Var'!B22 -> STANDBY POWER SERVICE CLASSIFICATION | C22: ='4. Billing Det. for Def-Var'!C22 -> kW | D22: ='4. Billing Det. for Def-Var'!D22 -> 0 | E22: ='4. Billing Det. for Def-Var'!E22 -> 0 | F22: ='4. Billing Det. for Def-Var'!J22 -> 0 | G22: ='4. Billing Det. for Def-Var'!K22 -> 0 | H22: =SUM('5. Allocating Def-Var Balances'!G21:V21)-I22 -> 0 | J22: =IF(ISERROR(H22/D22),0,IF(OR(ISBLANK(D18), OR(D18=0, D18="")), H22/D22/(D17/12), H22/D22/(D18/12))) -> 0 | K22: =IF(ISERROR(I22/F22),0,IF(OR(ISBLANK(D18), OR(D18=0, D18="")), I22/F22/(D17/12), I22/F22/(D18/12))) -> 0 | L22: =IF(ISERROR('4. Billing Det. for Def-Var'!T22/E22), 0, IF(OR(ISBLANK(D13), OR(D13=0, D13="")), ('4. Billing Det. for Def-Var'!T22/E22)/(D12/12), ('4. Billing Det. for Def-Var'!T22/E22)/(D13/12))) -> 0 | M22: =J22*E22 -> 0 | N22: =K22*G22 -> 0
B23: ='4. Billing Det. for Def-Var'!B23 -> SENTINEL LIGHTING SERVICE CLASSIFICATION | C23: ='4. Billing Det. for Def-Var'!C23 -> kW | D23: ='4. Billing Det. for Def-Var'!D23 -> 314901.3 | E23: ='4. Billing Det. for Def-Var'!E23 -> 858 | F23: ='4. Billing Det. for Def-Var'!J23 -> 314901.3 | G23: ='4. Billing Det. for Def-Var'!K23 -> 858 | H23: =SUM('5. Allocating Def-Var Balances'!G22:V22)-I23 -> -921.5242464 | J23: =IF(ISERROR(H23/E23),0,IF(OR(ISBLANK(D$13), OR(D$13=0, D$13="")), H23/E23/(D$12/12), H23/E23/(D$13/12))) -> -1.074037583 | K23: =IF(ISERROR(I23/G23),0,IF(OR(ISBLANK(D17), OR(D17=0, D17="")), I23/G23/(D16/12), I23/G23/(D17/12))) -> 0 | L23: =ROUND(IF(ISERROR('4. Billing Det. for Def-Var'!T23/E23), 0, IF(OR(ISBLANK(D13), OR(D13=0, D13="")), ('4. Billing Det. for Def-Var'!T23/E23)/(D12/12), ('4. Billing Det. for Def-Var'!T23/E23)/(D13/12))),4) -> -0.385 | M23: =J23*E23 -> -921.5242464 | N23: =K23*G23 -> 0
B24: ='4. Billing Det. for Def-Var'!B24 -> STREET LIGHTING SERVICE CLASSIFICATION | C24: ='4. Billing Det. for Def-Var'!C24 -> kW | D24: ='4. Billing Det. for Def-Var'!D24 -> 52846039.32 | E24: ='4. Billing Det. for Def-Var'!E24 -> 148246.61 | F24: ='4. Billing Det. for Def-Var'!J24 -> 52846039.32 | G24: ='4. Billing Det. for Def-Var'!K24 -> 148246.61 | H24: =SUM('5. Allocating Def-Var Balances'!G23:V23)-I24 -> -155934.3317 | J24: =IF(ISERROR(H24/E24),0,IF(OR(ISBLANK(D$13), OR(D$13=0, D$13="")), H24/E24/(D$12/12), H24/E24/(D$13/12))) -> -1.051857656 | K24: =IF(ISERROR(I24/G24),0,IF(OR(ISBLANK(D18), OR(D18=0, D18="")), I24/G24/(D17/12), I24/G24/(D18/12))) -> 0 | L24: =ROUND(IF(ISERROR('4. Billing Det. for Def-Var'!T24/E24), 0, IF(OR(ISBLANK(D13), OR(D13=0, D13="")), ('4. Billing Det. for Def-Var'!T24/E24)/(D12/12), ('4. Billing Det. for Def-Var'!T24/E24)/(D13/12))),4) -> 0.5854 | M24: =J24*E24 -> -155934.3317 | N24: =K24*G24 -> 0
B25: ='4. Billing Det. for Def-Var'!B25 -> 0
M27: =SUM(M17:M26) -> -11589904.72 | N27: =SUM(N17:N26) -> -13733170.12 | O27: =SUM(M27:N27) -> -25323074.84
O28: =O27-'3. Continuity Schedule'!CD40+'7B. CBR Allocation_new Class B'!D25 -> -0.02034649765
B30: 1 When calculating the revenue reconciliation for distributors with Class A customers, the balances of sub-account 1580-CBR Class A and B will not be taken into consideration since the rate riders, if any, are calculated outside of the model.
B31: 2 Only for rate classes with WMP customers are the Deferral/Variance Account Rate Riders for Non-WMP (column H and J) calculated separately. For all rate classes without WMP customers, balances in account 1580 and 1588 are included in column H and disposed through a combined Deferral/Variance Account and Rate Rider.

Sheet 9. STS-Tax Change
A1: Back to Index | U1: Tax Rates | V1: Effective
B2: INCENTIVE REGULATION MODEL FOR 2018 FILERS | U2: Federal & Provincial | V2: 2016-01-01
U3: As of June 20, 2012
U5: Federal income tax | V5: 0.38
U6: General corporate rate | V6: -0.1
U7: Federal tax abatement | V7: =SUM(V5:V6) -> 0.28
U8: Adjusted federal rate | V8: -0.13
U9: Rate reduction | V9: =V7+V8 -> 0.15
U10: Ontario income tax | V10: 0.115
U12: Combined federal and Ontario | V12: =V9+V10 -> 0.265
B13: Summary - Sharing of Tax Change Forecast Amounts
U14: Federal & Ontario Small Business
B15: ="For the " & '1. Information Sheet'!G32 & " year, enter any Tax Credits from the Cost of Service Tax Calculation (Positive #)" -> For the 2017 year, enter any Tax Credits from the Cost of Service Tax Calculation (Positive #) | U15: Federal small business threshold | V15: 500000
U16: Ontario Small Business Threshold | V16: 500000
B18: 1. Tax Related Amounts Forecast from Capital Tax Rate Changes | M18: ='1. Information Sheet'!G32 -> 2017 | O18: =M18+1 -> 2018 | U18: Federal small business rate | V18: 0.105
B19: Taxable Capital (if you are not claiming capital tax, please enter your OEB-Approved Rate Base) | O19: =M19 -> 0
U20: Ontario small business rate | V20: 0.045
B21: Deduction from taxable capital up to $15,000,000 | O21: =M21 -> 0
B23: Net Taxable Capital | M23: =M19-M21 -> 0 | O23: =O19-O21 -> 0
B25: Rate | O25: 0 | U25: Ontario Tax Rate (Maximum 11.5%)
U26: Federal tax rate (Maximum 15%)
B27: Ontario Capital Tax (Deductible, not grossed-up) | M27: =IF(M23>0, M23*M25, 0)*181/365 -> 0 | O27: 0 | U27: Combined tax rate (Maximum 26.5%)
B29: 2. Tax Related Amounts Forecast from lncome Tax Rate Changes
B30: Regulatory Taxable Income | O30: =M30 -> 0
B32: Corporate Tax Rate | O32: =IF(ratebase>15000000, 26.5%, IF(ratebase<10000000, 15%, 15%+11.5%*((ratebase-10000000)/5000000))) -> 0.15
B34: Tax Impact | M34: =M30*M32-M15 -> 0 | O34: =O30*O32-M15 -> 0
B36: Grossed-up Tax Amount | M36: =M34/(1-M32) -> 0 | O36: =O34/(1-O32) -> 0
B38: Tax Related Amounts Forecast from Capital Tax Rate Changes | M38: =M27 -> 0 | O38: =O27 -> 0
B40: Tax Related Amounts Forecast from lncome Tax Rate Changes | M40: =M36 -> 0 | O40: =O36 -> 0
B42: Total Tax Related Amounts | M42: =SUM(M40,M38) -> 0 | O42: =SUM(O40,O38) -> 0
B44: Incremental Tax Savings | O44: =O42-M42 -> 0
B46: Sharing of Tax Amount (50%) | O46: =0.5*O44 -> 0

Sheet 10. Shared Tax - RR
A1: Back to Index
B2: INCENTIVE REGULATION MODEL FOR 2018 FILERS
B12: Calculation of Rebased Revenue Requirement and Allocation of Tax Sharing Amount. Enter data from the last OEB-Approved Cost of Service application in columns D through I.
B13: As per Chapter 3 Filing Requirements, shared tax rate riders are based on a 1 year disposition.
B15: Rate Class | D15: Re-based Billed Customers or Connections | E15: Re-based Billed kWh | F15: Re-based Billed kW | G15: Re-based Service Charge | H15: Re-based Distribution Volumetric Rate kWh | I15: Re-based Distribution Volumetric Rate kW | J15: Service Charge Revenue | K15: Distribution Volumetric Rate Revenue kWh | L15: Distribution Volumetric Rate Revenue kW | M15: Revenue Requirement from Rates | N15: Service Charge % Revenue | O15: Distribution Volumetric Rate % Revenue kWh | P15: Distribution Volumetric Rate % Revenue kW | Q15: Total % Revenue
D16: A | E16: B | F16: C | G16: D | H16: E | I16: F | J16: G = A * D *12 | K16: H = B * E | L16: I = C * F | M16: J = G + H + I | N16: K = G / J | O16: L = H / J | P16: M = I / J | Q16: N = J / R
B17: ='4. Billing Det. for Def-Var'!B17 -> RESIDENTIAL SERVICE CLASSIFICATION | C17: ='4. Billing Det. for Def-Var'!C17 -> kWh | D17: 331460.9167 | E17: 2689802037 | F17: 0 | G17: 18.51 | H17: 0.013 | J17: =G17*D17*12 -> 73624098.81 | K17: =E17*H17 -> 34967426.48 | L17: =F17*I17 -> 0 | M17: =J17+K17+L17 -> 108591525.3 | N17: =IF(ISERROR(J17/M17),0,J17/M17) -> 0.6779912025 | O17: =IF(ISERROR(K17/M17),0,K17/M17) -> 0.3220087975 | P17: =IF(ISERROR(L17/M17),0,L17/M17) -> 0 | Q17: =IF(ISERROR(M17/M30),0,M17/M30) -> 0.5380729566
B18: ='4. Billing Det. for Def-Var'!B18 -> GENERAL SERVICE LESS THAN 50 kW SERVICE CLASSIFICATION | C18: ='4. Billing Det. for Def-Var'!C18 -> kWh | D18: 32775.08333 | E18: 1031991524 | F18: 0 | G18: 28.74 | H18: 0.0183 | J18: 11303470.74 | K18: 18885444.89 | L18: 0 | M18: 30188915.63 | N18: 0.3744245365 | O18: 0.6255754635 | P18: 0 | Q18: =IF(ISERROR(M18/M30),0,M18/M30) -> 0.1495866187
B19: ='4. Billing Det. for Def-Var'!B19 -> GENERAL SERVICE 500 to 4,999 kW SERVICE CLASSIFICATION | C19: ='4. Billing Det. for Def-Var'!C19 -> kW | D19: 5080.583333 | E19: 4566530904 | F19: 12192631.56 | G19: 140.97 | I19: 4.2037 | J19: 8594517.99 | K19: 0 | L19: 51254165.3 | M19: 59848683.29 | N19: 0.1436041282 | O19: 0 | P19: 0.8563958718 | Q19: =IF(ISERROR(M19/M30),0,M19/M30) -> 0.2965512997
B20: ='4. Billing Det. for Def-Var'!B20 -> LARGE USE SERVICE CLASSIFICATION | C20: ='4. Billing Det. for Def-Var'!C20 -> kW | D20: 2 | E20: 75964677.2 | F20: 149678.9801 | G20: 6073.68 | I20: 2.2421 | J20: 145768.32 | K20: 0 | L20: 335595.2413 | M20: 481363.5613 | N20: 0.3028237526 | O20: 0 | P20: 0.6971762474 | Q20: =IF(ISERROR(M20/M30),0,M20/M30) -> 0.002385165085
B21: ='4. Billing Det. for Def-Var'!B21 -> UNMETERED SCATTERED LOAD SERVICE CLASSIFICATION | C21: ='4. Billing Det. for Def-Var'!C21 -> kWh | D21: 3043.583333 | E21: 14542413.3 | G21: 8.6 | H21: 0.0195 | J21: 314097.8 | K21: 283577.0594 | L21: 0 | M21: 597674.8594 | N21: 0.5255328965 | O21: 0.4744671035 | P21: 0 | Q21: =IF(ISERROR(M21/M30),0,M21/M30) -> 0.002961489654
B22: ='4. Billing Det. for Def-Var'!B22 -> STANDBY POWER SERVICE CLASSIFICATION | C22: ='4. Billing Det. for Def-Var'!C22 -> kW | I22: 2.8081 | J22: 0 | K22: 0 | L22: 0 | M22: 0 | N22: 0 | O22: 0 | P22: 0 | Q22: =IF(ISERROR(M22/M30),0,M22/M30) -> 0
B23: ='4. Billing Det. for Def-Var'!B23 -> SENTINEL LIGHTING SERVICE CLASSIFICATION | C23: ='4. Billing Det. for Def-Var'!C23 -> kW | D23: 207 | E23: 377900.014 | F23: 974.7851233 | G23: 4.19 | I23: 9.8694 | J23: 10407.96 | K23: 0 | L23: 9620.544296 | M23: 20028.5043 | N23: 0.5196573766 | O23: 0 | P23: 0.4803426234 | Q23: =IF(ISERROR(M23/M30),0,M23/M30) -> 9.924159822e-05
B24: ='4. Billing Det. for Def-Var'!B24 -> STREET LIGHTING SERVICE CLASSIFICATION | C24: ='4. Billing Det. for Def-Var'!C24 -> kW | D24: 89728.75 | E24: 45603290.64 | F24: 127502.8492 | G24: 1.19 | I24: 6.3222 | J24: 1281326.55 | K24: 0 | L24: 806098.5135 | M24: 2087425.064 | N24: 0.6138311609 | O24: 0 | P24: 0.3861688391 | Q24: =IF(ISERROR(M24/M30),0,M24/M30) -> 0.01034322865
B25: ='4. Billing Det. for Def-Var'!B25 -> 0 | C25: ='4. Billing Det. for Def-Var'!C25 -> 0 | J25: 0 | K25: 0 | L25: 0 | M25: 0 | N25: 0 | O25: 0 | P25: 0 | Q25: =IF(ISERROR(M25/M30),0,M25/M30) -> 0
J26: =G26*D26*12 -> 0 | K26: =E26*H26 -> 0 | L26: =F26*I26 -> 0 | M26: =J26+K26+L26 -> 0 | N26: =IF(ISERROR(J26/M26),0,J26/M26) -> 0 | O26: =IF(ISERROR(K26/M26),0,K26/M26) -> 0 | P26: =IF(ISERROR(L26/M26),0,L26/M26) -> 0 | Q26: =IF(ISERROR(M26/M31),0,M26/M31) -> 0
J27: 0 | K27: 0 | L27: 0 | M27: 0 | N27: 0 | O27: 0 | P27: 0 | Q27: 0
J28: 0 | K28: 0 | L28: 0 | M28: 0 | N28: 0 | O28: 0 | P28: 0 | Q28: 0
J29: 0 | K29: 0 | L29: 0 | M29: 0 | N29: 0 | O29: 0 | P29: 0 | Q29: 0
B30: Total | D30: =SUM(D17:D29) -> 462297.9167 | E30: =SUM(E17:E29) -> 8424812745 | F30: 12470788.18 | J30: =SUM(J17:J29) -> 95273688.17 | K30: =SUM(K17:K29) -> 54136448.42 | L30: 52405479.59 | M30: 201815616.2 | Q30: =SUM(Q17:Q29) -> 1
B33: Rate Class | D33: Total kWh (most recent RRR filing) | E33: Total kW (most recent RRR filing) | F33: Allocation of Tax Savings by Rate Class | G33: Distribution Rate Rider
B34: =B17 -> RESIDENTIAL SERVICE CLASSIFICATION | C34: kWh | D34: ='4. Billing Det. for Def-Var'!D17 -> 2770663827 | E34: ='4. Billing Det. for Def-Var'!E17 -> 0 | F34: =F$48*Q17 -> 0 | G34: =ROUND(F34/'4. Billing Det. for Def-Var'!U17,2) -> 0 | H34: $/Customer | I34: If the allocated tax sharing amount does not produce a rate rider in one or more rate class (except for the Standby rate class), a distributor is required to transfer the entire OEB-approved tax sharing amount into account 1595 for disposition at a later date (see Filing Requirements, Appendix B)
B35: GENERAL SERVICE LESS THAN 50 kW SERVICE CLASSIFICATION | C35: kWh | D35: ='4. Billing Det. for Def-Var'!D18 -> 1035123196 | E35: ='4. Billing Det. for Def-Var'!E18 -> 0 | F35: 0 | G35: =IFERROR(ROUND(IF(E35<>0,F35/E35,F35/D35),4),"") -> 0 | H35: $/kWh
B36: GENERAL SERVICE 500 to 4,999 kW SERVICE CLASSIFICATION | C36: kW | D36: ='4. Billing Det. for Def-Var'!D19 -> 4608279659 | E36: ='4. Billing Det. for Def-Var'!E19 -> 12138626.27 | F36: 0 | G36: =IFERROR(ROUND(IF(E36<>0,F36/E36,F36/D36),4),"") -> 0 | H36: $/kW
B37: LARGE USE SERVICE CLASSIFICATION | C37: kW | D37: ='4. Billing Det. for Def-Var'!D20 -> 67734070.28 | E37: ='4. Billing Det. for Def-Var'!E20 -> 149959.48 | F37: 0 | G37: 0 | H37: $/kW
B38: UNMETERED SCATTERED LOAD SERVICE CLASSIFICATION | C38: kWh | D38: ='4. Billing Det. for Def-Var'!D21 -> 13630753.27 | E38: ='4. Billing Det. for Def-Var'!E21 -> 0 | F38: 0 | G38: 0 | H38: $/kWh
B39: STANDBY POWER SERVICE CLASSIFICATION | C39: kW | D39: ='4. Billing Det. for Def-Var'!D22 -> 0 | E39: ='4. Billing Det. for Def-Var'!E22 -> 0 | F39: 0 | H39: $/kWh
B40: SENTINEL LIGHTING SERVICE CLASSIFICATION | C40: kW | D40: ='4. Billing Det. for Def-Var'!D23 -> 314901.3 | E40: ='4. Billing Det. for Def-Var'!E23 -> 858 | F40: 0 | G40: 0 | H40: $/kW
B41: STREET LIGHTING SERVICE CLASSIFICATION | C41: kW | D41: ='4. Billing Det. for Def-Var'!D24 -> 52846039.32 | E41: ='4. Billing Det. for Def-Var'!E24 -> 148246.61 | F41: 0 | G41: 0 | H41: $/kW
B42: 0 | C42: 0 | D42: ='4. Billing Det. for Def-Var'!D25 -> 0 | E42: ='4. Billing Det. for Def-Var'!E25 -> 0 | F42: 0 | G42: =IFERROR(ROUND(IF(E42<>"",F42/E42,F42/D42),4),"") -> 
F43: =F$48*Q30 -> 0
F44: =F$48*Q31 -> 0
F45: 0
F46: 0
D48: =SUM(D34:D47) -> 8548592446 | E48: =SUM(E34:E47) -> 12437690.36 | F48: =ROUND('9. STS-Tax Change'!O46,2) -> 0

Sheet 11. RTSR - Current Rates
A1: Back to Index | BA1: 1
B2: INCENTIVE REGULATION MODEL FOR 2018 FILERS
B13: Columns F and G must match the data from the most recent RRR filing. Rates have been imported from Tab 2. As well, the Loss Factor has been imported from "Model Specs" tab. If the data needs to be modified, please make the necessary adjustments and note the changes in your manager's summary.
B15: Rate Class | C15: Rate Description | D15: Unit | E15: Rate | F15: Non-Loss Adjusted Metered kWh | G15: Non-Loss Adjusted Metered kW | H15: Applicable Loss Factor | I15: Loss Adjusted Billed kWh
A16: R_TN | B16: Residential Service Classification | C16: Retail Transmission Rate – Network Service Rate | D16: $/kWh | E16: =VLOOKUP(A16,RATES,4,FALSE) -> 0.0082 | F16: ='4. Billing Det. for Def-Var'!D17 -> 2770663827 | G16: 0 | H16: =LLF -> 1.0369 | I16: =F16*H16 -> 2872901322
A17: R_TC | B17: Residential Service Classification | C17: Retail Transmission Rate – Line and Transformation Connection Service Rate | D17: $/kWh | E17: 0.0038 | F17: =F16 -> 2770663827 | G17: 0 | H17: 1.0369 | I17: =F17*H17 -> 2872901322
A18: GSL_TN | B18: General Service Less Than 50 kW Service Classification | C18: Retail Transmission Rate – Network Service Rate | D18: $/kWh | E18: 0.0073 | F18: ='4. Billing Det. for Def-Var'!D18 -> 1035123196 | G18: 0 | H18: 1.0369 | I18: 1073319242
A19: GSL_TC | B19: General Service Less Than 50 kW Service Classification | C19: Retail Transmission Rate – Line and Transformation Connection Service Rate | D19: $/kWh | E19: 0.0033 | F19: =F18 -> 1035123196 | G19: 0 | H19: 1.0369 | I19: 1073319242
A20: GSG_TN | B20: General Service Greater Than 50 kW Service Classification | C20: Retail Transmission Rate – Network Service Rate | D20: $/kW | E20: 2.9268 | F20: ='4. Billing Det. for Def-Var'!D70 -> 2289505114 | G20: ='4. Billing Det. for Def-Var'!E70 -> 6491539.069 | H20: 1.0369 | I20: 2373987853
A21: GSGI_TN | B21: General Service Greater Than 50 kW Service Classification | C21: Retail Transmission Rate – Network Service Rate – Interval Metered | D21: $/kW | E21: 3.0681 | F21: ='4. Billing Det. for Def-Var'!D69 -> 2318951031 | G21: ='4. Billing Det. for Def-Var'!E69 -> 5647087.148 | H21: 1.0369 | I21: 2404520324
A22: GSG_TC | B22: General Service Greater Than 50 kW Service Classification | C22: Retail Transmission Rate – Line and Transformation Connection Service Rate | D22: $/kW | E22: 1.2618 | F22: =F20 -> 2289505114 | G22: =G20 -> 6491539.069 | H22: 1.0369 | I22: 2373987853
A23: GSGI_TC | B23: General Service Greater Than 50 kW Service Classification | C23: Retail Transmission Rate – Line and Transformation Connection Service Rate – Interval Metered | D23: $/kW | E23: 1.3652 | F23: =F21 -> 2318951031 | G23: =G21 -> 5647087.148 | H23: 1.0369 | I23: 2404520324
A24: LU_TN | B24: Large Use Service Classification | C24: Retail Transmission Rate – Network Service Rate | D24: $/kW | E24: 3.5361 | F24: ='4. Billing Det. for Def-Var'!D20 -> 67734070.28 | G24: ='4. Billing Det. for Def-Var'!E20 -> 149959.48 | H24: 1.0145 | I24: 68716214.3
A25: LU_TC | B25: Large Use Service Classification | C25: Retail Transmission Rate – Line and Transformation Connection Service Rate | D25: $/kW | E25: 1.3178 | F25: =F24 -> 67734070.28 | G25: =G24 -> 149959.48 | H25: 1.0145 | I25: 68716214.3
A26: USL_TN | B26: Unmetered Scattered Load Service Classification | C26: Retail Transmission Rate – Network Service Rate | D26: $/kWh | E26: 0.0069 | F26: ='4. Billing Det. for Def-Var'!D21 -> 13630753.27 | G26: 0 | H26: 1.0369 | I26: 14133728.07
A27: USL_TC | B27: Unmetered Scattered Load Service Classification | C27: Retail Transmission Rate – Line and Transformation Connection Service Rate | D27: $/kWh | E27: 0.0035 | F27: =F26 -> 13630753.27 | G27: 0 | H27: 1.0369 | I27: 14133728.07
A28: SEN_TN | B28: Sentinel Lighting Service Classification | C28: Retail Transmission Rate – Network Service Rate | D28: $/kW | E28: 2.2743 | F28: ='4. Billing Det. for Def-Var'!D23 -> 314901.3 | G28: ='4. Billing Det. for Def-Var'!E23 -> 858 | H28: 1.0369 | I28: 326521.158
A29: SEN_TC | B29: Sentinel Lighting Service Classification | C29: Retail Transmission Rate – Line and Transformation Connection Service Rate | D29: $/kW | E29: 0.9336 | F29: =F28 -> 314901.3 | G29: =G28 -> 858 | H29: 1.0369 | I29: 326521.158
A30: SL_TN | B30: Street Lighting Service Classification | C30: Retail Transmission Rate – Network Service Rate | D30: $/kW | E30: 2.9431 | F30: ='4. Billing Det. for Def-Var'!D24 -> 52846039.32 | G30: ='4. Billing Det. for Def-Var'!E24 -> 148246.61 | H30: 1.0369 | I30: 54796058.17
A31: SL_TC | B31: Street Lighting Service Classification | C31: Retail Transmission Rate – Line and Transformation Connection Service Rate | D31: $/kW | E31: 1.352 | F31: =F30 -> 52846039.32 | G31: =G30 -> 148246.61 | H31: 1.0369 | I31: 54796058.17

Sheet 12. RTSR-UTRs & Sub-Tx
A1: Back to Index
B2: INCENTIVE REGULATION MODEL FOR 2018 FILERS
B12: Uniform Transmission Rates | C12: Unit | E12: 2016 | H12: 2017 | J12: 2018
B14: Rate Description | E14: Rate | H14: Rate | J14: Rate
B16: Network Service Rate | C16: kW | E16: 3.66 | H16: 3.66 | J16: 3.61
B18: Line Connection Service Rate | C18: kW | E18: 0.87 | H18: 0.87 | J18: 0.95
B20: Transformation Connection Service Rate | C20: kW | E20: 2.02 | H20: 2.02 | J20: 2.34
B23: Hydro One Sub-Transmission Rates | C23: Unit | E23: 2016 | H23: 2017 | J23: 2018
E24: 2016-01-01 | F24: Feb - Dec 2016 | H24: Jan - Dec 2017
B27: Rate Description | E27: Rate | F27: Rate | H27: Rate | J27: Rate
B29: Network Service Rate | C29: kW | E29: 3.4121 | F29: 3.3396 | H29: 3.1942 | J29: =H29 -> 3.1942
B31: Line Connection Service Rate | C31: kW | E31: 0.7879 | F31: 0.7791 | H31: 0.771 | J31: =H31 -> 0.771
B33: Transformation Connection Service Rate | C33: kW | E33: 1.8018 | F33: 1.7713 | H33: 1.7493 | J33: =H33 -> 1.7493
B35: Both Line and Transformation Connection Service Rate | C35: kW | E35: =SUM(E33,E31) -> 2.5897 | F35: 2.5504 | H35: =SUM(H33,H31) -> 2.5203 | J35: =H35 -> 2.5203
B38: If needed, add extra host here. (I) | C38: Unit | E38: 2016 | H38: 2017 | J38: 2018
B42: Rate Description | E42: Rate | H42: Rate | J42: Rate
B44: Network Service Rate | C44: kW
B46: Line Connection Service Rate | C46: kW
B48: Transformation Connection Service Rate | C48: kW
B50: Both Line and Transformation Connection Service Rate | C50: kW | E50: =F48+F46 -> 0 | H50: =H48+H46 -> 0 | J50: =J48+J46 -> 0
B53: If needed, add extra host here. (II) | C53: Unit | E53: 2016 | H53: 2017 | J53: 2018
B57: Rate Description | E57: Rate | H57: Rate | J57: Rate
B59: Network Service Rate | C59: kW
B61: Line Connection Service Rate | C61: kW
B63: Transformation Connection Service Rate | C63: kW
B65: Both Line and Transformation Connection Service Rate | C65: kW | E65: =F63+F61 -> 0 | H65: =H63+H61 -> 0 | J65: =J63+J61 -> 0
E67: Historical 2016 | H67: Current 2017 | J67: Forecast 2018
B68: Low Voltage Switchgear Credit (if applicable, enter as a negative value) | C68: $

Sheet 13. RTSR-Historic Wholesale
A1: Back to Index
B2: INCENTIVE REGULATION MODEL FOR 2018 FILERS
B13: In the green shaded cells, enter billing detail for wholesale transmission for the same reporting period as the billing determinants on Tab 10. For Hydro One Sub-transmission Rates, if you are charged a combined Line and Transformer connection rate, please ensure that both the Line Connection and Transformation Connection columns are completed. If any of the Hydro One Sub-transmission rates (column E, I and M) are highlighted in orange, please double check the billing data entered in "Units Billed" and "Amount" columns. The highlighted rates do not match the Hydro One Sub-transmission rates approved for that time period. If data has been entered correctly, please provide explanation for the discrepancy in rates.
B16: IESO | D16: Network | H16: Line Connection | L16: Transformation Connection | P16: Total Line
B17: Month | D17: Units Billed | E17: Rate | F17: Amount | H17: Units Billed | I17: Rate | J17: Amount | L17: Units Billed | M17: Rate | N17: Amount | P17: Amount
B19: January | D19: 1103965 | E19: =IF(D19<>0,F19/D19,0) -> 3.66 | F19: 4040511.9 | H19: 1208258 | I19: =IF(H19<>0,J19/H19,0) -> 0.87 | J19: 1051184.46 | L19: 331871 | M19: =IF(L19<>0,N19/L19,0) -> 2.02 | N19: 670379.42 | P19: =J19+N19 -> 1721563.88
B20: February | D20: 1121010 | E20: 3.66 | F20: 4102896.6 | H20: 1228518 | I20: 0.87 | J20: 1068810.66 | L20: 347984 | M20: 2.02 | N20: 702927.68 | P20: 1771738.34
B21: March | D21: 1128506 | E21: 3.66 | F21: 4130331.96 | H21: 1182828 | I21: 0.87 | J21: 1029060.36 | L21: 340155 | M21: 2.02 | N21: 687113.1 | P21: 1716173.46
B22: April | D22: 999526 | E22: 3.66 | F22: 3658265.16 | H22: 1128514.69 | I22: 0.87 | J22: 981807.78 | L22: 301437 | M22: 2.02 | N22: 608902.74 | P22: 1590710.52
B23: May | D23: 1231944 | E23: 3.66 | F23: 4508915.04 | H23: 1374680 | I23: 0.87 | J23: 1195971.6 | L23: 373175 | M23: 2.02 | N23: 753813.5 | P23: 1949785.1
B24: June | D24: 1535794 | E24: 3.66 | F24: 5621006.04 | H24: 1628403 | I24: 0.87 | J24: 1416710.61 | L24: 493828 | M24: 2.02 | N24: 997532.56 | P24: 2414243.17
B25: July | D25: 1556405 | E25: 3.66 | F25: 5696442.3 | H25: 1642181 | I25: 0.87 | J25: 1428697.47 | L25: 460646 | M25: 2.02 | N25: 930504.92 | P25: 2359202.39
B26: August | D26: 1567922 | E26: 3.66 | F26: 5738594.52 | H26: 1675437 | I26: 0.87 | J26: 1457630.19 | L26: 458434 | M26: 2.02 | N26: 926036.68 | P26: 2383666.87
B27: September | D27: 1590879 | E27: 3.66 | F27: 5822617.14 | H27: 1637327 | I27: 0.87 | J27: 1424474.49 | L27: 448575 | M27: 2.02 | N27: 906121.5 | P27: 2330595.99
B28: October | D28: 1018780 | E28: 3.66 | F28: 3728734.8 | H28: 1130547 | I28: 0.87 | J28: 983575.89 | L28: 292774 | M28: 2.02 | N28: 591403.48 | P28: 1574979.37
B29: November | D29: 1049217 | E29: 3.66 | F29: 3840134.22 | H29: 1143767 | I29: 0.87 | J29: 995077.29 | L29: 313982 | M29: 2.02 | N29: 634243.64 | P29: 1629320.93
B30: December | D30: 1082939 | E30: 3.66 | F30: 3963556.74 | H30: 1153228 | I30: 0.87 | J30: 1003308.36 | L30: 324636 | M30: 2.02 | N30: 655764.72 | P30: 1659073.08
B32: Total | D32: =SUM(D19:D30) -> 14986887 | E32: =IF(D32<>0,F32/D32,0) -> 3.66 | F32: =SUM(F19:F30) -> 54852006.42 | H32: =SUM(H19:H30) -> 16133688.69 | I32: =IF(H32<>0,J32/H32,0) -> 0.87 | J32: =SUM(J19:J30) -> 14036309.16 | L32: =SUM(L19:L30) -> 4487497 | M32: =IF(L32<>0,N32/L32,0) -> 2.02 | N32: =SUM(N19:N30) -> 9064743.94 | P32: =SUM(P19:P30) -> 23101053.1
B34: Hydro One | D34: Network | H34: Line Connection | L34: Transformation Connection | P34: Total Line
B36: Month | D36: Units Billed | E36: Rate | F36: Amount | H36: Units Billed | I36: Rate | J36: Amount | L36: Units Billed | M36: Rate | N36: Amount | P36: Amount
B38: January | D38: 197814 | E38: =IF(D38<>0,F38/D38,0) -> 3.412100003 | F38: 674961.15 | H38: 201119.06 | I38: =IF(H38<>0,J38/H38,0) -> 0.7879000628 | J38: 158461.72 | L38: 201119.06 | M38: =IF(L38<>0,N38/L38,0) -> 1.801800088 | N38: 362376.34 | P38: =J38+N38 -> 520838.06
B39: February | D39: 192862.72 | E39: =IF(D39<>0,F39/D39,0) -> 3.339600261 | F39: 644084.39 | H39: 193046.86 | I39: 0.7791000071 | J39: 150402.81 | L39: 193046.86 | M39: 1.771300036 | N39: 341943.91 | P39: =J39+N39 -> 492346.72
B40: March | D40: 186856.06 | E40: 3.339599904 | F40: 624024.48 | H40: 187779.31 | I40: 0.7790999445 | J40: 146298.85 | L40: 187779.31 | M40: 1.771299884 | N40: 332613.47 | P40: 478912.32
B41: April | D41: 173252.67 | E41: 3.339599788 | F41: 578594.58 | H41: 177299.52 | I41: 0.7790999096 | J41: 138134.04 | L41: 177299.52 | M41: 1.771299776 | N41: 314050.6 | P41: 452184.64
B42: May | D42: 229685.56 | E42: 3.33959993 | F42: 767057.88 | H42: 237621.36 | I42: 0.7791000355 | J42: 185130.81 | L42: 237621.36 | M42: 1.771300021 | N42: 420898.72 | P42: 606029.53
B43: June | D43: 274117.87 | E43: 3.339599786 | F43: 915443.98 | H43: 274117.87 | I43: 0.7790999543 | J43: 213565.22 | L43: 274117.87 | M43: 1.771299879 | N43: 485544.95 | P43: 699110.17
B44: July | D44: 272076.16 | E44: 3.339600243 | F44: 908625.61 | H44: 272076.16 | I44: 0.7791000505 | J44: 211974.55 | L44: 272076.16 | M44: 1.771300065 | N44: 481928.52 | P44: 693903.07
B45: August | D45: 275683.19 | E45: 3.339599632 | F45: 920671.48 | H45: 275683.19 | I45: 0.7790999517 | J45: 214784.76 | L45: 275683.19 | M45: 1.771299875 | N45: 488317.6 | P45: 703102.36
B46: September | D46: 272684.15 | E46: 3.33960012 | F46: 910656.02 | H46: 272684.15 | I46: 0.779100032 | J46: 212448.23 | L46: 272684.15 | M46: 1.771300092 | N46: 483005.46 | P46: 695453.69
B47: October | D47: 205141.78 | E47: 3.33959991 | F47: 685091.47 | H47: 206258.93 | I47: 0.779100037 | J47: 160696.34 | L47: 206258.93 | M47: 1.771300035 | N47: 365346.45 | P47: 526042.79
B48: November | D48: 221652.67 | E48: 3.33959997 | F48: 740231.25 | H48: 221732.63 | I48: 0.7790999908 | J48: 172751.89 | L48: 221732.63 | M48: 1.771299921 | N48: 392754.99 | P48: 565506.88
B49: December | D49: 233549.07 | E49: 3.339599897 | F49: 779960.45 | H49: 233585.23 | I49: 0.7790999457 | J49: 181986.24 | L49: 233585.23 | M49: 1.771299923 | N49: 413749.5 | P49: 595735.74
B51: Total | D51: =SUM(D38:D49) -> 2735375.9 | E51: =IF(D51<>0,F51/D51,0) -> 3.34484293 | F51: =SUM(F38:F49) -> 9149402.74 | H51: =SUM(H38:H49) -> 2753004.27 | I51: =IF(H51<>0,J51/H51,0) -> 0.7797428734 | J51: =SUM(J38:J49) -> 2146635.46 | L51: =SUM(L38:L49) -> 2753004.27 | M51: =IF(L51<>0,N51/L51,0) -> 1.773528128 | N51: =SUM(N38:N49) -> 4882530.51 | P51: =SUM(P38:P49) -> 7029165.97
B53: Add Extra Host Here (I) | D53: Network | H53: Line Connection | L53: Transformation Connection | P53: Total Line
B54: (if needed)
B55: Month | D55: Units Billed | E55: Rate | F55: Amount | H55: Units Billed | I55: Rate | J55: Amount | L55: Units Billed | M55: Rate | N55: Amount | P55: Amount
B57: January | E57: =IF(D57<>0,F57/D57,0) -> 0 | I57: =IF(H57<>0,J57/H57,0) -> 0 | M57: =IF(L57<>0,N57/L57,0) -> 0 | P57: =J57+N57 -> 0
B58: February | E58: 0 | I58: 0 | M58: 0 | P58: 0
B59: March | E59: 0 | I59: 0 | M59: 0 | P59: 0
B60: April | E60: 0 | I60: 0 | M60: 0 | P60: 0
B61: May | E61: 0 | I61: 0 | M61: 0 | P61: 0
B62: June | E62: 0 | I62: 0 | M62: 0 | P62: 0
B63: July | E63: 0 | I63: 0 | M63: 0 | P63: 0
B64: August | E64: 0 | I64: 0 | M64: 0 | P64: 0
B65: September | E65: 0 | I65: 0 | M65: 0 | P65: 0
B66: October | E66: 0 | I66: 0 | M66: 0 | P66: 0
B67: November | E67: 0 | I67: 0 | M67: 0 | P67: 0
B68: December | E68: 0 | I68: 0 | M68: 0 | P68: 0
B70: Total | D70: =SUM(D57:D68) -> 0 | E70: =IF(D70<>0,F70/D70,0) -> 0 | F70: =SUM(F57:F68) -> 0 | H70: =SUM(H57:H68) -> 0 | I70: =IF(H70<>0,J70/H70,0) -> 0 | J70: =SUM(J57:J68) -> 0 | L70: =SUM(L57:L68) -> 0 | M70: =IF(L70<>0,N70/L70,0) -> 0 | N70: =SUM(N57:N68) -> 0 | P70: =SUM(P57:P68) -> 0
B72: Add Extra Host Here (II) | D72: Network | H72: Line Connection | L72: Transformation Connection | P72: Total Line
B73: (if needed)
B74: Month | D74: Units Billed | E74: Rate | F74: Amount | H74: Units Billed | I74: Rate | J74: Amount | L74: Units Billed | M74: Rate | N74: Amount | P74: Amount
B76: January | E76: =IF(D76<>0,F76/D76,0) -> 0 | I76: =IF(H76<>0,J76/H76,0) -> 0 | M76: =IF(L76<>0,N76/L76,0) -> 0 | P76: =J76+N76 -> 0
B77: February | E77: 0 | I77: 0 | M77: 0 | P77: 0
B78: March | E78: 0 | I78: 0 | M78: 0 | P78: 0
B79: April | E79: 0 | I79: 0 | M79: 0 | P79: 0
B80: May | E80: 0 | I80: 0 | M80: 0 | P80: 0
B81: June | E81: 0 | I81: 0 | M81: 0 | P81: 0
B82: July | E82: 0 | I82: 0 | M82: 0 | P82: 0
B83: August | E83: 0 | I83: 0 | M83: 0 | P83: 0
B84: September | E84: 0 | I84: 0 | M84: 0 | P84: 0
B85: October | E85: 0 | I85: 0 | M85: 0 | P85: 0
B86: November | E86: 0 | I86: 0 | M86: 0 | P86: 0
B87: December | E87: 0 | I87: 0 | M87: 0 | P87: 0
B89: Total | D89: =SUM(D76:D87) -> 0 | E89: =IF(D89<>0,F89/D89,0) -> 0 | F89: =SUM(F76:F87) -> 0 | H89: =SUM(H76:H87) -> 0 | I89: =IF(H89<>0,J89/H89,0) -> 0 | J89: =SUM(J76:J87) -> 0 | L89: =SUM(L76:L87) -> 0 | M89: =IF(L89<>0,N89/L89,0) -> 0 | N89: =SUM(N76:N87) -> 0 | P89: =SUM(P76:P87) -> 0
B91: Total | D91: Network | H91: Line Connection | L91: Transformation Connection | P91: Total Line
B93: Month | D93: Units Billed | E93: Rate | F93: Amount | H93: Units Billed | I93: Rate | J93: Amount | L93: Units Billed | M93: Rate | N93: Amount | P93: Amount
B95: January | D95: =D19+D38+D57+D76 -> 1301779 | E95: =IF(D95<>0,F95/D95,0) -> 3.622329942 | F95: =F19+F38+F57+F76 -> 4715473.05 | H95: =H19+H38+H57+H76 -> 1409377.06 | I95: =IF(H95<>0,J95/H95,0) -> 0.8582842834 | J95: =J19+J38+J57+J76 -> 1209646.18 | L95: =L19+L38+L57+L76 -> 532990.06 | M95: =IF(L95<>0,N95/L95,0) -> 1.937664203 | N95: =N19+N38+N57+N76 -> 1032755.76 | P95: =J95+N95 -> 2242401.94
B96: February | D96: =D20+D39+D58+D77 -> 1313872.72 | E96: 3.612968682 | F96: =F20+F39+F58+F77 -> 4746980.99 | H96: =H20+H39+H58+H77 -> 1421564.86 | I96: 0.8576558863 | J96: =J20+J39+J58+J77 -> 1219213.47 | L96: =L20+L39+L58+L77 -> 541030.86 | M96: 1.931260612 | N96: =N20+N39+N58+N77 -> 1044871.59 | P96: 2264085.06
B97: March | D97: 1315362.06 | E97: 3.614485003 | F97: 4754356.44 | H97: 1370607.31 | I97: 0.8575462873 | J97: 1175359.21 | L97: 527934.31 | M97: 1.931540631 | N97: 1019726.57 | P97: 2195085.78
B98: April | D98: 1172778.67 | E98: 3.612667802 | F98: 4236859.74 | H98: 1305814.21 | I98: 0.8576578595 | J98: 1119941.82 | L98: 478736.52 | M98: 1.927894158 | N98: 922953.34 | P98: 2042895.16
B99: May | D99: 1461629.56 | E99: 3.609651217 | F99: 5275972.92 | H99: 1612301.36 | I99: 0.8566031415 | J99: 1381102.41 | L99: 610796.36 | M99: 1.923246923 | N99: 1174712.22 | P99: 2555814.63
B100: June | D100: 1809911.87 | E100: 3.611474198 | F100: 6536450.02 | H100: 1902520.87 | I100: 0.8569029942 | J100: 1630275.83 | L100: 767945.87 | M100: 1.931226624 | N100: 1483077.51 | P100: 3113353.34
B101: July | D101: 1828481.16 | E101: 3.612324838 | F101: 6605067.91 | H101: 1914257.16 | I101: 0.8570802577 | J101: 1640672.02 | L101: 732722.16 | M101: 1.92765214 | N101: 1412433.44 | P101: 3053105.46
B102: August | D102: 1843605.19 | E102: 3.612088985 | F102: 6659266 | H102: 1951120.19 | I102: 0.8571562934 | J102: 1672414.95 | L102: 734117.19 | M102: 1.926605587 | N102: 1414354.28 | P102: 3086769.23
B103: September | D103: 1863563.15 | E103: 3.613117785 | F103: 6733273.16 | H103: 1910011.15 | I103: 0.8570225991 | J103: 1636922.72 | L103: 721259.15 | M103: 1.925974818 | N103: 1389126.96 | P103: 3026049.68
B104: October | D104: 1223921.78 | E104: 3.606297675 | F104: 4413826.27 | H104: 1336805.93 | I104: 0.855974831 | J104: 1144272.23 | L104: 499032.93 | M104: 1.917208009 | N104: 956749.93 | P104: 2101022.16
B105: November | D105: 1270869.67 | E105: 3.604118957 | F105: 4580365.47 | H105: 1365499.63 | I105: 0.8552394701 | J105: 1167829.18 | L105: 535714.63 | M105: 1.917062877 | N105: 1026998.63 | P105: 2194827.81
B106: December | D106: 1316488.07 | E106: 3.603160027 | F106: 4743517.19 | H106: 1386813.23 | I106: 0.8546894235 | J106: 1185294.6 | L106: 558221.23 | M106: 1.915932542 | N106: 1069514.22 | P106: 2254808.82
B108: Total | D108: =SUM(D95:D106) -> 17722262.9 | E108: =IF(D108<>0,F108/D108,0) -> 3.611356491 | F108: =SUM(F95:F106) -> 64001409.16 | H108: =SUM(H95:H106) -> 18886692.96 | I108: =IF(H108<>0,J108/H108,0) -> 0.8568437394 | J108: =SUM(J95:J106) -> 16182944.62 | L108: =SUM(L95:L106) -> 7240501.27 | M108: =IF(L108<>0,N108/L108,0) -> 1.926285754 | N108: =SUM(N95:N106) -> 13947274.45 | P108: =SUM(P95:P106) -> 30130219.07
N110: Low Voltage Switchgear Credit (if applicable) | P110: ='12. RTSR-UTRs & Sub-Tx'!F68 -> 0
N112: Total including deduction for Low Voltage Switchgear Credit | P112: =P108+P110 -> 30130219.07

Sheet 14. RTSR-Current Wholesale
A1: Back to Index
B2: INCENTIVE REGULATION MODEL FOR 2018 FILERS
B13: The purpose of this sheet is to calculate the expected billing when current 2017 Uniform Transmission Rates are applied against historical 2016 transmission units.
B16: IESO | D16: Network | H16: Line Connection | L16: Transformation Connection | P16: Total Line
B18: Month | D18: Units Billed | E18: Rate | F18: Amount | H18: Units Billed | I18: Rate | J18: Amount | L18: Units Billed | M18: Rate | N18: Amount | P18: Amount
B20: January | D20: ='13. RTSR-Historic Wholesale'!D19 -> 1103965 | E20: ='12. RTSR-UTRs & Sub-Tx'!H16 -> 3.66 | F20: =D20*E20 -> 4040511.9 | H20: ='13. RTSR-Historic Wholesale'!H19 -> 1208258 | I20: ='12. RTSR-UTRs & Sub-Tx'!H18 -> 0.87 | J20: =H20*I20 -> 1051184.46 | L20: ='13. RTSR-Historic Wholesale'!L19 -> 331871 | M20: ='12. RTSR-UTRs & Sub-Tx'!H20 -> 2.02 | N20: =L20*M20 -> 670379.42 | P20: =J20+N20 -> 1721563.88
B21: February | D21: ='13. RTSR-Historic Wholesale'!D20 -> 1121010 | E21: =E20 -> 3.66 | F21: =D21*E21 -> 4102896.6 | H21: ='13. RTSR-Historic Wholesale'!H20 -> 1228518 | I21: =I20 -> 0.87 | J21: =H21*I21 -> 1068810.66 | L21: ='13. RTSR-Historic Wholesale'!L20 -> 347984 | M21: =M20 -> 2.02 | N21: =L21*M21 -> 702927.68 | P21: 1771738.34
B22: March | D22: ='13. RTSR-Historic Wholesale'!D21 -> 1128506 | E22: =E21 -> 3.66 | F22: 4130331.96 | H22: ='13. RTSR-Historic Wholesale'!H21 -> 1182828 | I22: =I21 -> 0.87 | J22: 1029060.36 | L22: ='13. RTSR-Historic Wholesale'!L21 -> 340155 | M22: =M21 -> 2.02 | N22: 687113.1 | P22: 1716173.46
B23: April | D23: ='13. RTSR-Historic Wholesale'!D22 -> 999526 | E23: 3.66 | F23: 3658265.16 | H23: ='13. RTSR-Historic Wholesale'!H22 -> 1128514.69 | I23: 0.87 | J23: 981807.78 | L23: ='13. RTSR-Historic Wholesale'!L22 -> 301437 | M23: 2.02 | N23: 608902.74 | P23: 1590710.52
B24: May | D24: ='13. RTSR-Historic Wholesale'!D23 -> 1231944 | E24: 3.66 | F24: 4508915.04 | H24: ='13. RTSR-Historic Wholesale'!H23 -> 1374680 | I24: 0.87 | J24: 1195971.6 | L24: ='13. RTSR-Historic Wholesale'!L23 -> 373175 | M24: 2.02 | N24: 753813.5 | P24: 1949785.1
B25: June | D25: ='13. RTSR-Historic Wholesale'!D24 -> 1535794 | E25: 3.66 | F25: 5621006.04 | H25: ='13. RTSR-Historic Wholesale'!H24 -> 1628403 | I25: 0.87 | J25: 1416710.61 | L25: ='13. RTSR-Historic Wholesale'!L24 -> 493828 | M25: 2.02 | N25: 997532.56 | P25: 2414243.17
B26: July | D26: ='13. RTSR-Historic Wholesale'!D25 -> 1556405 | E26: 3.66 | F26: 5696442.3 | H26: ='13. RTSR-Historic Wholesale'!H25 -> 1642181 | I26: 0.87 | J26: 1428697.47 | L26: ='13. RTSR-Historic Wholesale'!L25 -> 460646 | M26: 2.02 | N26: 930504.92 | P26: 2359202.39
B27: August | D27: ='13. RTSR-Historic Wholesale'!D26 -> 1567922 | E27: 3.66 | F27: 5738594.52 | H27: ='13. RTSR-Historic Wholesale'!H26 -> 1675437 | I27: 0.87 | J27: 1457630.19 | L27: ='13. RTSR-Historic Wholesale'!L26 -> 458434 | M27: 2.02 | N27: 926036.68 | P27: 2383666.87
B28: September | D28: ='13. RTSR-Historic Wholesale'!D27 -> 1590879 | E28: 3.66 | F28: 5822617.14 | H28: ='13. RTSR-Historic Wholesale'!H27 -> 1637327 | I28: 0.87 | J28: 1424474.49 | L28: ='13. RTSR-Historic Wholesale'!L27 -> 448575 | M28: 2.02 | N28: 906121.5 | P28: 2330595.99
B29: October | D29: ='13. RTSR-Historic Wholesale'!D28 -> 1018780 | E29: 3.66 | F29: 3728734.8 | H29: ='13. RTSR-Historic Wholesale'!H28 -> 1130547 | I29: 0.87 | J29: 983575.89 | L29: ='13. RTSR-Historic Wholesale'!L28 -> 292774 | M29: 2.02 | N29: 591403.48 | P29: 1574979.37
B30: November | D30: ='13. RTSR-Historic Wholesale'!D29 -> 1049217 | E30: 3.66 | F30: 3840134.22 | H30: ='13. RTSR-Historic Wholesale'!H29 -> 1143767 | I30: 0.87 | J30: 995077.29 | L30: ='13. RTSR-Historic Wholesale'!L29 -> 313982 | M30: 2.02 | N30: 634243.64 | P30: 1629320.93
B31: December | D31: ='13. RTSR-Historic Wholesale'!D30 -> 1082939 | E31: 3.66 | F31: 3963556.74 | H31: ='13. RTSR-Historic Wholesale'!H30 -> 1153228 | I31: 0.87 | J31: 1003308.36 | L31: ='13. RTSR-Historic Wholesale'!L30 -> 324636 | M31: 2.02 | N31: 655764.72 | P31: 1659073.08
B33: Total | D33: =SUM(D20:D31) -> 14986887 | E33: =IF(D33<>0,F33/D33,0) -> 3.66 | F33: =SUM(F20:F31) -> 54852006.42 | H33: =SUM(H20:H31) -> 16133688.69 | I33: =IF(H33<>0,J33/H33,0) -> 0.87 | J33: =SUM(J20:J31) -> 14036309.16 | L33: =SUM(L20:L31) -> 4487497 | M33: =IF(L33<>0,N33/L33,0) -> 2.02 | N33: =SUM(N20:N31) -> 9064743.94 | P33: =SUM(P20:P31) -> 23101053.1
B35: Hydro One | D35: Network | H35: Line Connection | L35: Transformation Connection | P35: Total Line
B37: Month | D37: Units Billed | E37: Rate | F37: Amount | H37: Units Billed | I37: Rate | J37: Amount | L37: Units Billed | M37: Rate | N37: Amount | P37: Amount
B39: January | D39: ='13. RTSR-Historic Wholesale'!D38 -> 197814 | E39: ='12. RTSR-UTRs & Sub-Tx'!H29 -> 3.1942 | F39: =D39*E39 -> 631857.4788 | H39: ='13. RTSR-Historic Wholesale'!H38 -> 201119.06 | I39: ='12. RTSR-UTRs & Sub-Tx'!H31 -> 0.771 | J39: =H39*I39 -> 155062.7953 | L39: ='13. RTSR-Historic Wholesale'!L38 -> 201119.06 | M39: ='12. RTSR-UTRs & Sub-Tx'!H33 -> 1.7493 | N39: =L39*M39 -> 351817.5717 | P39: =J39+N39 -> 506880.3669
B40: February | D40: ='13. RTSR-Historic Wholesale'!D39 -> 192862.72 | E40: =E39 -> 3.1942 | F40: =D40*E40 -> 616042.1002 | H40: ='13. RTSR-Historic Wholesale'!H39 -> 193046.86 | I40: =I39 -> 0.771 | J40: =H40*I40 -> 148839.1291 | L40: ='13. RTSR-Historic Wholesale'!L39 -> 193046.86 | M40: =M39 -> 1.7493 | N40: =L40*M40 -> 337696.8722 | P40: 486536.0013
B41: March | D41: ='13. RTSR-Historic Wholesale'!D40 -> 186856.06 | E41: =E40 -> 3.1942 | F41: 596855.6269 | H41: ='13. RTSR-Historic Wholesale'!H40 -> 187779.31 | I41: =I40 -> 0.771 | J41: 144777.848 | L41: ='13. RTSR-Historic Wholesale'!L40 -> 187779.31 | M41: =M40 -> 1.7493 | N41: 328482.347 | P41: 473260.195
B42: April | D42: ='13. RTSR-Historic Wholesale'!D41 -> 173252.67 | E42: 3.1942 | F42: 553403.6785 | H42: ='13. RTSR-Historic Wholesale'!H41 -> 177299.52 | I42: 0.771 | J42: 136697.9299 | L42: ='13. RTSR-Historic Wholesale'!L41 -> 177299.52 | M42: =M41 -> 1.7493 | N42: 310150.0503 | P42: 446847.9803
B43: May | D43: ='13. RTSR-Historic Wholesale'!D42 -> 229685.56 | E43: 3.1942 | F43: 733661.6158 | H43: ='13. RTSR-Historic Wholesale'!H42 -> 237621.36 | I43: 0.771 | J43: 183206.0686 | L43: ='13. RTSR-Historic Wholesale'!L42 -> 237621.36 | M43: 1.7493 | N43: 415671.045 | P43: 598877.1136
B44: June | D44: ='13. RTSR-Historic Wholesale'!D43 -> 274117.87 | E44: 3.1942 | F44: 875587.3004 | H44: ='13. RTSR-Historic Wholesale'!H43 -> 274117.87 | I44: 0.771 | J44: 211344.8778 | L44: ='13. RTSR-Historic Wholesale'!L43 -> 274117.87 | M44: 1.7493 | N44: 479514.39 | P44: 690859.2678
B45: July | D45: ='13. RTSR-Historic Wholesale'!D44 -> 272076.16 | E45: 3.1942 | F45: 869065.6703 | H45: ='13. RTSR-Historic Wholesale'!H44 -> 272076.16 | I45: 0.771 | J45: 209770.7194 | L45: ='13. RTSR-Historic Wholesale'!L44 -> 272076.16 | M45: 1.7493 | N45: 475942.8267 | P45: 685713.546
B46: August | D46: ='13. RTSR-Historic Wholesale'!D45 -> 275683.19 | E46: 3.1942 | F46: 880587.2455 | H46: ='13. RTSR-Historic Wholesale'!H45 -> 275683.19 | I46: 0.771 | J46: 212551.7395 | L46: ='13. RTSR-Historic Wholesale'!L45 -> 275683.19 | M46: 1.7493 | N46: 482252.6043 | P46: 694804.3438
B47: September | D47: ='13. RTSR-Historic Wholesale'!D46 -> 272684.15 | E47: 3.1942 | F47: 871007.7119 | H47: ='13. RTSR-Historic Wholesale'!H46 -> 272684.15 | I47: 0.771 | J47: 210239.4796 | L47: ='13. RTSR-Historic Wholesale'!L46 -> 272684.15 | M47: 1.7493 | N47: 477006.3836 | P47: 687245.8632
B48: October | D48: ='13. RTSR-Historic Wholesale'!D47 -> 205141.78 | E48: 3.1942 | F48: 655263.8737 | H48: ='13. RTSR-Historic Wholesale'!H47 -> 206258.93 | I48: 0.771 | J48: 159025.635 | L48: ='13. RTSR-Historic Wholesale'!L47 -> 206258.93 | M48: 1.7493 | N48: 360808.7462 | P48: 519834.3813
B49: November | D49: ='13. RTSR-Historic Wholesale'!D48 -> 221652.67 | E49: 3.1942 | F49: 708002.9585 | H49: ='13. RTSR-Historic Wholesale'!H48 -> 221732.63 | I49: 0.771 | J49: 170955.8577 | L49: ='13. RTSR-Historic Wholesale'!L48 -> 221732.63 | M49: 1.7493 | N49: 387876.8897 | P49: 558832.7474
B50: December | D50: ='13. RTSR-Historic Wholesale'!D49 -> 233549.07 | E50: 3.1942 | F50: 746002.4394 | H50: ='13. RTSR-Historic Wholesale'!H49 -> 233585.23 | I50: 0.771 | J50: 180094.2123 | L50: ='13. RTSR-Historic Wholesale'!L49 -> 233585.23 | M50: 1.7493 | N50: 408610.6428 | P50: 588704.8552
B52: Total | D52: =SUM(D39:D50) -> 2735375.9 | E52: =IF(D52<>0,F52/D52,0) -> 3.1942 | F52: =SUM(F39:F50) -> 8737337.7 | H52: =SUM(H39:H50) -> 2753004.27 | I52: =IF(H52<>0,J52/H52,0) -> 0.771 | J52: =SUM(J39:J50) -> 2122566.292 | L52: =SUM(L39:L50) -> 2753004.27 | M52: =IF(L52<>0,N52/L52,0) -> 1.7493 | N52: =SUM(N39:N50) -> 4815830.37 | P52: =SUM(P39:P50) -> 6938396.662
B54: ='[1]12. RTSR - Historical Wholesale'!B53 -> Add Extra Host Here (I) | D54: Network | H54: Line Connection | L54: Transformation Connection | P54: Total Line
B56: Month | D56: Units Billed | E56: Rate | F56: Amount | H56: Units Billed | I56: Rate | J56: Amount | L56: Units Billed | M56: Rate | N56: Amount | P56: Amount
B58: January | D58: ='13. RTSR-Historic Wholesale'!D57 -> 0 | E58: ='12. RTSR-UTRs & Sub-Tx'!H44 -> 0 | F58: =D58*E58 -> 0 | H58: ='13. RTSR-Historic Wholesale'!H57 -> 0 | I58: ='12. RTSR-UTRs & Sub-Tx'!H46 -> 0 | J58: =H58*I58 -> 0 | L58: ='13. RTSR-Historic Wholesale'!L57 -> 0 | M58: ='12. RTSR-UTRs & Sub-Tx'!H48 -> 0 | N58: =L58*M58 -> 0 | P58: =J58+N58 -> 0
B59: February | D59: ='13. RTSR-Historic Wholesale'!D58 -> 0 | E59: =E58 -> 0 | F59: =D59*E59 -> 0 | H59: ='13. RTSR-Historic Wholesale'!H58 -> 0 | I59: =I58 -> 0 | J59: =H59*I59 -> 0 | L59: ='13. RTSR-Historic Wholesale'!L58 -> 0 | M59: =M58 -> 0 | N59: =L59*M59 -> 0 | P59: 0
B60: March | D60: ='13. RTSR-Historic Wholesale'!D59 -> 0 | E60: =E59 -> 0 | F60: 0 | H60: ='13. RTSR-Historic Wholesale'!H59 -> 0 | I60: =I59 -> 0 | J60: 0 | L60: ='13. RTSR-Historic Wholesale'!L59 -> 0 | M60: =M59 -> 0 | N60: 0 | P60: 0
B61: April | D61: ='13. RTSR-Historic Wholesale'!D60 -> 0 | E61: 0 | F61: 0 | H61: ='13. RTSR-Historic Wholesale'!H60 -> 0 | I61: 0 | J61: 0 | L61: ='13. RTSR-Historic Wholesale'!L60 -> 0 | M61: 0 | N61: 0 | P61: 0
B62: May | D62: ='13. RTSR-Historic Wholesale'!D61 -> 0 | E62: 0 | F62: 0 | H62: ='13. RTSR-Historic Wholesale'!H61 -> 0 | I62: 0 | J62: 0 | L62: ='13. RTSR-Historic Wholesale'!L61 -> 0 | M62: 0 | N62: 0 | P62: 0
B63: June | D63: ='13. RTSR-Historic Wholesale'!D62 -> 0 | E63: 0 | F63: 0 | H63: ='13. RTSR-Historic Wholesale'!H62 -> 0 | I63: 0 | J63: 0 | L63: ='13. RTSR-Historic Wholesale'!L62 -> 0 | M63: 0 | N63: 0 | P63: 0
B64: July | D64: ='13. RTSR-Historic Wholesale'!D63 -> 0 | E64: 0 | F64: 0 | H64: ='13. RTSR-Historic Wholesale'!H63 -> 0 | I64: 0 | J64: 0 | L64: ='13. RTSR-Historic Wholesale'!L63 -> 0 | M64: 0 | N64: 0 | P64: 0
B65: August | D65: ='13. RTSR-Historic Wholesale'!D64 -> 0 | E65: 0 | F65: 0 | H65: ='13. RTSR-Historic Wholesale'!H64 -> 0 | I65: 0 | J65: 0 | L65: ='13. RTSR-Historic Wholesale'!L64 -> 0 | M65: 0 | N65: 0 | P65: 0
B66: September | D66: ='13. RTSR-Historic Wholesale'!D65 -> 0 | E66: 0 | F66: 0 | H66: ='13. RTSR-Historic Wholesale'!H65 -> 0 | I66: 0 | J66: 0 | L66: ='13. RTSR-Historic Wholesale'!L65 -> 0 | M66: 0 | N66: 0 | P66: 0
B67: October | D67: ='13. RTSR-Historic Wholesale'!D66 -> 0 | E67: 0 | F67: 0 | H67: ='13. RTSR-Historic Wholesale'!H66 -> 0 | I67: 0 | J67: 0 | L67: ='13. RTSR-Historic Wholesale'!L66 -> 0 | M67: 0 | N67: 0 | P67: 0
B68: November | D68: ='13. RTSR-Historic Wholesale'!D67 -> 0 | E68: 0 | F68: 0 | H68: ='13. RTSR-Historic Wholesale'!H67 -> 0 | I68: 0 | J68: 0 | L68: ='13. RTSR-Historic Wholesale'!L67 -> 0 | M68: 0 | N68: 0 | P68: 0
B69: December | D69: ='13. RTSR-Historic Wholesale'!D68 -> 0 | E69: 0 | F69: 0 | H69: ='13. RTSR-Historic Wholesale'!H68 -> 0 | I69: 0 | J69: 0 | L69: ='13. RTSR-Historic Wholesale'!L68 -> 0 | M69: 0 | N69: 0 | P69: 0
B71: Total | D71: =SUM(D58:D69) -> 0 | E71: =IF(D71<>0,F71/D71,0) -> 0 | F71: =SUM(F58:F69) -> 0 | H71: =SUM(H58:H69) -> 0 | I71: =IF(H71<>0,J71/H71,0) -> 0 | J71: =SUM(J58:J69) -> 0 | L71: =SUM(L58:L69) -> 0 | M71: =IF(L71<>0,N71/L71,0) -> 0 | N71: =SUM(N58:N69) -> 0 | P71: =SUM(P58:P69) -> 0
B73: ='[1]12. RTSR - Historical Wholesale'!B72 -> Add Extra Host Here (II) | D73: Network | H73: Line Connection | L73: Transformation Connection | P73: Total Line
B75: Month | D75: Units Billed | E75: Rate | F75: Amount | H75: Units Billed | I75: Rate | J75: Amount | L75: Units Billed | M75: Rate | N75: Amount | P75: Amount
B77: January | D77: ='13. RTSR-Historic Wholesale'!D76 -> 0 | E77: ='12. RTSR-UTRs & Sub-Tx'!H59 -> 0 | F77: =D77*E77 -> 0 | H77: ='13. RTSR-Historic Wholesale'!H76 -> 0 | I77: ='12. RTSR-UTRs & Sub-Tx'!H61 -> 0 | J77: =H77*I77 -> 0 | L77: ='13. RTSR-Historic Wholesale'!L76 -> 0 | M77: ='12. RTSR-UTRs & Sub-Tx'!H63 -> 0 | N77: =L77*M77 -> 0 | P77: =J77+N77 -> 0
B78: February | D78: ='13. RTSR-Historic Wholesale'!D77 -> 0 | E78: =E77 -> 0 | F78: =D78*E78 -> 0 | H78: ='13. RTSR-Historic Wholesale'!H77 -> 0 | I78: =I77 -> 0 | J78: =H78*I78 -> 0 | L78: ='13. RTSR-Historic Wholesale'!L77 -> 0 | M78: =M77 -> 0 | N78: =L78*M78 -> 0 | P78: 0
B79: March | D79: ='13. RTSR-Historic Wholesale'!D78 -> 0 | E79: =E78 -> 0 | F79: 0 | H79: ='13. RTSR-Historic Wholesale'!H78 -> 0 | I79: =I78 -> 0 | J79: 0 | L79: ='13. RTSR-Historic Wholesale'!L78 -> 0 | M79: =M78 -> 0 | N79: 0 | P79: 0
B80: April | D80: ='13. RTSR-Historic Wholesale'!D79 -> 0 | E80: 0 | F80: 0 | H80: ='13. RTSR-Historic Wholesale'!H79 -> 0 | I80: 0 | J80: 0 | L80: ='13. RTSR-Historic Wholesale'!L79 -> 0 | M80: =M79 -> 0 | N80: 0 | P80: 0
B81: May | D81: ='13. RTSR-Historic Wholesale'!D80 -> 0 | E81: 0 | F81: 0 | H81: ='13. RTSR-Historic Wholesale'!H80 -> 0 | I81: 0 | J81: 0 | L81: ='13. RTSR-Historic Wholesale'!L80 -> 0 | M81: 0 | N81: 0 | P81: 0
B82: June | D82: ='13. RTSR-Historic Wholesale'!D81 -> 0 | E82: 0 | F82: 0 | H82: ='13. RTSR-Historic Wholesale'!H81 -> 0 | I82: 0 | J82: 0 | L82: ='13. RTSR-Historic Wholesale'!L81 -> 0 | M82: 0 | N82: 0 | P82: 0
B83: July | D83: ='13. RTSR-Historic Wholesale'!D82 -> 0 | E83: 0 | F83: 0 | H83: ='13. RTSR-Historic Wholesale'!H82 -> 0 | I83: 0 | J83: 0 | L83: ='13. RTSR-Historic Wholesale'!L82 -> 0 | M83: 0 | N83: 0 | P83: 0
B84: August | D84: ='13. RTSR-Historic Wholesale'!D83 -> 0 | E84: 0 | F84: 0 | H84: ='13. RTSR-Historic Wholesale'!H83 -> 0 | I84: 0 | J84: 0 | L84: ='13. RTSR-Historic Wholesale'!L83 -> 0 | M84: 0 | N84: 0 | P84: 0
B85: September | D85: ='13. RTSR-Historic Wholesale'!D84 -> 0 | E85: 0 | F85: 0 | H85: ='13. RTSR-Historic Wholesale'!H84 -> 0 | I85: 0 | J85: 0 | L85: ='13. RTSR-Historic Wholesale'!L84 -> 0 | M85: 0 | N85: 0 | P85: 0
B86: October | D86: ='13. RTSR-Historic Wholesale'!D85 -> 0 | E86: 0 | F86: 0 | H86: ='13. RTSR-Historic Wholesale'!H85 -> 0 | I86: 0 | J86: 0 | L86: ='13. RTSR-Historic Wholesale'!L85 -> 0 | M86: 0 | N86: 0 | P86: 0
B87: November | D87: ='13. RTSR-Historic Wholesale'!D86 -> 0 | E87: 0 | F87: 0 | H87: ='13. RTSR-Historic Wholesale'!H86 -> 0 | I87: 0 | J87: 0 | L87: ='13. RTSR-Historic Wholesale'!L86 -> 0 | M87: 0 | N87: 0 | P87: 0
B88: December | D88: ='13. RTSR-Historic Wholesale'!D87 -> 0 | E88: 0 | F88: 0 | H88: ='13. RTSR-Historic Wholesale'!H87 -> 0 | I88: 0 | J88: 0 | L88: ='13. RTSR-Historic Wholesale'!L87 -> 0 | M88: 0 | N88: 0 | P88: 0
B90: Total | D90: =SUM(D77:D88) -> 0 | E90: =IF(D90<>0,F90/D90,0) -> 0 | F90: =SUM(F77:F88) -> 0 | H90: =SUM(H77:H88) -> 0 | I90: =IF(H90<>0,J90/H90,0) -> 0 | J90: =SUM(J77:J88) -> 0 | L90: =SUM(L77:L88) -> 0 | M90: =IF(L90<>0,N90/L90,0) -> 0 | N90: =SUM(N77:N88) -> 0 | P90: =SUM(P77:P88) -> 0
B92: Total | D92: Network | H92: Line Connection | L92: Transformation Connection | P92: Total Line
B94: Month | D94: Units Billed | E94: Rate | F94: Amount | H94: Units Billed | I94: Rate | J94: Amount | L94: Units Billed | M94: Rate | N94: Amount | P94: Amount
B96: January | D96: =D20+D39+D58+D77 -> 1301779 | E96: =IF(D96<>0,F96/D96,0) -> 3.589218584 | F96: =F20+F39+F58+F77 -> 4672369.379 | H96: =H20+H39+H58+H77 -> 1409377.06 | I96: =IF(H96<>0,J96/H96,0) -> 0.855872633 | J96: =J20+J39+J58+J77 -> 1206247.255 | L96: =L20+L39+L58+L77 -> 532990.06 | M96: =IF(L96<>0,N96/L96,0) -> 1.917853762 | N96: =N20+N39+N58+N77 -> 1022196.992 | P96: =J96+N96 -> 2228444.247
B97: February | D97: =D21+D40+D59+D78 -> 1313872.72 | E97: 3.591625451 | F97: =F21+F40+F59+F78 -> 4718938.7 | H97: =H21+H40+H59+H78 -> 1421564.86 | I97: 0.8565559148 | J97: =J21+J40+J59+J78 -> 1217649.789 | L97: =L21+L40+L59+L78 -> 541030.86 | M97: 1.923410713 | N97: =N21+N40+N59+N78 -> 1040624.552 | P97: 2258274.341
B98: March | D98: 1315362.06 | E98: 3.593829966 | F98: 4727187.587 | H98: 1370607.31 | I98: 0.8564365588 | J98: 1173838.208 | L98: 527934.31 | M98: 1.92371556 | N98: 1015595.447 | P98: 2189433.655
B99: April | D99: 1172778.67 | E99: 3.59118813 | F99: 4211668.839 | H99: 1305814.21 | I99: 0.8565580782 | J99: 1118505.71 | L99: 478736.52 | M99: 1.919746566 | N99: 919052.7903 | P99: 2037558.5
B100: May | D100: 1461629.56 | E100: 3.586802566 | F100: 5242576.656 | H100: 1612301.36 | I100: 0.8554093563 | J100: 1379177.669 | L100: 610796.36 | M100: 1.914688138 | N100: 1169484.545 | P100: 2548662.214
B101: June | D101: 1809911.87 | E101: 3.589452861 | F101: 6496593.34 | H101: 1902520.87 | I101: 0.8557359414 | J101: 1628055.488 | L101: 767945.87 | M101: 1.923373779 | N101: 1477046.95 | P101: 3105102.438
B102: July | D102: 1828481.16 | E102: 3.590689428 | F102: 6565507.97 | H102: 1914257.16 | I102: 0.8559289857 | J102: 1638468.189 | L102: 732722.16 | M102: 1.919483023 | N102: 1406447.747 | P102: 3044915.936
B103: August | D103: 1843605.19 | E103: 3.590346676 | F103: 6619181.765 | H103: 1951120.19 | I103: 0.8560118121 | J103: 1670181.929 | L103: 734117.19 | M103: 1.918343969 | N103: 1408289.284 | P103: 3078471.214
B104: September | D104: 1863563.15 | E104: 3.591842247 | F104: 6693624.852 | H104: 1910011.15 | I104: 0.855866192 | J104: 1634713.97 | L104: 721259.15 | M104: 1.917657313 | N104: 1383127.884 | P104: 3017841.853
B105: October | D105: 1223921.78 | E105: 3.581927167 | F105: 4383998.674 | H105: 1336805.93 | I105: 0.8547250572 | J105: 1142601.525 | L105: 499032.93 | M105: 1.908115014 | N105: 952212.2262 | P105: 2094813.751
B106: November | D106: 1270869.67 | E106: 3.578759715 | F106: 4548137.179 | H106: 1365499.63 | I106: 0.853924177 | J106: 1166033.148 | L106: 535714.63 | M106: 1.907957096 | N106: 1022120.53 | P106: 2188153.677
B107: December | D107: 1316488.07 | E107: 3.577365634 | F107: 4709559.179 | H107: 1386813.23 | I107: 0.8533251246 | J107: 1183402.572 | L107: 558221.23 | M107: 1.90672677 | N107: 1064375.363 | P107: 2247777.935
B109: Total | D109: =SUM(D96:D107) -> 17722262.9 | E109: =IF(D109<>0,F109/D109,0) -> 3.588105226 | F109: =SUM(F96:F107) -> 63589344.12 | H109: =SUM(H96:H107) -> 18886692.96 | I109: =IF(H109<>0,J109/H109,0) -> 0.8555693412 | J109: =SUM(J96:J107) -> 16158875.45 | L109: =SUM(L96:L107) -> 7240501.27 | M109: =IF(L109<>0,N109/L109,0) -> 1.917073665 | N109: =SUM(N96:N107) -> 13880574.31 | P109: =SUM(P96:P107) -> 30039449.76
N111: Low Voltage Switchgear Credit (if applicable) | P111: ='12. RTSR-UTRs & Sub-Tx'!F68 -> 0
N113: Total including deduction for Low Voltage Switchgear Credit | P113: =P109+P111 -> 30039449.76

Sheet 15. RTSR-Forecast Wholesale
A1: Back to Index
B2: INCENTIVE REGULATION MODEL FOR 2018 FILERS
B13: The purpose of this sheet is to calculate the expected billing when forecasted 2018 Uniform Transmission Rates are applied against historical 2016 transmission units.
B16: IESO | D16: Network | H16: Line Connection | L16: Transformation Connection | P16: Total Line
B18: Month | D18: Units Billed | E18: Rate | F18: Amount | H18: Units Billed | I18: Rate | J18: Amount | L18: Units Billed | M18: Rate | N18: Amount | P18: Amount
B20: January | D20: ='13. RTSR-Historic Wholesale'!D19 -> 1103965 | E20: ='12. RTSR-UTRs & Sub-Tx'!J16 -> 3.61 | F20: =D20*E20 -> 3985313.65 | H20: ='13. RTSR-Historic Wholesale'!H19 -> 1208258 | I20: ='12. RTSR-UTRs & Sub-Tx'!J18 -> 0.95 | J20: =H20*I20 -> 1147845.1 | L20: ='13. RTSR-Historic Wholesale'!L19 -> 331871 | M20: ='12. RTSR-UTRs & Sub-Tx'!J20 -> 2.34 | N20: =L20*M20 -> 776578.14 | P20: =J20+N20 -> 1924423.24
B21: February | D21: ='13. RTSR-Historic Wholesale'!D20 -> 1121010 | E21: =E20 -> 3.61 | F21: 4046846.1 | H21: ='13. RTSR-Historic Wholesale'!H20 -> 1228518 | I21: =I20 -> 0.95 | J21: 1167092.1 | L21: ='13. RTSR-Historic Wholesale'!L20 -> 347984 | M21: =M20 -> 2.34 | N21: 814282.56 | P21: 1981374.66
B22: March | D22: ='13. RTSR-Historic Wholesale'!D21 -> 1128506 | E22: 3.61 | F22: 4073906.66 | H22: ='13. RTSR-Historic Wholesale'!H21 -> 1182828 | I22: 0.95 | J22: 1123686.6 | L22: ='13. RTSR-Historic Wholesale'!L21 -> 340155 | M22: 2.34 | N22: 795962.7 | P22: 1919649.3
B23: April | D23: ='13. RTSR-Historic Wholesale'!D22 -> 999526 | E23: 3.61 | F23: 3608288.86 | H23: ='13. RTSR-Historic Wholesale'!H22 -> 1128514.69 | I23: 0.95 | J23: 1072088.955 | L23: ='13. RTSR-Historic Wholesale'!L22 -> 301437 | M23: 2.34 | N23: 705362.58 | P23: 1777451.535
B24: May | D24: ='13. RTSR-Historic Wholesale'!D23 -> 1231944 | E24: 3.61 | F24: 4447317.84 | H24: ='13. RTSR-Historic Wholesale'!H23 -> 1374680 | I24: 0.95 | J24: 1305946 | L24: ='13. RTSR-Historic Wholesale'!L23 -> 373175 | M24: 2.34 | N24: 873229.5 | P24: 2179175.5
B25: June | D25: ='13. RTSR-Historic Wholesale'!D24 -> 1535794 | E25: 3.61 | F25: 5544216.34 | H25: ='13. RTSR-Historic Wholesale'!H24 -> 1628403 | I25: 0.95 | J25: 1546982.85 | L25: ='13. RTSR-Historic Wholesale'!L24 -> 493828 | M25: 2.34 | N25: 1155557.52 | P25: 2702540.37
B26: July | D26: ='13. RTSR-Historic Wholesale'!D25 -> 1556405 | E26: 3.61 | F26: 5618622.05 | H26: ='13. RTSR-Historic Wholesale'!H25 -> 1642181 | I26: 0.95 | J26: 1560071.95 | L26: ='13. RTSR-Historic Wholesale'!L25 -> 460646 | M26: 2.34 | N26: 1077911.64 | P26: 2637983.59
B27: August | D27: ='13. RTSR-Historic Wholesale'!D26 -> 1567922 | E27: 3.61 | F27: 5660198.42 | H27: ='13. RTSR-Historic Wholesale'!H26 -> 1675437 | I27: 0.95 | J27: 1591665.15 | L27: ='13. RTSR-Historic Wholesale'!L26 -> 458434 | M27: 2.34 | N27: 1072735.56 | P27: 2664400.71
B28: September | D28: ='13. RTSR-Historic Wholesale'!D27 -> 1590879 | E28: 3.61 | F28: 5743073.19 | H28: ='13. RTSR-Historic Wholesale'!H27 -> 1637327 | I28: 0.95 | J28: 1555460.65 | L28: ='13. RTSR-Historic Wholesale'!L27 -> 448575 | M28: 2.34 | N28: 1049665.5 | P28: 2605126.15
B29: October | D29: ='13. RTSR-Historic Wholesale'!D28 -> 1018780 | E29: 3.61 | F29: 3677795.8 | H29: ='13. RTSR-Historic Wholesale'!H28 -> 1130547 | I29: 0.95 | J29: 1074019.65 | L29: ='13. RTSR-Historic Wholesale'!L28 -> 292774 | M29: 2.34 | N29: 685091.16 | P29: 1759110.81
B30: November | D30: ='13. RTSR-Historic Wholesale'!D29 -> 1049217 | E30: 3.61 | F30: 3787673.37 | H30: ='13. RTSR-Historic Wholesale'!H29 -> 1143767 | I30: 0.95 | J30: 1086578.65 | L30: ='13. RTSR-Historic Wholesale'!L29 -> 313982 | M30: 2.34 | N30: 734717.88 | P30: 1821296.53
B31: December | D31: ='13. RTSR-Historic Wholesale'!D30 -> 1082939 | E31: 3.61 | F31: 3909409.79 | H31: ='13. RTSR-Historic Wholesale'!H30 -> 1153228 | I31: 0.95 | J31: 1095566.6 | L31: ='13. RTSR-Historic Wholesale'!L30 -> 324636 | M31: 2.34 | N31: 759648.24 | P31: 1855214.84
B33: Total | D33: =SUM(D20:D31) -> 14986887 | E33: =IF(D33<>0,F33/D33,0) -> 3.61 | F33: =SUM(F20:F31) -> 54102662.07 | H33: =SUM(H20:H31) -> 16133688.69 | I33: =IF(H33<>0,J33/H33,0) -> 0.95 | J33: =SUM(J20:J31) -> 15327004.26 | L33: =SUM(L20:L31) -> 4487497 | M33: =IF(L33<>0,N33/L33,0) -> 2.34 | N33: =SUM(N20:N31) -> 10500742.98 | P33: =SUM(P20:P31) -> 25827747.24
B35: Hydro One | D35: Network | H35: Line Connection | L35: Transformation Connection | P35: Total Line
B37: Month | D37: Units Billed | E37: Rate | F37: Amount | H37: Units Billed | I37: Rate | J37: Amount | L37: Units Billed | M37: Rate | N37: Amount | P37: Amount
B39: January | D39: ='13. RTSR-Historic Wholesale'!D38 -> 197814 | E39: ='12. RTSR-UTRs & Sub-Tx'!J29 -> 3.1942 | F39: =D39*E39 -> 631857.4788 | H39: ='13. RTSR-Historic Wholesale'!H38 -> 201119.06 | I39: ='12. RTSR-UTRs & Sub-Tx'!J31 -> 0.771 | J39: =H39*I39 -> 155062.7953 | L39: ='13. RTSR-Historic Wholesale'!L38 -> 201119.06 | M39: ='12. RTSR-UTRs & Sub-Tx'!J33 -> 1.7493 | N39: =L39*M39 -> 351817.5717 | P39: =J39+N39 -> 506880.3669
B40: February | D40: ='13. RTSR-Historic Wholesale'!D39 -> 192862.72 | E40: =E39 -> 3.1942 | F40: 616042.1002 | H40: ='13. RTSR-Historic Wholesale'!H39 -> 193046.86 | I40: =I39 -> 0.771 | J40: 148839.1291 | L40: ='13. RTSR-Historic Wholesale'!L39 -> 193046.86 | M40: =M39 -> 1.7493 | N40: 337696.8722 | P40: 486536.0013
B41: March | D41: ='13. RTSR-Historic Wholesale'!D40 -> 186856.06 | E41: 3.1942 | F41: 596855.6269 | H41: ='13. RTSR-Historic Wholesale'!H40 -> 187779.31 | I41: 0.771 | J41: 144777.848 | L41: ='13. RTSR-Historic Wholesale'!L40 -> 187779.31 | M41: 1.7493 | N41: 328482.347 | P41: 473260.195
B42: April | D42: ='13. RTSR-Historic Wholesale'!D41 -> 173252.67 | E42: 3.1942 | F42: 553403.6785 | H42: ='13. RTSR-Historic Wholesale'!H41 -> 177299.52 | I42: 0.771 | J42: 136697.9299 | L42: ='13. RTSR-Historic Wholesale'!L41 -> 177299.52 | M42: 1.7493 | N42: 310150.0503 | P42: 446847.9803
B43: May | D43: ='13. RTSR-Historic Wholesale'!D42 -> 229685.56 | E43: 3.1942 | F43: 733661.6158 | H43: ='13. RTSR-Historic Wholesale'!H42 -> 237621.36 | I43: 0.771 | J43: 183206.0686 | L43: ='13. RTSR-Historic Wholesale'!L42 -> 237621.36 | M43: 1.7493 | N43: 415671.045 | P43: 598877.1136
B44: June | D44: ='13. RTSR-Historic Wholesale'!D43 -> 274117.87 | E44: 3.1942 | F44: 875587.3004 | H44: ='13. RTSR-Historic Wholesale'!H43 -> 274117.87 | I44: 0.771 | J44: 211344.8778 | L44: ='13. RTSR-Historic Wholesale'!L43 -> 274117.87 | M44: 1.7493 | N44: 479514.39 | P44: 690859.2678
B45: July | D45: ='13. RTSR-Historic Wholesale'!D44 -> 272076.16 | E45: 3.1942 | F45: 869065.6703 | H45: ='13. RTSR-Historic Wholesale'!H44 -> 272076.16 | I45: 0.771 | J45: 209770.7194 | L45: ='13. RTSR-Historic Wholesale'!L44 -> 272076.16 | M45: 1.7493 | N45: 475942.8267 | P45: 685713.546
B46: August | D46: ='13. RTSR-Historic Wholesale'!D45 -> 275683.19 | E46: 3.1942 | F46: 880587.2455 | H46: ='13. RTSR-Historic Wholesale'!H45 -> 275683.19 | I46: 0.771 | J46: 212551.7395 | L46: ='13. RTSR-Historic Wholesale'!L45 -> 275683.19 | M46: 1.7493 | N46: 482252.6043 | P46: 694804.3438
B47: September | D47: ='13. RTSR-Historic Wholesale'!D46 -> 272684.15 | E47: 3.1942 | F47: 871007.7119 | H47: ='13. RTSR-Historic Wholesale'!H46 -> 272684.15 | I47: 0.771 | J47: 210239.4796 | L47: ='13. RTSR-Historic Wholesale'!L46 -> 272684.15 | M47: 1.7493 | N47: 477006.3836 | P47: 687245.8632
B48: October | D48: ='13. RTSR-Historic Wholesale'!D47 -> 205141.78 | E48: 3.1942 | F48: 655263.8737 | H48: ='13. RTSR-Historic Wholesale'!H47 -> 206258.93 | I48: 0.771 | J48: 159025.635 | L48: ='13. RTSR-Historic Wholesale'!L47 -> 206258.93 | M48: 1.7493 | N48: 360808.7462 | P48: 519834.3813
B49: November | D49: ='13. RTSR-Historic Wholesale'!D48 -> 221652.67 | E49: 3.1942 | F49: 708002.9585 | H49: ='13. RTSR-Historic Wholesale'!H48 -> 221732.63 | I49: 0.771 | J49: 170955.8577 | L49: ='13. RTSR-Historic Wholesale'!L48 -> 221732.63 | M49: 1.7493 | N49: 387876.8897 | P49: 558832.7474
B50: December | D50: ='13. RTSR-Historic Wholesale'!D49 -> 233549.07 | E50: 3.1942 | F50: 746002.4394 | H50: ='13. RTSR-Historic Wholesale'!H49 -> 233585.23 | I50: 0.771 | J50: 180094.2123 | L50: ='13. RTSR-Historic Wholesale'!L49 -> 233585.23 | M50: 1.7493 | N50: 408610.6428 | P50: 588704.8552
B52: Total | D52: =SUM(D39:D50) -> 2735375.9 | E52: =IF(D52<>0,F52/D52,0) -> 3.1942 | F52: =SUM(F39:F50) -> 8737337.7 | H52: =SUM(H39:H50) -> 2753004.27 | I52: =IF(H52<>0,J52/H52,0) -> 0.771 | J52: =SUM(J39:J50) -> 2122566.292 | L52: =SUM(L39:L50) -> 2753004.27 | M52: =IF(L52<>0,N52/L52,0) -> 1.7493 | N52: =SUM(N39:N50) -> 4815830.37 | P52: =SUM(P39:P50) -> 6938396.662
B54: ='[1]12. RTSR - Historical Wholesale'!B53 -> Add Extra Host Here (I) | D54: Network | H54: Line Connection | L54: Transformation Connection | P54: Total Line
B56: Month | D56: Units Billed | E56: Rate | F56: Amount | H56: Units Billed | I56: Rate | J56: Amount | L56: Units Billed | M56: Rate | N56: Amount | P56: Amount
B58: January | D58: ='13. RTSR-Historic Wholesale'!D57 -> 0 | E58: ='12. RTSR-UTRs & Sub-Tx'!J44 -> 0 | F58: =D58*E58 -> 0 | H58: ='13. RTSR-Historic Wholesale'!H57 -> 0 | I58: ='12. RTSR-UTRs & Sub-Tx'!J46 -> 0 | J58: =H58*I58 -> 0 | L58: ='13. RTSR-Historic Wholesale'!L57 -> 0 | M58: ='12. RTSR-UTRs & Sub-Tx'!J48 -> 0 | N58: =L58*M58 -> 0 | P58: =J58+N58 -> 0
B59: February | D59: ='13. RTSR-Historic Wholesale'!D58 -> 0 | E59: =E58 -> 0 | F59: 0 | H59: ='13. RTSR-Historic Wholesale'!H58 -> 0 | I59: =I58 -> 0 | J59: 0 | L59: ='13. RTSR-Historic Wholesale'!L58 -> 0 | M59: =M58 -> 0 | N59: 0 | P59: 0
B60: March | D60: ='13. RTSR-Historic Wholesale'!D59 -> 0 | E60: 0 | F60: 0 | H60: ='13. RTSR-Historic Wholesale'!H59 -> 0 | I60: 0 | J60: 0 | L60: ='13. RTSR-Historic Wholesale'!L59 -> 0 | M60: 0 | N60: 0 | P60: 0
B61: April | D61: ='13. RTSR-Historic Wholesale'!D60 -> 0 | E61: 0 | F61: 0 | H61: ='13. RTSR-Historic Wholesale'!H60 -> 0 | I61: 0 | J61: 0 | L61: ='13. RTSR-Historic Wholesale'!L60 -> 0 | M61: 0 | N61: 0 | P61: 0
B62: May | D62: ='13. RTSR-Historic Wholesale'!D61 -> 0 | E62: 0 | F62: 0 | H62: ='13. RTSR-Historic Wholesale'!H61 -> 0 | I62: 0 | J62: 0 | L62: ='13. RTSR-Historic Wholesale'!L61 -> 0 | M62: 0 | N62: 0 | P62: 0
B63: June | D63: ='13. RTSR-Historic Wholesale'!D62 -> 0 | E63: 0 | F63: 0 | H63: ='13. RTSR-Historic Wholesale'!H62 -> 0 | I63: 0 | J63: 0 | L63: ='13. RTSR-Historic Wholesale'!L62 -> 0 | M63: 0 | N63: 0 | P63: 0
B64: July | D64: ='13. RTSR-Historic Wholesale'!D63 -> 0 | E64: 0 | F64: 0 | H64: ='13. RTSR-Historic Wholesale'!H63 -> 0 | I64: 0 | J64: 0 | L64: ='13. RTSR-Historic Wholesale'!L63 -> 0 | M64: 0 | N64: 0 | P64: 0
B65: August | D65: ='13. RTSR-Historic Wholesale'!D64 -> 0 | E65: 0 | F65: 0 | H65: ='13. RTSR-Historic Wholesale'!H64 -> 0 | I65: 0 | J65: 0 | L65: ='13. RTSR-Historic Wholesale'!L64 -> 0 | M65: 0 | N65: 0 | P65: 0
B66: September | D66: ='13. RTSR-Historic Wholesale'!D65 -> 0 | E66: 0 | F66: 0 | H66: ='13. RTSR-Historic Wholesale'!H65 -> 0 | I66: 0 | J66: 0 | L66: ='13. RTSR-Historic Wholesale'!L65 -> 0 | M66: 0 | N66: 0 | P66: 0
B67: October | D67: ='13. RTSR-Historic Wholesale'!D66 -> 0 | E67: 0 | F67: 0 | H67: ='13. RTSR-Historic Wholesale'!H66 -> 0 | I67: 0 | J67: 0 | L67: ='13. RTSR-Historic Wholesale'!L66 -> 0 | M67: 0 | N67: 0 | P67: 0
B68: November | D68: ='13. RTSR-Historic Wholesale'!D67 -> 0 | E68: 0 | F68: 0 | H68: ='13. RTSR-Historic Wholesale'!H67 -> 0 | I68: 0 | J68: 0 | L68: ='13. RTSR-Historic Wholesale'!L67 -> 0 | M68: 0 | N68: 0 | P68: 0
B69: December | D69: ='13. RTSR-Historic Wholesale'!D68 -> 0 | E69: 0 | F69: 0 | H69: ='13. RTSR-Historic Wholesale'!H68 -> 0 | I69: 0 | J69: 0 | L69: ='13. RTSR-Historic Wholesale'!L68 -> 0 | M69: 0 | N69: 0 | P69: 0
B71: Total | D71: =SUM(D58:D69) -> 0 | E71: =IF(D71<>0,F71/D71,0) -> 0 | F71: =SUM(F58:F69) -> 0 | H71: =SUM(H58:H69) -> 0 | I71: =IF(H71<>0,J71/H71,0) -> 0 | J71: =SUM(J58:J69) -> 0 | L71: =SUM(L58:L69) -> 0 | M71: =IF(L71<>0,N71/L71,0) -> 0 | N71: =SUM(N58:N69) -> 0 | P71: =SUM(P58:P69) -> 0
B73: ='[1]12. RTSR - Historical Wholesale'!B72 -> Add Extra Host Here (II) | D73: Network | H73: Line Connection | L73: Transformation Connection | P73: Total Line
B75: Month | D75: Units Billed | E75: Rate | F75: Amount | H75: Units Billed | I75: Rate | J75: Amount | L75: Units Billed | M75: Rate | N75: Amount | P75: Amount
B77: January | D77: ='13. RTSR-Historic Wholesale'!D76 -> 0 | E77: ='12. RTSR-UTRs & Sub-Tx'!J59 -> 0 | F77: =D77*E77 -> 0 | H77: ='13. RTSR-Historic Wholesale'!H76 -> 0 | I77: ='12. RTSR-UTRs & Sub-Tx'!J61 -> 0 | J77: =H77*I77 -> 0 | L77: ='13. RTSR-Historic Wholesale'!L76 -> 0 | M77: ='12. RTSR-UTRs & Sub-Tx'!J63 -> 0 | N77: =L77*M77 -> 0 | P77: =J77+N77 -> 0
B78: February | D78: ='13. RTSR-Historic Wholesale'!D77 -> 0 | E78: =E77 -> 0 | F78: 0 | H78: ='13. RTSR-Historic Wholesale'!H77 -> 0 | I78: =I77 -> 0 | J78: 0 | L78: ='13. RTSR-Historic Wholesale'!L77 -> 0 | M78: =M77 -> 0 | N78: 0 | P78: 0
B79: March | D79: ='13. RTSR-Historic Wholesale'!D78 -> 0 | E79: 0 | F79: 0 | H79: ='13. RTSR-Historic Wholesale'!H78 -> 0 | I79: 0 | J79: 0 | L79: ='13. RTSR-Historic Wholesale'!L78 -> 0 | M79: 0 | N79: 0 | P79: 0
B80: April | D80: ='13. RTSR-Historic Wholesale'!D79 -> 0 | E80: 0 | F80: 0 | H80: ='13. RTSR-Historic Wholesale'!H79 -> 0 | I80: 0 | J80: 0 | L80: ='13. RTSR-Historic Wholesale'!L79 -> 0 | M80: 0 | N80: 0 | P80: 0
B81: May | D81: ='13. RTSR-Historic Wholesale'!D80 -> 0 | E81: 0 | F81: 0 | H81: ='13. RTSR-Historic Wholesale'!H80 -> 0 | I81: 0 | J81: 0 | L81: ='13. RTSR-Historic Wholesale'!L80 -> 0 | M81: 0 | N81: 0 | P81: 0
B82: June | D82: ='13. RTSR-Historic Wholesale'!D81 -> 0 | E82: 0 | F82: 0 | H82: ='13. RTSR-Historic Wholesale'!H81 -> 0 | I82: 0 | J82: 0 | L82: ='13. RTSR-Historic Wholesale'!L81 -> 0 | M82: 0 | N82: 0 | P82: 0
B83: July | D83: ='13. RTSR-Historic Wholesale'!D82 -> 0 | E83: 0 | F83: 0 | H83: ='13. RTSR-Historic Wholesale'!H82 -> 0 | I83: 0 | J83: 0 | L83: ='13. RTSR-Historic Wholesale'!L82 -> 0 | M83: 0 | N83: 0 | P83: 0
B84: August | D84: ='13. RTSR-Historic Wholesale'!D83 -> 0 | E84: 0 | F84: 0 | H84: ='13. RTSR-Historic Wholesale'!H83 -> 0 | I84: 0 | J84: 0 | L84: ='13. RTSR-Historic Wholesale'!L83 -> 0 | M84: 0 | N84: 0 | P84: 0
B85: September | D85: ='13. RTSR-Historic Wholesale'!D84 -> 0 | E85: 0 | F85: 0 | H85: ='13. RTSR-Historic Wholesale'!H84 -> 0 | I85: 0 | J85: 0 | L85: ='13. RTSR-Historic Wholesale'!L84 -> 0 | M85: 0 | N85: 0 | P85: 0
B86: October | D86: ='13. RTSR-Historic Wholesale'!D85 -> 0 | E86: 0 | F86: 0 | H86: ='13. RTSR-Historic Wholesale'!H85 -> 0 | I86: 0 | J86: 0 | L86: ='13. RTSR-Historic Wholesale'!L85 -> 0 | M86: 0 | N86: 0 | P86: 0
B87: November | D87: ='13. RTSR-Historic Wholesale'!D86 -> 0 | E87: 0 | F87: 0 | H87: ='13. RTSR-Historic Wholesale'!H86 -> 0 | I87: 0 | J87: 0 | L87: ='13. RTSR-Historic Wholesale'!L86 -> 0 | M87: 0 | N87: 0 | P87: 0
B88: December | D88: ='13. RTSR-Historic Wholesale'!D87 -> 0 | E88: 0 | F88: 0 | H88: ='13. RTSR-Historic Wholesale'!H87 -> 0 | I88: 0 | J88: 0 | L88: ='13. RTSR-Historic Wholesale'!L87 -> 0 | M88: 0 | N88: 0 | P88: 0
L89: ='13. RTSR-Historic Wholesale'!L88 -> 0
B90: Total | D90: =SUM(D77:D88) -> 0 | E90: =IF(D90<>0,F90/D90,0) -> 0 | F90: =SUM(F77:F88) -> 0 | H90: =SUM(H77:H88) -> 0 | I90: =IF(H90<>0,J90/H90,0) -> 0 | J90: =SUM(J77:J88) -> 0 | L90: =SUM(L77:L88) -> 0 | M90: =IF(L90<>0,N90/L90,0) -> 0 | N90: =SUM(N77:N88) -> 0 | P90: =SUM(P77:P88) -> 0
B92: Total | D92: Network | H92: Line Connection | L92: Transformation Connection | P92: Total Line
B94: Month | D94: Units Billed | E94: Rate | F94: Amount | H94: Units Billed | I94: Rate | J94: Amount | L94: Units Billed | M94: Rate | N94: Amount | P94: Amount
B96: January | D96: =D20+D39+D58+D77 -> 1301779 | E96: =IF(D96<>0,F96/D96,0) -> 3.546816417 | F96: =F20+F39+F58+F77 -> 4617171.129 | H96: =H20+H39+H58+H77 -> 1409377.06 | I96: =IF(H96<>0,J96/H96,0) -> 0.9244565789 | J96: =J20+J39+J58+J77 -> 1302907.895 | L96: =L20+L39+L58+L77 -> 532990.06 | M96: =IF(L96<>0,N96/L96,0) -> 2.117104607 | N96: =N20+N39+N58+N77 -> 1128395.712 | P96: =J96+N96 -> 2431303.607
B97: February | D97: =D21+D40+D59+D78 -> 1313872.72 | E97: 3.548964926 | F97: =F21+F40+F59+F78 -> 4662888.2 | H97: =H21+H40+H59+H78 -> 1421564.86 | I97: 0.9256920075 | J97: =J21+J40+J59+J78 -> 1315931.229 | L97: =L21+L40+L59+L78 -> 541030.86 | M97: 2.129230544 | N97: =N21+N40+N59+N78 -> 1151979.432 | P97: 2467910.661
B98: March | D98: 1315362.06 | E98: 3.550932803 | F98: 4670762.287 | H98: 1370607.31 | I98: 0.9254762022 | J98: 1268464.448 | L98: 527934.31 | M98: 2.129895757 | N98: 1124445.047 | P98: 2392909.495
B99: April | D99: 1172778.67 | E99: 3.548574548 | F99: 4161692.539 | H99: 1305814.21 | I99: 0.9256959192 | J99: 1208786.885 | L99: 478736.52 | M99: 2.121234934 | N99: 1015512.63 | P99: 2224299.515
B100: May | D100: 1461629.56 | E100: 3.54465974 | F100: 5180979.456 | H100: 1612301.36 | I100: 0.9236189372 | J100: 1489152.069 | L100: 610796.36 | M100: 2.110196834 | N100: 1288900.545 | P100: 2778052.614
B101: June | D101: 1809911.87 | E101: 3.547025547 | F101: 6419803.64 | H101: 1902520.87 | I101: 0.9242094294 | J101: 1758327.728 | L101: 767945.87 | M101: 2.129149949 | N101: 1635071.91 | P101: 3393399.638
B102: July | D102: 1828481.16 | E102: 3.548129378 | F102: 6487687.72 | H102: 1914257.16 | I102: 0.9245584691 | J102: 1769842.669 | L102: 732722.16 | M102: 2.120659851 | N102: 1553854.467 | P102: 3323697.136
B103: August | D103: 1843605.19 | E103: 3.547823417 | F103: 6540785.665 | H103: 1951120.19 | I103: 0.9247082259 | J103: 1804216.889 | L103: 734117.19 | M103: 2.118174299 | N103: 1554988.164 | P103: 3359205.054
B104: September | D104: 1863563.15 | E104: 3.549158451 | F104: 6614080.902 | H104: 1910011.15 | I104: 0.924444933 | J104: 1765700.13 | L104: 721259.15 | M104: 2.116675932 | N104: 1526671.884 | P104: 3292372.013
B105: October | D105: 1223921.78 | E105: 3.540307677 | F105: 4333059.674 | H105: 1336805.93 | I105: 0.9223816691 | J105: 1233045.285 | L105: 499032.93 | M105: 2.095853487 | N105: 1045899.906 | P105: 2278945.191
B106: November | D106: 1270869.67 | E106: 3.537480227 | F106: 4495676.329 | H106: 1365499.63 | I106: 0.9209336129 | J106: 1257534.508 | L106: 535714.63 | M106: 2.09550889 | N106: 1122594.77 | P106: 2380129.277
B107: December | D107: 1316488.07 | E107: 3.536235789 | F107: 4655412.229 | H107: 1386813.23 | I107: 0.9198504779 | J107: 1275660.812 | L107: 558221.23 | M107: 2.092824171 | N107: 1168258.883 | P107: 2443919.695
B109: Total | D109: =SUM(D96:D107) -> 17722262.9 | E109: =IF(D109<>0,F109/D109,0) -> 3.545822569 | F109: =SUM(F96:F107) -> 62839999.77 | H109: =SUM(H96:H107) -> 18886692.96 | I109: =IF(H109<>0,J109/H109,0) -> 0.9239082027 | J109: =SUM(J96:J107) -> 17449570.55 | L109: =SUM(L96:L107) -> 7240501.27 | M109: =IF(L109<>0,N109/L109,0) -> 2.115402343 | N109: =SUM(N96:N107) -> 15316573.35 | P109: =SUM(P96:P107) -> 32766143.9
N111: Low Voltage Switchgear Credit (if applicable) | P111: ='12. RTSR-UTRs & Sub-Tx'!J68 -> 0
N113: Total including deduction for Low Voltage Switchgear Credit | P113: =P109+P111 -> 32766143.9

Sheet 16. RTSR-Rates to Forecast
A1: Back to Index
B2: INCENTIVE REGULATION MODEL FOR 2018 FILERS
B13: The purpose of this table is to re-align the current RTS Network Rates to recover current wholesale network costs.
B15: Rate Class | C15: Rate Description | D15: Unit | E15: Current RTSR-Network | F15: Loss Adjusted Billed kWh | G15: Billed kW | H15: Billed Amount | I15: Billed Amount % | J15: Current Wholesale Billing | K15: Adjusted RTSR Network
A17: R_TN | B17: ='4. Billing Det. for Def-Var'!B17 -> RESIDENTIAL SERVICE CLASSIFICATION | C17: =VLOOKUP(A17,RTSR,3,FALSE) -> Retail Transmission Rate – Network Service Rate | D17: =VLOOKUP(A17,RTSR,4,FALSE) -> $/kWh | E17: =VLOOKUP(A17,RATES,4,FALSE) -> 0.0082 | F17: =VLOOKUP(A17,RTSR,9,FALSE) -> 2872901322 | G17: =VLOOKUP(A17,RTSR,7,FALSE) -> 0 | H17: =IF(ISERROR(E17*F17), 0, ROUND(E17*F17, 2)) -> 23557790.84 | I17: =H17/SUM(H$17:H$24) -> 0.3424877246 | J17: =I17*total_wholesale_TN -> 21778569.78 | K17: =IF(ISERROR(J17/F17), 0, J17/F17) -> 0.007580688418
A18: GSL_TN | B18: ='4. Billing Det. for Def-Var'!B18 -> GENERAL SERVICE LESS THAN 50 kW SERVICE CLASSIFICATION | C18: Retail Transmission Rate – Network Service Rate | D18: $/kWh | E18: 0.0073 | F18: 1073319242 | G18: 0 | H18: =IF(ISERROR(E18*F18), 0, ROUND(E18*F18, 2)) -> 7835230.47 | I18: =H18/SUM(H$17:H$24) -> 0.1139100977 | J18: 7243468.4 | K18: =IF(ISERROR(J18/F18), 0, J18/F18) -> 0.006748661645
A19: GSG_TN | B19: GENERAL SERVICE GREATER THAN 50 kW SERVICE CLASSIFICATION | C19: Retail Transmission Rate – Network Service Rate | D19: $/kW | E19: 2.9268 | F19: 2373987853 | G19: 6491539.069 | H19: =IF(ISERROR(E19*G19), 0, ROUND(E19*G19, 2)) -> 18999436.55 | I19: 0.2762174873 | J19: =I19*total_wholesale_TN -> 17564488.85 | K19: =IF(ISERROR(J19/G19), 0, J19/G19) -> 2.705751081
A20: GSGI_TN | B20: ='4. Billing Det. for Def-Var'!B19 -> GENERAL SERVICE 500 to 4,999 kW SERVICE CLASSIFICATION | C20: Retail Transmission Rate – Network Service Rate – Interval Metered | D20: $/kW | E20: 3.0681 | F20: 2404520324 | G20: 5647087.148 | H20: =IF(ISERROR(E20*G20), 0, ROUND(E20*G20, 2)) -> 17325828.08 | I20: 0.2518862434 | J20: 16017281.01 | K20: =IF(ISERROR(J20/G20), 0, J20/G20) -> 2.836379285
A21: LU_TN | B21: ='4. Billing Det. for Def-Var'!B20 -> LARGE USE SERVICE CLASSIFICATION | C21: Retail Transmission Rate – Network Service Rate | D21: $/kW | E21: 3.5361 | F21: 68716214.3 | G21: 149959.48 | H21: =IF(ISERROR(E21*G21), 0, ROUND(E21*G21, 2)) -> 530271.72 | I21: 0.00770919294 | J21: 490222.5227 | K21: =IF(ISERROR(J21/G21), 0, J21/G21) -> 3.269033226
A22: USL_TN | B22: ='4. Billing Det. for Def-Var'!B21 -> UNMETERED SCATTERED LOAD SERVICE CLASSIFICATION | C22: Retail Transmission Rate – Network Service Rate | D22: $/kWh | E22: 0.0069 | F22: 14133728.07 | G22: 0 | H22: =IF(ISERROR(E22*F22), 0, ROUND(E22*F22, 2)) -> 97522.72 | I22: 0.001417804186 | J22: 90157.2383 | K22: 0.006378871723
A23: SEN_TN | B23: ='4. Billing Det. for Def-Var'!B23 -> SENTINEL LIGHTING SERVICE CLASSIFICATION | C23: Retail Transmission Rate – Network Service Rate | D23: $/kW | E23: 2.2743 | F23: 326521.158 | G23: 858 | H23: =IF(ISERROR(E23*G23), 0, ROUND(E23*G23, 2)) -> 1951.35 | I23: 2.836910413e-05 | J23: 1803.972725 | K23: =IF(ISERROR(J23/G23), 0, J23/G23) -> 2.102532314
A24: SL_TN | B24: ='4. Billing Det. for Def-Var'!B24 -> STREET LIGHTING SERVICE CLASSIFICATION | C24: Retail Transmission Rate – Network Service Rate | D24: $/kW | E24: 2.9431 | F24: 54796058.17 | G24: 148246.61 | H24: =IF(ISERROR(E24*G24), 0, ROUND(E24*G24, 2)) -> 436304.6 | I24: 0.006343080755 | J24: 403352.3449 | K24: 2.720820023
B27: The purpose of this table is to re-align the current RTS Connection Rates to recover current wholesale connection costs.
B28: Rate Class | C28: Rate Description | D28: Unit | E28: Current RTSR-Connection | F28: Loss Adjusted Billed kWh | G28: Billed kW | H28: Billed Amount | I28: Billed Amount % | J28: Current Wholesale Billing | K28: Adjusted RTSR-Connection
A30: R_TC | B30: =B17 -> RESIDENTIAL SERVICE CLASSIFICATION | C30: =VLOOKUP(A30,RTSR,3,FALSE) -> Retail Transmission Rate – Line and Transformation Connection Service Rate | D30: =VLOOKUP(A30,RTSR,4,FALSE) -> $/kWh | E30: =VLOOKUP(A30,RATES,4,FALSE) -> 0.0038 | F30: =VLOOKUP(A30,RTSR,9,FALSE) -> 2872901322 | G30: =VLOOKUP(A30,RTSR,7,FALSE) -> 0 | H30: =IF(ISERROR(E30*F30), 0, ROUND(E30*F30, 2)) -> 10917025.02 | I30: =H30/SUM(H$30:H$37) -> 0.3543600328 | J30: =I30*total_wholesale_LinePlus -> 10644780.4 | K30: =IF(ISERROR(J30/F30), 0, J30/F30) -> 0.003705237044
A31: GSL_TC | B31: =B18 -> GENERAL SERVICE LESS THAN 50 kW SERVICE CLASSIFICATION | C31: Retail Transmission Rate – Line and Transformation Connection Service Rate | D31: $/kWh | E31: 0.0033 | F31: 1073319242 | G31: 0 | H31: =IF(ISERROR(E31*F31), 0, ROUND(E31*F31, 2)) -> 3541953.5 | I31: =H31/SUM(H$30:H$37) -> 0.1149696695 | J31: 3453625.611 | K31: =IF(ISERROR(J31/F31), 0, J31/F31) -> 0.003217705857
A32: GSG_TC | B32: GENERAL SERVICE GREATER THAN 50 kW SERVICE CLASSIFICATION | C32: Retail Transmission Rate – Line and Transformation Connection Service Rate | D32: $/kW | E32: 1.2618 | F32: 2373987853 | G32: 6491539.069 | H32: =IF(ISERROR(E32*G32), 0, ROUND(E32*G32, 2)) -> 8191024 | I32: 0.2658756875 | J32: 7986759.359 | K32: =IF(ISERROR(J32/G32), 0, J32/G32) -> 1.230333712
A33: GSGI_TC | B33: GENERAL SERVICE 500 to 4,999 kW SERVICE CLASSIFICATION | C33: Retail Transmission Rate – Line and Transformation Connection Service Rate – Interval Metered | D33: $/kW | E33: 1.3652 | F33: 2404520324 | G33: 5647087.148 | H33: =IF(ISERROR(E33*G33), 0, ROUND(E33*G33, 2)) -> 7709403.37 | I33: 0.250242573 | J33: 7517149.201 | K33: =IF(ISERROR(J33/G33), 0, J33/G33) -> 1.331155161
A34: LU_TC | B34: LARGE USE SERVICE CLASSIFICATION | C34: Retail Transmission Rate – Line and Transformation Connection Service Rate | D34: $/kW | E34: 1.3178 | F34: 68716214.3 | G34: 149959.48 | H34: =IF(ISERROR(E34*G34), 0, ROUND(E34*G34, 2)) -> 197616.6 | I34: 0.006414515376 | J34: 192688.5124 | K34: =IF(ISERROR(J34/G34), 0, J34/G34) -> 1.284937187
A35: USL_TC | B35: UNMETERED SCATTERED LOAD SERVICE CLASSIFICATION | C35: Retail Transmission Rate – Line and Transformation Connection Service Rate | D35: $/kWh | E35: 0.0035 | F35: 14133728.07 | G35: 0 | H35: =IF(ISERROR(E35*F35), 0, ROUND(E35*F35, 2)) -> 49468.05 | I35: 0.001605702999 | J35: 48234.43458 | K35: 0.003412718453
A36: SEN_TC | B36: SENTINEL LIGHTING SERVICE CLASSIFICATION | C36: Retail Transmission Rate – Line and Transformation Connection Service Rate | D36: $/kW | E36: 0.9336 | F36: 326521.158 | G36: 858 | H36: =IF(ISERROR(E36*G36), 0, ROUND(E36*G36, 2)) -> 801.03 | I36: 2.600094958e-05 | J36: 781.0542185 | K36: =IF(ISERROR(J36/G36), 0, J36/G36) -> 0.910319602
A37: SL_TC | B37: STREET LIGHTING SERVICE CLASSIFICATION | C37: Retail Transmission Rate – Line and Transformation Connection Service Rate | D37: $/kW | E37: 1.352 | F37: 54796058.17 | G37: 148246.61 | H37: =IF(ISERROR(E37*G37), 0, ROUND(E37*G37, 2)) -> 200429.42 | I37: 0.006505817813 | J37: 195431.1874 | K37: 1.31828436
B40: The purpose of this table is to update the re-aligned RTS Network Rates to recover future wholesale network costs.
B41: Rate Class | C41: Rate Description | D41: Unit | E41: Adjusted RTSR-Network | F41: Loss Adjusted Billed kWh | G41: Billed kW | H41: Billed Amount | I41: Billed Amount % | J41: Current Wholesale Billing | K41: Proposed RTSR-Network
A43: R_TN | B43: =B17 -> RESIDENTIAL SERVICE CLASSIFICATION | C43: =VLOOKUP(A43,RTSR,3,FALSE) -> Retail Transmission Rate – Network Service Rate | D43: =VLOOKUP(A43,RTSR,4,FALSE) -> $/kWh | E43: =K17 -> 0.007580688418 | F43: =VLOOKUP(A43,RTSR,9,FALSE) -> 2872901322 | G43: =VLOOKUP(A43,RTSR,7,FALSE) -> 0 | H43: =IF(ISERROR(E43*F43), 0, ROUND(E43*F43, 2)) -> 21778569.78 | I43: =H43/SUM(H$43:H$50) -> 0.3424877247 | J43: =I43*forecast_wholesale_TN -> 21521928.54 | K43: =IF(ISERROR(J43/F43), 0, J43/F43) -> 0.007491356691
A44: GSL_TN | B44: =B18 -> GENERAL SERVICE LESS THAN 50 kW SERVICE CLASSIFICATION | C44: Retail Transmission Rate – Network Service Rate | D44: $/kWh | E44: =K18 -> 0.006748661645 | F44: 1073319242 | G44: 0 | H44: =IF(ISERROR(E44*F44), 0, ROUND(E44*F44, 2)) -> 7243468.4 | I44: =H44/SUM(H$43:H$50) -> 0.1139100977 | J44: 7158110.513 | K44: =IF(ISERROR(J44/F44), 0, J44/F44) -> 0.006669134619
A45: GSG_TN | B45: GENERAL SERVICE GREATER THAN 50 kW SERVICE CLASSIFICATION | C45: Retail Transmission Rate – Network Service Rate | D45: $/kW | E45: 2.705751081 | F45: 2373987853 | G45: 6491539.069 | H45: =IF(ISERROR(E45*G45), 0, ROUND(E45*G45, 2)) -> 17564488.85 | I45: 0.2762174873 | J45: 17357506.84 | K45: =IF(ISERROR(J45/G45), 0, J45/G45) -> 2.67386619
A46: GSGI_TN | B46: GENERAL SERVICE 500 to 4,999 kW SERVICE CLASSIFICATION | C46: Retail Transmission Rate – Network Service Rate – Interval Metered | D46: $/kW | E46: 2.836379285 | F46: 2404520324 | G46: 5647087.148 | H46: =IF(ISERROR(E46*G46), 0, ROUND(E46*G46, 2)) -> 16017281.01 | I46: 0.2518862434 | J46: 15828531.48 | K46: =IF(ISERROR(J46/G46), 0, J46/G46) -> 2.802955057
A47: LU_TN | B47: LARGE USE SERVICE CLASSIFICATION | C47: Retail Transmission Rate – Network Service Rate | D47: $/kW | E47: 3.269033226 | F47: 68716214.3 | G47: 149959.48 | H47: =IF(ISERROR(E47*G47), 0, ROUND(E47*G47, 2)) -> 490222.52 | I47: 0.007709192898 | J47: 484445.6799 | K47: =IF(ISERROR(J47/G47), 0, J47/G47) -> 3.230510535
A48: USL_TN | B48: UNMETERED SCATTERED LOAD SERVICE CLASSIFICATION | C48: Retail Transmission Rate – Network Service Rate | D48: $/kWh | E48: 0.006378871723 | F48: 14133728.07 | G48: 0 | H48: =IF(ISERROR(E48*F48), 0, ROUND(E48*F48, 2)) -> 90157.24 | I48: 0.001417804213 | J48: 89094.81644 | K48: 0.006303702464
A49: SEN_TN | B49: SENTINEL LIGHTING SERVICE CLASSIFICATION | C49: Retail Transmission Rate – Network Service Rate | D49: $/kW | E49: 2.102532314 | F49: 326521.158 | G49: 858 | H49: =IF(ISERROR(E49*G49), 0, ROUND(E49*G49, 2)) -> 1803.97 | I49: 2.836906128e-05 | J49: 1782.711804 | K49: =IF(ISERROR(J49/G49), 0, J49/G49) -> 2.077752686
A50: SL_TN | B50: STREET LIGHTING SERVICE CLASSIFICATION | C50: Retail Transmission Rate – Network Service Rate | D50: $/kW | E50: 2.720820023 | F50: 54796058.17 | G50: 148246.61 | H50: =IF(ISERROR(E50*G50), 0, ROUND(E50*G50, 2)) -> 403352.34 | I50: 0.006343080679 | J50: 398599.1884 | K50: 2.688757526
B53: The purpose of this table is to update the re-aligned RTS Connection Rates to recover future wholesale connection costs.
B54: Rate Class | C54: Rate Description | D54: Unit | E54: Adjusted RTSR-Connection | F54: Loss Adjusted Billed kWh | G54: Billed kW | H54: Billed Amount | I54: Billed Amount % | J54: Current Wholesale Billing | K54: Proposed RTSR-Connection
A56: R_TC | B56: =B17 -> RESIDENTIAL SERVICE CLASSIFICATION | C56: =VLOOKUP(A56,RTSR,3,FALSE) -> Retail Transmission Rate – Line and Transformation Connection Service Rate | D56: =VLOOKUP(A56,RTSR,4,FALSE) -> $/kWh | E56: =K30 -> 0.003705237044 | F56: =VLOOKUP(A56,RTSR,9,FALSE) -> 2872901322 | G56: =VLOOKUP(A56,RTSR,7,FALSE) -> 0 | H56: =IF(ISERROR(E56*F56), 0, ROUND(E56*F56, 2)) -> 10644780.4 | I56: =H56/SUM(H$56:H$63) -> 0.3543600328 | J56: =I56*forecast_wholesale_LNPlus -> 11611011.83 | K56: =IF(ISERROR(J56/F56), 0, J56/F56) -> 0.004041563049
A57: GSL_TC | B57: =B18 -> GENERAL SERVICE LESS THAN 50 kW SERVICE CLASSIFICATION | C57: Retail Transmission Rate – Line and Transformation Connection Service Rate | D57: $/kWh | E57: =K31 -> 0.003217705857 | F57: 1073319242 | G57: 0 | H57: =IF(ISERROR(E57*F57), 0, ROUND(E57*F57, 2)) -> 3453625.61 | I57: =H57/SUM(H$56:H$63) -> 0.1149696695 | J57: 3767112.735 | K57: =IF(ISERROR(J57/F57), 0, J57/F57) -> 0.003509778441
A58: GSG_TC | B58: GENERAL SERVICE GREATER THAN 50 kW SERVICE CLASSIFICATION | C58: Retail Transmission Rate – Line and Transformation Connection Service Rate | D58: $/kW | E58: 1.230333712 | F58: 2373987853 | G58: 6491539.069 | H58: =IF(ISERROR(E58*G58), 0, ROUND(E58*G58, 2)) -> 7986759.36 | I58: 0.2658756877 | J58: 8711721.041 | K58: =IF(ISERROR(J58/G58), 0, J58/G58) -> 1.342011648
A59: GSGI_TC | B59: GENERAL SERVICE 500 to 4,999 kW SERVICE CLASSIFICATION | C59: Retail Transmission Rate – Line and Transformation Connection Service Rate – Interval Metered | D59: $/kW | E59: 1.331155161 | F59: 2404520324 | G59: 5647087.148 | H59: =IF(ISERROR(E59*G59), 0, ROUND(E59*G59, 2)) -> 7517149.2 | I59: 0.2502425731 | J59: 8199484.159 | K59: =IF(ISERROR(J59/G59), 0, J59/G59) -> 1.451984704
A60: LU_TC | B60: LARGE USE SERVICE CLASSIFICATION | C60: Retail Transmission Rate – Line and Transformation Connection Service Rate | D60: $/kW | E60: 1.284937187 | F60: 68716214.3 | G60: 149959.48 | H60: =IF(ISERROR(E60*G60), 0, ROUND(E60*G60, 2)) -> 192688.51 | I60: 0.006414515299 | J60: 210178.9313 | K60: =IF(ISERROR(J60/G60), 0, J60/G60) -> 1.401571487
A61: USL_TC | B61: UNMETERED SCATTERED LOAD SERVICE CLASSIFICATION | C61: Retail Transmission Rate – Line and Transformation Connection Service Rate | D61: $/kWh | E61: 0.003412718453 | F61: 14133728.07 | G61: 0 | H61: =IF(ISERROR(E61*F61), 0, ROUND(E61*F61, 2)) -> 48234.43 | I61: 0.001605702847 | J61: 52612.69056 | K61: 0.003722492064
A62: SEN_TC | B62: SENTINEL LIGHTING SERVICE CLASSIFICATION | C62: Retail Transmission Rate – Line and Transformation Connection Service Rate | D62: $/kW | E62: 0.910319602 | F62: 326521.158 | G62: 858 | H62: =IF(ISERROR(E62*G62), 0, ROUND(E62*G62, 2)) -> 781.05 | I62: 2.600080915e-05 | J62: 851.9462541 | K62: =IF(ISERROR(J62/G62), 0, J62/G62) -> 0.9929443521
A63: SL_TC | B63: STREET LIGHTING SERVICE CLASSIFICATION | C63: Retail Transmission Rate – Line and Transformation Connection Service Rate | D63: $/kW | E63: 1.31828436 | F63: 54796058.17 | G63: 148246.61 | H63: =IF(ISERROR(E63*G63), 0, ROUND(E63*G63, 2)) -> 195431.19 | I63: 0.006505817904 | J63: 213170.5656 | K63: 1.437945634

Sheet 17. Rev2Cost-GDPIPI
A1: Back to Index | AA1: FALSE | AB1: 0 | AE1: NO
C2: INCENTIVE REGULATION MODEL FOR 2018 FILERS | S2: TRUE
C11: If applicable, please enter any adjustments related to the revenue to cost ratio model into columns C and E. The Price Escalator and Stretch Factor have been set at the 2016 values and will be updated by OEB staff at a later date.
C12: Price Escalator | D12: 0.012 | E12: Productivity Factor | F12: 0 | G12: # of Residential Customers (approved in the last CoS) | H12: 331460.9167 | I12: Effective Year of Residential Rate Design Transition (yyyy) | J12: 2017
C13: Choose Stretch Factor Group | D13: III | E13: Price Cap Index | F13: =D12-F12-D14 -> 0.009 | G13: Billed kWh for Residential Class (approved in the last CoS) | H13: 2689802037 | I13: OEB-approved # of Transition Years | J13: 4
C14: Associated Stretch Factor Value | D14: =IF(D13="I", 0%, IF(D13="II", 0.15%, IF(D13="III", 0.3%, IF(D13="IV", 0.45%, 0.6%)))) -> 0.003 | G14: Rate Design Transition Years Left | H14: 3
C15: Rate Class | D15: Current MFC | E15: MFC Adjustment from R/C Model | F15: Current Volumetric Charge | G15: DVR Adjustment from R/C Model | H15: Price Cap Index to be Applied to MFC and DVR | I15: Proposed MFC | J15: Proposed Volumetric Charge
A17: R_F | B17: R_V | C17: ='4. Billing Det. for Def-Var'!B17 -> RESIDENTIAL SERVICE CLASSIFICATION | D17: =IFERROR(VLOOKUP(A17,RATES,4,FALSE),"") -> 18.51 | F17: =IFERROR(VLOOKUP(B17,RATES,4,FALSE),"") -> 0.013 | H17: =F13 -> 0.009 | I17: =ROUND(J28*(1+F13),2) -> 21.63 | J17: =ROUND(J29*(1+F13),4) -> 0.0088
A18: GSL_F | B18: GSL_V | C18: ='4. Billing Det. for Def-Var'!B18 -> GENERAL SERVICE LESS THAN 50 kW SERVICE CLASSIFICATION | D18: 28.74 | F18: 0.0183 | H18: =F13 -> 0.009 | I18: =ROUND((D18+E18)*(1+F$13),2) -> 29 | J18: =ROUND((F18+G18)*(1+F$13),4) -> 0.0185
A19: GSG_F | B19: GSG_V | C19: ='4. Billing Det. for Def-Var'!B19 -> GENERAL SERVICE 500 to 4,999 kW SERVICE CLASSIFICATION | D19: 140.97 | F19: 4.2037 | H19: =F13 -> 0.009 | I19: =ROUND((D19+E19)*(1+F$13),2) -> 142.24 | J19: =ROUND((F19+G19)*(1+F$13),4) -> 4.2415
A20: LU_F | B20: LU_V | C20: ='4. Billing Det. for Def-Var'!B20 -> LARGE USE SERVICE CLASSIFICATION | D20: 6073.68 | F20: 2.2421 | H20: =F13 -> 0.009 | I20: 6128.34 | J20: 2.2623
A21: USL_F | B21: USL_V | C21: ='4. Billing Det. for Def-Var'!B21 -> UNMETERED SCATTERED LOAD SERVICE CLASSIFICATION | D21: 8.6 | F21: 0.0195 | H21: =F13 -> 0.009 | I21: 8.68 | J21: 0.0197
B22: SB_V | C22: ='4. Billing Det. for Def-Var'!B22 -> STANDBY POWER SERVICE CLASSIFICATION | F22: 2.8081 | H22: =F13 -> 0.009 | J22: 2.8334
A23: SEN_F | B23: SEN_V | C23: ='4. Billing Det. for Def-Var'!B23 -> SENTINEL LIGHTING SERVICE CLASSIFICATION | D23: 4.19 | F23: 9.8694 | H23: =F13 -> 0.009 | I23: 4.23 | J23: 9.9582
A24: SL_F | B24: SL_V | C24: ='4. Billing Det. for Def-Var'!B24 -> STREET LIGHTING SERVICE CLASSIFICATION | D24: 1.19 | F24: 6.3222 | H24: =F13 -> 0.009 | I24: 1.2 | J24: 6.3791
A25: MF | C25: microFIT SERVICE CLASSIFICATION | D25: 5.4 | I25: 5.4
C27: Rate Design Transition | E27: Revenue from Rates | F27: Current F/V Split | G27: Decoupling MFC Split | H27: Incremental Fixed Charge ($/month/year) | I27: New F/V Split | J27: Adjusted Rates1 | K27: Revenue at New F/V Split
C28: Current Residential Fixed Rate (inclusive of R/C adj.) | D28: =D17+E17 -> 18.51 | E28: =D28*COS_RES_CUSTOMERS*12 -> 73624098.81 | F28: =IF(ISERROR(E28/E30), 0, E28/E30) -> 0.6779912025 | G28: =IF(ISERROR((1-F28)/YRS_LEFT), 0, (1-F28)/YRS_LEFT) -> 0.1073362658 | H28: =IF(ISERROR(ROUND(G28*E30/COS_RES_CUSTOMERS/12, 2)), 0, ROUND(G28*E30/COS_RES_CUSTOMERS/12, 2)) -> 2.93 | I28: =G28+F28 -> 0.7853274683 | J28: =IF(ISERROR(ROUND(I28*E30/COS_RES_CUSTOMERS/12, 2)), 0, ROUND(I28*E30/COS_RES_CUSTOMERS/12, 2)) -> 21.44 | K28: =ROUND(J28*COS_RES_CUSTOMERS*12, 2) -> 85278264.64
C29: Current Residential Variable Rate (inclusive of R/C adj.) | D29: =F17+G17 -> 0.013 | E29: =D29*COS_RES_KWH -> 34967426.48 | F29: =IF(ISERROR(E29/E30), 0, E29/E30) -> 0.3220087975 | I29: =1-I28 -> 0.2146725317 | J29: =IF(ISERROR(ROUND(I29*E30/COS_RES_KWH, 4)), 0, ROUND(I29*E30/COS_RES_KWH, 4)) -> 0.0087 | K29: =ROUND(J29*COS_RES_KWH, 2) -> 23401277.72
E30: =SUM(E28+E29) -> 108591525.3 | K30: =SUM(K28+K29) -> 108679542.4
C33: =IF((J28-D28)>=4, "The Rate Design Transition has calculated a monthly fixed charge greater than or equal to $4. Please refer to Section 3.2.3 of the Chapter 3 Filing Requirements for mitigation instructions.", "") -> 
C35: 1 These are the residential rates to which the Price Cap Index will be applied to.

Sheet 18. Regulatory Charges
A1: Back to Index
B2: INCENTIVE REGULATION MODEL FOR 2018 FILERS
C12: Update the following rates if an OEB Decision has been issued at the time of completing this application
E13: Proposed
C14: Wholesale Market Service Rate (WMS) - not including CBR | D14: $/kWh | E14: 0.0032
C15: Capacity Based Recovery (CBR) - Applicable for Class B Customers | D15: $/kWh | E15: 0.0004
C16: Rural or Remote Electricity Rate Protection Charge (RRRP) | D16: $/kWh | E16: 0.0003
C17: Standard Supply Service - Administrative Charge (if applicable) | D17: $ | E17: 0.25
C18: Ontario Electricity Support Program (OESP) | D18: $/kWh | E18: 0
C21: Time-of-Use RPP Prices
C22: As of | D22: 2017-07-01
C23: Off-Peak | D23: $/kWh | E23: 0.065
C24: Mid-Peak | D24: $/kWh | E24: 0.095
C25: On-Peak | D25: $/kWh | E25: 0.132
C28: Debt Retirement Charge (DRC)
C29: Debt Retirement Charge (DRC) | D29: $/kWh | E29: 0.007 | F29: If your utility's DRC differs from the value in Cell D29, please update this value.

Sheet 19. Additional Rates
A1: Back to Index | AA1: 3
A2: INCENTIVE REGULATION MODEL FOR 2018 FILERS
A11: In the Green Cells below, enter any proposed rate riders that are not already included in this model (e.g.: proposed ICM rate riders). Please note that existing SMIRR and SM Entity Charge do not need to be included below. In column A, the rate rider descriptions must begin with "Rate Rider for". In column B, choose the associated unit from the drop-down menu. In column C, enter the rate. All rate riders with a "$" unit should be rounded to 2 decimal places and all others rounded to 4 decimal places. In column E, enter the expiry date (e.g. April 30, 2018) or description of the expiry date in text (e.g. the effective date of the next cost of service-based rate order). In column G, choose the sub-total as applicable in the bill impact calculation from the drop-down menu
A13: RESIDENTIAL SERVICE CLASSIFICATION
A14: Rate Rider for Incremental Capital Module (ICM) | B14: $ | C14: =ROUND('[4]12. Opt 1-Rate Rider Calc F & V'!$O$17,2) -> 0.11 | D14: - effective until | E14: next COS | G14: A
A15: Rate Rider for Recovery of Lost Revenue Adjustment Mechanism Variance Account (2014-15 balances) | B15: $/kWh | C15: ='8. Calculation of Def-Var RR'!L17 -> 0 | D15: - effective until | E15: 2019-04-30 | G15: A
A16: Rate Rider for Disposition of Capacity Based Recovery Account (2017) - Applicable only for Class B Customers | B16: $/kWh | C16: ='7. CBR Calculation'!O22 -> 0.0002439315716 | D16: - effective until | E16: 2019-04-30 | G16: B
A17: Rate Rider for Recovery of 2018 Foregone Revenue | B17: $ | C17: 0.14 | D17: - effective until | E17: 2018-12-31 | G17: A
D18: - effective until
D19: - effective until
D20: - effective until
D21: - effective until
D22: - effective until
D23: - effective until
A26: GS<50 SERVICE CLASSIFICATION
A27: Rate Rider for Incremental Capital Module (ICM) | B27: $ | C27: =ROUND('[4]12. Opt 1-Rate Rider Calc F & V'!$O$18,2) -> 0.12 | D27: - effective until | E27: next COS | G27: A
A28: Rate Rider for Incremental Capital Module (ICM) | B28: $/kWh | C28: =ROUND('[4]12. Opt 1-Rate Rider Calc F & V'!$P$18,4) -> 0.0001 | D28: - effective until | E28: next COS | G28: A
A29: Rate Rider for Recovery of Lost Revenue Adjustment Mechanism Variance Account (2014-15 balances) | B29: $/kWh | C29: ='8. Calculation of Def-Var RR'!L18 -> 0.0009 | D29: - effective until | E29: 2019-04-30 | G29: A
A30: Rate Rider for Disposition of Capacity Based Recovery Account (2017) - Applicable only for Class B Customers | B30: $/kWh | C30: ='7. CBR Calculation'!O23 -> 0.0002439315716 | D30: - effective until | E30: 2019-04-30 | G30: B
A31: Rate Rider for Recovery of 2018 Foregone Revenue | B31: $ | C31: 0.4 | D31: - effective until | E31: 2018-12-31 | G31: A
D32: - effective until
D33: - effective until
D34: - effective until
D35: - effective until
A38: GS>50 SERVICE CLASSIFICATION
A39: Rate Rider for Incremental Capital Module (ICM) | B39: $ | C39: =ROUND('[4]12. Opt 1-Rate Rider Calc F & V'!$O$19,2) -> 0.57 | D39: - effective until | E39: next COS | G39: A
A40: Rate Rider for Incremental Capital Module (ICM) | B40: $/kW | C40: =ROUND('[4]12. Opt 1-Rate Rider Calc F & V'!$Q$19,4) -> 0.0168 | D40: - effective until | E40: next COS | G40: A
A41: Rate Rider for Recovery of Lost Revenue Adjustment Mechanism Variance Account (2014-15 balances) | B41: $/kW | C41: ='8. Calculation of Def-Var RR'!L19 -> 0.0796 | D41: - effective until | E41: 2019-04-30 | G41: A
A42: Rate Rider for Disposition of Capacity Based Recovery Account (2017) - Applicable only for Class B Customers | B42: $/kW | C42: ='7. CBR Calculation'!O24 -> 0.09050975291 | D42: - effective until | E42: 2019-04-30 | G42: B
A43: Rate Rider for Recovery of 2018 Foregone Revenue | B43: $ | C43: 4.21 | D43: - effective until | E43: 2018-12-31 | G43: A
D44: - effective until
D45: - effective until
D46: - effective until
D47: - effective until
A50: LARGE USER SERVICE CLASSIFICATION
A51: Rate Rider for Incremental Capital Module (ICM) | B51: $ | C51: =ROUND('[4]12. Opt 1-Rate Rider Calc F & V'!$O$20,2) -> 24.34 | D51: - effective until | E51: next COS | G51: A
A52: Rate Rider for Incremental Capital Module (ICM) | B52: $/kW | C52: =ROUND('[4]12. Opt 1-Rate Rider Calc F & V'!$Q$20,4) -> 0.009 | D52: - effective until | E52: next COS | G52: A
A53: Rate Rider for Recovery of Lost Revenue Adjustment Mechanism Variance Account (2014-15 balances) | B53: $/kW | C53: ='8. Calculation of Def-Var RR'!L20 -> -0.0723 | D53: - effective until | E53: 2019-04-30 | G53: A
A54: Rate Rider for Disposition of Capacity Based Recovery Account (2017) - Applicable only for Class B Customers | B54: $/kW | C54: ='7. CBR Calculation'!O25 -> -8.411430966e-06 | D54: - effective until | E54: 2019-04-30 | G54: B
A55: Rate Rider for Recovery of 2018 Foregone Revenue | B55: $ | C55: 97.02 | D55: - effective until | E55: 2018-12-31 | G55: A
D56: - effective until
D57: - effective until
D58: - effective until
D59: - effective until
A62: UNMETERED SCATTERED LOAD SERVICE CLASSIFICATION
A63: Rate Rider for Incremental Capital Module (ICM) | B63: $ | C63: =ROUND('[4]12. Opt 1-Rate Rider Calc F & V'!$O$21,2) -> 0.03 | D63: - effective until | E63: next COS | G63: A
A64: Rate Rider for Incremental Capital Module (ICM) | B64: $/kWh | C64: =ROUND('[4]12. Opt 1-Rate Rider Calc F & V'!$P$21,4) -> 0.0001 | D64: - effective until | E64: next COS | G64: A
A65: Rate Rider for Recovery of Lost Revenue Adjustment Mechanism Variance Account (2014-15 balances) | B65: $/kWh | C65: ='8. Calculation of Def-Var RR'!L21 -> -0.0005 | D65: - effective until | E65: 2019-04-30 | G65: A
A66: Rate Rider for Disposition of Capacity Based Recovery Account (2017) - Applicable only for Class B Customers | B66: $/kWh | C66: ='7. CBR Calculation'!O26 -> 0.0002439315716 | D66: - effective until | E66: 2019-04-30 | G66: B
A67: Rate Rider for Recovery of 2018 Foregone Revenue | B67: $ | C67: 0.08 | D67: - effective until | E67: 2018-12-31 | G67: A
D68: - effective until
D69: - effective until
D70: - effective until
D71: - effective until
A74: SENTINEL LIGHTING SERVICE CLASSIFICATION
A75: Rate Rider for Incremental Capital Module (ICM) | B75: $ | C75: =ROUND('[4]12. Opt 1-Rate Rider Calc F & V'!$O$22,2) -> 0.02 | D75: - effective until | E75: next COS | G75: A
A76: Rate Rider for Incremental Capital Module (ICM) | B76: $/kW | C76: =ROUND('[4]12. Opt 1-Rate Rider Calc F & V'!$Q$22,4) -> 0.0396 | D76: - effective until | E76: next COS | G76: A
A77: Rate Rider for Recovery of Lost Revenue Adjustment Mechanism Variance Account (2014-15 balances) | B77: $/kW | C77: ='8. Calculation of Def-Var RR'!L23 -> -0.385 | D77: - effective until | E77: 2019-04-30 | G77: A
A78: Rate Rider for Disposition of Capacity Based Recovery Account (2017) - Applicable only for Class B Customers | B78: $/kW | C78: ='7. CBR Calculation'!O28 -> 0.08952723661 | D78: - effective until | E78: 2019-04-30 | G78: B
A79: Rate Rider for Recovery of 2018 Foregone Revenue | B79: $ | C79: 0.04 | D79: - effective until | E79: 2018-12-31 | G79: A
D80: - effective until
D81: - effective until
D82: - effective until
D83: - effective until
A86: STREET LIGHTING SERVICE CLASSIFICATION
A87: Rate Rider for Incremental Capital Module (ICM) | B87: $ | C87: =ROUND('[4]12. Opt 1-Rate Rider Calc F & V'!$O$23,2) -> 0 | D87: - effective until | E87: next COS | G87: A
A88: Rate Rider for Incremental Capital Module (ICM) | B88: $/kW | C88: =ROUND('[4]12. Opt 1-Rate Rider Calc F & V'!$Q$23,4) -> 0.0253 | D88: - effective until | E88: next COS | G88: A
A89: Rate Rider for Recovery of Lost Revenue Adjustment Mechanism Variance Account (2014-15 balances) | B89: $/kW | C89: ='8. Calculation of Def-Var RR'!L24 -> 0.5854 | D89: - effective until | E89: 2019-04-30 | G89: A
A90: Rate Rider for Disposition of Capacity Based Recovery Account (2017) - Applicable only for Class B Customers | B90: $/kW | C90: ='7. CBR Calculation'!O29 -> 0.08695522565 | D90: - effective until | E90: 2019-04-30 | G90: B
A91: Rate Rider for Recovery of 2018 Foregone Revenue | B91: $ | C91: 0.01 | D91: - effective until | E91: 2018-12-31 | G91: A
D92: - effective until
D93: - effective until
D94: - effective until
D95: - effective until
A98: MICROFIT SERVICE CLASSIFICATION
D99: - effective until
D100: - effective until
D101: - effective until
D102: - effective until
D103: - effective until
D104: - effective until
D105: - effective until
D106: - effective until
D107: - effective until
D108: - effective until

Sheet 20. Final Tariff Schedule
A1: Back to Index
B2: INCENTIVE REGULATION MODEL FOR 2018 FILERS
B10: Alectra Utilities Corporation
B11: PowerStream Rate Zone
B12: TARIFF OF RATES AND CHARGES
B13: Effective Date January 1, 2018
B14: Implementation Date May 1, 2018
B16: This schedule supersedes and replaces all previously
B17: approved schedules of Rates, Charges and Loss Factors
C18: EB-2017-0024
B21: RESIDENTIAL SERVICE CLASSIFICATION
B22: This classification refers to an account taking electricity at 750 volts or less where the electricity is used exclusively in a separately metered living accommodation. Customers shall be residing in single-dwelling units that consist of a detached house or one unit of a semi-detached, duplex, triplex or quadruplex house, with a residential zoning. Separately metered dwellings within a town house complex or apartment building also qualify as residential customers. Multi-unit residential establishments such as apartment buildings supplied through one service (bulk metered) shall be classified as general service. Class B consumers are defined in accordance with O. Reg. 429/04. Further servicing details are available in the distributor’s Conditions of Service.
B24: APPLICATION
B26: The application of these rates and charges shall be in accordance with the Licence of the Distributor and any Code or Order of the Ontario Energy Board, and amendments thereto as approved by the Ontario Energy Board, which may be applicable to the administration of this schedule.
B28: No rates and charges for the distribution of electricity and charges to meet the costs of any work or service done or furnished for the purpose of the distribution of electricity shall be made except as permitted by this schedule, unless required by the Distributor’s Licence or a Code or Order of the Ontario Energy Board, and amendments thereto as approved by the Ontario Energy Board, or as specified herein.
B30: Unless specifically noted, this schedule does not contain any charges for the electricity commodity, be it under the Regulated Price Plan, a contract with a retailer or the wholesale market price, as applicable. In addition, the charges in the MONTHLY RATES AND CHARGES – Regulatory Component of this schedule do not apply to a customer that is an embedded wholesale market participant.
B32: It should be noted that this schedule does not list any charges, assessments or credits that are required by law to be invoiced by a distributor and that are not subject to Ontario Energy Board approval, such as the Debt Retirement Charge, the Global Adjustment and the HST.
B33: MONTHLY RATES AND CHARGES – Delivery Component
B35: =RATES!C14 -> Service Charge | C35: =RATES!G14 -> $ | D35: =RATES!I14 -> 21.63
B36: Smart Metering Entity Charge - effective until December 31, 2022 | C36: $ | D36: 0.57 | E36: 1
B37: =RATES!C19 -> Rate Rider for Disposition of Group 2 Deferral/Variance Accounts (2016) – effective until September 30, 2018 | C37: =RATES!G19 -> $ | D37: =RATES!I19 -> 0.12 | E37: 1
B38: =RATES!C20 -> Rate Rider for Recovery of Stranded Meter Assets (2016) – effective until September 30, 2018 | C38: =RATES!G20 -> $ | D38: =RATES!I20 -> 0.06 | E38: 1
B39: =RATES!C24 -> Rate Rider for Recovery of ICM (2018) - in effect from May 1, 2018 until the effective date of the next cost of service based rate order | C39: =RATES!G24 -> $ | D39: =RATES!I24 -> 0.11 | E39: 1
B40: =RATES!C30 -> Rate Rider for Recovery of 2018 Foregone Revenue - effective until December 31, 2018 | C40: =RATES!G30 -> $ | D40: =RATES!I30 -> 0.14 | E40: 1
B41: =RATES!C15 -> Distribution Volumetric Rate | C41: =RATES!G15 -> $/kWh | D41: =RATES!I15 -> 0.0088
B42: =RATES!C16 -> Low Voltage Service Rate | C42: =RATES!G16 -> $/kWh | D42: =RATES!I16 -> 0.0005
B43: =RATES!C29 -> Rate Rider for Disposition of Global Adjustment Account (2016) - effective until September 30, 2018 Applicable only for Non-RPP Customers | C43: =RATES!G29 -> $/kWh | D43: =RATES!I29 -> 0.0062 | E43: 1
B44: =RATES!C27 -> Rate Rider for Disposition of Global Adjustment Account (2018) - effective until April 30, 2019 Applicable only for Non-RPP Customers | C44: =RATES!G27 -> $/kWh | D44: =RATES!I27 -> 0.0004 | E44: 1
B45: =RATES!C21 -> Rate Rider for Disposition of Deferral/Variance Accounts (2016) – effective until September 30, 2018 | C45: =RATES!G21 -> $/kWh | D45: =RATES!I21 -> 0.0003 | E45: 1
B46: =RATES!C22 -> Rate Rider for Disposition of Deferral/Variance Account – Power (2016) – effective until September 30, 2018 | C46: =RATES!G22 -> $/kWh | D46: =RATES!I22 -> -0.0003 | E46: 1
B47: =RATES!C26 -> Rate Rider for Disposition of Deferral/Variance Accounts (2018) - effective until April 30, 2019 | C47: =RATES!G26 -> $/kWh | D47: =RATES!I26 -> -0.003 | E47: 1
B48: =RATES!C28 -> Rate Rider for Disposition of Capacity Based Recovery Account (2018) - effective until April 30, 2019 Applicable Only for Class B Customers | C48: =RATES!G28 -> $/kWh | D48: =RATES!I28 -> 0.0002 | E48: 1
B49: Retail Transmission Rate - Network Service Rate | C49: $/kWh | D49: =RATES!I37 -> 0.0075 | E49: 1
B50: Retail Transmission Rate - Line and Transformation Connection Service Rate | C50: $/kWh | D50: =RATES!I38 -> 0.004 | E50: 1
B52: MONTHLY RATES AND CHARGES – Regulatory Component
B54: Wholesale Market Service Rate (WMS) - not including CBR | C54: $/kWh | D54: 0.0032
B55: Capacity Based Recovery (CBR) - Applicable for Class B Customers | C55: $/kWh | D55: 0.0004
B56: Rural or Remote Electricity Rate Protection Charge (RRRP) | C56: $/kWh | D56: 0.0003
B57: Standard Supply Service – Administrative Charge (if applicable) | C57: $ | D57: 0.25
B59: GENERAL SERVICE LESS THAN 50 kW SERVICE CLASSIFICATION
B61: This classification refers to a non-residential account taking electricity at 750 volts or less wheose monthly average peak demand is less than, or is forecast to be less than, 50 kW. Class B consumers are defined in accordance with O. Reg. 429/04. Further servicing details are available in the distributor’s Conditions of Service.
B63: APPLICATION
B65: The application of these rates and charges shall be in accordance with the Licence of the Distributor and any Code or Order of the Ontario Energy Board, and amendments thereto as approved by the Ontario Energy Board, which may be applicable to the administration of this schedule.
B67: No rates and charges for the distribution of electricity and charges to meet the costs of any work or service done or furnished for the purpose of the distribution of electricity shall be made except as permitted by this schedule, unless required by the Distributor’s Licence or a Code or Order of the Ontario Energy Board, and amendments thereto as approved by the Ontario Energy Board, or as specified herein.
B69: Unless specifically noted, this schedule does not contain any charges for the electricity commodity, be it under the Regulated Price Plan, a contract with a retailer or the wholesale market price, as applicable. In addition, the charges in the MONTHLY RATES AND CHARGES – Regulatory Component of this schedule do not apply to a customer that is an embedded wholesale market participant.
B71: It should be noted that this schedule does not list any charges, assessments or credits that are required by law to be invoiced by a distributor and that are not subject to Ontario Energy Board approval, such as the Debt Retirement Charge, the Global Adjustment and the HST.
B73: MONTHLY RATES AND CHARGES – Delivery Component
B75: =RATES!C42 -> Service Charge | C75: =RATES!G42 -> $ | D75: =RATES!I42 -> 29 | E75: 1
B76: Smart Metering Entity Charge - effective until December 31, 2022 | C76: $ | D76: 0.57 | E76: 1
B77: =RATES!C51 -> Rate Rider for Recovery of Stranded Meter Assets (2016) – effective until September 30, 2018 | C77: =RATES!G51 -> $ | D77: =RATES!I51 -> 0.21 | E77: 1
B78: =RATES!C52 -> Rate Rider for Recovery of ICM (2018) - in effect from May 1, 2018 until the effective date of the next cost of service based rate order | C78: =RATES!G52 -> $ | D78: =RATES!I52 -> 0.12 | E78: 1
B79: =+RATES!C60 -> Rate Rider for Recovery of 2018 Foregone Revenue - effective until December 31, 2018 | C79: =RATES!G59 -> $ | D79: =RATES!I59 -> 0.4 | E79: 1
B80: =RATES!C43 -> Distribution Volumetric Rate | C80: =RATES!G43 -> $/kWh | D80: =RATES!I43 -> 0.0185 | E80: 1
B81: =RATES!C44 -> Low Voltage Service Rate | C81: =RATES!G44 -> $/kWh | D81: =RATES!I44 -> 0.0004 | E81: 1
B82: =RATES!C58 -> Rate Rider for Disposition of Global Adjustment Account (2016) - effective until September 30, 2018 Applicable only for Non-RPP Customers | C82: =RATES!G58 -> $/kWh | D82: =RATES!I58 -> 0.0062 | E82: 1
B83: =RATES!C56 -> Rate Rider for Disposition of Global Adjustment Account (2018) - effective until April 30, 2019 Applicable only for Non-RPP Customers | C83: =RATES!G56 -> $/kWh | D83: =RATES!I56 -> 0.0004 | E83: 1
B84: =RATES!C45 -> Rate Rider for Disposition of Deferral/Variance Accounts (2016) – effective until September 30, 2018 | C84: =RATES!G45 -> $/kWh | D84: =RATES!I45 -> 0.0003 | E84: 1
B85: =RATES!C46 -> Rate Rider for Disposition of Deferral/Variance Account – Power (2016) – effective until September 30, 2018 | C85: =RATES!G46 -> $/kWh | D85: =RATES!I46 -> -0.0003 | E85: 1
B86: =RATES!C55 -> Rate Rider for Disposition of Deferral/Variance Accounts (2018) - effective until April 30, 2019 | C86: =RATES!G55 -> $/kWh | D86: =RATES!I55 -> -0.003 | E86: 1
B87: =RATES!C48 -> Rate Rider for Disposition of Group 2 Deferral/Variance Accounts (2016) – effective until September 30, 2018 | C87: =RATES!G48 -> $/kWh | D87: =RATES!I48 -> 0.0002 | E87: 1
B88: =RATES!C53 -> Rate Rider for Recovery of ICM (2018) - in effect from May 1, 2018 until the effective date of the next cost of service based rate order | C88: =RATES!G53 -> $/kWh | D88: =RATES!I53 -> 0.0001 | E88: 1
B89: =RATES!C57 -> Rate Rider for Disposition of Capacity Based Recovery Account (2018) - effective until April 30, 2019 Applicable Only for Class B Customers | C89: =RATES!G57 -> $/kWh | D89: =RATES!I57 -> 0.0002 | E89: 1
B90: =RATES!C54 -> Rate Rider for Disposition of Lost Revenue Adjustment Mechanism Variance Account (LRAMVA) (2018) - effective until April 30, 2019 | C90: =RATES!G54 -> $/kWh | D90: =RATES!I54 -> 0.0009 | E90: 1
B91: Retail Transmission Rate - Network Service Rate | C91: $/kWh | D91: =RATES!I66 -> 0.0067 | E91: 1
B92: Retail Transmission Rate - Line and Transformation Connection Service Rate | C92: $/kWh | D92: =RATES!I67 -> 0.0035 | E92: 1
B94: MONTHLY RATES AND CHARGES – Regulatory Component
B96: Wholesale Market Service Rate (WMS) - not including CBR | C96: $/kWh | D96: 0.0032
B97: Capacity Based Recovery (CBR) - Applicable for Class B Customers | C97: $/kWh | D97: 0.0004
B98: Rural or Remote Electricity Rate Protection Charge (RRRP) | C98: $/kWh | D98: 0.0003
B99: Standard Supply Service – Administrative Charge (if applicable) | C99: $ | D99: 0.25
B100: GENERAL SERVICE 50 to 4,999 kW SERVICE CLASSIFICATION
B102: This classification refers to a non-residential account whose monthly average peak demand is equal to or greater than, or is forecast to be equal to or greater than, 50 kW but less than 5,000 kW, both regular and interval metered. Class A and Class B consumers are defined in accordance with O. Reg. 429/04. Further servicing details are available in the distributor’s Conditions of Service.
B104: APPLICATION
B106: The application of these rates and charges shall be in accordance with the Licence of the Distributor and any Code or Order of the Ontario Energy Board, and amendments thereto as approved by the Ontario Energy Board, which may be applicable to the administration of this schedule.
B108: No rates and charges for the distribution of electricity and charges to meet the costs of any work or service done or furnished for the purpose of the distribution of electricity shall be made except as permitted by this schedule, unless required by the Distributor’s Licence or a Code or Order of the Ontario Energy Board, and amendments thereto as approved by the Ontario Energy Board, or as specified herein.
B110: Unless specifically noted, this schedule does not contain any charges for the electricity commodity, be it under the Regulated Price Plan, a contract with a retailer or the wholesale market price, as applicable. In addition, the charges in the MONTHLY RATES AND CHARGES – Regulatory Component of this schedule do not apply to a customer that is an embedded wholesale market participant.
B112: The rate rider for the disposition of WMS – Sub-account CBR Class B is not applicable to wholesale market participants (WMP), customers that transitioned between Class A and Class B during the variance account accumulation period, or to customers that were in Class A for the entire period. Customers who transitioned are to be charged or refunded their share of the variance disposed through customer specific billing adjustments. This rate rider is to be consistently applied for the entire period to the sunset date of the rate rider. In addition, this rate rider is applicable to all new Class B customers.
B114: The rate rider for the disposition of Global Adjustment is only applicable to non-RPP Class B customers. It is not applicable to WMP customers that transitioned between Class A and Class B during the variance account accumulation period, or to customers that were in Class A for the entire period. Customers who transitioned are to be charged or refunded their share of the variance disposed through customer specific billing adjustments. This rate order is applicable to all new non-RPP Class B customers.
B116: It should be noted that this schedule does not list any charges, assessments or credits that are required by law to be invoiced by a distributor and that are not subject to Ontario Energy Board approval, such as the Debt Retirement Charge, the Global Adjustment and the HST.
B118: MONTHLY RATES AND CHARGES – Delivery Component
B120: =RATES!C71 -> Service Charge | C120: =RATES!G71 -> $ | D120: =RATES!I71 -> 142.24 | E120: 1
B121: =RATES!C81 -> Rate Rider for Recovery of ICM (2018) - in effect from May 1, 2018 until the effective date of the next cost of service based rate order | C121: =RATES!G81 -> $ | D121: =RATES!I81 -> 0.57 | E121: 1
B122: =+RATES!C92 -> Rate Rider for Recovery of 2018 Foregone Revenue - effective until December 31, 2018 | C122: =+RATES!G91 -> $ | D122: =+RATES!I91 -> 4.21 | E122: 1
B123: =RATES!C72 -> Distribution Volumetric Rate | C123: =RATES!G72 -> $/kW | D123: =RATES!I72 -> 4.2415 | E123: 1
B124: =RATES!C73 -> Low Voltage Service Rate | C124: =RATES!G73 -> $/kW | D124: =RATES!I73 -> 0.1589 | E124: 1
B125: =RATES!C89 -> Rate Rider for Disposition of Global Adjustment Account (2016) – effective until September 30, 2018 Applicable only to non-RPP non-Interval Metered Customers | C125: =RATES!G89 -> $/kW | D125: =RATES!I89 -> 2.3303 | E125: 1
B126: =RATES!C90 -> Rate Rider for Disposition of Global Adjustment Account (2016) – effective until September 30, 2018 Applicable only for Class B Interval Metered Customers at December 31, 2016 | C126: =RATES!G90 -> $/kW | D126: =RATES!I90 -> -1.6412 | E126: 1
B127: =RATES!C85 -> Rate Rider for Disposition of Global Adjustment Account (2018) - effective until April 30, 2019 Applicable only for Non-RPP Customers | C127: =RATES!G85 -> $/kWh | D127: =RATES!I85 -> 0.0004 | E127: 1
B128: =RATES!C75 -> Rate Rider for Disposition of Deferral/Variance Accounts (2016) – effective until September 30, 2018 | C128: =RATES!G75 -> $/kW | D128: =RATES!I75 -> 0.1169 | E128: 1
B129: =RATES!C76 -> Rate Rider for Disposition of Deferral/Variance Account – Power (2016) – effective until September 30, 2018 | C129: =RATES!G76 -> $/kW | D129: =RATES!I76 -> -0.1224 | E129: 1
B130: =RATES!C84 -> Rate Rider for Disposition of Deferral/Variance Accounts (2018) - effective until April 30, 2019 | C130: =RATES!G84 -> $/kW | D130: =RATES!I84 -> 0.0184 | E130: 1
B131: =RATES!C87 -> Rate Rider for Disposition of Deferral/Variance Accounts (2018) - effective until April 30, 2019 Applicable only for Non-Wholesale Market Participants | C131: =RATES!G87 -> $/kW | D131: =RATES!I87 -> -1.1367 | E131: 1
B132: =RATES!C78 -> Rate Rider for Disposition of Group 2 Deferral/Variance Accounts (2016) – effective until September 30, 2018 | C132: =RATES!G78 -> $/kW | D132: =RATES!I78 -> 0.062 | E132: 1
B133: =RATES!C82 -> Rate Rider for Recovery of ICM (2018) - in effect from May 1, 2018 until the effective date of the next cost of service based rate order | C133: =RATES!G82 -> $/kW | D133: =RATES!I82 -> 0.0168 | E133: 1
B134: =RATES!C83 -> Rate Rider for Disposition of Lost Revenue Adjustment Mechanism Variance Account (LRAMVA) (2018) - effective until April 30, 2019 | C134: =RATES!G83 -> $/kW | D134: =RATES!I83 -> 0.0796 | E134: 1
B135: =RATES!C86 -> Rate Rider for Disposition of Capacity Based Recovery Account (2018) - effective until April 30, 2019 Applicable Only for Class B Customers | C135: =RATES!G86 -> $/kW | D135: =RATES!I86 -> 0.0905 | E135: 1
B136: Retail Transmission Rate - Network Service Rate | C136: $/kW | D136: =RATES!I94 -> 2.6739 | E136: 1
B137: Retail Transmission Rate - Line and Transformation Connection Service Rate | C137: $/kW | D137: =RATES!I95 -> 1.342 | E137: 1
B138: Retail Transmission Rate - Network Service Rate – Interval Metered | C138: $/kW | D138: =RATES!I96 -> 2.803 | E138: 1
B139: Retail Transmission Rate - Line and Transformation Connection Service Rate – Interval Metered | C139: $/kW | D139: =RATES!I97 -> 1.452 | E139: 1
B142: MONTHLY RATES AND CHARGES – Regulatory Component
B144: Wholesale Market Service Rate (WMS) - not including CBR | C144: $/kWh | D144: 0.0032
B145: Capacity Based Recovery (CBR) - Applicable for Class B Customers | C145: $/kWh | D145: 0.0004
B146: Rural or Remote Electricity Rate Protection Charge (RRRP) | C146: $/kWh | D146: 0.0003
B147: Standard Supply Service – Administrative Charge (if applicable) | C147: $ | D147: 0.25
B149: LARGE USE SERVICE CLASSIFICATION
B151: This classification refers to an account whose monthly average peak demand is equal to or greater than, or is forecast to be equal to or greater than, 5,000 kW. Class A and Class B consumers are defined in accordance with O. Reg. 429/04. Further servicing details are available in the distributor’s Conditions of Service.
B153: APPLICATION
B155: The application of these rates and charges shall be in accordance with the Licence of the Distributor and any Code or Order of the Ontario Energy Board, and amendments thereto as approved by the Ontario Energy Board, which may be applicable to the administration of this schedule.
B157: No rates and charges for the distribution of electricity and charges to meet the costs of any work or service done or furnished for the purpose of the distribution of electricity shall be made except as permitted by this schedule, unless required by the Distributor’s Licence or a Code or Order of the Ontario Energy Board, and amendments thereto as approved by the Ontario Energy Board, or as specified herein.
B159: Unless specifically noted, this schedule does not contain any charges for the electricity commodity, be it under the Regulated Price Plan, a contract with a retailer or the wholesale market price, as applicable. In addition, the charges in the MONTHLY RATES AND CHARGES – Regulatory Component of this schedule do not apply to a customer that is an embedded wholesale market participant.
B161: The rate rider for the disposition of WMS – Sub-account CBR Class B is not applicable to wholesale market participants (WMP), customers that transitioned between Class A and Class B during the variance account accumulation period, or to customers that were in Class A for the entire period. Customers who transitioned are to be charged or refunded their share of the variance disposed through customer specific billing adjustments. This rate rider is to be consistently applied for the entire period to the sunset date of the rate rider. In addition, this rate rider is applicable to all new Class B customers.
B163: The rate rider for the disposition of Global Adjustment is only applicable to non-RPP Class B customers. It is not applicable to WMP customers that transitioned between Class A and Class B during the variance account accumulation period, or to customers that were in Class A for the entire period. Customers who transitioned are to be charged or refunded their share of the variance disposed through customer specific billing adjustments. This rate order is applicable to all new non-RPP Class B customers.
B165: It should be noted that this schedule does not list any charges, assessments or credits that are required by law to be invoiced by a distributor and that are not subject to Ontario Energy Board approval, such as the Debt Retirement Charge, the Global Adjustment and the HST.
B167: MONTHLY RATES AND CHARGES – Delivery Component
B169: =RATES!C99 -> Service Charge | C169: =RATES!G99 -> $ | D169: =RATES!I99 -> 6128.34
B170: =RATES!C108 -> Rate Rider for Recovery of ICM (2018) - in effect from May 1, 2018 until the effective date of the next cost of service based rate order | C170: =RATES!G108 -> $ | D170: =RATES!I108 -> 24.34
B171: =+RATES!C115 -> Rate Rider for Recovery of 2018 Foregone Revenue - effective until December 31, 2018 | C171: =+RATES!G114 -> $ | D171: =+RATES!I114 -> 97.02
B172: =RATES!C100 -> Distribution Volumetric Rate | C172: =RATES!G100 -> $/kW | D172: =RATES!I100 -> 2.2623
B173: =RATES!C101 -> Low Voltage Service Rate | C173: =RATES!G101 -> $/kW | D173: =RATES!I101 -> 0.163
B174: =RATES!C103 -> Rate Rider for Disposition of Deferral/Variance Accounts (2016) – effective until September 30, 2018 | C174: =RATES!G103 -> $/kW | D174: =RATES!I103 -> 0.1584
B175: =RATES!C104 -> Rate Rider for Disposition of Deferral/Variance Account – Power (2016) – effective until September 30, 2018 | C175: =RATES!G104 -> $/kW | D175: =RATES!I104 -> -0.1659
B176: =RATES!C111 -> Rate Rider for Disposition of Deferral/Variance Accounts (2018) - effective until April 30, 2019 | C176: =RATES!G111 -> $/kW | D176: =RATES!I111 -> -1.3235
B177: =RATES!C105 -> Rate Rider for Disposition of Group 2 Deferral/Variance Accounts (2016) – effective until September 30, 2018 | C177: =RATES!G105 -> $/kW | D177: =RATES!I105 -> 0.084
B178: =RATES!C109 -> Rate Rider for Recovery of ICM (2018) - in effect from May 1, 2018 until the effective date of the next cost of service based rate order | C178: =RATES!G109 -> $/kW | D178: =RATES!I109 -> 0.009
B179: =RATES!C110 -> Rate Rider for Disposition of Lost Revenue Adjustment Mechanism Variance Account (LRAMVA) (2018) - effective until April 30, 2019 | C179: =RATES!G110 -> $/kW | D179: =RATES!I110 -> -0.0723
B180: Retail Transmission Rate - Network Service Rate | C180: $/kW | D180: =RATES!I121 -> 3.2305
B181: Retail Transmission Rate - Line and Transformation Connection Service Rate | C181: $/kW | D181: =RATES!I122 -> 1.4016
B183: MONTHLY RATES AND CHARGES – Regulatory Component
B185: Wholesale Market Service Rate (WMS) - not including CBR | C185: $/kWh | D185: 0.0032
B186: Capacity Based Recovery (CBR) - Applicable for Class B Customers | C186: $/kWh | D186: 0.0004
B187: Rural or Remote Electricity Rate Protection Charge (RRRP) | C187: $/kWh | D187: 0.0003
B188: Standard Supply Service – Administrative Charge (if applicable) | C188: $ | D188: 0.25
B189: STANDBY POWER SERVICE CLASSIFICATION
B191: This classification refers to an account that has Load Displacement Generation and requires the distributor to provide back-up service. Further servicing details are available in the distributor’s Conditions of Service.
B193: APPLICATION
B195: The application of these rates and charges shall be in accordance with the Licence of the Distributor and any Code or Order of the Ontario Energy Board, and amendments thereto as approved by the Ontario Energy Board, which may be applicable to the administration of this schedule.
B197: No rates and charges for the distribution of electricity and charges to meet the costs of any work or service done or furnished for the purpose of the distribution of electricity shall be made except as permitted by this schedule, unless required by the Distributor’s Licence or a Code or Order of the Ontario Energy Board, and amendments thereto as approved by the Ontario Energy Board, or as specified herein.
B199: Unless specifically noted, this schedule does not contain any charges for the electricity commodity, be it under the Regulated Price Plan, a contract with a retailer or the wholesale market price, as applicable.
B201: It should be noted that this schedule does not list any charges, assessments or credits that are required by law to be invoiced by a distributor and that are not subject to Ontario Energy Board approval, such as the Debt Retirement Charge, the Global Adjustment and the HST.
B203: MONTHLY RATES AND CHARGES – Delivery Component - APPROVED ON AN INTERIM BASIS
B205: Standby Charge – for a month where standby power is not provided. The charge is applied to the
B206: contracted amount (e.g. nameplate rating of generation facility). | C206: $/kW | D206: ='17. Rev2Cost-GDPIPI'!J22 -> 2.8334
B209: UNMETERED SCATTERED LOAD SERVICE CLASSIFICATION
B211: This classification refers to an account taking electricity at 750 volts or less whose average monthly peak demand is less than, or is forecast to be less than, 50 kW and the consumption is unmetered. Such connections include cable TV power packs, bus shelters, telephone booths, traffic lights, railway crossings, etc. The customer will provide detailed manufacturer information/documentation with regard to electrical demand/consumption of the proposed unmetered load. Class B consumers are defined in accordance with O. Reg. 429/04. Further servicing details are available in the distributor’s Conditions of Service.
B213: APPLICATION
B215: The application of these rates and charges shall be in accordance with the Licence of the Distributor and any Code or Order of the Ontario Energy Board, and amendments thereto as approved by the Ontario Energy Board, which may be applicable to the administration of this schedule.
B217: No rates and charges for the distribution of electricity and charges to meet the costs of any work or service done or furnished for the purpose of the distribution of electricity shall be made except as permitted by this schedule, unless required by the Distributor’s Licence or a Code or Order of the Ontario Energy Board, and amendments thereto as approved by the Ontario Energy Board, or as specified herein.
B219: Unless specifically noted, this schedule does not contain any charges for the electricity commodity, be it under the Regulated Price Plan, a contract with a retailer or the wholesale market price, as applicable. In addition, the charges in the MONTHLY RATES AND CHARGES – Regulatory Component of this schedule do not apply to a customer that is an embedded wholesale market participant.
B221: It should be noted that this schedule does not list any charges, assessments or credits that are required by law to be invoiced by a distributor and that are not subject to Ontario Energy Board approval, such as the Debt Retirement Charge, the Global Adjustment and the HST.
B223: MONTHLY RATES AND CHARGES – Delivery Component
B225: =RATES!C126 -> Service Charge | C225: =RATES!G126 -> $ | D225: =RATES!I126 -> 8.68
B226: =RATES!C135 -> Rate Rider for Recovery of ICM (2018) - in effect from May 1, 2018 until the effective date of the next cost of service based rate order | C226: =RATES!G135 -> $ | D226: =RATES!I135 -> 0.03
B227: =+RATES!C143 -> Rate Rider for Recovery of 2018 Foregone Revenue - effective until December 31, 2018 | C227: =+RATES!G142 -> $ | D227: =+RATES!I142 -> 0.08
B228: =RATES!C127 -> Distribution Volumetric Rate | C228: =RATES!G127 -> $/kWh | D228: =RATES!I127 -> 0.0197
B229: =RATES!C128 -> Low Voltage Service Rate | C229: =RATES!G128 -> $/kWh | D229: =RATES!I128 -> 0.0005
B230: =RATES!C141 -> Rate Rider for Disposition of Global Adjustment Account (2016) – effective until September 30, 2018 Applicable only for non-RPP Customers | C230: =RATES!G141 -> $/kWh | D230: =RATES!I141 -> 0.0062
B231: =RATES!C139 -> Rate Rider for Disposition of Global Adjustment Account (2018) - effective until April 30, 2019 Applicable only for Non-RPP Customers | C231: =RATES!G139 -> $/kWh | D231: =RATES!I139 -> 0.0004
B232: =RATES!C129 -> Rate Rider for Disposition of Deferral/Variance Accounts (2016) – effective until September 30, 2018 | C232: =RATES!G129 -> $/kWh | D232: =RATES!I129 -> 0.0003
B233: =RATES!C130 -> Rate Rider for Disposition of Deferral/Variance Account – Power (2016) – effective until September 30, 2018 | C233: =RATES!G130 -> $/kWh | D233: =RATES!I130 -> -0.0003
B234: =RATES!C138 -> Rate Rider for Disposition of Deferral/Variance Accounts (2018) - effective until April 30, 2019 | C234: =RATES!G138 -> $/kWh | D234: =RATES!I138 -> -0.0029
B235: =RATES!C132 -> Rate Rider for Disposition of Group 2 Deferral/Variance Accounts (2016) – effective until September 30, 2018 | C235: =RATES!G132 -> $/kWh | D235: =RATES!I132 -> 0.0002
B236: =RATES!C140 -> Rate Rider for Disposition of Capacity Based Recovery Account (2018) - effective until April 30, 2019 Applicable Only for Class B Customers | C236: =RATES!G140 -> $/kWh | D236: =RATES!I140 -> 0.0002
B237: =RATES!C136 -> Rate Rider for Recovery of ICM (2018) - in effect from May 1, 2018 until the effective date of the next cost of service based rate order | C237: =RATES!G136 -> $/kWh | D237: =RATES!I136 -> 0.0001
B238: =RATES!C137 -> Rate Rider for Disposition of Lost Revenue Adjustment Mechanism Variance Account (LRAMVA) (2018) - effective until April 30, 2019 | C238: =RATES!G137 -> $/kWh | D238: =RATES!I137 -> -0.0005
B239: Retail Transmission Rate - Network Service Rate | C239: $/kWh | D239: =RATES!I147 -> 0.0063
B240: Retail Transmission Rate - Line and Transformation Connection Service Rate | C240: $/kWh | D240: =RATES!I148 -> 0.0037
B242: MONTHLY RATES AND CHARGES – Regulatory Component
B244: Wholesale Market Service Rate (WMS) - not including CBR | C244: $/kWh | D244: 0.0032
B245: Capacity Based Recovery (CBR) - Applicable for Class B Customers | C245: $/kWh | D245: 0.0004
B246: Rural or Remote Electricity Rate Protection Charge (RRRP) | C246: $/kWh | D246: 0.0003
B247: Standard Supply Service – Administrative Charge (if applicable) | C247: $ | D247: 0.25
B249: SENTINEL LIGHTING SERVICE CLASSIFICATION
B251: This classification refers to an unmetered lighting load supplied to a sentinel light. Class B consumers are defined in accordance with O. Reg. 429/04. Further servicing details are available in the distributor’s Conditions of Service.
B253: APPLICATION
B255: The application of these rates and charges shall be in accordance with the Licence of the Distributor and any Code or Order of the Ontario Energy Board, and amendments thereto as approved by the Ontario Energy Board, which may be applicable to the administration of this schedule.
B257: No rates and charges for the distribution of electricity and charges to meet the costs of any work or service done or furnished for the purpose of the distribution of electricity shall be made except as permitted by this schedule, unless required by the Distributor’s Licence or a Code or Order of the Ontario Energy Board, and amendments thereto as approved by the Ontario Energy Board, or as specified herein.
B259: Unless specifically noted, this schedule does not contain any charges for the electricity commodity, be it under the Regulated Price Plan, a contract with a retailer or the wholesale market price, as applicable. In addition, the charges in the MONTHLY RATES AND CHARGES – Regulatory Component of this schedule do not apply to a customer that is an embedded wholesale market participant.
B261: It should be noted that this schedule does not list any charges, assessments or credits that are required by law to be invoiced by a distributor and that are not subject to Ontario Energy Board approval, such as the Debt Retirement Charge, the Global Adjustment and the HST.
B263: MONTHLY RATES AND CHARGES – Delivery Component
B265: =RATES!C152 -> Service Charge (per Connection) | C265: =RATES!G152 -> $ | D265: =RATES!I152 -> 4.23
B266: =RATES!C161 -> Rate Rider for Recovery of ICM (2018) - in effect from May 1, 2018 until the effective date of the next cost of service based rate order | C266: =RATES!G161 -> $ | D266: =RATES!I161 -> 0.02
B267: =+RATES!C169 -> Rate Rider for Recovery of 2018 Foregone Revenue - effective until December 31, 2018 | C267: =+RATES!G168 -> $ | D267: =+RATES!I168 -> 0.04
B268: =RATES!C153 -> Distribution Volumetric Rate | C268: =RATES!G153 -> $/kW | D268: =RATES!I153 -> 9.9582
B269: =RATES!C154 -> Low Voltage Service Rate | C269: =RATES!G154 -> $/kW | D269: =RATES!I154 -> 0.117
B270: =RATES!C167 -> Rate Rider for Disposition of Global Adjustment Account (2016) – effective until September 30, 2018 Applicable only for non-RPP Customers | C270: =RATES!G167 -> $/kW | D270: =RATES!I167 -> 2.3977
B271: =RATES!C165 -> Rate Rider for Disposition of Global Adjustment Account (2018) - effective until April 30, 2019 Applicable only for Non-RPP Customers | C271: =RATES!G165 -> $/kWh | D271: =RATES!I165 -> 0.0004
B272: =RATES!C155 -> Rate Rider for Disposition of Deferral/Variance Accounts (2016) – effective until September 30, 2018 | C272: =RATES!G155 -> $/kW | D272: =RATES!I155 -> 0.121
B273: =RATES!C156 -> Rate Rider for Disposition of Deferral/Variance Account – Power (2016) – effective until September 30, 2018 | C273: =RATES!G156 -> $/kW | D273: =RATES!I156 -> -0.1267
B274: =RATES!C164 -> Rate Rider for Disposition of Deferral/Variance Accounts (2018) - effective until April 30, 2019 | C274: =RATES!G164 -> $/kW | D274: =RATES!I164 -> -1.074
B275: =RATES!C158 -> Rate Rider for Disposition of Group 2 Deferral/Variance Accounts (2016) – effective until September 30, 2018 | C275: =RATES!G158 -> $/kW | D275: =RATES!I158 -> 0.0641
B276: =RATES!C166 -> Rate Rider for Disposition of Capacity Based Recovery Account (2018) - effective until April 30, 2019 Applicable Only for Class B Customers | C276: =RATES!G166 -> $/kW | D276: =RATES!I166 -> 0.0895
B277: =RATES!C162 -> Rate Rider for Recovery of ICM (2018) - in effect from May 1, 2018 until the effective date of the next cost of service based rate order | C277: =RATES!G162 -> $/kW | D277: =RATES!I162 -> 0.0396
B278: =RATES!C163 -> Rate Rider for Disposition of Lost Revenue Adjustment Mechanism Variance Account (LRAMVA) (2018) - effective until April 30, 2019 | C278: =RATES!G163 -> $/kW | D278: =RATES!I163 -> -0.385
B279: Retail Transmission Rate - Network Service Rate | C279: $/kW | D279: =RATES!I173 -> 2.0778
B280: Retail Transmission Rate - Line and Transformation Connection Service Rate | C280: $/kW | D280: =RATES!I174 -> 0.9929
B282: MONTHLY RATES AND CHARGES – Regulatory Component
B284: Wholesale Market Service Rate (WMS) - not including CBR | C284: $/kWh | D284: 0.0032
B285: Capacity Based Recovery (CBR) - Applicable for Class B Customers | C285: $/kWh | D285: 0.0004
B286: Rural or Remote Electricity Rate Protection Charge (RRRP) | C286: $/kWh | D286: 0.0003
... 104 more rows

Sheet 21. Bill Impacts
A1: Back to Index
E2: INCENTIVE REGULATION MODEL FOR 2018 FILERS
E11: The bill comparisons below must be provided for typical customers and consumption levels. Bill impacts must be provided for residential customers consuming 750 kWh per month and general service customers consuming 2,000 kWh per month and having a monthly demand of less than 50 kW. Include bill comparisons for Non-RPP (retailer) as well. To assess the combined effects of the shift to fixed rates and other bill impacts associated with changes in the cost of distribution service, applicants are to include a total bill impact for a residential customer at the distributor’s 10th consumption percentile (In other words, 10% of a distributor’s residential customers consume at or less than this level of consumption on a monthly basis). Refer to page 9 of the Filing Requirements For Electricity Distribution Rate Applications issued July 14, 2016. For certain classes where one or more customers have unique consumption and demand patterns and which may be significantly impacted by the proposed rate changes, the distributor must show a typical comparison, and provide an explanation. Note: 1. For those classes that are not eligible for the RPP price, the weighted average price including Class B GA through end of February 2017 of $0.1058/kWh (IESO's Monthly Market Report for February 2017, page 22) has been used to represent the cost of power. For those classes on a retailer contract, applicants should enter the contract price (plus GA) for a more accurate estimate. Changes to the cost of power can be made directly on the bill impact table for the specific class. 2. Please enter the applicable billing determinant (e.g. number of connections or devices) to be applied to the monthly service charge for unmetered rate classes in column N. If the monthly service charge is applied on a per customer basis, enter the number “1”. Distributors should provide the number of connections or devices reflective of a typical customer in each class.
E13: Table 1
E14: RATE CLASSES / CATEGORIES (eg: Residential TOU, Residential Retailer) | G14: Units | H14: RPP? Non-RPP Retailer? Non-RPP Other? | I14: Current Loss Factor | J14: Proposed Loss Factor | K14: Consumption (kWh) | L14: Demand kW (if applicable) | M14: RTSR | N14: Billing Determinant Applied to Fixed Charge for Unmetered Classes (e.g. # of devices/connections).
B15: 1 | C15: 1 | E15: ='4. Billing Det. for Def-Var'!B17 -> RESIDENTIAL SERVICE CLASSIFICATION | G15: =IF(ISERROR(VLOOKUP(E15,BILLING_DETERMINANTS,2,FALSE)),"",(VLOOKUP(E15,BILLING_DETERMINANTS,2,FALSE))) -> kWh | H15: RPP | I15: =LLF -> 1.0369 | J15: =IF(ISBLANK(I15),"", I15) -> 1.0369 | K15: 750 | M15: N/A | T15: =SUM(I15:L15) -> 752.0738 | U15: 78 | V15: 1
B16: 2 | C16: 2 | E16: ='4. Billing Det. for Def-Var'!B18 -> GENERAL SERVICE LESS THAN 50 kW SERVICE CLASSIFICATION | G16: kWh | H16: RPP | I16: =I15 -> 1.0369 | J16: =IF(ISBLANK(I16),"", I16) -> 1.0369 | K16: 2000 | M16: N/A | T16: 2002.0738 | U16: =U15+68 -> 146 | V16: 2
B17: 3 | C17: 3 | E17: ='4. Billing Det. for Def-Var'!B19 -> GENERAL SERVICE 500 to 4,999 kW SERVICE CLASSIFICATION | G17: kW | H17: Non-RPP (Other) | I17: =I16 -> 1.0369 | J17: 1.0369 | K17: 80000 | L17: 250 | M17: DEMAND | T17: 80252.0738 | U17: =U16+68 -> 214 | V17: 3
B18: 4 | C18: 4 | E18: ='4. Billing Det. for Def-Var'!B20 -> LARGE USE SERVICE CLASSIFICATION | G18: kW | H18: Non-RPP (Other) | I18: 1.0145 | J18: 1.0145 | K18: 2800000 | L18: 7350 | M18: DEMAND | T18: 2807352.029 | U18: 282 | V18: 4
B19: 5 | C19: 5 | E19: ='4. Billing Det. for Def-Var'!B21 -> UNMETERED SCATTERED LOAD SERVICE CLASSIFICATION | G19: kWh | H19: RPP | I19: =I15 -> 1.0369 | J19: 1.0369 | K19: 150 | M19: N/A | N19: 1 | T19: 152.0738 | U19: 350 | V19: 5
B20: 6 | C20: 6 | E20: ='4. Billing Det. for Def-Var'!B22 -> STANDBY POWER SERVICE CLASSIFICATION | G20: kW | M20: N/A | T20: =SUM(I20:L20) -> 0 | U20: 418 | V20: 6
B21: 7 | C21: 7 | E21: ='4. Billing Det. for Def-Var'!B23 -> SENTINEL LIGHTING SERVICE CLASSIFICATION | G21: kW | H21: RPP | I21: =I17 -> 1.0369 | J21: 1.0369 | K21: 180 | L21: 1 | M21: DEMAND | N21: 1 | T21: 183.0738 | U21: 486 | V21: 7
B22: 8 | C22: 8 | E22: ='4. Billing Det. for Def-Var'!B24 -> STREET LIGHTING SERVICE CLASSIFICATION | G22: kW | H22: Non-RPP (Other) | I22: 1.0369 | J22: 1.0369 | K22: 280 | L22: 1 | M22: DEMAND | N22: 1 | T22: 283.0738 | U22: 554 | V22: 8
B23: 9 | C23: =IF(ISERROR(VLOOKUP(E23, E$15:V$33, 18, FALSE)),"", VLOOKUP(E23, E$15:V$33, 18, FALSE)) -> 1 | E23: =E15 -> RESIDENTIAL SERVICE CLASSIFICATION | F23: (10th consumption percentile) | G23: kWh | H23: RPP | I23: =I19 -> 1.0369 | J23: 1.0369 | K23: 308.871 | M23: N/A | T23: 310.9448 | U23: 622
B24: 10 | C24: =IF(ISERROR(VLOOKUP(E24, E$15:V$33, 18, FALSE)),"", VLOOKUP(E24, E$15:V$33, 18, FALSE)) -> 1 | E24: =E15 -> RESIDENTIAL SERVICE CLASSIFICATION | F24: (Retailer) | G24: =IF(ISERROR(VLOOKUP(E24, '[5]4. Billing Det. for Def-Var'!$A$16:$B$16, 2, FALSE)),"", VLOOKUP(E24,'[5]4. Billing Det. for Def-Var'!$A$16:$B$16, 2, FALSE)) ->  | H24: Non-RPP (Retailer) | I24: =I21 -> 1.0369 | J24: 1.0369 | K24: 750 | M24: N/A | T24: 752.0738 | U24: 690
B25: 11 | C25: 2 | E25: =E16 -> GENERAL SERVICE LESS THAN 50 kW SERVICE CLASSIFICATION | F25: (Retailer) | G25: =IF(ISERROR(VLOOKUP(E25, '[5]4. Billing Det. for Def-Var'!$A$16:$B$16, 2, FALSE)),"", VLOOKUP(E25,'[5]4. Billing Det. for Def-Var'!$A$16:$B$16, 2, FALSE)) ->  | H25: Non-RPP (Retailer) | I25: =I21 -> 1.0369 | J25: 1.0369 | K25: 2000 | M25: N/A | T25: 2002.0738 | U25: 758
B26: 12 | C26: 0 | E26: Add additional scenarios if required | G26: =IF(ISERROR(VLOOKUP(E26, '[5]4. Billing Det. for Def-Var'!$A$16:$B$16, 2, FALSE)),"", VLOOKUP(E26,'[5]4. Billing Det. for Def-Var'!$A$16:$B$16, 2, FALSE)) ->  | J26: =IF(ISBLANK(I26),"", I26) ->  | T26: 0 | U26: 826
B27: 13 | C27: 0 | E27: Add additional scenarios if required | G27: =IF(ISERROR(VLOOKUP(E27, '[5]4. Billing Det. for Def-Var'!$A$16:$B$16, 2, FALSE)),"", VLOOKUP(E27,'[5]4. Billing Det. for Def-Var'!$A$16:$B$16, 2, FALSE)) ->  | T27: 0 | U27: 894
B28: 14 | C28: 0 | E28: Add additional scenarios if required | G28: =IF(ISERROR(VLOOKUP(E28, '[5]4. Billing Det. for Def-Var'!$A$16:$B$16, 2, FALSE)),"", VLOOKUP(E28,'[5]4. Billing Det. for Def-Var'!$A$16:$B$16, 2, FALSE)) ->  | T28: 0 | U28: 962
B29: 15 | C29: 0 | E29: Add additional scenarios if required | G29: =IF(ISERROR(VLOOKUP(E29, '[5]4. Billing Det. for Def-Var'!$A$16:$B$16, 2, FALSE)),"", VLOOKUP(E29,'[5]4. Billing Det. for Def-Var'!$A$16:$B$16, 2, FALSE)) ->  | T29: 0 | U29: 1030
B30: 16 | C30: 0 | E30: Add additional scenarios if required | G30: =IF(ISERROR(VLOOKUP(E30, '[5]4. Billing Det. for Def-Var'!$A$16:$B$16, 2, FALSE)),"", VLOOKUP(E30,'[5]4. Billing Det. for Def-Var'!$A$16:$B$16, 2, FALSE)) ->  | T30: 0 | U30: 1098
B31: 17 | C31: 0 | E31: Add additional scenarios if required | G31: =IF(ISERROR(VLOOKUP(E31, '[5]4. Billing Det. for Def-Var'!$A$16:$B$16, 2, FALSE)),"", VLOOKUP(E31,'[5]4. Billing Det. for Def-Var'!$A$16:$B$16, 2, FALSE)) ->  | T31: 0 | U31: 1166
B32: 18 | C32: 0 | E32: Add additional scenarios if required | G32: =IF(ISERROR(VLOOKUP(E32, '[5]4. Billing Det. for Def-Var'!$A$16:$B$16, 2, FALSE)),"", VLOOKUP(E32,'[5]4. Billing Det. for Def-Var'!$A$16:$B$16, 2, FALSE)) ->  | T32: 0 | U32: 1234
B33: 19 | C33: 0 | E33: Add additional scenarios if required | G33: =IF(ISERROR(VLOOKUP(E33, '[5]4. Billing Det. for Def-Var'!$A$16:$B$16, 2, FALSE)),"", VLOOKUP(E33,'[5]4. Billing Det. for Def-Var'!$A$16:$B$16, 2, FALSE)) ->  | T33: 0 | U33: 1302
E36: Table 2
E37: RATE CLASSES / CATEGORIES (eg: Residential TOU, Residential Retailer) | G37: Units | H37: Sub-Total | N37: Total | P37: Total (Before Tax) | R37: Total
H38: A | J38: B | L38: C | N38: A + B + C | P38: A + B + C | R38: A + B + C
H39: $ | I39: % | J39: $ | K39: % | L39: $ | M39: % | N39: $ | O39: % | P39: $ | Q39: % | R39: $ | S39: %
B40: =H15 -> RPP | C40: =B15 -> 1 | E40: =IF(ISBLANK(E15), "", IF(E15 = "Add additional scenarios if required", "", IF(O15="INTERVAL", E15 & " - " & H15 & " - Interval Customers", E15 & " - " &H15))) -> RESIDENTIAL SERVICE CLASSIFICATION - RPP | G40: =IF(ISBLANK(G15), "", G15) -> kWh | H40: =IF(LEN($G40)>1, (SUMPRODUCT(--($C$72:$C$1010=$B15), --($A$72:$A$1010=$E15), --($B$72:$B$1010="ST_A"), $M$72:$M$1010)), "") -> 0.22 | I40: =IF(LEN($G40)>1, (SUMPRODUCT(--($C$72:$C$1010=$B15), --($A$72:$A$1010=$E15), --($B$72:$B$1010="ST_A"), $N$72:$N$1010)), "") -> 0.007784854919 | J40: =IF(LEN($G40)>1, (SUMPRODUCT(--($C$72:$C$1010=$B15), --($A$72:$A$1010=$E15), --($B$72:$B$1010="ST_B"), $M$72:$M$1010)), "") -> -1.88 | K40: =IF(LEN($G40)>1, (SUMPRODUCT(--($C$72:$C$1010=$B15), --($A$72:$A$1010=$E15), --($B$72:$B$1010="ST_B"), $N$72:$N$1010)), "") -> -0.05938321435 | L40: =IF(LEN($G40)>1, (SUMPRODUCT(--($C$72:$C$1010=$B15), --($A$72:$A$1010=$E15), --($B$72:$B$1010="ST_C"), $M$72:$M$1010)), "") -> -2.2688375 | M40: =IF(LEN($G40)>1, (SUMPRODUCT(--($C$72:$C$1010=$B15), --($A$72:$A$1010=$E15), --($B$72:$B$1010="ST_C"), $N$72:$N$1010)), "") -> -0.05534981466 | N40: =IF(LEN($G40)>1, (SUMPRODUCT(--($C$72:$C$1010=$B15), --($A$72:$A$1010=$E15), --($B$72:$B$1010=$B40&"_TOTAL"), $M$72:$M$1010)), "") -> -2.382279375 | O40: =IF(LEN($G40)>1, (SUMPRODUCT(--($C$72:$C$1010=$B15), --($A$72:$A$1010=$E15), --($B$72:$B$1010=$B40&"_TOTAL"), $N$72:$N$1010)), "") -> -0.02142559125 | P40: =IF(LEN($G40)>1, (SUMPRODUCT(--($C$72:$C$1010=$B15), --($A$72:$A$1010=$E15), --($B$72:$B$1010=$B40&"_BT"), $M$72:$M$1010)), "") -> -2.2688375 | Q40: =IF(LEN($G40)>1, (SUMPRODUCT(--($C$72:$C$1010=$B15), --($A$72:$A$1010=$E15), --($B$72:$B$1010=$B40&"_BT"), $N$72:$N$1010)), "") -> -0.02142559125 | R40: =IF(LEN($G40)>1, (SUMPRODUCT(--($C$72:$C$1010=$B15), --($A$72:$A$1010=$E15), --($B$72:$B$1010=$B40&"_NET"), $M$72:$M$1010)), "") -> -2.563786375 | S40: =IF(LEN($G40)>1, (SUMPRODUCT(--($C$72:$C$1010=$B15), --($A$72:$A$1010=$E15), --($B$72:$B$1010=$B40&"_NET"), $N$72:$N$1010)), "") -> -0.02142559125
B41: =H16 -> RPP | C41: =B16 -> 2 | E41: =IF(ISBLANK(E16), "", IF(E16 = "Add additional scenarios if required", "", IF(O16="INTERVAL", E16 & " - " & H16 & " - Interval Customers", E16 & " - " &H16))) -> GENERAL SERVICE LESS THAN 50 kW SERVICE CLASSIFICATION - RPP | G41: =IF(ISBLANK(G16), "", G16) -> kWh | H41: 3.18 | I41: 0.04866850321 | J41: -2.42 | K41: -0.03297748178 | L41: -3.24952 | M41: -0.03407430983 | N41: -3.411996 | O41: -0.01152216006 | P41: -3.24952 | Q41: -0.01152216006 | R41: -3.6719576 | S41: -0.01152216006
B42: Non-RPP (Other) | C42: 3 | E42: GENERAL SERVICE 500 to 4,999 kW SERVICE CLASSIFICATION - Non-RPP (Other) | G42: kW | H42: 39.6 | I42: 0.03322440316 | J42: 289.25 | K42: 0.2136704784 | L42: 246.075 | M42: 0.1024940959 | N42: 278.06475 | O42: 0.01981655463 | P42: 246.075 | Q42: 0.01981655463 | R42: 278.06475 | S42: 0.01981655463
B43: Non-RPP (Other) | C43: 4 | E43: LARGE USE SERVICE CLASSIFICATION - Non-RPP (Other) | G43: kW | H43: -140.765 | I43: -0.006241488149 | J43: -9868.49 | K43: -0.4058862094 | L43: -11498.72 | M43: -0.1916785416 | N43: -12993.5536 | O43: -0.0285032218 | P43: -11498.72 | Q43: -0.0285032218 | R43: -12993.5536 | S43: -0.0285032218
B44: RPP | C44: 5 | E44: UNMETERED SCATTERED LOAD SERVICE CLASSIFICATION - RPP | G44: kWh | H44: 0.16 | I44: 0.01388286334 | J44: -0.245 | K44: -0.02027347578 | L44: -0.307214 | M44: -0.02242058345 | N44: -0.34715182 | O44: -0.01099828277 | P44: -0.307214 | Q44: -0.01099828277 | R44: -0.34715182 | S44: -0.01099828277
B45: 0 | C45: 6 | E45: STANDBY POWER SERVICE CLASSIFICATION - | G45: kW | H45: 0 | I45: 0 | J45: 0 | K45: 0 | L45: 0 | M45: 0 | N45: 0 | O45: 0 | P45: 0 | Q45: 0 | R45: 0 | S45: 0
B46: RPP | C46: 7 | E46: SENTINEL LIGHTING SERVICE CLASSIFICATION - RPP | G46: kW | H46: -0.1566 | I46: -0.01113845541 | J46: 0.8096 | K46: 0.05316694419 | L46: 0.6724 | M46: 0.0364732935 | N46: 0.759812 | O46: 0.01896108241 | P46: 0.6724 | Q46: 0.01896108241 | R46: 0.759812 | S46: 0.01896108241
B47: Non-RPP (Other) | C47: 8 | E47: STREET LIGHTING SERVICE CLASSIFICATION - Non-RPP (Other) | G47: kW | H47: 0.6876 | I47: 0.0915311094 | J47: 1.6351 | K47: 0.1768659777 | L47: 1.4667 | M47: 0.1083238604 | N47: 1.657371 | O47: 0.03074182301 | P47: 1.4667 | Q47: 0.03074182301 | R47: 1.657371 | S47: 0.03074182301
B48: RPP | C48: 9 | E48: RESIDENTIAL SERVICE CLASSIFICATION - RPP | G48: kWh | H48: 2.0727418 | I48: 0.09201829425 | J48: 1.207903 | K48: 0.04957296531 | L48: 1.04776883 | M48: 0.03714256324 | N48: 1.100157272 | O48: 0.01902085247 | P48: 1.04776883 | Q48: 0.01902085247 | R48: 1.183978778 | S48: 0.01902085247
B49: Non-RPP (Retailer) | C49: 10 | E49: RESIDENTIAL SERVICE CLASSIFICATION - Non-RPP (Retailer) | G49: kWh | H49: 0.22 | I49: 0.007784854919 | J49: 1.95 | K49: 0.05811871075 | L49: 1.5611625 | M49: 0.03640421189 | N49: 1.639220625 | O49: 0.0121498762 | P49: 1.5611625 | Q49: 0.0121498762 | R49: 1.764113625 | S49: 0.0121498762
B50: Non-RPP (Retailer) | C50: 11 | E50: GENERAL SERVICE LESS THAN 50 kW SERVICE CLASSIFICATION - Non-RPP (Retailer) | G50: kWh | H50: 3.18 | I50: 0.04866850321 | J50: 8.16 | K50: 0.1045277689 | L50: 7.33048 | M50: 0.07326987958 | N50: 7.697004 | O50: 0.02141314713 | P50: 7.33048 | Q50: 0.02141314713 | R50: 8.2834424 | S50: 0.02141314713
B51: 0 | C51: 12 | E51: =IF(ISBLANK(E26), "", IF(E26 = "Add additional scenarios if required", "", IF(O26="YES", E26 & " - " & J26 & " - Interval Customers", E26 & " - " &J26))) ->  | G51: =IF(ISBLANK(I26), "", I26) ->  | P51: =IF(LEN($G51)>1, (SUMPRODUCT(--($C$72:$C$1010=$B26), --($A$72:$A$1010=$E26), --($B$72:$B$1010=$B51&"_TOTAL"), $M$72:$M$1010)), "") ->  | Q51: =IF(LEN($G51)>1, (SUMPRODUCT(--($C$72:$C$1010=$B26), --($A$72:$A$1010=$E26), --($B$72:$B$1010=$B51&"_TOTAL"), $N$72:$N$1010)), "") ->  | R51: =IF(LEN($G51)>1, (SUMPRODUCT(--($C$72:$C$1010=$B26), --($A$72:$A$1010=$E26), --($B$72:$B$1010=$B51&"_TOTAL"), $M$72:$M$1010)), "") ->  | S51: =IF(LEN($G51)>1, (SUMPRODUCT(--($C$72:$C$1010=$B26), --($A$72:$A$1010=$E26), --($B$72:$B$1010=$B51&"_TOTAL"), $N$72:$N$1010)), "") -> 
B52: 0 | C52: 13
B53: 0 | C53: 14
B54: 0 | C54: 15
B55: 0 | C55: 16 | G55: =IF(ISBLANK(I30), "", I30) -> 
B56: 0 | C56: 17 | G56: =IF(ISBLANK(I31), "", I31) -> 
B57: 0 | C57: 18 | G57: =IF(ISBLANK(I32), "", I32) -> 
B58: 0 | C58: 19 | G58: =IF(ISBLANK(I33), "", I33) -> 
B59: 0 | C59: 0 | G59: =IF(ISBLANK(I34), "", I34) -> 
E62: Customer Class: | F62: =E15 -> RESIDENTIAL SERVICE CLASSIFICATION | L62: =IF(O14="DEMAND - INTERVAL","RTSR - INTERVAL METERED","") -> 
E63: RPP / Non-RPP: | F63: =H15 -> RPP | I63: Class B
E64: Consumption | F64: =K15 -> 750 | G64: kWh
E65: Demand | F65: =L15 -> 0 | G65: kW
E66: Current Loss Factor | F66: =I15 -> 1.0369
E67: Proposed/Approved Loss Factor | F67: =J15 -> 1.0369
G69: Current OEB-Approved | J69: Proposed | M69: Impact
G70: Rate | H70: Volume | I70: Charge | J70: Rate | K70: Volume | L70: Charge | M70: $ Change | N70: % Change
G71: ($) | I71: ($) | J71: ($) | L71: ($)
A72: =F62 -> RESIDENTIAL SERVICE CLASSIFICATION | D72: R_F | E72: Monthly Service Charge | G72: =IFERROR(SUMIF(RATES!B:B,'21. Bill Impacts'!D72,RATES!H:H),"") -> 18.51 | H72: 1 | I72: =H72*G72 -> 18.51 | J72: =IFERROR(SUMIF(RATES!B:B,'21. Bill Impacts'!D72,RATES!I:I),"") -> 21.63 | K72: 1 | L72: =K72*J72 -> 21.63 | M72: =L72-I72 -> 3.12 | N72: =IF(ISERROR(M72/I72), "", M72/I72) -> 0.1685575365
A73: =A72 -> RESIDENTIAL SERVICE CLASSIFICATION | D73: R_V | E73: Distribution Volumetric Rate | G73: =IFERROR(SUMIF(RATES!B:B,'21. Bill Impacts'!D73,RATES!H:H),"") -> 0.013 | H73: =IF($F65>0, $F65, $F64) -> 750 | I73: =H73*G73 -> 9.75 | J73: =IFERROR(SUMIF(RATES!B:B,'21. Bill Impacts'!D73,RATES!I:I),"") -> 0.0088 | K73: =IF($F65>0, $F65, $F64) -> 750 | L73: =K73*J73 -> 6.6 | M73: -3.15 | N73: =IF(ISERROR(M73/I73), "", M73/I73) -> -0.3230769231
A74: =A73 -> RESIDENTIAL SERVICE CLASSIFICATION | D74: R_FRR | E74: Fixed Rate Riders | G74: =IFERROR(SUMIF(RATES!B:B,'21. Bill Impacts'!D74,RATES!H:H),"") -> 0 | H74: 1 | I74: 0 | J74: =IFERROR(SUMIF(RATES!B:B,'21. Bill Impacts'!D74,RATES!I:I),"") -> 0.25 | K74: 1 | L74: =K74*J74 -> 0.25 | M74: 0.25
A75: =A74 -> RESIDENTIAL SERVICE CLASSIFICATION | D75: R_VRR | E75: Volumetric Rate Riders | G75: =IFERROR(SUMIF(RATES!B:B,'21. Bill Impacts'!D75,RATES!H:H),"") -> 0 | H75: =IF($F65>0, $F65, $F64) -> 750 | I75: 0 | J75: =IFERROR(SUMIF(RATES!B:B,'21. Bill Impacts'!D75,RATES!I:I),"") -> 0 | K75: =IF($F65>0, $F65, $F64) -> 750 | L75: 0 | M75: 0
A76: RESIDENTIAL SERVICE CLASSIFICATION | B76: ST_A | C76: =B15 -> 1 | E76: Sub-Total A (excluding pass through) | I76: =SUM(I72:I75) -> 28.26 | L76: =SUM(L72:L75) -> 28.48 | M76: 0.22 | N76: =IF((I76)=0,"",(M76/I76)) -> 0.007784854919
A77: RESIDENTIAL SERVICE CLASSIFICATION | E77: Line Losses on Cost of Power | G77: =IF((F64*12>=150000), 0, IF(F63="RPP",(G91*0.65+G92*0.17+G93*0.18),IF(F63="Non-RPP (Retailer)",G94,G95))) -> 0.08216 | H77: =IF(G77=0, 0, $F64*F66-F64) -> 27.675 | I77: =H77*G77 -> 2.273778 | J77: =IF((F64*12>=150000), 0, IF(F63="RPP",(J91*0.65+J92*0.17+J93*0.18),IF(F63="Non-RPP (Retailer)",J94,J95))) -> 0.08216 | K77: =IF(G77=0, 0, $F64*F66-F64) -> 27.675 | L77: =K77*J77 -> 2.273778 | M77: =L77-I77 -> 0 | N77: =IF(ISERROR(M77/I77), "", M77/I77) -> 0
A78: RESIDENTIAL SERVICE CLASSIFICATION | D78: R_DVA | E78: Total Deferral/Variance Account Rate Riders | G78: =IFERROR(SUMIF(RATES!B:B,'21. Bill Impacts'!D78,RATES!H:H),"") -> 0 | H78: =IF($F65>0, $F65, $F64) -> 750 | I78: 0 | J78: =IFERROR(SUMIF(RATES!B:B,'21. Bill Impacts'!D78,RATES!I:I),"") -> -0.0028 | K78: =IF($F65>0, $F65, $F64) -> 750 | L78: -2.1 | M78: -2.1
A79: RESIDENTIAL SERVICE CLASSIFICATION | D79: R_GA | E79: GA Rate Riders
A80: RESIDENTIAL SERVICE CLASSIFICATION | D80: R_LV | E80: Low Voltage Service Charge | G80: =IFERROR(SUMIF(RATES!B:B,'21. Bill Impacts'!D80,RATES!H:H),"") -> 0.0005 | H80: =IF($F65>0, $F65, $F64) -> 750 | I80: 0.375 | J80: =IFERROR(SUMIF(RATES!B:B,'21. Bill Impacts'!D80,RATES!I:I),"") -> 0.0005 | K80: =IF($F65>0, $F65, $F64) -> 750 | L80: 0.375 | M80: 0 | N80: 0
A81: RESIDENTIAL SERVICE CLASSIFICATION | D81: R_FDVA | E81: Smart Meter Entity Charge (if applicable) and/or any fixed ($) Deferral/Variance Account Rate Riders | G81: =IFERROR(SUMIF(RATES!B:B,'21. Bill Impacts'!D81,RATES!H:H),"")+0.57 -> 0.75 | H81: 1 | I81: =H81*G81 -> 0.75 | J81: =IFERROR(SUMIF(RATES!B:B,'21. Bill Impacts'!D81,RATES!I:I),"")+0.57 -> 0.75 | K81: 1 | L81: =K81*J81 -> 0.75 | M81: 0 | N81: =IF(ISERROR(M81/I81), "", M81/I81) -> 0
A82: RESIDENTIAL SERVICE CLASSIFICATION | B82: ST_B | C82: =B15 -> 1 | E82: Sub-Total B - Distribution (includes Sub-Total A) | I82: =SUM(I76:I81) -> 31.658778 | L82: =SUM(L76:L81) -> 29.778778 | M82: -1.88 | N82: =IF((I82)=0,"",(M82/I82)) -> -0.05938321435
A83: RESIDENTIAL SERVICE CLASSIFICATION | D83: R_TN | E83: RTSR - Network | G83: =IFERROR(SUMIF(RATES!B:B,'21. Bill Impacts'!D83,RATES!H:H),"") -> 0.0082 | H83: =IF($F65>0, $F65, $F64*$F66) -> 777.675 | I83: =H83*G83 -> 6.376935 | J83: =IFERROR(SUMIF(RATES!B:B,'21. Bill Impacts'!D83,RATES!I:I),"") -> 0.0075 | K83: =IF($F65>0, $F65, $F64*$F66) -> 777.675 | L83: =K83*J83 -> 5.8325625 | M83: -0.5443725 | N83: =IF(ISERROR(M83/I83), "", M83/I83) -> -0.08536585366
A84: RESIDENTIAL SERVICE CLASSIFICATION | D84: R_TC | E84: RTSR - Connection and/or Line and Transformation Connection | G84: =IFERROR(SUMIF(RATES!B:B,'21. Bill Impacts'!D84,RATES!H:H),"") -> 0.0038 | H84: =IF($F65>0, $F65, $F64*$F66) -> 777.675 | I84: =H84*G84 -> 2.955165 | J84: =IFERROR(SUMIF(RATES!B:B,'21. Bill Impacts'!D84,RATES!I:I),"") -> 0.004 | K84: =IF($F65>0, $F65, $F64*$F66) -> 777.675 | L84: =K84*J84 -> 3.1107 | M84: 0.155535 | N84: =IF(ISERROR(M84/I84), "", M84/I84) -> 0.05263157895
A85: RESIDENTIAL SERVICE CLASSIFICATION | B85: ST_C | C85: =B15 -> 1 | E85: Sub-Total C - Delivery (including Sub-Total B) | I85: =SUM(I82:I84) -> 40.990878 | L85: =SUM(L82:L84) -> 38.7220405 | M85: -2.2688375 | N85: =IF((I85)=0,"",(M85/I85)) -> -0.05534981466
A86: RESIDENTIAL SERVICE CLASSIFICATION | E86: Wholesale Market Service Charge (WMSC) | G86: 0.0036 | H86: =F64*F66 -> 777.675 | I86: =H86*G86 -> 2.79963 | J86: 0.0036 | K86: =F64*F66 -> 777.675 | L86: =K86*J86 -> 2.79963 | M86: 0 | N86: =IF(ISERROR(M86/I86), "", M86/I86) -> 0
A87: RESIDENTIAL SERVICE CLASSIFICATION | E87: Rural and Remote Rate Protection (RRRP) | G87: 0.0003 | H87: =F64*F66 -> 777.675 | I87: 0.2333025 | J87: 0.0003 | K87: =F64*F66 -> 777.675 | L87: 0.2333025 | M87: 0 | N87: 0
A88: RESIDENTIAL SERVICE CLASSIFICATION | E88: Standard Supply Service Charge | G88: 0.25 | H88: 1 | I88: 0.25 | J88: 0.25 | K88: 1 | L88: 0.25 | M88: 0 | N88: 0
A89: RESIDENTIAL SERVICE CLASSIFICATION | E89: Debt Retirement Charge (DRC)
A90: RESIDENTIAL SERVICE CLASSIFICATION | M90: 0
A91: RESIDENTIAL SERVICE CLASSIFICATION | B91: RPP | E91: TOU - Off Peak | G91: 0.065 | H91: =IF(AND(F64*12>=150000),0.65*F64*F66,0.65*F64) -> 487.5 | I91: 31.6875 | J91: 0.065 | K91: =IF(AND(F64*12>=150000),0.65*F64*F67,0.65*F64) -> 487.5 | L91: 31.6875 | M91: 0 | N91: 0
A92: RESIDENTIAL SERVICE CLASSIFICATION | B92: RPP | E92: TOU - Mid Peak | G92: 0.095 | H92: =IF(AND(F64*12>=150000),0.17*F64*F66,0.17*F64) -> 127.5 | I92: 12.1125 | J92: 0.095 | K92: =IF(AND(F64*12>=150000),0.17*F64*F67,0.17*F64) -> 127.5 | L92: 12.1125 | M92: 0 | N92: 0
A93: RESIDENTIAL SERVICE CLASSIFICATION | B93: RPP | E93: TOU - On Peak | G93: 0.132 | H93: =IF(AND(F64*12>=150000),0.18*F64*F66,0.18*F64) -> 135 | I93: 17.82 | J93: 0.132 | K93: =IF(AND(F64*12>=150000),0.18*F64*F67,0.18*F64) -> 135 | L93: 17.82 | M93: 0 | N93: 0
A94: RESIDENTIAL SERVICE CLASSIFICATION | B94: Non-RPP (Retailer) | E94: Non-RPP Retailer Avg. Price | G94: =0.1061 -> 0.1061 | H94: =IF(AND(F64*12>=150000),F64*F66,F64) -> 750 | I94: =H94*G94 -> 79.575 | J94: =G94 -> 0.1061 | K94: =IF(AND(F64*12>=150000),F64*F67,F64) -> 750 | L94: =K94*J94 -> 79.575 | M94: 0 | N94: 0
A95: RESIDENTIAL SERVICE CLASSIFICATION | B95: Non-RPP (Other) | E95: Average IESO Wholesale Market Price | G95: =G94 -> 0.1061 | H95: =IF(AND(F64*12>=150000),F64*F66,F64) -> 750 | I95: =H95*G95 -> 79.575 | J95: =G95 -> 0.1061 | K95: =IF(AND(F64*12>=150000),F64*F67,F64) -> 750 | L95: =K95*J95 -> 79.575 | M95: 0 | N95: 0
A96: RESIDENTIAL SERVICE CLASSIFICATION
A97: RESIDENTIAL SERVICE CLASSIFICATION | B97: RPP_BT | C97: 1 | E97: Total Bill on TOU (before Taxes) | I97: =SUM(I86:I93,I85) -> 105.8938105 | L97: =SUM(L86:L93,L85) -> 103.624973 | M97: =L97-I97 -> -2.2688375 | N97: =IF((I97)=0,"",(M97/I97)) -> -0.02142559125
A98: RESIDENTIAL SERVICE CLASSIFICATION | B98: RPP | E98: HST | G98: 0.13 | I98: =I97*G98 -> 13.76619536 | J98: 0.13 | L98: =L97*J98 -> 13.47124649 | M98: =L98-I98 -> -0.294948875 | N98: =IF((I98)=0,"",(M98/I98)) -> -0.02142559125
A99: RESIDENTIAL SERVICE CLASSIFICATION | B99: RPP_NET | C99: 1 | E99: Total Bill on TOU (before 8% Provincial Rebate) | I99: =SUM(I97:I98) -> 119.6600059 | L99: =SUM(L97:L98) -> 117.0962195 | M99: =SUM(M97:M98) -> -2.563786375 | N99: =IF((I99)=0,"",(M99/I99)) -> -0.02142559125
A100: =A98 -> RESIDENTIAL SERVICE CLASSIFICATION | B100: RPP | E100: 8% Provincial Rebate | G100: -0.08 | I100: =I97*G100 -> -8.47150484 | J100: =G100 -> -0.08 | L100: =L97*J100 -> -8.28999784 | M100: =L100-I100 -> 0.181507 | N100: =IF((I100)=0,"",(M100/I100)) -> -0.02142559125
A101: RESIDENTIAL SERVICE CLASSIFICATION | B101: RPP_TOTAL | C101: =B15 -> 1 | E101: Total Bill on TOU | I101: =SUM(I97,I98,I100) -> 111.188501 | L101: =L97+L98+L100 -> 108.8062216 | M101: =L101-I101 -> -2.382279375 | N101: =IF((I101)=0,"",(M101/I101)) -> -0.02142559125
A102: RESIDENTIAL SERVICE CLASSIFICATION | B102: RPP
A103: RESIDENTIAL SERVICE CLASSIFICATION | B103: Non-RPP (Retailer) | E103: Total Bill on Non-RPP Avg. Price | I103: =SUM(I94,I86:I90,I85) -> 123.8488105 | L103: =SUM(L94,L86:L90,L85) -> 121.579973 | M103: =L103-I103 -> -2.2688375 | N103: =IF((I103)=0,"",(M103/I103)) -> -0.01831941293
A104: RESIDENTIAL SERVICE CLASSIFICATION | B104: Non-RPP (Retailer) | E104: HST | G104: 0.13 | I104: =I103*G104 -> 16.10034536 | J104: 0.13 | L104: =L103*J104 -> 15.80539649 | M104: =L104-I104 -> -0.294948875 | N104: =IF((I104)=0,"",(M104/I104)) -> -0.01831941293
A105: RESIDENTIAL SERVICE CLASSIFICATION | B105: Non-RPP (Retailer) | E105: Provincial Rebate | G105: -0.08 | I105: =I103*G105 -> -9.90790484 | J105: =G105 -> -0.08 | L105: =L103*J105 -> -9.72639784 | M105: =L105-I105 -> 0.181507 | N105: =IF((I105)=0,"",(M105/I105)) -> -0.01831941293
A106: RESIDENTIAL SERVICE CLASSIFICATION | B106: Non-RPP (Retailer)_TOTAL | E106: Total Bill on Non-RPP Avg. Price | I106: =SUM(I103,I104,I105) -> 130.041251 | L106: =SUM(L103,L104,L105) -> 127.6589716 | M106: =L106-I106 -> -2.382279375 | N106: =IF((I106)=0,"",(M106/I106)) -> -0.01831941293
A107: RESIDENTIAL SERVICE CLASSIFICATION | B107: Non-RPP (Retailer)
A108: RESIDENTIAL SERVICE CLASSIFICATION | B108: Non-RPP (Other) | E108: Total Bill on Average IESO Wholesale Market Price | I108: =SUM(I95,I86:I90,I85) -> 123.8488105 | L108: =SUM(L95,L86:L90,L85) -> 121.579973 | M108: =L108-I108 -> -2.2688375 | N108: =IF((I108)=0,"",(M108/I108)) -> -0.01831941293
A109: RESIDENTIAL SERVICE CLASSIFICATION | B109: Non-RPP (Other) | E109: HST | G109: 0.13 | I109: =I108*G109 -> 16.10034536 | J109: 0.13 | L109: =L108*J109 -> 15.80539649 | M109: =L109-I109 -> -0.294948875 | N109: =IF((I109)=0,"",(M109/I109)) -> -0.01831941293
A110: RESIDENTIAL SERVICE CLASSIFICATION | B110: Non-RPP (Other) | E110: Provincial Rebate | G110: -0.08 | I110: =I108*G110 -> -9.90790484 | J110: =G110 -> -0.08 | L110: =L108*J110 -> -9.72639784 | M110: =L110-I110 -> 0.181507 | N110: =IF((I110)=0,"",(M110/I110)) -> -0.01831941293
A111: RESIDENTIAL SERVICE CLASSIFICATION | B111: Non-RPP (Other)_TOTAL | E111: Total Bill on Average IESO Wholesale Market Price | I111: =SUM(I108,I109,I110) -> 130.041251 | L111: =SUM(L108,L109,L110) -> 127.6589716 | M111: =L111-I111 -> -2.382279375 | N111: =IF((I111)=0,"",(M111/I111)) -> -0.01831941293
A112: RESIDENTIAL SERVICE CLASSIFICATION | B112: Non-RPP (Other)
L113: =+L78/L101 -> -0.01930036691
E115: Customer Class: | F115: =E16 -> GENERAL SERVICE LESS THAN 50 kW SERVICE CLASSIFICATION | L115: =IF(O66="DEMAND - INTERVAL","RTSR - INTERVAL METERED","") -> 
E116: RPP / Non-RPP: | F116: =H16 -> RPP | I116: Class B
E117: Consumption | F117: =K16 -> 2000 | G117: kWh
E118: Demand | F118: =L16 -> 0 | G118: kW
E119: Current Loss Factor | F119: =I16 -> 1.0369
E120: Proposed/Approved Loss Factor | F120: =J16 -> 1.0369
G122: Current OEB-Approved | J122: Proposed | M122: Impact
G123: Rate | H123: Volume | I123: Charge | J123: Rate | K123: Volume | L123: Charge | M123: $ Change | N123: % Change
G124: ($) | I124: ($) | J124: ($) | L124: ($)
A125: =F115 -> GENERAL SERVICE LESS THAN 50 kW SERVICE CLASSIFICATION | D125: GSL_F | E125: Monthly Service Charge | G125: =IFERROR(SUMIF(RATES!B:B,'21. Bill Impacts'!D125,RATES!H:H),"") -> 28.74 | H125: 1 | I125: =H125*G125 -> 28.74 | J125: =IFERROR(SUMIF(RATES!B:B,'21. Bill Impacts'!D125,RATES!I:I),"") -> 29 | K125: 1 | L125: =K125*J125 -> 29 | M125: =L125-I125 -> 0.26 | N125: =IF(ISERROR(M125/I125), "", M125/I125) -> 0.009046624913
A126: =A125 -> GENERAL SERVICE LESS THAN 50 kW SERVICE CLASSIFICATION | D126: GSL_V | E126: Distribution Volumetric Rate | G126: =IFERROR(SUMIF(RATES!B:B,'21. Bill Impacts'!D126,RATES!H:H),"") -> 0.0183 | H126: =IF($F118>0, $F118, $F117) -> 2000 | I126: =H126*G126 -> 36.6 | J126: =IFERROR(SUMIF(RATES!B:B,'21. Bill Impacts'!D126,RATES!I:I),"") -> 0.0185 | K126: =IF($F118>0, $F118, $F117) -> 2000 | L126: =K126*J126 -> 37 | M126: 0.4 | N126: =IF(ISERROR(M126/I126), "", M126/I126) -> 0.01092896175
A127: =A126 -> GENERAL SERVICE LESS THAN 50 kW SERVICE CLASSIFICATION | D127: GSL_FRR | E127: Fixed Rate Riders | G127: =IFERROR(SUMIF(RATES!B:B,'21. Bill Impacts'!D127,RATES!H:H),"") -> 0 | H127: 1 | I127: 0 | J127: =IFERROR(SUMIF(RATES!B:B,'21. Bill Impacts'!D127,RATES!I:I),"") -> 0.52 | K127: 1 | L127: =K127*J127 -> 0.52 | M127: 0.52
A128: GENERAL SERVICE LESS THAN 50 kW SERVICE CLASSIFICATION | D128: GSL_VRR | E128: Volumetric Rate Riders | G128: =IFERROR(SUMIF(RATES!B:B,'21. Bill Impacts'!D128,RATES!H:H),"") -> 0 | H128: =IF($F118>0, $F118, $F117) -> 2000 | I128: 0 | J128: =IFERROR(SUMIF(RATES!B:B,'21. Bill Impacts'!D128,RATES!I:I),"") -> 0.001 | K128: =IF($F118>0, $F118, $F117) -> 2000 | L128: 2 | M128: 2
A129: GENERAL SERVICE LESS THAN 50 kW SERVICE CLASSIFICATION | B129: ST_A | C129: =B16 -> 2 | E129: Sub-Total A (excluding pass through) | I129: =SUM(I125:I128) -> 65.34 | L129: =SUM(L125:L128) -> 68.52 | M129: 3.18 | N129: =IF((I129)=0,"",(M129/I129)) -> 0.04866850321
A130: GENERAL SERVICE LESS THAN 50 kW SERVICE CLASSIFICATION | E130: Line Losses on Cost of Power | G130: =IF((F117*12>=150000), 0, IF(F116="RPP",(G144*0.65+G145*0.17+G146*0.18),IF(F116="Non-RPP (Retailer)",G147,G148))) -> 0.08216 | H130: =IF(G130=0, 0, $F117*F119-F117) -> 73.8 | I130: =H130*G130 -> 6.063408 | J130: =IF((F117*12>=150000), 0, IF(F116="RPP",(J144*0.65+J145*0.17+J146*0.18),IF(F116="Non-RPP (Retailer)",J147,J148))) -> 0.08216 | K130: =IF(G130=0, 0, $F117*F119-F117) -> 73.8 | L130: =K130*J130 -> 6.063408 | M130: =L130-I130 -> 0 | N130: =IF(ISERROR(M130/I130), "", M130/I130) -> 0
A131: GENERAL SERVICE LESS THAN 50 kW SERVICE CLASSIFICATION | D131: GSL_DVA | E131: Total Deferral/Variance Account Rate Riders | G131: =IFERROR(SUMIF(RATES!B:B,'21. Bill Impacts'!D131,RATES!H:H),"") -> 0.0002 | H131: =IF($F118>0, $F118, $F117) -> 2000 | I131: =H131*G131 -> 0.4 | J131: =IFERROR(SUMIF(RATES!B:B,'21. Bill Impacts'!D131,RATES!I:I),"") -> -0.0026 | K131: =IF($F118>0, $F118, $F117) -> 2000 | L131: =K131*J131 -> -5.2 | M131: =L131-I131 -> -5.6 | N131: =IF(ISERROR(M131/I131), "", M131/I131) -> -14
A132: GENERAL SERVICE LESS THAN 50 kW SERVICE CLASSIFICATION | D132: GSL_GA | E132: GA Rate Riders
A133: GENERAL SERVICE LESS THAN 50 kW SERVICE CLASSIFICATION | D133: GSL_LV | E133: Low Voltage Service Charge | G133: =IFERROR(SUMIF(RATES!B:B,'21. Bill Impacts'!D133,RATES!H:H),"") -> 0.0004 | H133: =IF($F118>0, $F118, $F117) -> 2000 | I133: 0.8 | J133: =IFERROR(SUMIF(RATES!B:B,'21. Bill Impacts'!D133,RATES!I:I),"") -> 0.0004 | K133: =IF($F118>0, $F118, $F117) -> 2000 | L133: 0.8 | M133: 0 | N133: 0
A134: GENERAL SERVICE LESS THAN 50 kW SERVICE CLASSIFICATION | D134: GSL_FDVA | E134: Smart Meter Entity Charge (if applicable) and/or any fixed ($) Deferral/Variance Account Rate Riders | G134: =IFERROR(SUMIF(RATES!B:B,'21. Bill Impacts'!D134,RATES!H:H),"")+0.57 -> 0.78 | H134: 1 | I134: =H134*G134 -> 0.78 | J134: =IFERROR(SUMIF(RATES!B:B,'21. Bill Impacts'!D134,RATES!I:I),"")+0.57 -> 0.78 | K134: 1 | L134: =K134*J134 -> 0.78 | M134: 0 | N134: =IF(ISERROR(M134/I134), "", M134/I134) -> 0
A135: GENERAL SERVICE LESS THAN 50 kW SERVICE CLASSIFICATION | B135: ST_B | C135: =C129 -> 2 | E135: Sub-Total B - Distribution (includes Sub-Total A) | I135: =SUM(I129:I134) -> 73.383408 | L135: =SUM(L129:L134) -> 70.963408 | M135: -2.42 | N135: =IF((I135)=0,"",(M135/I135)) -> -0.03297748178
A136: GENERAL SERVICE LESS THAN 50 kW SERVICE CLASSIFICATION | D136: GSL_TN | E136: RTSR - Network | G136: =IFERROR(SUMIF(RATES!B:B,'21. Bill Impacts'!D136,RATES!H:H),"") -> 0.0073 | H136: =IF($F118>0, $F118, $F117*$F119) -> 2073.8 | I136: =H136*G136 -> 15.13874 | J136: =IFERROR(SUMIF(RATES!B:B,'21. Bill Impacts'!D136,RATES!I:I),"") -> 0.0067 | K136: =IF($F118>0, $F118, $F117*$F119) -> 2073.8 | L136: =K136*J136 -> 13.89446 | M136: -1.24428 | N136: =IF(ISERROR(M136/I136), "", M136/I136) -> -0.08219178082
A137: GENERAL SERVICE LESS THAN 50 kW SERVICE CLASSIFICATION | D137: GSL_TC | E137: RTSR - Connection and/or Line and Transformation Connection | G137: =IFERROR(SUMIF(RATES!B:B,'21. Bill Impacts'!D137,RATES!H:H),"") -> 0.0033 | H137: =IF($F118>0, $F118, $F117*$F119) -> 2073.8 | I137: =H137*G137 -> 6.84354 | J137: =IFERROR(SUMIF(RATES!B:B,'21. Bill Impacts'!D137,RATES!I:I),"") -> 0.0035 | K137: =IF($F118>0, $F118, $F117*$F119) -> 2073.8 | L137: =K137*J137 -> 7.2583 | M137: 0.41476 | N137: =IF(ISERROR(M137/I137), "", M137/I137) -> 0.06060606061
A138: GENERAL SERVICE LESS THAN 50 kW SERVICE CLASSIFICATION | B138: ST_C | C138: =C129 -> 2 | E138: Sub-Total C - Delivery (including Sub-Total B) | I138: =SUM(I135:I137) -> 95.365688 | L138: =SUM(L135:L137) -> 92.116168 | M138: -3.24952 | N138: =IF((I138)=0,"",(M138/I138)) -> -0.03407430983
A139: GENERAL SERVICE LESS THAN 50 kW SERVICE CLASSIFICATION | E139: Wholesale Market Service Charge (WMSC) | G139: 0.0036 | H139: =F117*F119 -> 2073.8 | I139: =H139*G139 -> 7.46568 | J139: 0.0036 | K139: =F117*F119 -> 2073.8 | L139: =K139*J139 -> 7.46568 | M139: 0 | N139: =IF(ISERROR(M139/I139), "", M139/I139) -> 0
A140: GENERAL SERVICE LESS THAN 50 kW SERVICE CLASSIFICATION | E140: Rural and Remote Rate Protection (RRRP) | G140: 0.0003 | H140: =F117*F119 -> 2073.8 | I140: 0.62214 | J140: 0.0003 | K140: =F117*F119 -> 2073.8 | L140: 0.62214 | M140: 0 | N140: 0
A141: GENERAL SERVICE LESS THAN 50 kW SERVICE CLASSIFICATION | E141: Standard Supply Service Charge | G141: 0.25 | H141: 1 | I141: 0.25 | J141: 0.25 | K141: 1 | L141: 0.25 | M141: 0 | N141: 0
A142: GENERAL SERVICE LESS THAN 50 kW SERVICE CLASSIFICATION | E142: Debt Retirement Charge (DRC) | G142: 0.007 | H142: =F117 -> 2000 | I142: 14 | J142: 0.007 | K142: =F117 -> 2000 | L142: 14 | M142: 0 | N142: 0
A143: GENERAL SERVICE LESS THAN 50 kW SERVICE CLASSIFICATION | M143: =L143-I143 -> 0 | N143: =IF(ISERROR(M143/I143), "", M143/I143) -> 
A144: GENERAL SERVICE LESS THAN 50 kW SERVICE CLASSIFICATION | B144: RPP | E144: TOU - Off Peak | G144: 0.065 | H144: =IF(AND(F117*12>=150000),0.65*F117*F119,0.65*F117) -> 1300 | I144: =H144*G144 -> 84.5 | J144: 0.065 | K144: =IF(AND(F117*12>=150000),0.65*F117*F120,0.65*F117) -> 1300 | L144: =K144*J144 -> 84.5 | M144: 0 | N144: 0
A145: GENERAL SERVICE LESS THAN 50 kW SERVICE CLASSIFICATION | B145: RPP | E145: TOU - Mid Peak | G145: 0.095 | H145: =IF(AND(F117*12>=150000),0.17*F117*F119,0.17*F117) -> 340 | I145: 32.3 | J145: 0.095 | K145: =IF(AND(F117*12>=150000),0.17*F117*F120,0.17*F117) -> 340 | L145: 32.3 | M145: 0 | N145: 0
A146: GENERAL SERVICE LESS THAN 50 kW SERVICE CLASSIFICATION | B146: RPP | E146: TOU - On Peak | G146: 0.132 | H146: =IF(AND(F117*12>=150000),0.18*F117*F119,0.18*F117) -> 360 | I146: 47.52 | J146: 0.132 | K146: =IF(AND(F117*12>=150000),0.18*F117*F120,0.18*F117) -> 360 | L146: 47.52 | M146: 0 | N146: 0
A147: GENERAL SERVICE LESS THAN 50 kW SERVICE CLASSIFICATION | B147: Non-RPP (Retailer) | E147: Non-RPP Retailer Avg. Price | G147: =0.1061 -> 0.1061 | H147: =IF(AND(F117*12>=150000),F117*F119,F117) -> 2000 | I147: =H147*G147 -> 212.2 | J147: =G147 -> 0.1061 | K147: =IF(AND(F117*12>=150000),F117*F120,F117) -> 2000 | L147: =K147*J147 -> 212.2 | M147: 0 | N147: 0
A148: GENERAL SERVICE LESS THAN 50 kW SERVICE CLASSIFICATION | B148: Non-RPP (Other) | E148: Average IESO Wholesale Market Price | G148: =G147 -> 0.1061 | H148: =IF(AND(F117*12>=150000),F117*F119,F117) -> 2000 | I148: =H148*G148 -> 212.2 | J148: =G148 -> 0.1061 | K148: =IF(AND(F117*12>=150000),F117*F120,F117) -> 2000 | L148: =K148*J148 -> 212.2 | M148: 0 | N148: 0
A149: GENERAL SERVICE LESS THAN 50 kW SERVICE CLASSIFICATION
A150: GENERAL SERVICE LESS THAN 50 kW SERVICE CLASSIFICATION | B150: RPP_BT | C150: 2 | E150: Total Bill on TOU (before Taxes) | I150: =SUM(I139:I146,I138) -> 282.023508 | L150: =SUM(L139:L146,L138) -> 278.773988 | M150: =L150-I150 -> -3.24952 | N150: =IF((I150)=0,"",(M150/I150)) -> -0.01152216006
A151: GENERAL SERVICE LESS THAN 50 kW SERVICE CLASSIFICATION | B151: RPP | E151: HST | G151: 0.13 | I151: =I150*G151 -> 36.66305604 | J151: 0.13 | L151: =L150*J151 -> 36.24061844 | M151: =L151-I151 -> -0.4224376 | N151: =IF((I151)=0,"",(M151/I151)) -> -0.01152216006
A152: GENERAL SERVICE LESS THAN 50 kW SERVICE CLASSIFICATION | B152: RPP_NET | C152: 2 | E152: Total Bill on TOU (before 8% Provincial Rebate) | I152: =SUM(I150:I151) -> 318.686564 | L152: =SUM(L150:L151) -> 315.0146064 | M152: =SUM(M150:M151) -> -3.6719576 | N152: =IF((I152)=0,"",(M152/I152)) -> -0.01152216006
A153: =A151 -> GENERAL SERVICE LESS THAN 50 kW SERVICE CLASSIFICATION | B153: RPP | E153: 8% Provincial Rebate | G153: -0.08 | I153: =I150*G153 -> -22.56188064 | J153: =G153 -> -0.08 | L153: =L150*J153 -> -22.30191904 | M153: =L153-I153 -> 0.2599616 | N153: =IF((I153)=0,"",(M153/I153)) -> -0.01152216006
A154: GENERAL SERVICE LESS THAN 50 kW SERVICE CLASSIFICATION | B154: RPP_TOTAL | C154: =C129 -> 2 | E154: Total Bill on TOU | I154: =SUM(I150,I151,I153) -> 296.1246834 | L154: =L150+L151+L153 -> 292.7126874 | M154: =L154-I154 -> -3.411996 | N154: =IF((I154)=0,"",(M154/I154)) -> -0.01152216006
A155: GENERAL SERVICE LESS THAN 50 kW SERVICE CLASSIFICATION | B155: RPP
A156: GENERAL SERVICE LESS THAN 50 kW SERVICE CLASSIFICATION | B156: Non-RPP (Retailer) | E156: Total Bill on Non-RPP Avg. Price | I156: =SUM(I147,I139:I143,I138) -> 329.903508 | L156: =SUM(L147,L139:L143,L138) -> 326.653988 | M156: =L156-I156 -> -3.24952 | N156: =IF((I156)=0,"",(M156/I156)) -> -0.009849910417
A157: GENERAL SERVICE LESS THAN 50 kW SERVICE CLASSIFICATION | B157: Non-RPP (Retailer) | E157: HST | G157: 0.13 | I157: =I156*G157 -> 42.88745604 | J157: 0.13 | L157: =L156*J157 -> 42.46501844 | M157: =L157-I157 -> -0.4224376 | N157: =IF((I157)=0,"",(M157/I157)) -> -0.009849910417
A158: GENERAL SERVICE LESS THAN 50 kW SERVICE CLASSIFICATION | B158: Non-RPP (Retailer) | E158: Provincial Rebate | G158: -0.08 | I158: =I156*G158 -> -26.39228064 | J158: =G158 -> -0.08 | L158: =L156*J158 -> -26.13231904 | M158: =L158-I158 -> 0.2599616 | N158: =IF((I158)=0,"",(M158/I158)) -> -0.009849910417
A159: GENERAL SERVICE LESS THAN 50 kW SERVICE CLASSIFICATION | B159: Non-RPP (Retailer)_TOTAL | E159: Total Bill on Non-RPP Avg. Price | I159: =SUM(I156,I157,I158) -> 346.3986834 | L159: =SUM(L156,L157,L158) -> 342.9866874 | M159: =L159-I159 -> -3.411996 | N159: =IF((I159)=0,"",(M159/I159)) -> -0.009849910417
A160: GENERAL SERVICE LESS THAN 50 kW SERVICE CLASSIFICATION | B160: Non-RPP (Retailer)
A161: GENERAL SERVICE LESS THAN 50 kW SERVICE CLASSIFICATION | B161: Non-RPP (Other) | E161: Total Bill on Average IESO Wholesale Market Price | I161: =SUM(I148,I139:I143,I138) -> 329.903508 | L161: =SUM(L148,L139:L143,L138) -> 326.653988 | M161: =L161-I161 -> -3.24952 | N161: =IF((I161)=0,"",(M161/I161)) -> -0.009849910417
A162: GENERAL SERVICE LESS THAN 50 kW SERVICE CLASSIFICATION | B162: Non-RPP (Other) | E162: HST | G162: 0.13 | I162: =I161*G162 -> 42.88745604 | J162: 0.13 | L162: =L161*J162 -> 42.46501844 | M162: =L162-I162 -> -0.4224376 | N162: =IF((I162)=0,"",(M162/I162)) -> -0.009849910417
A163: GENERAL SERVICE LESS THAN 50 kW SERVICE CLASSIFICATION | B163: Non-RPP (Other) | E163: Provincial Rebate | G163: -0.08 | I163: =I161*G163 -> -26.39228064 | J163: =G163 -> -0.08 | L163: =L161*J163 -> -26.13231904 | M163: =L163-I163 -> 0.2599616 | N163: =IF((I163)=0,"",(M163/I163)) -> -0.009849910417
A164: GENERAL SERVICE LESS THAN 50 kW SERVICE CLASSIFICATION | B164: Non-RPP (Other)_TOTAL | E164: Total Bill on Average IESO Wholesale Market Price | I164: =SUM(I161,I162,I163) -> 346.3986834 | L164: =SUM(L161,L162,L163) -> 342.9866874 | M164: =L164-I164 -> -3.411996 | N164: =IF((I164)=0,"",(M164/I164)) -> -0.009849910417
A165: GENERAL SERVICE LESS THAN 50 kW SERVICE CLASSIFICATION | B165: Non-RPP (Other)
E168: Customer Class: | F168: =E17 -> GENERAL SERVICE 500 to 4,999 kW SERVICE CLASSIFICATION | L168: =IF(O119="DEMAND - INTERVAL","RTSR - INTERVAL METERED","") -> 
E169: RPP / Non-RPP: | F169: =H17 -> Non-RPP (Other) | I169: Class B - non-Interval Metered
E170: Consumption | F170: =K17 -> 80000 | G170: kWh
E171: Demand | F171: =L17 -> 250 | G171: kW
E172: Current Loss Factor | F172: =I17 -> 1.0369
E173: Proposed/Approved Loss Factor | F173: =J17 -> 1.0369
G175: Current OEB-Approved | J175: Proposed | M175: Impact
G176: Rate | H176: Volume | I176: Charge | J176: Rate | K176: Volume | L176: Charge | M176: $ Change | N176: % Change
G177: ($) | I177: ($) | J177: ($) | L177: ($)
A178: =F168 -> GENERAL SERVICE 500 to 4,999 kW SERVICE CLASSIFICATION | D178: GSG_F | E178: Monthly Service Charge | G178: =IFERROR(SUMIF(RATES!B:B,'21. Bill Impacts'!D178,RATES!H:H),"") -> 140.97 | H178: 1 | I178: =H178*G178 -> 140.97 | J178: =IFERROR(SUMIF(RATES!B:B,'21. Bill Impacts'!D178,RATES!I:I),"") -> 142.24 | K178: 1 | L178: =K178*J178 -> 142.24 | M178: =L178-I178 -> 1.27 | N178: =IF(ISERROR(M178/I178), "", M178/I178) -> 0.009009009009
A179: =A178 -> GENERAL SERVICE 500 to 4,999 kW SERVICE CLASSIFICATION | D179: GSG_V | E179: Distribution Volumetric Rate | G179: =IFERROR(SUMIF(RATES!B:B,'21. Bill Impacts'!D179,RATES!H:H),"") -> 4.2037 | H179: =IF($F171>0, $F171, $F170) -> 250 | I179: =H179*G179 -> 1050.925 | J179: =IFERROR(SUMIF(RATES!B:B,'21. Bill Impacts'!D179,RATES!I:I),"") -> 4.2415 | K179: =IF($F171>0, $F171, $F170) -> 250 | L179: =K179*J179 -> 1060.375 | M179: 9.45 | N179: =IF(ISERROR(M179/I179), "", M179/I179) -> 0.008992078407
A180: =A179 -> GENERAL SERVICE 500 to 4,999 kW SERVICE CLASSIFICATION | D180: GSG_FRR | E180: Fixed Rate Riders | G180: =IFERROR(SUMIF(RATES!B:B,'21. Bill Impacts'!D180,RATES!H:H),"") -> 0 | H180: 1 | I180: 0 | J180: =IFERROR(SUMIF(RATES!B:B,'21. Bill Impacts'!D180,RATES!I:I),"") -> 4.78 | K180: 1 | L180: =K180*J180 -> 4.78 | M180: 4.78
A181: =A180 -> GENERAL SERVICE 500 to 4,999 kW SERVICE CLASSIFICATION | D181: GSG_VRR | E181: Volumetric Rate Riders | G181: =IFERROR(SUMIF(RATES!B:B,'21. Bill Impacts'!D181,RATES!H:H),"") -> 0 | H181: =IF($F171>0, $F171, $F170) -> 250 | I181: 0 | J181: =IFERROR(SUMIF(RATES!B:B,'21. Bill Impacts'!D181,RATES!I:I),"") -> 0.0964 | K181: =IF($F171>0, $F171, $F170) -> 250 | L181: 24.1 | M181: 24.1
A182: GENERAL SERVICE 500 to 4,999 kW SERVICE CLASSIFICATION | B182: ST_A | C182: =B17 -> 3 | E182: Sub-Total A (excluding pass through) | I182: =SUM(I178:I181) -> 1191.895 | L182: =SUM(L178:L181) -> 1231.495 | M182: 39.6 | N182: =IF((I182)=0,"",(M182/I182)) -> 0.03322440316
A183: GENERAL SERVICE 500 to 4,999 kW SERVICE CLASSIFICATION | E183: Line Losses on Cost of Power | G183: =IF((F170*12>=150000), 0, IF(F169="RPP",(G197*0.65+G198*0.17+G199*0.18),IF(F169="Non-RPP (Retailer)",G200,G201))) -> 0 | H183: =IF(G183=0, 0, $F170*F172-F170) -> 0 | I183: =H183*G183 -> 0 | J183: =IF((F170*12>=150000), 0, IF(F169="RPP",(J197*0.65+J198*0.17+J199*0.18),IF(F169="Non-RPP (Retailer)",J200,J201))) -> 0 | K183: =IF(G183=0, 0, $F170*F172-F170) -> 0 | L183: =K183*J183 -> 0 | M183: =L183-I183 -> 0 | N183: =IF(ISERROR(M183/I183), "", M183/I183) -> 
A184: GENERAL SERVICE 500 to 4,999 kW SERVICE CLASSIFICATION | D184: GSG_DVA | E184: Total Deferral/Variance Account Rate Riders | G184: =IFERROR(SUMIF(RATES!B:B,'21. Bill Impacts'!D184,RATES!H:H),"") -> 0.4884 | H184: =IF($F171>0, $F171, $F170) -> 250 | I184: =H184*G184 -> 122.1 | J184: =IFERROR(SUMIF(RATES!B:B,'21. Bill Impacts'!D184,RATES!I:I),"") -> 1.359 | K184: =IF($F171>0, $F171, $F170) -> 250 | L184: =K184*J184 -> 339.75 | M184: =L184-I184 -> 217.65 | N184: =IF(ISERROR(M184/I184), "", M184/I184) -> 1.782555283
A185: GENERAL SERVICE 500 to 4,999 kW SERVICE CLASSIFICATION | D185: GSG_GA | E185: GA Rate Riders | J185: =IFERROR(SUMIF(RATES!B:B,'21. Bill Impacts'!D185,RATES!I:I),"") -> 0.0004 | K185: =K195 -> 80000 | L185: 32 | M185: 32
A186: =A185 -> GENERAL SERVICE 500 to 4,999 kW SERVICE CLASSIFICATION | D186: GSG_LV | E186: Low Voltage Service Charge | G186: =IFERROR(SUMIF(RATES!B:B,'21. Bill Impacts'!D186,RATES!H:H),"") -> 0.1589 | H186: =IF($F171>0, $F171, $F170) -> 250 | I186: 39.725 | J186: =IFERROR(SUMIF(RATES!B:B,'21. Bill Impacts'!D186,RATES!I:I),"") -> 0.1589 | K186: =IF($F171>0, $F171, $F170) -> 250 | L186: 39.725 | M186: 0 | N186: 0
A187: GENERAL SERVICE 500 to 4,999 kW SERVICE CLASSIFICATION | E187: Smart Meter Entity Charge (if applicable) and/or any fixed ($) Deferral/Variance Account Rate Riders | G187: 0 | H187: 1 | I187: =H187*G187 -> 0 | J187: 0 | K187: 1 | L187: =K187*J187 -> 0 | M187: 0 | N187: =IF(ISERROR(M187/I187), "", M187/I187) -> 
A188: GENERAL SERVICE 500 to 4,999 kW SERVICE CLASSIFICATION | B188: ST_B | C188: =C182 -> 3 | E188: Sub-Total B - Distribution (includes Sub-Total A) | I188: =SUM(I182:I187) -> 1353.72 | L188: =SUM(L182:L187) -> 1642.97 | M188: 289.25 | N188: =IF((I188)=0,"",(M188/I188)) -> 0.2136704784
A189: GENERAL SERVICE 500 to 4,999 kW SERVICE CLASSIFICATION | D189: GSG_TN | E189: RTSR - Network | G189: =IFERROR(SUMIF(RATES!B:B,'21. Bill Impacts'!D189,RATES!H:H),"") -> 2.9268 | H189: =IF($F171>0, $F171, $F170*$F172) -> 250 | I189: =H189*G189 -> 731.7 | J189: =IFERROR(SUMIF(RATES!B:B,'21. Bill Impacts'!D189,RATES!I:I),"") -> 2.6739 | K189: =IF($F171>0, $F171, $F170*$F172) -> 250 | L189: =K189*J189 -> 668.475 | M189: -63.225 | N189: =IF(ISERROR(M189/I189), "", M189/I189) -> -0.08640836408
A190: GENERAL SERVICE 500 to 4,999 kW SERVICE CLASSIFICATION | D190: GSG_TC | E190: RTSR - Connection and/or Line and Transformation Connection | G190: =IFERROR(SUMIF(RATES!B:B,'21. Bill Impacts'!D190,RATES!H:H),"") -> 1.2618 | H190: =IF($F171>0, $F171, $F170*$F172) -> 250 | I190: =H190*G190 -> 315.45 | J190: =IFERROR(SUMIF(RATES!B:B,'21. Bill Impacts'!D190,RATES!I:I),"") -> 1.342 | K190: =IF($F171>0, $F171, $F170*$F172) -> 250 | L190: =K190*J190 -> 335.5 | M190: 20.05 | N190: =IF(ISERROR(M190/I190), "", M190/I190) -> 0.06355999366
A191: GENERAL SERVICE 500 to 4,999 kW SERVICE CLASSIFICATION | B191: ST_C | C191: =C182 -> 3 | E191: Sub-Total C - Delivery (including Sub-Total B) | I191: =SUM(I188:I190) -> 2400.87 | L191: =SUM(L188:L190) -> 2646.945 | M191: 246.075 | N191: =IF((I191)=0,"",(M191/I191)) -> 0.1024940959
A192: GENERAL SERVICE 500 to 4,999 kW SERVICE CLASSIFICATION | E192: Wholesale Market Service Charge (WMSC) | G192: 0.0036 | H192: =F170*F172 -> 82952 | I192: =H192*G192 -> 298.6272 | J192: 0.0036 | K192: =F170*F172 -> 82952 | L192: =K192*J192 -> 298.6272 | M192: 0 | N192: =IF(ISERROR(M192/I192), "", M192/I192) -> 0
A193: GENERAL SERVICE 500 to 4,999 kW SERVICE CLASSIFICATION | E193: Rural and Remote Rate Protection (RRRP) | G193: 0.0003 | H193: =F170*F172 -> 82952 | I193: 24.8856 | J193: 0.0003 | K193: =F170*F172 -> 82952 | L193: 24.8856 | M193: 0 | N193: 0
A194: GENERAL SERVICE 500 to 4,999 kW SERVICE CLASSIFICATION | E194: Standard Supply Service Charge | G194: 0.25 | H194: 1 | I194: 0.25 | J194: 0.25 | K194: 1 | L194: 0.25 | M194: 0 | N194: 0
A195: GENERAL SERVICE 500 to 4,999 kW SERVICE CLASSIFICATION | E195: Debt Retirement Charge (DRC) | G195: 0.007 | H195: =F170 -> 80000 | I195: 560 | J195: 0.007 | K195: =F170 -> 80000 | L195: 560 | M195: 0 | N195: 0
A196: GENERAL SERVICE 500 to 4,999 kW SERVICE CLASSIFICATION | M196: =L196-I196 -> 0 | N196: =IF(ISERROR(M196/I196), "", M196/I196) -> 
A197: GENERAL SERVICE 500 to 4,999 kW SERVICE CLASSIFICATION | B197: RPP | E197: TOU - Off Peak | G197: 0.065 | H197: =IF(AND(F170*12>=150000),0.65*F170*F172,0.65*F170) -> 53918.8 | I197: =H197*G197 -> 3504.722 | J197: 0.065 | K197: =IF(AND(F170*12>=150000),0.65*F170*F173,0.65*F170) -> 53918.8 | L197: =K197*J197 -> 3504.722 | M197: 0 | N197: 0
A198: GENERAL SERVICE 500 to 4,999 kW SERVICE CLASSIFICATION | B198: RPP | E198: TOU - Mid Peak | G198: 0.095 | H198: =IF(AND(F170*12>=150000),0.17*F170*F172,0.17*F170) -> 14101.84 | I198: 1339.6748 | J198: 0.095 | K198: =IF(AND(F170*12>=150000),0.17*F170*F173,0.17*F170) -> 14101.84 | L198: 1339.6748 | M198: 0 | N198: 0
A199: GENERAL SERVICE 500 to 4,999 kW SERVICE CLASSIFICATION | B199: RPP | E199: TOU - On Peak | G199: 0.132 | H199: =IF(AND(F170*12>=150000),0.18*F170*F172,0.18*F170) -> 14931.36 | I199: 1970.93952 | J199: 0.132 | K199: =IF(AND(F170*12>=150000),0.18*F170*F173,0.18*F170) -> 14931.36 | L199: 1970.93952 | M199: 0 | N199: 0
A200: GENERAL SERVICE 500 to 4,999 kW SERVICE CLASSIFICATION | B200: Non-RPP (Retailer) | E200: Non-RPP Retailer Avg. Price | G200: =0.1061 -> 0.1061 | H200: =IF(AND(F170*12>=150000),F170*F172,F170) -> 82952 | I200: =H200*G200 -> 8801.2072 | J200: =G200 -> 0.1061 | K200: =IF(AND(F170*12>=150000),F170*F173,F170) -> 82952 | L200: =K200*J200 -> 8801.2072 | M200: 0 | N200: 0
A201: GENERAL SERVICE 500 to 4,999 kW SERVICE CLASSIFICATION | B201: Non-RPP (Other) | E201: Average IESO Wholesale Market Price | G201: 0.1101 | H201: =IF(AND(F170*12>=150000),F170*F172,F170) -> 82952 | I201: =H201*G201 -> 9133.0152 | J201: =G201 -> 0.1101 | K201: =IF(AND(F170*12>=150000),F170*F173,F170) -> 82952 | L201: =K201*J201 -> 9133.0152 | M201: 0 | N201: 0
A202: GENERAL SERVICE 500 to 4,999 kW SERVICE CLASSIFICATION
A203: GENERAL SERVICE 500 to 4,999 kW SERVICE CLASSIFICATION | B203: RPP | E203: Total Bill on TOU (before Taxes) | I203: =SUM(I192:I199,I191) -> 10099.96912 | L203: =SUM(L192:L199,L191) -> 10346.04412 | M203: =L203-I203 -> 246.075 | N203: =IF((I203)=0,"",(M203/I203)) -> 0.02436393588
A204: GENERAL SERVICE 500 to 4,999 kW SERVICE CLASSIFICATION | B204: RPP | E204: HST | G204: 0.13 | I204: =I203*G204 -> 1312.995986 | J204: 0.13 | L204: =L203*J204 -> 1344.985736 | M204: =L204-I204 -> 31.98975 | N204: =IF((I204)=0,"",(M204/I204)) -> 0.02436393588
A205: GENERAL SERVICE 500 to 4,999 kW SERVICE CLASSIFICATION | B205: RPP | E205: 8% Provincial Rebate | G205: -0.08 | I205: =I203*G205 -> -807.9975296 | J205: =G205 -> -0.08 | L205: =L203*J205 -> -827.6835296 | M205: =L205-I205 -> -19.686 | N205: =IF((I205)=0,"",(M205/I205)) -> 0.02436393588
A206: GENERAL SERVICE 500 to 4,999 kW SERVICE CLASSIFICATION | B206: RPP_TOTAL | E206: Total Bill on TOU | I206: =SUM(I203,I204,I205) -> 10604.96758 | L206: =L203+L204+L205 -> 10863.34633 | M206: =L206-I206 -> 258.37875 | N206: =IF((I206)=0,"",(M206/I206)) -> 0.02436393588
A207: GENERAL SERVICE 500 to 4,999 kW SERVICE CLASSIFICATION | B207: RPP
A208: GENERAL SERVICE 500 to 4,999 kW SERVICE CLASSIFICATION | B208: Non-RPP (Retailer) | E208: Total Bill on Non-RPP Avg. Price | I208: =SUM(I200,I192:I196,I191) -> 12085.84 | L208: =SUM(L200,L192:L196,L191) -> 12331.915 | M208: =L208-I208 -> 246.075 | N208: =IF((I208)=0,"",(M208/I208)) -> 0.02036060381
A209: GENERAL SERVICE 500 to 4,999 kW SERVICE CLASSIFICATION | B209: Non-RPP (Retailer) | E209: HST | G209: 0.13 | I209: =I208*G209 -> 1571.1592 | J209: 0.13 | L209: =L208*J209 -> 1603.14895 | M209: =L209-I209 -> 31.98975 | N209: =IF((I209)=0,"",(M209/I209)) -> 0.02036060381
A210: GENERAL SERVICE 500 to 4,999 kW SERVICE CLASSIFICATION | B210: Non-RPP (Retailer) | E210: 8% Provincial Rebate | G210: -0.08 | I210: =I208*G210 -> -966.8672 | J210: =G210 -> -0.08 | L210: =L208*J210 -> -986.5532 | M210: =L210-I210 -> -19.686 | N210: =IF((I210)=0,"",(M210/I210)) -> 0.02036060381
A211: GENERAL SERVICE 500 to 4,999 kW SERVICE CLASSIFICATION | B211: Non-RPP (Retailer)_TOTAL | E211: Total Bill on Non-RPP Avg. Price | I211: =SUM(I208,I209,I210) -> 12690.132 | L211: =SUM(L208,L209,L210) -> 12948.51075 | M211: =L211-I211 -> 258.37875 | N211: =IF((I211)=0,"",(M211/I211)) -> 0.02036060381
A212: GENERAL SERVICE 500 to 4,999 kW SERVICE CLASSIFICATION | B212: Non-RPP (Retailer)
A213: GENERAL SERVICE 500 to 4,999 kW SERVICE CLASSIFICATION | B213: Non-RPP (Other)_BT | C213: 3 | E213: Total Bill on Average IESO Wholesale Market Price | I213: =SUM(I201,I192:I196,I191) -> 12417.648 | L213: =SUM(L201,L192:L196,L191) -> 12663.723 | M213: =L213-I213 -> 246.075 | N213: =IF((I213)=0,"",(M213/I213)) -> 0.01981655463
A214: GENERAL SERVICE 500 to 4,999 kW SERVICE CLASSIFICATION | B214: Non-RPP (Other) | E214: HST | G214: 0.13 | I214: =I213*G214 -> 1614.29424 | J214: 0.13 | L214: =L213*J214 -> 1646.28399 | M214: =L214-I214 -> 31.98975 | N214: =IF((I214)=0,"",(M214/I214)) -> 0.01981655463
A215: GENERAL SERVICE 500 to 4,999 kW SERVICE CLASSIFICATION | B215: Non-RPP (Other)_NET | C215: 3 | E215: Total Bill on Average IESO WMP (before 8% Provincial Rebate) | I215: =SUM(I213:I214) -> 14031.94224 | L215: =SUM(L213:L214) -> 14310.00699 | M215: =SUM(M213:M214) -> 278.06475 | N215: =IF((I215)=0,"",(M215/I215)) -> 0.01981655463
